Workbook

Sheet BD_Economica_bk (hidden)
A1: Num. | B1: Dimensión | C1: Segundo Nivel | D1: Matriz de Resultado | E1: Indicador | F1: Subindicador | G1: Nombre de la región/Nacional | H1: Año | I1: Valor | J1: Unidad | K1: Fuente web | L1: Fuente ficha tecnica | M1: Link | N1: Descripción del indicador | O1: Observaciones internas | P1: Proyección | Q1: Semáforo
A2: 17913 | B2: Economica | C2: EJE 7: DESARROLLO ECONÓMICO DE LAS AREAS RURALES DEL PAIS | D2: AGE.28.3. | E2: Número de municipalidades que realizan acciones de fomento a la artesanía | F2: Departamental | G2: Amazonas | H2: 2012 | I2: 39 | J2: Municipalidades | K2: Instituto Nacional de Estadística e Informática (INEI) - Registro Nacional de Municipalidades (RENAMU) | L2: Instituto Nacional de Estadística e Informática (INEI) - Registro Nacional de Municipalidades (RENAMU) | M2: https://www.inei.gob.pe/media/MenuRecursivo/publicaciones_digitales/Est/Lib1186/index.html | P2: =IFERROR(IF(VLOOKUP(CONCATENATE(E2,F2,G2),ListaIndicadores!$AG$7:$AJ$1887,3,FALSE)="","",VLOOKUP(CONCATENATE(E2,F2,G2),ListaIndicadores!$AG$7:$AJ$1887,3,FALSE)),"") -> 8 | Q2: =VLOOKUP(CONCATENATE(E2,F2,G2),ListaIndicadores!$AG$7:$AJ$1887,4,FALSE) -> ¡Faltan datos!
A3: 17914 | B3: Economica | C3: EJE 7: DESARROLLO ECONÓMICO DE LAS AREAS RURALES DEL PAIS | D3: AGE.28.3. | E3: Número de municipalidades que realizan acciones de fomento a la artesanía | F3: Departamental | G3: Amazonas | H3: 2013 | I3: 44 | J3: Municipalidades | K3: Instituto Nacional de Estadística e Informática (INEI) - Registro Nacional de Municipalidades (RENAMU) | L3: Instituto Nacional de Estadística e Informática (INEI) - Registro Nacional de Municipalidades (RENAMU) | M3: https://www.inei.gob.pe/media/MenuRecursivo/publicaciones_digitales/Est/Lib1246/index.html | P3: =IFERROR(IF(VLOOKUP(CONCATENATE(E3,F3,G3),ListaIndicadores!$AG$7:$AJ$1887,3,FALSE)="","",VLOOKUP(CONCATENATE(E3,F3,G3),ListaIndicadores!$AG$7:$AJ$1887,3,FALSE)),"") -> 8 | Q3: =VLOOKUP(CONCATENATE(E3,F3,G3),ListaIndicadores!$AG$7:$AJ$1887,4,FALSE) -> ¡Faltan datos!
A4: 17915 | B4: Economica | C4: EJE 7: DESARROLLO ECONÓMICO DE LAS AREAS RURALES DEL PAIS | D4: AGE.28.3. | E4: Número de municipalidades que realizan acciones de fomento a la artesanía | F4: Departamental | G4: Amazonas | H4: 2014 | I4: 32 | J4: Municipalidades | K4: Instituto Nacional de Estadística e Informática (INEI) - Registro Nacional de Municipalidades (RENAMU) | L4: Instituto Nacional de Estadística e Informática (INEI) - Registro Nacional de Municipalidades (RENAMU) | M4: https://www.inei.gob.pe/media/MenuRecursivo/publicaciones_digitales/Est/Lib1362/index.html | P4: =IFERROR(IF(VLOOKUP(CONCATENATE(E4,F4,G4),ListaIndicadores!$AG$7:$AJ$1887,3,FALSE)="","",VLOOKUP(CONCATENATE(E4,F4,G4),ListaIndicadores!$AG$7:$AJ$1887,3,FALSE)),"") -> 8 | Q4: =VLOOKUP(CONCATENATE(E4,F4,G4),ListaIndicadores!$AG$7:$AJ$1887,4,FALSE) -> ¡Faltan datos!
A5: 17916 | B5: Economica | C5: EJE 7: DESARROLLO ECONÓMICO DE LAS AREAS RURALES DEL PAIS | D5: AGE.28.3. | E5: Número de municipalidades que realizan acciones de fomento a la artesanía | F5: Departamental | G5: Amazonas | H5: 2015 | I5: 33 | J5: Municipalidades | K5: Instituto Nacional de Estadística e Informática (INEI) - Registro Nacional de Municipalidades (RENAMU) | L5: Instituto Nacional de Estadística e Informática (INEI) - Registro Nacional de Municipalidades (RENAMU) | M5: https://www.inei.gob.pe/media/MenuRecursivo/publicaciones_digitales/Est/Lib1417/index.html | P5: =IFERROR(IF(VLOOKUP(CONCATENATE(E5,F5,G5),ListaIndicadores!$AG$7:$AJ$1887,3,FALSE)="","",VLOOKUP(CONCATENATE(E5,F5,G5),ListaIndicadores!$AG$7:$AJ$1887,3,FALSE)),"") -> 8 | Q5: =VLOOKUP(CONCATENATE(E5,F5,G5),ListaIndicadores!$AG$7:$AJ$1887,4,FALSE) -> ¡Faltan datos!
A6: 17917 | B6: Economica | C6: EJE 7: DESARROLLO ECONÓMICO DE LAS AREAS RURALES DEL PAIS | D6: AGE.28.3. | E6: Número de municipalidades que realizan acciones de fomento a la artesanía | F6: Departamental | G6: Amazonas | H6: 2016 | I6: 27 | J6: Municipalidades | K6: Instituto Nacional de Estadística e Informática (INEI) - Registro Nacional de Municipalidades (RENAMU) | L6: Instituto Nacional de Estadística e Informática (INEI) - Registro Nacional de Municipalidades (RENAMU) | M6: https://www.inei.gob.pe/media/MenuRecursivo/publicaciones_digitales/Est/Lib1474/index.html | P6: =IFERROR(IF(VLOOKUP(CONCATENATE(E6,F6,G6),ListaIndicadores!$AG$7:$AJ$1887,3,FALSE)="","",VLOOKUP(CONCATENATE(E6,F6,G6),ListaIndicadores!$AG$7:$AJ$1887,3,FALSE)),"") -> 8 | Q6: =VLOOKUP(CONCATENATE(E6,F6,G6),ListaIndicadores!$AG$7:$AJ$1887,4,FALSE) -> ¡Faltan datos!
A7: 18330 | B7: Economica | C7: EJE 7: DESARROLLO ECONÓMICO DE LAS AREAS RURALES DEL PAIS | D7: AGE.30.8. | E7: Caminos rurales construidos o reparados. (Kilometros) | F7: Caminos Afirmados | G7: Amazonas | H7: 2022 | I7: 359 | J7: Kilómetros | K7: Instituto Nacional de Estadística e Informática (INEI) - Registro Nacional de Municipalidades (RENAMU) | L7: Instituto Nacional de Estadística e Informática (INEI) - Registro Nacional de Municipalidades (RENAMU) | M7: https://www.mesadeconcertacion.org.pe/acuerdos-de-gobernabilidad-regionales-y-locales-2019-2031 | P7: =IFERROR(IF(VLOOKUP(CONCATENATE(E7,F7,G7),ListaIndicadores!$AG$7:$AJ$1887,3,FALSE)="","",VLOOKUP(CONCATENATE(E7,F7,G7),ListaIndicadores!$AG$7:$AJ$1887,3,FALSE)),"") ->  | Q7: =VLOOKUP(CONCATENATE(E7,F7,G7),ListaIndicadores!$AG$7:$AJ$1887,4,FALSE) -> 
A8: 18331 | B8: Economica | C8: EJE 7: DESARROLLO ECONÓMICO DE LAS AREAS RURALES DEL PAIS | D8: AGE.30.8. | E8: Caminos rurales construidos o reparados. (Kilometros) | F8: Caminos Rurales Afirmados Construidos | G8: Amazonas | H8: 2012 | I8: 20 | J8: Kilómetros | K8: Instituto Nacional de Estadística e Informática (INEI) - Registro Nacional de Municipalidades (RENAMU) | L8: Instituto Nacional de Estadística e Informática (INEI) - Registro Nacional de Municipalidades (RENAMU) | M8: https://www.inei.gob.pe/media/MenuRecursivo/publicaciones_digitales/Est/Lib1186/index.html | P8: =IFERROR(IF(VLOOKUP(CONCATENATE(E8,F8,G8),ListaIndicadores!$AG$7:$AJ$1887,3,FALSE)="","",VLOOKUP(CONCATENATE(E8,F8,G8),ListaIndicadores!$AG$7:$AJ$1887,3,FALSE)),"") -> -1894 | Q8: =VLOOKUP(CONCATENATE(E8,F8,G8),ListaIndicadores!$AG$7:$AJ$1887,4,FALSE) -> ¡Faltan datos!
A9: 18332 | B9: Economica | C9: EJE 7: DESARROLLO ECONÓMICO DE LAS AREAS RURALES DEL PAIS | D9: AGE.30.8. | E9: Caminos rurales construidos o reparados. (Kilometros) | F9: Caminos Rurales Afirmados Construidos | G9: Amazonas | H9: 2013 | I9: 35 | J9: Kilómetros | K9: Instituto Nacional de Estadística e Informática (INEI) - Registro Nacional de Municipalidades (RENAMU) | L9: Instituto Nacional de Estadística e Informática (INEI) - Registro Nacional de Municipalidades (RENAMU) | M9: https://www.inei.gob.pe/media/MenuRecursivo/publicaciones_digitales/Est/Lib1246/index.html | P9: =IFERROR(IF(VLOOKUP(CONCATENATE(E9,F9,G9),ListaIndicadores!$AG$7:$AJ$1887,3,FALSE)="","",VLOOKUP(CONCATENATE(E9,F9,G9),ListaIndicadores!$AG$7:$AJ$1887,3,FALSE)),"") -> -1894 | Q9: =VLOOKUP(CONCATENATE(E9,F9,G9),ListaIndicadores!$AG$7:$AJ$1887,4,FALSE) -> ¡Faltan datos!
A10: 18333 | B10: Economica | C10: EJE 7: DESARROLLO ECONÓMICO DE LAS AREAS RURALES DEL PAIS | D10: AGE.30.8. | E10: Caminos rurales construidos o reparados. (Kilometros) | F10: Caminos Rurales Afirmados Construidos | G10: Amazonas | H10: 2014 | I10: 182 | J10: Kilómetros | K10: Instituto Nacional de Estadística e Informática (INEI) - Registro Nacional de Municipalidades (RENAMU) | L10: Instituto Nacional de Estadística e Informática (INEI) - Registro Nacional de Municipalidades (RENAMU) | M10: https://www.inei.gob.pe/media/MenuRecursivo/publicaciones_digitales/Est/Lib1362/index.html | P10: =IFERROR(IF(VLOOKUP(CONCATENATE(E10,F10,G10),ListaIndicadores!$AG$7:$AJ$1887,3,FALSE)="","",VLOOKUP(CONCATENATE(E10,F10,G10),ListaIndicadores!$AG$7:$AJ$1887,3,FALSE)),"") -> -1894 | Q10: =VLOOKUP(CONCATENATE(E10,F10,G10),ListaIndicadores!$AG$7:$AJ$1887,4,FALSE) -> ¡Faltan datos!
A11: 18334 | B11: Economica | C11: EJE 7: DESARROLLO ECONÓMICO DE LAS AREAS RURALES DEL PAIS | D11: AGE.30.8. | E11: Caminos rurales construidos o reparados. (Kilometros) | F11: Caminos Rurales Afirmados Construidos | G11: Amazonas | H11: 2015 | I11: 9 | J11: Kilómetros | K11: Instituto Nacional de Estadística e Informática (INEI) - Registro Nacional de Municipalidades (RENAMU) | L11: Instituto Nacional de Estadística e Informática (INEI) - Registro Nacional de Municipalidades (RENAMU) | M11: https://www.inei.gob.pe/media/MenuRecursivo/publicaciones_digitales/Est/Lib1417/index.html | P11: =IFERROR(IF(VLOOKUP(CONCATENATE(E11,F11,G11),ListaIndicadores!$AG$7:$AJ$1887,3,FALSE)="","",VLOOKUP(CONCATENATE(E11,F11,G11),ListaIndicadores!$AG$7:$AJ$1887,3,FALSE)),"") -> -1894 | Q11: =VLOOKUP(CONCATENATE(E11,F11,G11),ListaIndicadores!$AG$7:$AJ$1887,4,FALSE) -> ¡Faltan datos!
A12: 18335 | B12: Economica | C12: EJE 7: DESARROLLO ECONÓMICO DE LAS AREAS RURALES DEL PAIS | D12: AGE.30.8. | E12: Caminos rurales construidos o reparados. (Kilometros) | F12: Caminos Rurales Afirmados Construidos | G12: Amazonas | H12: 2016 | I12: 0 | J12: Kilómetros | K12: Instituto Nacional de Estadística e Informática (INEI) - Registro Nacional de Municipalidades (RENAMU) | L12: Instituto Nacional de Estadística e Informática (INEI) - Registro Nacional de Municipalidades (RENAMU) | M12: https://www.inei.gob.pe/media/MenuRecursivo/publicaciones_digitales/Est/Lib1474/index.html | P12: =IFERROR(IF(VLOOKUP(CONCATENATE(E12,F12,G12),ListaIndicadores!$AG$7:$AJ$1887,3,FALSE)="","",VLOOKUP(CONCATENATE(E12,F12,G12),ListaIndicadores!$AG$7:$AJ$1887,3,FALSE)),"") -> -1894 | Q12: =VLOOKUP(CONCATENATE(E12,F12,G12),ListaIndicadores!$AG$7:$AJ$1887,4,FALSE) -> ¡Faltan datos!
A13: 18466 | B13: Economica | C13: EJE 7: DESARROLLO ECONÓMICO DE LAS AREAS RURALES DEL PAIS | D13: AGE.30.8. | E13: Caminos rurales construidos o reparados. (Kilometros) | F13: Caminos Rurales Afirmados Reparados | G13: Amazonas | H13: 2012 | I13: 400 | J13: Kilómetros | K13: Instituto Nacional de Estadística e Informática (INEI) - Registro Nacional de Municipalidades (RENAMU) | L13: Instituto Nacional de Estadística e Informática (INEI) - Registro Nacional de Municipalidades (RENAMU) | M13: https://www.inei.gob.pe/media/MenuRecursivo/publicaciones_digitales/Est/Lib1186/index.html | P13: =IFERROR(IF(VLOOKUP(CONCATENATE(E13,F13,G13),ListaIndicadores!$AG$7:$AJ$1887,3,FALSE)="","",VLOOKUP(CONCATENATE(E13,F13,G13),ListaIndicadores!$AG$7:$AJ$1887,3,FALSE)),"") -> -2557 | Q13: =VLOOKUP(CONCATENATE(E13,F13,G13),ListaIndicadores!$AG$7:$AJ$1887,4,FALSE) -> ¡Faltan datos!
A14: 18467 | B14: Economica | C14: EJE 7: DESARROLLO ECONÓMICO DE LAS AREAS RURALES DEL PAIS | D14: AGE.30.8. | E14: Caminos rurales construidos o reparados. (Kilometros) | F14: Caminos Rurales Afirmados Reparados | G14: Amazonas | H14: 2013 | I14: 447 | J14: Kilómetros | K14: Instituto Nacional de Estadística e Informática (INEI) - Registro Nacional de Municipalidades (RENAMU) | L14: Instituto Nacional de Estadística e Informática (INEI) - Registro Nacional de Municipalidades (RENAMU) | M14: https://www.inei.gob.pe/media/MenuRecursivo/publicaciones_digitales/Est/Lib1246/index.html | P14: =IFERROR(IF(VLOOKUP(CONCATENATE(E14,F14,G14),ListaIndicadores!$AG$7:$AJ$1887,3,FALSE)="","",VLOOKUP(CONCATENATE(E14,F14,G14),ListaIndicadores!$AG$7:$AJ$1887,3,FALSE)),"") -> -2557 | Q14: =VLOOKUP(CONCATENATE(E14,F14,G14),ListaIndicadores!$AG$7:$AJ$1887,4,FALSE) -> ¡Faltan datos!
A15: 18468 | B15: Economica | C15: EJE 7: DESARROLLO ECONÓMICO DE LAS AREAS RURALES DEL PAIS | D15: AGE.30.8. | E15: Caminos rurales construidos o reparados. (Kilometros) | F15: Caminos Rurales Afirmados Reparados | G15: Amazonas | H15: 2014 | I15: 813 | J15: Kilómetros | K15: Instituto Nacional de Estadística e Informática (INEI) - Registro Nacional de Municipalidades (RENAMU) | L15: Instituto Nacional de Estadística e Informática (INEI) - Registro Nacional de Municipalidades (RENAMU) | M15: https://www.inei.gob.pe/media/MenuRecursivo/publicaciones_digitales/Est/Lib1362/index.html | P15: =IFERROR(IF(VLOOKUP(CONCATENATE(E15,F15,G15),ListaIndicadores!$AG$7:$AJ$1887,3,FALSE)="","",VLOOKUP(CONCATENATE(E15,F15,G15),ListaIndicadores!$AG$7:$AJ$1887,3,FALSE)),"") -> -2557 | Q15: =VLOOKUP(CONCATENATE(E15,F15,G15),ListaIndicadores!$AG$7:$AJ$1887,4,FALSE) -> ¡Faltan datos!
A16: 18469 | B16: Economica | C16: EJE 7: DESARROLLO ECONÓMICO DE LAS AREAS RURALES DEL PAIS | D16: AGE.30.8. | E16: Caminos rurales construidos o reparados. (Kilometros) | F16: Caminos Rurales Afirmados Reparados | G16: Amazonas | H16: 2015 | I16: 224 | J16: Kilómetros | K16: Instituto Nacional de Estadística e Informática (INEI) - Registro Nacional de Municipalidades (RENAMU) | L16: Instituto Nacional de Estadística e Informática (INEI) - Registro Nacional de Municipalidades (RENAMU) | M16: https://www.inei.gob.pe/media/MenuRecursivo/publicaciones_digitales/Est/Lib1417/index.html | P16: =IFERROR(IF(VLOOKUP(CONCATENATE(E16,F16,G16),ListaIndicadores!$AG$7:$AJ$1887,3,FALSE)="","",VLOOKUP(CONCATENATE(E16,F16,G16),ListaIndicadores!$AG$7:$AJ$1887,3,FALSE)),"") -> -2557 | Q16: =VLOOKUP(CONCATENATE(E16,F16,G16),ListaIndicadores!$AG$7:$AJ$1887,4,FALSE) -> ¡Faltan datos!
A17: 18470 | B17: Economica | C17: EJE 7: DESARROLLO ECONÓMICO DE LAS AREAS RURALES DEL PAIS | D17: AGE.30.8. | E17: Caminos rurales construidos o reparados. (Kilometros) | F17: Caminos Rurales Afirmados Reparados | G17: Amazonas | H17: 2016 | I17: 269 | J17: Kilómetros | K17: Instituto Nacional de Estadística e Informática (INEI) - Registro Nacional de Municipalidades (RENAMU) | L17: Instituto Nacional de Estadística e Informática (INEI) - Registro Nacional de Municipalidades (RENAMU) | M17: https://www.inei.gob.pe/media/MenuRecursivo/publicaciones_digitales/Est/Lib1474/index.html | P17: =IFERROR(IF(VLOOKUP(CONCATENATE(E17,F17,G17),ListaIndicadores!$AG$7:$AJ$1887,3,FALSE)="","",VLOOKUP(CONCATENATE(E17,F17,G17),ListaIndicadores!$AG$7:$AJ$1887,3,FALSE)),"") -> -2557 | Q17: =VLOOKUP(CONCATENATE(E17,F17,G17),ListaIndicadores!$AG$7:$AJ$1887,4,FALSE) -> ¡Faltan datos!
A18: 18601 | B18: Economica | C18: EJE 7: DESARROLLO ECONÓMICO DE LAS AREAS RURALES DEL PAIS | D18: AGE.30.8. | E18: Caminos rurales construidos o reparados. (Kilometros) | F18: Caminos Rurales Sin Afirmar Construidos | G18: Amazonas | H18: 2012 | I18: 125 | J18: Kilómetros | K18: Instituto Nacional de Estadística e Informática (INEI) - Registro Nacional de Municipalidades (RENAMU) | L18: Instituto Nacional de Estadística e Informática (INEI) - Registro Nacional de Municipalidades (RENAMU) | M18: https://www.inei.gob.pe/media/MenuRecursivo/publicaciones_digitales/Est/Lib1186/index.html | P18: =IFERROR(IF(VLOOKUP(CONCATENATE(E18,F18,G18),ListaIndicadores!$AG$7:$AJ$1887,3,FALSE)="","",VLOOKUP(CONCATENATE(E18,F18,G18),ListaIndicadores!$AG$7:$AJ$1887,3,FALSE)),"") -> -309 | Q18: =VLOOKUP(CONCATENATE(E18,F18,G18),ListaIndicadores!$AG$7:$AJ$1887,4,FALSE) -> ¡Faltan datos!
A19: 18602 | B19: Economica | C19: EJE 7: DESARROLLO ECONÓMICO DE LAS AREAS RURALES DEL PAIS | D19: AGE.30.8. | E19: Caminos rurales construidos o reparados. (Kilometros) | F19: Caminos Rurales Sin Afirmar Construidos | G19: Amazonas | H19: 2013 | I19: 94 | J19: Kilómetros | K19: Instituto Nacional de Estadística e Informática (INEI) - Registro Nacional de Municipalidades (RENAMU) | L19: Instituto Nacional de Estadística e Informática (INEI) - Registro Nacional de Municipalidades (RENAMU) | M19: https://www.inei.gob.pe/media/MenuRecursivo/publicaciones_digitales/Est/Lib1246/index.html | P19: =IFERROR(IF(VLOOKUP(CONCATENATE(E19,F19,G19),ListaIndicadores!$AG$7:$AJ$1887,3,FALSE)="","",VLOOKUP(CONCATENATE(E19,F19,G19),ListaIndicadores!$AG$7:$AJ$1887,3,FALSE)),"") -> -309 | Q19: =VLOOKUP(CONCATENATE(E19,F19,G19),ListaIndicadores!$AG$7:$AJ$1887,4,FALSE) -> ¡Faltan datos!
A20: 18603 | B20: Economica | C20: EJE 7: DESARROLLO ECONÓMICO DE LAS AREAS RURALES DEL PAIS | D20: AGE.30.8. | E20: Caminos rurales construidos o reparados. (Kilometros) | F20: Caminos Rurales Sin Afirmar Construidos | G20: Amazonas | H20: 2014 | I20: 127 | J20: Kilómetros | K20: Instituto Nacional de Estadística e Informática (INEI) - Registro Nacional de Municipalidades (RENAMU) | L20: Instituto Nacional de Estadística e Informática (INEI) - Registro Nacional de Municipalidades (RENAMU) | M20: https://www.inei.gob.pe/media/MenuRecursivo/publicaciones_digitales/Est/Lib1362/index.html | P20: =IFERROR(IF(VLOOKUP(CONCATENATE(E20,F20,G20),ListaIndicadores!$AG$7:$AJ$1887,3,FALSE)="","",VLOOKUP(CONCATENATE(E20,F20,G20),ListaIndicadores!$AG$7:$AJ$1887,3,FALSE)),"") -> -309 | Q20: =VLOOKUP(CONCATENATE(E20,F20,G20),ListaIndicadores!$AG$7:$AJ$1887,4,FALSE) -> ¡Faltan datos!
A21: 18604 | B21: Economica | C21: EJE 7: DESARROLLO ECONÓMICO DE LAS AREAS RURALES DEL PAIS | D21: AGE.30.8. | E21: Caminos rurales construidos o reparados. (Kilometros) | F21: Caminos Rurales Sin Afirmar Construidos | G21: Amazonas | H21: 2015 | I21: 43 | J21: Kilómetros | K21: Instituto Nacional de Estadística e Informática (INEI) - Registro Nacional de Municipalidades (RENAMU) | L21: Instituto Nacional de Estadística e Informática (INEI) - Registro Nacional de Municipalidades (RENAMU) | M21: https://www.inei.gob.pe/media/MenuRecursivo/publicaciones_digitales/Est/Lib1417/index.html | P21: =IFERROR(IF(VLOOKUP(CONCATENATE(E21,F21,G21),ListaIndicadores!$AG$7:$AJ$1887,3,FALSE)="","",VLOOKUP(CONCATENATE(E21,F21,G21),ListaIndicadores!$AG$7:$AJ$1887,3,FALSE)),"") -> -309 | Q21: =VLOOKUP(CONCATENATE(E21,F21,G21),ListaIndicadores!$AG$7:$AJ$1887,4,FALSE) -> ¡Faltan datos!
A22: 18605 | B22: Economica | C22: EJE 7: DESARROLLO ECONÓMICO DE LAS AREAS RURALES DEL PAIS | D22: AGE.30.8. | E22: Caminos rurales construidos o reparados. (Kilometros) | F22: Caminos Rurales Sin Afirmar Construidos | G22: Amazonas | H22: 2016 | I22: 57 | J22: Kilómetros | K22: Instituto Nacional de Estadística e Informática (INEI) - Registro Nacional de Municipalidades (RENAMU) | L22: Instituto Nacional de Estadística e Informática (INEI) - Registro Nacional de Municipalidades (RENAMU) | M22: https://www.inei.gob.pe/media/MenuRecursivo/publicaciones_digitales/Est/Lib1474/index.html | P22: =IFERROR(IF(VLOOKUP(CONCATENATE(E22,F22,G22),ListaIndicadores!$AG$7:$AJ$1887,3,FALSE)="","",VLOOKUP(CONCATENATE(E22,F22,G22),ListaIndicadores!$AG$7:$AJ$1887,3,FALSE)),"") -> -309 | Q22: =VLOOKUP(CONCATENATE(E22,F22,G22),ListaIndicadores!$AG$7:$AJ$1887,4,FALSE) -> ¡Faltan datos!
A23: 18736 | B23: Economica | C23: EJE 7: DESARROLLO ECONÓMICO DE LAS AREAS RURALES DEL PAIS | D23: AGE.30.8. | E23: Caminos rurales construidos o reparados. (Kilometros) | F23: Caminos Rurales Sin Afirmar Reparados | G23: Amazonas | H23: 2012 | I23: 232 | J23: Kilómetros | K23: Instituto Nacional de Estadística e Informática (INEI) - Registro Nacional de Municipalidades (RENAMU) | L23: Instituto Nacional de Estadística e Informática (INEI) - Registro Nacional de Municipalidades (RENAMU) | M23: https://www.inei.gob.pe/media/MenuRecursivo/publicaciones_digitales/Est/Lib1186/index.html | P23: =IFERROR(IF(VLOOKUP(CONCATENATE(E23,F23,G23),ListaIndicadores!$AG$7:$AJ$1887,3,FALSE)="","",VLOOKUP(CONCATENATE(E23,F23,G23),ListaIndicadores!$AG$7:$AJ$1887,3,FALSE)),"") -> 314 | Q23: =VLOOKUP(CONCATENATE(E23,F23,G23),ListaIndicadores!$AG$7:$AJ$1887,4,FALSE) -> ¡Faltan datos!
A24: 18737 | B24: Economica | C24: EJE 7: DESARROLLO ECONÓMICO DE LAS AREAS RURALES DEL PAIS | D24: AGE.30.8. | E24: Caminos rurales construidos o reparados. (Kilometros) | F24: Caminos Rurales Sin Afirmar Reparados | G24: Amazonas | H24: 2013 | I24: 92 | J24: Kilómetros | K24: Instituto Nacional de Estadística e Informática (INEI) - Registro Nacional de Municipalidades (RENAMU) | L24: Instituto Nacional de Estadística e Informática (INEI) - Registro Nacional de Municipalidades (RENAMU) | M24: https://www.inei.gob.pe/media/MenuRecursivo/publicaciones_digitales/Est/Lib1246/index.html | P24: =IFERROR(IF(VLOOKUP(CONCATENATE(E24,F24,G24),ListaIndicadores!$AG$7:$AJ$1887,3,FALSE)="","",VLOOKUP(CONCATENATE(E24,F24,G24),ListaIndicadores!$AG$7:$AJ$1887,3,FALSE)),"") -> 314 | Q24: =VLOOKUP(CONCATENATE(E24,F24,G24),ListaIndicadores!$AG$7:$AJ$1887,4,FALSE) -> ¡Faltan datos!
A25: 18738 | B25: Economica | C25: EJE 7: DESARROLLO ECONÓMICO DE LAS AREAS RURALES DEL PAIS | D25: AGE.30.8. | E25: Caminos rurales construidos o reparados. (Kilometros) | F25: Caminos Rurales Sin Afirmar Reparados | G25: Amazonas | H25: 2014 | I25: 264 | J25: Kilómetros | K25: Instituto Nacional de Estadística e Informática (INEI) - Registro Nacional de Municipalidades (RENAMU) | L25: Instituto Nacional de Estadística e Informática (INEI) - Registro Nacional de Municipalidades (RENAMU) | M25: https://www.inei.gob.pe/media/MenuRecursivo/publicaciones_digitales/Est/Lib1362/index.html | P25: =IFERROR(IF(VLOOKUP(CONCATENATE(E25,F25,G25),ListaIndicadores!$AG$7:$AJ$1887,3,FALSE)="","",VLOOKUP(CONCATENATE(E25,F25,G25),ListaIndicadores!$AG$7:$AJ$1887,3,FALSE)),"") -> 314 | Q25: =VLOOKUP(CONCATENATE(E25,F25,G25),ListaIndicadores!$AG$7:$AJ$1887,4,FALSE) -> ¡Faltan datos!
A26: 18739 | B26: Economica | C26: EJE 7: DESARROLLO ECONÓMICO DE LAS AREAS RURALES DEL PAIS | D26: AGE.30.8. | E26: Caminos rurales construidos o reparados. (Kilometros) | F26: Caminos Rurales Sin Afirmar Reparados | G26: Amazonas | H26: 2015 | I26: 203 | J26: Kilómetros | K26: Instituto Nacional de Estadística e Informática (INEI) - Registro Nacional de Municipalidades (RENAMU) | L26: Instituto Nacional de Estadística e Informática (INEI) - Registro Nacional de Municipalidades (RENAMU) | M26: https://www.inei.gob.pe/media/MenuRecursivo/publicaciones_digitales/Est/Lib1417/index.html | P26: =IFERROR(IF(VLOOKUP(CONCATENATE(E26,F26,G26),ListaIndicadores!$AG$7:$AJ$1887,3,FALSE)="","",VLOOKUP(CONCATENATE(E26,F26,G26),ListaIndicadores!$AG$7:$AJ$1887,3,FALSE)),"") -> 314 | Q26: =VLOOKUP(CONCATENATE(E26,F26,G26),ListaIndicadores!$AG$7:$AJ$1887,4,FALSE) -> ¡Faltan datos!
A27: 18740 | B27: Economica | C27: EJE 7: DESARROLLO ECONÓMICO DE LAS AREAS RURALES DEL PAIS | D27: AGE.30.8. | E27: Caminos rurales construidos o reparados. (Kilometros) | F27: Caminos Rurales Sin Afirmar Reparados | G27: Amazonas | H27: 2016 | I27: 276 | J27: Kilómetros | K27: Instituto Nacional de Estadística e Informática (INEI) - Registro Nacional de Municipalidades (RENAMU) | L27: Instituto Nacional de Estadística e Informática (INEI) - Registro Nacional de Municipalidades (RENAMU) | M27: https://www.inei.gob.pe/media/MenuRecursivo/publicaciones_digitales/Est/Lib1474/index.html | P27: =IFERROR(IF(VLOOKUP(CONCATENATE(E27,F27,G27),ListaIndicadores!$AG$7:$AJ$1887,3,FALSE)="","",VLOOKUP(CONCATENATE(E27,F27,G27),ListaIndicadores!$AG$7:$AJ$1887,3,FALSE)),"") -> 314 | Q27: =VLOOKUP(CONCATENATE(E27,F27,G27),ListaIndicadores!$AG$7:$AJ$1887,4,FALSE) -> ¡Faltan datos!
A28: 8025 | B28: Economica | C28: EJE 2: INFRAESTRUCTURA LOGÍSTICA, DE TRANSPORTE Y DE COMUNICACIONES | D28: AGE.8.1 | E28: % de hogares con al menos 1 miembro con teléfono celular | F28: Departamental | G28: Amazonas | H28: 2012 | I28: 72.7 | J28: Porcentaje | K28: INEI: Compendio Estadístico Perú | L28: Encuesta Nacional de Hogares (ENAHO) - Instituto Nacional de Estadística e Informática (INEI) | M28: https://www.inei.gob.pe/media/MenuRecursivo/publicaciones_digitales/Est/Lib1635/cap11/ind11.htm | P28: =IFERROR(IF(VLOOKUP(CONCATENATE(E28,F28,G28),ListaIndicadores!$AG$7:$AJ$1887,3,FALSE)="","",VLOOKUP(CONCATENATE(E28,F28,G28),ListaIndicadores!$AG$7:$AJ$1887,3,FALSE)),"") -> 111 | Q28: =VLOOKUP(CONCATENATE(E28,F28,G28),ListaIndicadores!$AG$7:$AJ$1887,4,FALSE) -> ¡Faltan datos!
A29: 8026 | B29: Economica | C29: EJE 2: INFRAESTRUCTURA LOGÍSTICA, DE TRANSPORTE Y DE COMUNICACIONES | D29: AGE.8.1 | E29: % de hogares con al menos 1 miembro con teléfono celular | F29: Departamental | G29: Amazonas | H29: 2013 | I29: 76.75 | J29: Porcentaje | K29: INEI: Compendio Estadístico Perú | L29: Encuesta Nacional de Hogares (ENAHO) - Instituto Nacional de Estadística e Informática (INEI) | M29: https://www.inei.gob.pe/media/MenuRecursivo/publicaciones_digitales/Est/Lib1635/cap11/ind11.htm | P29: =IFERROR(IF(VLOOKUP(CONCATENATE(E29,F29,G29),ListaIndicadores!$AG$7:$AJ$1887,3,FALSE)="","",VLOOKUP(CONCATENATE(E29,F29,G29),ListaIndicadores!$AG$7:$AJ$1887,3,FALSE)),"") -> 111 | Q29: =VLOOKUP(CONCATENATE(E29,F29,G29),ListaIndicadores!$AG$7:$AJ$1887,4,FALSE) -> ¡Faltan datos!
A30: 8027 | B30: Economica | C30: EJE 2: INFRAESTRUCTURA LOGÍSTICA, DE TRANSPORTE Y DE COMUNICACIONES | D30: AGE.8.1 | E30: % de hogares con al menos 1 miembro con teléfono celular | F30: Departamental | G30: Amazonas | H30: 2014 | I30: 76.6 | J30: Porcentaje | K30: INEI: Compendio Estadístico Perú | L30: Encuesta Nacional de Hogares (ENAHO) - Instituto Nacional de Estadística e Informática (INEI) | M30: https://www.inei.gob.pe/media/MenuRecursivo/publicaciones_digitales/Est/Lib1635/cap11/ind11.htm | P30: =IFERROR(IF(VLOOKUP(CONCATENATE(E30,F30,G30),ListaIndicadores!$AG$7:$AJ$1887,3,FALSE)="","",VLOOKUP(CONCATENATE(E30,F30,G30),ListaIndicadores!$AG$7:$AJ$1887,3,FALSE)),"") -> 111 | Q30: =VLOOKUP(CONCATENATE(E30,F30,G30),ListaIndicadores!$AG$7:$AJ$1887,4,FALSE) -> ¡Faltan datos!
A31: 8028 | B31: Economica | C31: EJE 2: INFRAESTRUCTURA LOGÍSTICA, DE TRANSPORTE Y DE COMUNICACIONES | D31: AGE.8.1 | E31: % de hogares con al menos 1 miembro con teléfono celular | F31: Departamental | G31: Amazonas | H31: 2015 | I31: 80.2 | J31: Porcentaje | K31: INEI: Compendio Estadístico Perú | L31: Encuesta Nacional de Hogares (ENAHO) - Instituto Nacional de Estadística e Informática (INEI) | M31: https://www.inei.gob.pe/media/MenuRecursivo/publicaciones_digitales/Est/Lib1635/cap11/ind11.htm | P31: =IFERROR(IF(VLOOKUP(CONCATENATE(E31,F31,G31),ListaIndicadores!$AG$7:$AJ$1887,3,FALSE)="","",VLOOKUP(CONCATENATE(E31,F31,G31),ListaIndicadores!$AG$7:$AJ$1887,3,FALSE)),"") -> 111 | Q31: =VLOOKUP(CONCATENATE(E31,F31,G31),ListaIndicadores!$AG$7:$AJ$1887,4,FALSE) -> ¡Faltan datos!
A32: 8029 | B32: Economica | C32: EJE 2: INFRAESTRUCTURA LOGÍSTICA, DE TRANSPORTE Y DE COMUNICACIONES | D32: AGE.8.1 | E32: % de hogares con al menos 1 miembro con teléfono celular | F32: Departamental | G32: Amazonas | H32: 2016 | I32: 83.6 | J32: Porcentaje | K32: INEI: Compendio Estadístico Perú | L32: Encuesta Nacional de Hogares (ENAHO) - Instituto Nacional de Estadística e Informática (INEI) | M32: https://www.inei.gob.pe/media/MenuRecursivo/publicaciones_digitales/Est/Lib1635/cap11/ind11.htm | P32: =IFERROR(IF(VLOOKUP(CONCATENATE(E32,F32,G32),ListaIndicadores!$AG$7:$AJ$1887,3,FALSE)="","",VLOOKUP(CONCATENATE(E32,F32,G32),ListaIndicadores!$AG$7:$AJ$1887,3,FALSE)),"") -> 111 | Q32: =VLOOKUP(CONCATENATE(E32,F32,G32),ListaIndicadores!$AG$7:$AJ$1887,4,FALSE) -> ¡Faltan datos!
A33: 8030 | B33: Economica | C33: EJE 2: INFRAESTRUCTURA LOGÍSTICA, DE TRANSPORTE Y DE COMUNICACIONES | D33: AGE.8.1 | E33: % de hogares con al menos 1 miembro con teléfono celular | F33: Departamental | G33: Amazonas | H33: 2017 | I33: 84.8 | J33: Porcentaje | K33: INEI: Compendio Estadístico Perú | L33: Encuesta Nacional de Hogares (ENAHO) - Instituto Nacional de Estadística e Informática (INEI) | M33: https://www.inei.gob.pe/media/MenuRecursivo/publicaciones_digitales/Est/Lib1635/cap11/ind11.htm | P33: =IFERROR(IF(VLOOKUP(CONCATENATE(E33,F33,G33),ListaIndicadores!$AG$7:$AJ$1887,3,FALSE)="","",VLOOKUP(CONCATENATE(E33,F33,G33),ListaIndicadores!$AG$7:$AJ$1887,3,FALSE)),"") -> 111 | Q33: =VLOOKUP(CONCATENATE(E33,F33,G33),ListaIndicadores!$AG$7:$AJ$1887,4,FALSE) -> ¡Faltan datos!
A34: 8031 | B34: Economica | C34: EJE 2: INFRAESTRUCTURA LOGÍSTICA, DE TRANSPORTE Y DE COMUNICACIONES | D34: AGE.8.1 | E34: % de hogares con al menos 1 miembro con teléfono celular | F34: Departamental | G34: Amazonas | H34: 2018 | I34: Sin datos | J34: Porcentaje | K34: INEI: Compendio Estadístico Perú | L34: Encuesta Nacional de Hogares (ENAHO) - Instituto Nacional de Estadística e Informática (INEI) | M34: https://www.inei.gob.pe/media/MenuRecursivo/publicaciones_digitales/Est/Lib1635/cap11/ind11.htm | P34: =IFERROR(IF(VLOOKUP(CONCATENATE(E34,F34,G34),ListaIndicadores!$AG$7:$AJ$1887,3,FALSE)="","",VLOOKUP(CONCATENATE(E34,F34,G34),ListaIndicadores!$AG$7:$AJ$1887,3,FALSE)),"") -> 111 | Q34: =VLOOKUP(CONCATENATE(E34,F34,G34),ListaIndicadores!$AG$7:$AJ$1887,4,FALSE) -> ¡Faltan datos!
A35: 8227 | B35: Economica | C35: EJE 2: INFRAESTRUCTURA LOGÍSTICA, DE TRANSPORTE Y DE COMUNICACIONES | D35: AGE.8.2 | E35: Municipalidades con conexión por fibra óptica o transporte de alta velocidad (con cobertura internet) | F35: Departamental | G35: Amazonas | H35: 2012 | I35: 35 | J35: Municipalidades | K35: Instituto Nacional de Estadística e Informática (INEI) - Registro Nacional de Municipalidades (RENAMU) | L35: Instituto Nacional de Estadística e Informática (INEI) - Registro Nacional de Municipalidades (RENAMU) | M35: https://www.inei.gob.pe/media/MenuRecursivo/publicaciones_digitales/Est/Lib1110/index.html | P35: =IFERROR(IF(VLOOKUP(CONCATENATE(E35,F35,G35),ListaIndicadores!$AG$7:$AJ$1887,3,FALSE)="","",VLOOKUP(CONCATENATE(E35,F35,G35),ListaIndicadores!$AG$7:$AJ$1887,3,FALSE)),"") -> 102 | Q35: =VLOOKUP(CONCATENATE(E35,F35,G35),ListaIndicadores!$AG$7:$AJ$1887,4,FALSE) -> ¡Faltan datos!
A36: 8228 | B36: Economica | C36: EJE 2: INFRAESTRUCTURA LOGÍSTICA, DE TRANSPORTE Y DE COMUNICACIONES | D36: AGE.8.2 | E36: Municipalidades con conexión por fibra óptica o transporte de alta velocidad (con cobertura internet) | F36: Departamental | G36: Amazonas | H36: 2013 | I36: 45 | J36: Municipalidades | K36: Instituto Nacional de Estadística e Informática (INEI) - Registro Nacional de Municipalidades (RENAMU) | L36: Instituto Nacional de Estadística e Informática (INEI) - Registro Nacional de Municipalidades (RENAMU) | M36: https://www.inei.gob.pe/media/MenuRecursivo/publicaciones_digitales/Est/Lib1186/index.html | P36: =IFERROR(IF(VLOOKUP(CONCATENATE(E36,F36,G36),ListaIndicadores!$AG$7:$AJ$1887,3,FALSE)="","",VLOOKUP(CONCATENATE(E36,F36,G36),ListaIndicadores!$AG$7:$AJ$1887,3,FALSE)),"") -> 102 | Q36: =VLOOKUP(CONCATENATE(E36,F36,G36),ListaIndicadores!$AG$7:$AJ$1887,4,FALSE) -> ¡Faltan datos!
A37: 8229 | B37: Economica | C37: EJE 2: INFRAESTRUCTURA LOGÍSTICA, DE TRANSPORTE Y DE COMUNICACIONES | D37: AGE.8.2 | E37: Municipalidades con conexión por fibra óptica o transporte de alta velocidad (con cobertura internet) | F37: Departamental | G37: Amazonas | H37: 2014 | I37: 53 | J37: Municipalidades | K37: Instituto Nacional de Estadística e Informática (INEI) - Registro Nacional de Municipalidades (RENAMU) | L37: Instituto Nacional de Estadística e Informática (INEI) - Registro Nacional de Municipalidades (RENAMU) | M37: https://www.inei.gob.pe/media/MenuRecursivo/publicaciones_digitales/Est/Lib1246/index.html | P37: =IFERROR(IF(VLOOKUP(CONCATENATE(E37,F37,G37),ListaIndicadores!$AG$7:$AJ$1887,3,FALSE)="","",VLOOKUP(CONCATENATE(E37,F37,G37),ListaIndicadores!$AG$7:$AJ$1887,3,FALSE)),"") -> 102 | Q37: =VLOOKUP(CONCATENATE(E37,F37,G37),ListaIndicadores!$AG$7:$AJ$1887,4,FALSE) -> ¡Faltan datos!
A38: 8230 | B38: Economica | C38: EJE 2: INFRAESTRUCTURA LOGÍSTICA, DE TRANSPORTE Y DE COMUNICACIONES | D38: AGE.8.2 | E38: Municipalidades con conexión por fibra óptica o transporte de alta velocidad (con cobertura internet) | F38: Departamental | G38: Amazonas | H38: 2015 | I38: 52 | J38: Municipalidades | K38: Instituto Nacional de Estadística e Informática (INEI) - Registro Nacional de Municipalidades (RENAMU) | L38: Instituto Nacional de Estadística e Informática (INEI) - Registro Nacional de Municipalidades (RENAMU) | M38: https://www.inei.gob.pe/media/MenuRecursivo/publicaciones_digitales/Est/Lib1362/index.html | P38: =IFERROR(IF(VLOOKUP(CONCATENATE(E38,F38,G38),ListaIndicadores!$AG$7:$AJ$1887,3,FALSE)="","",VLOOKUP(CONCATENATE(E38,F38,G38),ListaIndicadores!$AG$7:$AJ$1887,3,FALSE)),"") -> 102 | Q38: =VLOOKUP(CONCATENATE(E38,F38,G38),ListaIndicadores!$AG$7:$AJ$1887,4,FALSE) -> ¡Faltan datos!
A39: 8231 | B39: Economica | C39: EJE 2: INFRAESTRUCTURA LOGÍSTICA, DE TRANSPORTE Y DE COMUNICACIONES | D39: AGE.8.2 | E39: Municipalidades con conexión por fibra óptica o transporte de alta velocidad (con cobertura internet) | F39: Departamental | G39: Amazonas | H39: 2016 | I39: 57 | J39: Municipalidades | K39: Instituto Nacional de Estadística e Informática (INEI) - Registro Nacional de Municipalidades (RENAMU) | L39: Instituto Nacional de Estadística e Informática (INEI) - Registro Nacional de Municipalidades (RENAMU) | M39: https://www.inei.gob.pe/media/MenuRecursivo/publicaciones_digitales/Est/Lib1417/index.html | P39: =IFERROR(IF(VLOOKUP(CONCATENATE(E39,F39,G39),ListaIndicadores!$AG$7:$AJ$1887,3,FALSE)="","",VLOOKUP(CONCATENATE(E39,F39,G39),ListaIndicadores!$AG$7:$AJ$1887,3,FALSE)),"") -> 102 | Q39: =VLOOKUP(CONCATENATE(E39,F39,G39),ListaIndicadores!$AG$7:$AJ$1887,4,FALSE) -> ¡Faltan datos!
A40: 8232 | B40: Economica | C40: EJE 2: INFRAESTRUCTURA LOGÍSTICA, DE TRANSPORTE Y DE COMUNICACIONES | D40: AGE.8.2 | E40: Municipalidades con conexión por fibra óptica o transporte de alta velocidad (con cobertura internet) | F40: Departamental | G40: Amazonas | H40: 2017 | I40: 61 | J40: Municipalidades | K40: Instituto Nacional de Estadística e Informática (INEI) - Registro Nacional de Municipalidades (RENAMU) | L40: Instituto Nacional de Estadística e Informática (INEI) - Registro Nacional de Municipalidades (RENAMU) | M40: https://www.inei.gob.pe/media/MenuRecursivo/publicaciones_digitales/Est/Lib1474/index.html | P40: =IFERROR(IF(VLOOKUP(CONCATENATE(E40,F40,G40),ListaIndicadores!$AG$7:$AJ$1887,3,FALSE)="","",VLOOKUP(CONCATENATE(E40,F40,G40),ListaIndicadores!$AG$7:$AJ$1887,3,FALSE)),"") -> 102 | Q40: =VLOOKUP(CONCATENATE(E40,F40,G40),ListaIndicadores!$AG$7:$AJ$1887,4,FALSE) -> ¡Faltan datos!
A41: 8233 | B41: Economica | C41: EJE 2: INFRAESTRUCTURA LOGÍSTICA, DE TRANSPORTE Y DE COMUNICACIONES | D41: AGE.8.2 | E41: Municipalidades con conexión por fibra óptica o transporte de alta velocidad (con cobertura internet) | F41: Departamental | G41: Amazonas | H41: 2018 | I41: 64 | J41: Municipalidades | K41: Instituto Nacional de Estadística e Informática (INEI) - Registro Nacional de Municipalidades (RENAMU) | L41: Instituto Nacional de Estadística e Informática (INEI) - Registro Nacional de Municipalidades (RENAMU) | M41: https://www.inei.gob.pe/media/MenuRecursivo/publicaciones_digitales/Est/Lib1636/index.html | P41: =IFERROR(IF(VLOOKUP(CONCATENATE(E41,F41,G41),ListaIndicadores!$AG$7:$AJ$1887,3,FALSE)="","",VLOOKUP(CONCATENATE(E41,F41,G41),ListaIndicadores!$AG$7:$AJ$1887,3,FALSE)),"") -> 102 | Q41: =VLOOKUP(CONCATENATE(E41,F41,G41),ListaIndicadores!$AG$7:$AJ$1887,4,FALSE) -> ¡Faltan datos!
A42: 8452 | B42: Economica | C42: EJE 3: POLÍTICA FISCAL | D42: AGE.12.1 | E42: Gasto Social referido a las funciones de Trabajo, Saneamiento, Vivienda y Desarrollo urbano, Salud, Cultura y deporte, Educación, Protección social y Pensiones (Millones de soles) Devengado SIAF | F42: Cultura y Dep | G42: Amazonas | H42: 2014 | I42: 18461600 | J42: Soles | K42: Ministerio de Economía y Finanzas (MEF)- Seguimiento de la Ejecución Presupuestal (Consulta amigable) | L42: Portal de Transparencia Económica | M42: http://apps5.mineco.gob.pe/transparencia/Navegador/default.aspx | P42: =IFERROR(IF(VLOOKUP(CONCATENATE(E42,F42,G42),ListaIndicadores!$AG$7:$AJ$1887,3,FALSE)="","",VLOOKUP(CONCATENATE(E42,F42,G42),ListaIndicadores!$AG$7:$AJ$1887,3,FALSE)),"") -> 14632165 | Q42: =VLOOKUP(CONCATENATE(E42,F42,G42),ListaIndicadores!$AG$7:$AJ$1887,4,FALSE) -> ¡Faltan datos!
A43: 8453 | B43: Economica | C43: EJE 3: POLÍTICA FISCAL | D43: AGE.12.1 | E43: Gasto Social referido a las funciones de Trabajo, Saneamiento, Vivienda y Desarrollo urbano, Salud, Cultura y deporte, Educación, Protección social y Pensiones (Millones de soles) Devengado SIAF | F43: Cultura y Dep | G43: Amazonas | H43: 2015 | I43: 9059039 | J43: Soles | K43: Ministerio de Economía y Finanzas (MEF)- Seguimiento de la Ejecución Presupuestal (Consulta amigable) | L43: Portal de Transparencia Económica | M43: http://apps5.mineco.gob.pe/transparencia/Navegador/default.aspx | P43: =IFERROR(IF(VLOOKUP(CONCATENATE(E43,F43,G43),ListaIndicadores!$AG$7:$AJ$1887,3,FALSE)="","",VLOOKUP(CONCATENATE(E43,F43,G43),ListaIndicadores!$AG$7:$AJ$1887,3,FALSE)),"") -> 14632165 | Q43: =VLOOKUP(CONCATENATE(E43,F43,G43),ListaIndicadores!$AG$7:$AJ$1887,4,FALSE) -> ¡Faltan datos!
A44: 8454 | B44: Economica | C44: EJE 3: POLÍTICA FISCAL | D44: AGE.12.1 | E44: Gasto Social referido a las funciones de Trabajo, Saneamiento, Vivienda y Desarrollo urbano, Salud, Cultura y deporte, Educación, Protección social y Pensiones (Millones de soles) Devengado SIAF | F44: Cultura y Dep | G44: Amazonas | H44: 2016 | I44: 9840937 | J44: Soles | K44: Ministerio de Economía y Finanzas (MEF)- Seguimiento de la Ejecución Presupuestal (Consulta amigable) | L44: Portal de Transparencia Económica | M44: http://apps5.mineco.gob.pe/transparencia/Navegador/default.aspx | P44: =IFERROR(IF(VLOOKUP(CONCATENATE(E44,F44,G44),ListaIndicadores!$AG$7:$AJ$1887,3,FALSE)="","",VLOOKUP(CONCATENATE(E44,F44,G44),ListaIndicadores!$AG$7:$AJ$1887,3,FALSE)),"") -> 14632165 | Q44: =VLOOKUP(CONCATENATE(E44,F44,G44),ListaIndicadores!$AG$7:$AJ$1887,4,FALSE) -> ¡Faltan datos!
A45: 8455 | B45: Economica | C45: EJE 3: POLÍTICA FISCAL | D45: AGE.12.1 | E45: Gasto Social referido a las funciones de Trabajo, Saneamiento, Vivienda y Desarrollo urbano, Salud, Cultura y deporte, Educación, Protección social y Pensiones (Millones de soles) Devengado SIAF | F45: Cultura y Dep | G45: Amazonas | H45: 2017 | I45: 10213569 | J45: Soles | K45: Ministerio de Economía y Finanzas (MEF)- Seguimiento de la Ejecución Presupuestal (Consulta amigable) | L45: Portal de Transparencia Económica | M45: http://apps5.mineco.gob.pe/transparencia/Navegador/default.aspx | P45: =IFERROR(IF(VLOOKUP(CONCATENATE(E45,F45,G45),ListaIndicadores!$AG$7:$AJ$1887,3,FALSE)="","",VLOOKUP(CONCATENATE(E45,F45,G45),ListaIndicadores!$AG$7:$AJ$1887,3,FALSE)),"") -> 14632165 | Q45: =VLOOKUP(CONCATENATE(E45,F45,G45),ListaIndicadores!$AG$7:$AJ$1887,4,FALSE) -> ¡Faltan datos!
A46: 8456 | B46: Economica | C46: EJE 3: POLÍTICA FISCAL | D46: AGE.12.1 | E46: Gasto Social referido a las funciones de Trabajo, Saneamiento, Vivienda y Desarrollo urbano, Salud, Cultura y deporte, Educación, Protección social y Pensiones (Millones de soles) Devengado SIAF | F46: Cultura y Dep | G46: Amazonas | H46: 2018 | I46: 16969235 | J46: Soles | K46: Ministerio de Economía y Finanzas (MEF)- Seguimiento de la Ejecución Presupuestal (Consulta amigable) | L46: Portal de Transparencia Económica | M46: http://apps5.mineco.gob.pe/transparencia/Navegador/default.aspx | P46: =IFERROR(IF(VLOOKUP(CONCATENATE(E46,F46,G46),ListaIndicadores!$AG$7:$AJ$1887,3,FALSE)="","",VLOOKUP(CONCATENATE(E46,F46,G46),ListaIndicadores!$AG$7:$AJ$1887,3,FALSE)),"") -> 14632165 | Q46: =VLOOKUP(CONCATENATE(E46,F46,G46),ListaIndicadores!$AG$7:$AJ$1887,4,FALSE) -> ¡Faltan datos!
A47: 8583 | B47: Economica | C47: EJE 3: POLÍTICA FISCAL | D47: AGE.12.1 | E47: Gasto Social referido a las funciones de Trabajo, Saneamiento, Vivienda y Desarrollo urbano, Salud, Cultura y deporte, Educación, Protección social y Pensiones (Millones de soles) Devengado SIAF | F47: Educación | G47: Amazonas | H47: 2014 | I47: 389906924 | J47: Soles | K47: Ministerio de Economía y Finanzas (MEF)- Seguimiento de la Ejecución Presupuestal (Consulta amigable) | L47: Portal de Transparencia Económica | M47: http://apps5.mineco.gob.pe/transparencia/Navegador/default.aspx | P47: =IFERROR(IF(VLOOKUP(CONCATENATE(E47,F47,G47),ListaIndicadores!$AG$7:$AJ$1887,3,FALSE)="","",VLOOKUP(CONCATENATE(E47,F47,G47),ListaIndicadores!$AG$7:$AJ$1887,3,FALSE)),"") -> 876616126 | Q47: =VLOOKUP(CONCATENATE(E47,F47,G47),ListaIndicadores!$AG$7:$AJ$1887,4,FALSE) -> ¡Faltan datos!
A48: 8584 | B48: Economica | C48: EJE 3: POLÍTICA FISCAL | D48: AGE.12.1 | E48: Gasto Social referido a las funciones de Trabajo, Saneamiento, Vivienda y Desarrollo urbano, Salud, Cultura y deporte, Educación, Protección social y Pensiones (Millones de soles) Devengado SIAF | F48: Educación | G48: Amazonas | H48: 2015 | I48: 540327104 | J48: Soles | K48: Ministerio de Economía y Finanzas (MEF)- Seguimiento de la Ejecución Presupuestal (Consulta amigable) | L48: Portal de Transparencia Económica | M48: http://apps5.mineco.gob.pe/transparencia/Navegador/default.aspx | P48: =IFERROR(IF(VLOOKUP(CONCATENATE(E48,F48,G48),ListaIndicadores!$AG$7:$AJ$1887,3,FALSE)="","",VLOOKUP(CONCATENATE(E48,F48,G48),ListaIndicadores!$AG$7:$AJ$1887,3,FALSE)),"") -> 876616126 | Q48: =VLOOKUP(CONCATENATE(E48,F48,G48),ListaIndicadores!$AG$7:$AJ$1887,4,FALSE) -> ¡Faltan datos!
A49: 8585 | B49: Economica | C49: EJE 3: POLÍTICA FISCAL | D49: AGE.12.1 | E49: Gasto Social referido a las funciones de Trabajo, Saneamiento, Vivienda y Desarrollo urbano, Salud, Cultura y deporte, Educación, Protección social y Pensiones (Millones de soles) Devengado SIAF | F49: Educación | G49: Amazonas | H49: 2016 | I49: 503666087 | J49: Soles | K49: Ministerio de Economía y Finanzas (MEF)- Seguimiento de la Ejecución Presupuestal (Consulta amigable) | L49: Portal de Transparencia Económica | M49: http://apps5.mineco.gob.pe/transparencia/Navegador/default.aspx | P49: =IFERROR(IF(VLOOKUP(CONCATENATE(E49,F49,G49),ListaIndicadores!$AG$7:$AJ$1887,3,FALSE)="","",VLOOKUP(CONCATENATE(E49,F49,G49),ListaIndicadores!$AG$7:$AJ$1887,3,FALSE)),"") -> 876616126 | Q49: =VLOOKUP(CONCATENATE(E49,F49,G49),ListaIndicadores!$AG$7:$AJ$1887,4,FALSE) -> ¡Faltan datos!
A50: 8586 | B50: Economica | C50: EJE 3: POLÍTICA FISCAL | D50: AGE.12.1 | E50: Gasto Social referido a las funciones de Trabajo, Saneamiento, Vivienda y Desarrollo urbano, Salud, Cultura y deporte, Educación, Protección social y Pensiones (Millones de soles) Devengado SIAF | F50: Educación | G50: Amazonas | H50: 2017 | I50: 570872511 | J50: Soles | K50: Ministerio de Economía y Finanzas (MEF)- Seguimiento de la Ejecución Presupuestal (Consulta amigable) | L50: Portal de Transparencia Económica | M50: http://apps5.mineco.gob.pe/transparencia/Navegador/default.aspx | P50: =IFERROR(IF(VLOOKUP(CONCATENATE(E50,F50,G50),ListaIndicadores!$AG$7:$AJ$1887,3,FALSE)="","",VLOOKUP(CONCATENATE(E50,F50,G50),ListaIndicadores!$AG$7:$AJ$1887,3,FALSE)),"") -> 876616126 | Q50: =VLOOKUP(CONCATENATE(E50,F50,G50),ListaIndicadores!$AG$7:$AJ$1887,4,FALSE) -> ¡Faltan datos!
A51: 8587 | B51: Economica | C51: EJE 3: POLÍTICA FISCAL | D51: AGE.12.1 | E51: Gasto Social referido a las funciones de Trabajo, Saneamiento, Vivienda y Desarrollo urbano, Salud, Cultura y deporte, Educación, Protección social y Pensiones (Millones de soles) Devengado SIAF | F51: Educación | G51: Amazonas | H51: 2018 | I51: 581322409 | J51: Soles | K51: Ministerio de Economía y Finanzas (MEF)- Seguimiento de la Ejecución Presupuestal (Consulta amigable) | L51: Portal de Transparencia Económica | M51: http://apps5.mineco.gob.pe/transparencia/Navegador/default.aspx | P51: =IFERROR(IF(VLOOKUP(CONCATENATE(E51,F51,G51),ListaIndicadores!$AG$7:$AJ$1887,3,FALSE)="","",VLOOKUP(CONCATENATE(E51,F51,G51),ListaIndicadores!$AG$7:$AJ$1887,3,FALSE)),"") -> 876616126 | Q51: =VLOOKUP(CONCATENATE(E51,F51,G51),ListaIndicadores!$AG$7:$AJ$1887,4,FALSE) -> ¡Faltan datos!
A52: 8726 | B52: Economica | C52: EJE 3: POLÍTICA FISCAL | D52: AGE.12.1 | E52: Gasto Social referido a las funciones de Trabajo, Saneamiento, Vivienda y Desarrollo urbano, Salud, Cultura y deporte, Educación, Protección social y Pensiones (Millones de soles) Devengado SIAF | F52: Prev. Social | G52: Amazonas | H52: 2014 | I52: 28275296 | J52: Soles | K52: Ministerio de Economía y Finanzas (MEF)- Seguimiento de la Ejecución Presupuestal (Consulta amigable) | L52: Portal de Transparencia Económica | M52: http://apps5.mineco.gob.pe/transparencia/Navegador/default.aspx | P52: =IFERROR(IF(VLOOKUP(CONCATENATE(E52,F52,G52),ListaIndicadores!$AG$7:$AJ$1887,3,FALSE)="","",VLOOKUP(CONCATENATE(E52,F52,G52),ListaIndicadores!$AG$7:$AJ$1887,3,FALSE)),"") -> 47965479 | Q52: =VLOOKUP(CONCATENATE(E52,F52,G52),ListaIndicadores!$AG$7:$AJ$1887,4,FALSE) -> ¡Faltan datos!
A53: 8727 | B53: Economica | C53: EJE 3: POLÍTICA FISCAL | D53: AGE.12.1 | E53: Gasto Social referido a las funciones de Trabajo, Saneamiento, Vivienda y Desarrollo urbano, Salud, Cultura y deporte, Educación, Protección social y Pensiones (Millones de soles) Devengado SIAF | F53: Prev. Social | G53: Amazonas | H53: 2015 | I53: 27947112 | J53: Soles | K53: Ministerio de Economía y Finanzas (MEF)- Seguimiento de la Ejecución Presupuestal (Consulta amigable) | L53: Portal de Transparencia Económica | M53: http://apps5.mineco.gob.pe/transparencia/Navegador/default.aspx | P53: =IFERROR(IF(VLOOKUP(CONCATENATE(E53,F53,G53),ListaIndicadores!$AG$7:$AJ$1887,3,FALSE)="","",VLOOKUP(CONCATENATE(E53,F53,G53),ListaIndicadores!$AG$7:$AJ$1887,3,FALSE)),"") -> 47965479 | Q53: =VLOOKUP(CONCATENATE(E53,F53,G53),ListaIndicadores!$AG$7:$AJ$1887,4,FALSE) -> ¡Faltan datos!
A54: 8728 | B54: Economica | C54: EJE 3: POLÍTICA FISCAL | D54: AGE.12.1 | E54: Gasto Social referido a las funciones de Trabajo, Saneamiento, Vivienda y Desarrollo urbano, Salud, Cultura y deporte, Educación, Protección social y Pensiones (Millones de soles) Devengado SIAF | F54: Prev. Social | G54: Amazonas | H54: 2016 | I54: 28672957 | J54: Soles | K54: Ministerio de Economía y Finanzas (MEF)- Seguimiento de la Ejecución Presupuestal (Consulta amigable) | L54: Portal de Transparencia Económica | M54: http://apps5.mineco.gob.pe/transparencia/Navegador/default.aspx | P54: =IFERROR(IF(VLOOKUP(CONCATENATE(E54,F54,G54),ListaIndicadores!$AG$7:$AJ$1887,3,FALSE)="","",VLOOKUP(CONCATENATE(E54,F54,G54),ListaIndicadores!$AG$7:$AJ$1887,3,FALSE)),"") -> 47965479 | Q54: =VLOOKUP(CONCATENATE(E54,F54,G54),ListaIndicadores!$AG$7:$AJ$1887,4,FALSE) -> ¡Faltan datos!
A55: 8729 | B55: Economica | C55: EJE 3: POLÍTICA FISCAL | D55: AGE.12.1 | E55: Gasto Social referido a las funciones de Trabajo, Saneamiento, Vivienda y Desarrollo urbano, Salud, Cultura y deporte, Educación, Protección social y Pensiones (Millones de soles) Devengado SIAF | F55: Prev. Social | G55: Amazonas | H55: 2017 | I55: 27727249 | J55: Soles | K55: Ministerio de Economía y Finanzas (MEF)- Seguimiento de la Ejecución Presupuestal (Consulta amigable) | L55: Portal de Transparencia Económica | M55: http://apps5.mineco.gob.pe/transparencia/Navegador/default.aspx | P55: =IFERROR(IF(VLOOKUP(CONCATENATE(E55,F55,G55),ListaIndicadores!$AG$7:$AJ$1887,3,FALSE)="","",VLOOKUP(CONCATENATE(E55,F55,G55),ListaIndicadores!$AG$7:$AJ$1887,3,FALSE)),"") -> 47965479 | Q55: =VLOOKUP(CONCATENATE(E55,F55,G55),ListaIndicadores!$AG$7:$AJ$1887,4,FALSE) -> ¡Faltan datos!
A56: 8730 | B56: Economica | C56: EJE 3: POLÍTICA FISCAL | D56: AGE.12.1 | E56: Gasto Social referido a las funciones de Trabajo, Saneamiento, Vivienda y Desarrollo urbano, Salud, Cultura y deporte, Educación, Protección social y Pensiones (Millones de soles) Devengado SIAF | F56: Prev. Social | G56: Amazonas | H56: 2018 | I56: 32454814 | J56: Soles | K56: Ministerio de Economía y Finanzas (MEF)- Seguimiento de la Ejecución Presupuestal (Consulta amigable) | L56: Portal de Transparencia Económica | M56: http://apps5.mineco.gob.pe/transparencia/Navegador/default.aspx | P56: =IFERROR(IF(VLOOKUP(CONCATENATE(E56,F56,G56),ListaIndicadores!$AG$7:$AJ$1887,3,FALSE)="","",VLOOKUP(CONCATENATE(E56,F56,G56),ListaIndicadores!$AG$7:$AJ$1887,3,FALSE)),"") -> 47965479 | Q56: =VLOOKUP(CONCATENATE(E56,F56,G56),ListaIndicadores!$AG$7:$AJ$1887,4,FALSE) -> ¡Faltan datos!
A57: 8851 | B57: Economica | C57: EJE 3: POLÍTICA FISCAL | D57: AGE.12.1 | E57: Gasto Social referido a las funciones de Trabajo, Saneamiento, Vivienda y Desarrollo urbano, Salud, Cultura y deporte, Educación, Protección social y Pensiones (Millones de soles) Devengado SIAF | F57: Prot. Social | G57: Amazonas | H57: 2014 | I57: 141339276 | J57: Soles | K57: Ministerio de Economía y Finanzas (MEF)- Seguimiento de la Ejecución Presupuestal (Consulta amigable) | L57: Portal de Transparencia Económica | M57: http://apps5.mineco.gob.pe/transparencia/Navegador/default.aspx | P57: =IFERROR(IF(VLOOKUP(CONCATENATE(E57,F57,G57),ListaIndicadores!$AG$7:$AJ$1887,3,FALSE)="","",VLOOKUP(CONCATENATE(E57,F57,G57),ListaIndicadores!$AG$7:$AJ$1887,3,FALSE)),"") -> 515885837 | Q57: =VLOOKUP(CONCATENATE(E57,F57,G57),ListaIndicadores!$AG$7:$AJ$1887,4,FALSE) -> ¡Faltan datos!
A58: 8852 | B58: Economica | C58: EJE 3: POLÍTICA FISCAL | D58: AGE.12.1 | E58: Gasto Social referido a las funciones de Trabajo, Saneamiento, Vivienda y Desarrollo urbano, Salud, Cultura y deporte, Educación, Protección social y Pensiones (Millones de soles) Devengado SIAF | F58: Prot. Social | G58: Amazonas | H58: 2015 | I58: 147159404 | J58: Soles | K58: Ministerio de Economía y Finanzas (MEF)- Seguimiento de la Ejecución Presupuestal (Consulta amigable) | L58: Portal de Transparencia Económica | M58: http://apps5.mineco.gob.pe/transparencia/Navegador/default.aspx | P58: =IFERROR(IF(VLOOKUP(CONCATENATE(E58,F58,G58),ListaIndicadores!$AG$7:$AJ$1887,3,FALSE)="","",VLOOKUP(CONCATENATE(E58,F58,G58),ListaIndicadores!$AG$7:$AJ$1887,3,FALSE)),"") -> 515885837 | Q58: =VLOOKUP(CONCATENATE(E58,F58,G58),ListaIndicadores!$AG$7:$AJ$1887,4,FALSE) -> ¡Faltan datos!
A59: 8853 | B59: Economica | C59: EJE 3: POLÍTICA FISCAL | D59: AGE.12.1 | E59: Gasto Social referido a las funciones de Trabajo, Saneamiento, Vivienda y Desarrollo urbano, Salud, Cultura y deporte, Educación, Protección social y Pensiones (Millones de soles) Devengado SIAF | F59: Prot. Social | G59: Amazonas | H59: 2016 | I59: 138804792 | J59: Soles | K59: Ministerio de Economía y Finanzas (MEF)- Seguimiento de la Ejecución Presupuestal (Consulta amigable) | L59: Portal de Transparencia Económica | M59: http://apps5.mineco.gob.pe/transparencia/Navegador/default.aspx | P59: =IFERROR(IF(VLOOKUP(CONCATENATE(E59,F59,G59),ListaIndicadores!$AG$7:$AJ$1887,3,FALSE)="","",VLOOKUP(CONCATENATE(E59,F59,G59),ListaIndicadores!$AG$7:$AJ$1887,3,FALSE)),"") -> 515885837 | Q59: =VLOOKUP(CONCATENATE(E59,F59,G59),ListaIndicadores!$AG$7:$AJ$1887,4,FALSE) -> ¡Faltan datos!
A60: 8854 | B60: Economica | C60: EJE 3: POLÍTICA FISCAL | D60: AGE.12.1 | E60: Gasto Social referido a las funciones de Trabajo, Saneamiento, Vivienda y Desarrollo urbano, Salud, Cultura y deporte, Educación, Protección social y Pensiones (Millones de soles) Devengado SIAF | F60: Prot. Social | G60: Amazonas | H60: 2017 | I60: 181222954 | J60: Soles | K60: Ministerio de Economía y Finanzas (MEF)- Seguimiento de la Ejecución Presupuestal (Consulta amigable) | L60: Portal de Transparencia Económica | M60: http://apps5.mineco.gob.pe/transparencia/Navegador/default.aspx | P60: =IFERROR(IF(VLOOKUP(CONCATENATE(E60,F60,G60),ListaIndicadores!$AG$7:$AJ$1887,3,FALSE)="","",VLOOKUP(CONCATENATE(E60,F60,G60),ListaIndicadores!$AG$7:$AJ$1887,3,FALSE)),"") -> 515885837 | Q60: =VLOOKUP(CONCATENATE(E60,F60,G60),ListaIndicadores!$AG$7:$AJ$1887,4,FALSE) -> ¡Faltan datos!
A61: 8855 | B61: Economica | C61: EJE 3: POLÍTICA FISCAL | D61: AGE.12.1 | E61: Gasto Social referido a las funciones de Trabajo, Saneamiento, Vivienda y Desarrollo urbano, Salud, Cultura y deporte, Educación, Protección social y Pensiones (Millones de soles) Devengado SIAF | F61: Prot. Social | G61: Amazonas | H61: 2018 | I61: 186116568 | J61: Soles | K61: Ministerio de Economía y Finanzas (MEF)- Seguimiento de la Ejecución Presupuestal (Consulta amigable) | L61: Portal de Transparencia Económica | M61: http://apps5.mineco.gob.pe/transparencia/Navegador/default.aspx | P61: =IFERROR(IF(VLOOKUP(CONCATENATE(E61,F61,G61),ListaIndicadores!$AG$7:$AJ$1887,3,FALSE)="","",VLOOKUP(CONCATENATE(E61,F61,G61),ListaIndicadores!$AG$7:$AJ$1887,3,FALSE)),"") -> 515885837 | Q61: =VLOOKUP(CONCATENATE(E61,F61,G61),ListaIndicadores!$AG$7:$AJ$1887,4,FALSE) -> ¡Faltan datos!
A62: 8982 | B62: Economica | C62: EJE 3: POLÍTICA FISCAL | D62: AGE.12.1 | E62: Gasto Social referido a las funciones de Trabajo, Saneamiento, Vivienda y Desarrollo urbano, Salud, Cultura y deporte, Educación, Protección social y Pensiones (Millones de soles) Devengado SIAF | F62: Salud | G62: Amazonas | H62: 2014 | I62: 173135944 | J62: Soles | K62: Ministerio de Economía y Finanzas (MEF)- Seguimiento de la Ejecución Presupuestal (Consulta amigable) | L62: Portal de Transparencia Económica | M62: http://apps5.mineco.gob.pe/transparencia/Navegador/default.aspx | P62: =IFERROR(IF(VLOOKUP(CONCATENATE(E62,F62,G62),ListaIndicadores!$AG$7:$AJ$1887,3,FALSE)="","",VLOOKUP(CONCATENATE(E62,F62,G62),ListaIndicadores!$AG$7:$AJ$1887,3,FALSE)),"") -> 576593912 | Q62: =VLOOKUP(CONCATENATE(E62,F62,G62),ListaIndicadores!$AG$7:$AJ$1887,4,FALSE) -> ¡Faltan datos!
A63: 8983 | B63: Economica | C63: EJE 3: POLÍTICA FISCAL | D63: AGE.12.1 | E63: Gasto Social referido a las funciones de Trabajo, Saneamiento, Vivienda y Desarrollo urbano, Salud, Cultura y deporte, Educación, Protección social y Pensiones (Millones de soles) Devengado SIAF | F63: Salud | G63: Amazonas | H63: 2015 | I63: 226251480 | J63: Soles | K63: Ministerio de Economía y Finanzas (MEF)- Seguimiento de la Ejecución Presupuestal (Consulta amigable) | L63: Portal de Transparencia Económica | M63: http://apps5.mineco.gob.pe/transparencia/Navegador/default.aspx | P63: =IFERROR(IF(VLOOKUP(CONCATENATE(E63,F63,G63),ListaIndicadores!$AG$7:$AJ$1887,3,FALSE)="","",VLOOKUP(CONCATENATE(E63,F63,G63),ListaIndicadores!$AG$7:$AJ$1887,3,FALSE)),"") -> 576593912 | Q63: =VLOOKUP(CONCATENATE(E63,F63,G63),ListaIndicadores!$AG$7:$AJ$1887,4,FALSE) -> ¡Faltan datos!
A64: 8984 | B64: Economica | C64: EJE 3: POLÍTICA FISCAL | D64: AGE.12.1 | E64: Gasto Social referido a las funciones de Trabajo, Saneamiento, Vivienda y Desarrollo urbano, Salud, Cultura y deporte, Educación, Protección social y Pensiones (Millones de soles) Devengado SIAF | F64: Salud | G64: Amazonas | H64: 2016 | I64: 204161905 | J64: Soles | K64: Ministerio de Economía y Finanzas (MEF)- Seguimiento de la Ejecución Presupuestal (Consulta amigable) | L64: Portal de Transparencia Económica | M64: http://apps5.mineco.gob.pe/transparencia/Navegador/default.aspx | P64: =IFERROR(IF(VLOOKUP(CONCATENATE(E64,F64,G64),ListaIndicadores!$AG$7:$AJ$1887,3,FALSE)="","",VLOOKUP(CONCATENATE(E64,F64,G64),ListaIndicadores!$AG$7:$AJ$1887,3,FALSE)),"") -> 576593912 | Q64: =VLOOKUP(CONCATENATE(E64,F64,G64),ListaIndicadores!$AG$7:$AJ$1887,4,FALSE) -> ¡Faltan datos!
A65: 8985 | B65: Economica | C65: EJE 3: POLÍTICA FISCAL | D65: AGE.12.1 | E65: Gasto Social referido a las funciones de Trabajo, Saneamiento, Vivienda y Desarrollo urbano, Salud, Cultura y deporte, Educación, Protección social y Pensiones (Millones de soles) Devengado SIAF | F65: Salud | G65: Amazonas | H65: 2017 | I65: 502375785 | J65: Soles | K65: Ministerio de Economía y Finanzas (MEF)- Seguimiento de la Ejecución Presupuestal (Consulta amigable) | L65: Portal de Transparencia Económica | M65: http://apps5.mineco.gob.pe/transparencia/Navegador/default.aspx | P65: =IFERROR(IF(VLOOKUP(CONCATENATE(E65,F65,G65),ListaIndicadores!$AG$7:$AJ$1887,3,FALSE)="","",VLOOKUP(CONCATENATE(E65,F65,G65),ListaIndicadores!$AG$7:$AJ$1887,3,FALSE)),"") -> 576593912 | Q65: =VLOOKUP(CONCATENATE(E65,F65,G65),ListaIndicadores!$AG$7:$AJ$1887,4,FALSE) -> ¡Faltan datos!
A66: 8986 | B66: Economica | C66: EJE 3: POLÍTICA FISCAL | D66: AGE.12.1 | E66: Gasto Social referido a las funciones de Trabajo, Saneamiento, Vivienda y Desarrollo urbano, Salud, Cultura y deporte, Educación, Protección social y Pensiones (Millones de soles) Devengado SIAF | F66: Salud | G66: Amazonas | H66: 2018 | I66: 566354205 | J66: Soles | K66: Ministerio de Economía y Finanzas (MEF)- Seguimiento de la Ejecución Presupuestal (Consulta amigable) | L66: Portal de Transparencia Económica | M66: http://apps5.mineco.gob.pe/transparencia/Navegador/default.aspx | P66: =IFERROR(IF(VLOOKUP(CONCATENATE(E66,F66,G66),ListaIndicadores!$AG$7:$AJ$1887,3,FALSE)="","",VLOOKUP(CONCATENATE(E66,F66,G66),ListaIndicadores!$AG$7:$AJ$1887,3,FALSE)),"") -> 576593912 | Q66: =VLOOKUP(CONCATENATE(E66,F66,G66),ListaIndicadores!$AG$7:$AJ$1887,4,FALSE) -> ¡Faltan datos!
A67: 9113 | B67: Economica | C67: EJE 3: POLÍTICA FISCAL | D67: AGE.12.1 | E67: Gasto Social referido a las funciones de Trabajo, Saneamiento, Vivienda y Desarrollo urbano, Salud, Cultura y deporte, Educación, Protección social y Pensiones (Millones de soles) Devengado SIAF | F67: Saneamiento | G67: Amazonas | H67: 2012 | I67: 73070218 | J67: Soles | K67: Ministerio de Economía y Finanzas (MEF)- Seguimiento de la Ejecución Presupuestal (Consulta amigable) | L67: Portal de Transparencia Económica | M67: http://apps5.mineco.gob.pe/transparencia/Navegador/default.aspx | P67: =IFERROR(IF(VLOOKUP(CONCATENATE(E67,F67,G67),ListaIndicadores!$AG$7:$AJ$1887,3,FALSE)="","",VLOOKUP(CONCATENATE(E67,F67,G67),ListaIndicadores!$AG$7:$AJ$1887,3,FALSE)),"") -> 289077302 | Q67: =VLOOKUP(CONCATENATE(E67,F67,G67),ListaIndicadores!$AG$7:$AJ$1887,4,FALSE) -> ¡Faltan datos!
A68: 9114 | B68: Economica | C68: EJE 3: POLÍTICA FISCAL | D68: AGE.12.1 | E68: Gasto Social referido a las funciones de Trabajo, Saneamiento, Vivienda y Desarrollo urbano, Salud, Cultura y deporte, Educación, Protección social y Pensiones (Millones de soles) Devengado SIAF | F68: Saneamiento | G68: Amazonas | H68: 2013 | I68: 82765310 | J68: Soles | K68: Ministerio de Economía y Finanzas (MEF)- Seguimiento de la Ejecución Presupuestal (Consulta amigable) | L68: Portal de Transparencia Económica | M68: http://apps5.mineco.gob.pe/transparencia/Navegador/default.aspx | P68: =IFERROR(IF(VLOOKUP(CONCATENATE(E68,F68,G68),ListaIndicadores!$AG$7:$AJ$1887,3,FALSE)="","",VLOOKUP(CONCATENATE(E68,F68,G68),ListaIndicadores!$AG$7:$AJ$1887,3,FALSE)),"") -> 289077302 | Q68: =VLOOKUP(CONCATENATE(E68,F68,G68),ListaIndicadores!$AG$7:$AJ$1887,4,FALSE) -> ¡Faltan datos!
A69: 9115 | B69: Economica | C69: EJE 3: POLÍTICA FISCAL | D69: AGE.12.1 | E69: Gasto Social referido a las funciones de Trabajo, Saneamiento, Vivienda y Desarrollo urbano, Salud, Cultura y deporte, Educación, Protección social y Pensiones (Millones de soles) Devengado SIAF | F69: Saneamiento | G69: Amazonas | H69: 2014 | I69: 178625143 | J69: Soles | K69: Ministerio de Economía y Finanzas (MEF)- Seguimiento de la Ejecución Presupuestal (Consulta amigable) | L69: Portal de Transparencia Económica | M69: http://apps5.mineco.gob.pe/transparencia/Navegador/default.aspx | P69: =IFERROR(IF(VLOOKUP(CONCATENATE(E69,F69,G69),ListaIndicadores!$AG$7:$AJ$1887,3,FALSE)="","",VLOOKUP(CONCATENATE(E69,F69,G69),ListaIndicadores!$AG$7:$AJ$1887,3,FALSE)),"") -> 289077302 | Q69: =VLOOKUP(CONCATENATE(E69,F69,G69),ListaIndicadores!$AG$7:$AJ$1887,4,FALSE) -> ¡Faltan datos!
A70: 9116 | B70: Economica | C70: EJE 3: POLÍTICA FISCAL | D70: AGE.12.1 | E70: Gasto Social referido a las funciones de Trabajo, Saneamiento, Vivienda y Desarrollo urbano, Salud, Cultura y deporte, Educación, Protección social y Pensiones (Millones de soles) Devengado SIAF | F70: Saneamiento | G70: Amazonas | H70: 2015 | I70: 135564070 | J70: Soles | K70: Ministerio de Economía y Finanzas (MEF)- Seguimiento de la Ejecución Presupuestal (Consulta amigable) | L70: Portal de Transparencia Económica | M70: http://apps5.mineco.gob.pe/transparencia/Navegador/default.aspx | P70: =IFERROR(IF(VLOOKUP(CONCATENATE(E70,F70,G70),ListaIndicadores!$AG$7:$AJ$1887,3,FALSE)="","",VLOOKUP(CONCATENATE(E70,F70,G70),ListaIndicadores!$AG$7:$AJ$1887,3,FALSE)),"") -> 289077302 | Q70: =VLOOKUP(CONCATENATE(E70,F70,G70),ListaIndicadores!$AG$7:$AJ$1887,4,FALSE) -> ¡Faltan datos!
A71: 9117 | B71: Economica | C71: EJE 3: POLÍTICA FISCAL | D71: AGE.12.1 | E71: Gasto Social referido a las funciones de Trabajo, Saneamiento, Vivienda y Desarrollo urbano, Salud, Cultura y deporte, Educación, Protección social y Pensiones (Millones de soles) Devengado SIAF | F71: Saneamiento | G71: Amazonas | H71: 2016 | I71: 91129784 | J71: Soles | K71: Ministerio de Economía y Finanzas (MEF)- Seguimiento de la Ejecución Presupuestal (Consulta amigable) | L71: Portal de Transparencia Económica | M71: http://apps5.mineco.gob.pe/transparencia/Navegador/default.aspx | P71: =IFERROR(IF(VLOOKUP(CONCATENATE(E71,F71,G71),ListaIndicadores!$AG$7:$AJ$1887,3,FALSE)="","",VLOOKUP(CONCATENATE(E71,F71,G71),ListaIndicadores!$AG$7:$AJ$1887,3,FALSE)),"") -> 289077302 | Q71: =VLOOKUP(CONCATENATE(E71,F71,G71),ListaIndicadores!$AG$7:$AJ$1887,4,FALSE) -> ¡Faltan datos!
A72: 9118 | B72: Economica | C72: EJE 3: POLÍTICA FISCAL | D72: AGE.12.1 | E72: Gasto Social referido a las funciones de Trabajo, Saneamiento, Vivienda y Desarrollo urbano, Salud, Cultura y deporte, Educación, Protección social y Pensiones (Millones de soles) Devengado SIAF | F72: Saneamiento | G72: Amazonas | H72: 2017 | I72: 276945729 | J72: Soles | K72: Ministerio de Economía y Finanzas (MEF)- Seguimiento de la Ejecución Presupuestal (Consulta amigable) | L72: Portal de Transparencia Económica | M72: http://apps5.mineco.gob.pe/transparencia/Navegador/default.aspx | P72: =IFERROR(IF(VLOOKUP(CONCATENATE(E72,F72,G72),ListaIndicadores!$AG$7:$AJ$1887,3,FALSE)="","",VLOOKUP(CONCATENATE(E72,F72,G72),ListaIndicadores!$AG$7:$AJ$1887,3,FALSE)),"") -> 289077302 | Q72: =VLOOKUP(CONCATENATE(E72,F72,G72),ListaIndicadores!$AG$7:$AJ$1887,4,FALSE) -> ¡Faltan datos!
A73: 9119 | B73: Economica | C73: EJE 3: POLÍTICA FISCAL | D73: AGE.12.1 | E73: Gasto Social referido a las funciones de Trabajo, Saneamiento, Vivienda y Desarrollo urbano, Salud, Cultura y deporte, Educación, Protección social y Pensiones (Millones de soles) Devengado SIAF | F73: Saneamiento | G73: Amazonas | H73: 2018 | I73: 432456635 | J73: Soles | K73: Ministerio de Economía y Finanzas (MEF)- Seguimiento de la Ejecución Presupuestal (Consulta amigable) | L73: Portal de Transparencia Económica | M73: http://apps5.mineco.gob.pe/transparencia/Navegador/default.aspx | P73: =IFERROR(IF(VLOOKUP(CONCATENATE(E73,F73,G73),ListaIndicadores!$AG$7:$AJ$1887,3,FALSE)="","",VLOOKUP(CONCATENATE(E73,F73,G73),ListaIndicadores!$AG$7:$AJ$1887,3,FALSE)),"") -> 289077302 | Q73: =VLOOKUP(CONCATENATE(E73,F73,G73),ListaIndicadores!$AG$7:$AJ$1887,4,FALSE) -> ¡Faltan datos!
A74: 9294 | B74: Economica | C74: EJE 3: POLÍTICA FISCAL | D74: AGE.12.1 | E74: Gasto Social referido a las funciones de Trabajo, Saneamiento, Vivienda y Desarrollo urbano, Salud, Cultura y deporte, Educación, Protección social y Pensiones (Millones de soles) Devengado SIAF | F74: Trabajo | G74: Amazonas | H74: 2014 | I74: 5842619 | J74: Soles | K74: Ministerio de Economía y Finanzas (MEF)- Seguimiento de la Ejecución Presupuestal (Consulta amigable) | L74: Portal de Transparencia Económica | M74: http://apps5.mineco.gob.pe/transparencia/Navegador/default.aspx | P74: =IFERROR(IF(VLOOKUP(CONCATENATE(E74,F74,G74),ListaIndicadores!$AG$7:$AJ$1887,3,FALSE)="","",VLOOKUP(CONCATENATE(E74,F74,G74),ListaIndicadores!$AG$7:$AJ$1887,3,FALSE)),"") -> 53332121 | Q74: =VLOOKUP(CONCATENATE(E74,F74,G74),ListaIndicadores!$AG$7:$AJ$1887,4,FALSE) -> ¡Faltan datos!
A75: 9295 | B75: Economica | C75: EJE 3: POLÍTICA FISCAL | D75: AGE.12.1 | E75: Gasto Social referido a las funciones de Trabajo, Saneamiento, Vivienda y Desarrollo urbano, Salud, Cultura y deporte, Educación, Protección social y Pensiones (Millones de soles) Devengado SIAF | F75: Trabajo | G75: Amazonas | H75: 2015 | I75: 9213438 | J75: Soles | K75: Ministerio de Economía y Finanzas (MEF)- Seguimiento de la Ejecución Presupuestal (Consulta amigable) | L75: Portal de Transparencia Económica | M75: http://apps5.mineco.gob.pe/transparencia/Navegador/default.aspx | P75: =IFERROR(IF(VLOOKUP(CONCATENATE(E75,F75,G75),ListaIndicadores!$AG$7:$AJ$1887,3,FALSE)="","",VLOOKUP(CONCATENATE(E75,F75,G75),ListaIndicadores!$AG$7:$AJ$1887,3,FALSE)),"") -> 53332121 | Q75: =VLOOKUP(CONCATENATE(E75,F75,G75),ListaIndicadores!$AG$7:$AJ$1887,4,FALSE) -> ¡Faltan datos!
A76: 9296 | B76: Economica | C76: EJE 3: POLÍTICA FISCAL | D76: AGE.12.1 | E76: Gasto Social referido a las funciones de Trabajo, Saneamiento, Vivienda y Desarrollo urbano, Salud, Cultura y deporte, Educación, Protección social y Pensiones (Millones de soles) Devengado SIAF | F76: Trabajo | G76: Amazonas | H76: 2016 | I76: 10887319 | J76: Soles | K76: Ministerio de Economía y Finanzas (MEF)- Seguimiento de la Ejecución Presupuestal (Consulta amigable) | L76: Portal de Transparencia Económica | M76: http://apps5.mineco.gob.pe/transparencia/Navegador/default.aspx | P76: =IFERROR(IF(VLOOKUP(CONCATENATE(E76,F76,G76),ListaIndicadores!$AG$7:$AJ$1887,3,FALSE)="","",VLOOKUP(CONCATENATE(E76,F76,G76),ListaIndicadores!$AG$7:$AJ$1887,3,FALSE)),"") -> 53332121 | Q76: =VLOOKUP(CONCATENATE(E76,F76,G76),ListaIndicadores!$AG$7:$AJ$1887,4,FALSE) -> ¡Faltan datos!
A77: 9297 | B77: Economica | C77: EJE 3: POLÍTICA FISCAL | D77: AGE.12.1 | E77: Gasto Social referido a las funciones de Trabajo, Saneamiento, Vivienda y Desarrollo urbano, Salud, Cultura y deporte, Educación, Protección social y Pensiones (Millones de soles) Devengado SIAF | F77: Trabajo | G77: Amazonas | H77: 2017 | I77: 3323112 | J77: Soles | K77: Ministerio de Economía y Finanzas (MEF)- Seguimiento de la Ejecución Presupuestal (Consulta amigable) | L77: Portal de Transparencia Económica | M77: http://apps5.mineco.gob.pe/transparencia/Navegador/default.aspx | P77: =IFERROR(IF(VLOOKUP(CONCATENATE(E77,F77,G77),ListaIndicadores!$AG$7:$AJ$1887,3,FALSE)="","",VLOOKUP(CONCATENATE(E77,F77,G77),ListaIndicadores!$AG$7:$AJ$1887,3,FALSE)),"") -> 53332121 | Q77: =VLOOKUP(CONCATENATE(E77,F77,G77),ListaIndicadores!$AG$7:$AJ$1887,4,FALSE) -> ¡Faltan datos!
A78: 9298 | B78: Economica | C78: EJE 3: POLÍTICA FISCAL | D78: AGE.12.1 | E78: Gasto Social referido a las funciones de Trabajo, Saneamiento, Vivienda y Desarrollo urbano, Salud, Cultura y deporte, Educación, Protección social y Pensiones (Millones de soles) Devengado SIAF | F78: Trabajo | G78: Amazonas | H78: 2018 | I78: 5197711 | J78: Soles | K78: Ministerio de Economía y Finanzas (MEF)- Seguimiento de la Ejecución Presupuestal (Consulta amigable) | L78: Portal de Transparencia Económica | M78: http://apps5.mineco.gob.pe/transparencia/Navegador/default.aspx | P78: =IFERROR(IF(VLOOKUP(CONCATENATE(E78,F78,G78),ListaIndicadores!$AG$7:$AJ$1887,3,FALSE)="","",VLOOKUP(CONCATENATE(E78,F78,G78),ListaIndicadores!$AG$7:$AJ$1887,3,FALSE)),"") -> 53332121 | Q78: =VLOOKUP(CONCATENATE(E78,F78,G78),ListaIndicadores!$AG$7:$AJ$1887,4,FALSE) -> ¡Faltan datos!
A79: 9425 | B79: Economica | C79: EJE 3: POLÍTICA FISCAL | D79: AGE.12.1 | E79: Gasto Social referido a las funciones de Trabajo, Saneamiento, Vivienda y Desarrollo urbano, Salud, Cultura y deporte, Educación, Protección social y Pensiones (Millones de soles) Devengado SIAF | F79: Vivienda y DU | G79: Amazonas | H79: 2014 | I79: 31257941 | J79: Soles | K79: Ministerio de Economía y Finanzas (MEF)- Seguimiento de la Ejecución Presupuestal (Consulta amigable) | L79: Portal de Transparencia Económica | M79: http://apps5.mineco.gob.pe/transparencia/Navegador/default.aspx | P79: =IFERROR(IF(VLOOKUP(CONCATENATE(E79,F79,G79),ListaIndicadores!$AG$7:$AJ$1887,3,FALSE)="","",VLOOKUP(CONCATENATE(E79,F79,G79),ListaIndicadores!$AG$7:$AJ$1887,3,FALSE)),"") -> 425909 | Q79: =VLOOKUP(CONCATENATE(E79,F79,G79),ListaIndicadores!$AG$7:$AJ$1887,4,FALSE) -> ¡Faltan datos!
A80: 9426 | B80: Economica | C80: EJE 3: POLÍTICA FISCAL | D80: AGE.12.1 | E80: Gasto Social referido a las funciones de Trabajo, Saneamiento, Vivienda y Desarrollo urbano, Salud, Cultura y deporte, Educación, Protección social y Pensiones (Millones de soles) Devengado SIAF | F80: Vivienda y DU | G80: Amazonas | H80: 2015 | I80: 39317504 | J80: Soles | K80: Ministerio de Economía y Finanzas (MEF)- Seguimiento de la Ejecución Presupuestal (Consulta amigable) | L80: Portal de Transparencia Económica | M80: http://apps5.mineco.gob.pe/transparencia/Navegador/default.aspx | P80: =IFERROR(IF(VLOOKUP(CONCATENATE(E80,F80,G80),ListaIndicadores!$AG$7:$AJ$1887,3,FALSE)="","",VLOOKUP(CONCATENATE(E80,F80,G80),ListaIndicadores!$AG$7:$AJ$1887,3,FALSE)),"") -> 425909 | Q80: =VLOOKUP(CONCATENATE(E80,F80,G80),ListaIndicadores!$AG$7:$AJ$1887,4,FALSE) -> ¡Faltan datos!
A81: 9427 | B81: Economica | C81: EJE 3: POLÍTICA FISCAL | D81: AGE.12.1 | E81: Gasto Social referido a las funciones de Trabajo, Saneamiento, Vivienda y Desarrollo urbano, Salud, Cultura y deporte, Educación, Protección social y Pensiones (Millones de soles) Devengado SIAF | F81: Vivienda y DU | G81: Amazonas | H81: 2016 | I81: 25852559 | J81: Soles | K81: Ministerio de Economía y Finanzas (MEF)- Seguimiento de la Ejecución Presupuestal (Consulta amigable) | L81: Portal de Transparencia Económica | M81: http://apps5.mineco.gob.pe/transparencia/Navegador/default.aspx | P81: =IFERROR(IF(VLOOKUP(CONCATENATE(E81,F81,G81),ListaIndicadores!$AG$7:$AJ$1887,3,FALSE)="","",VLOOKUP(CONCATENATE(E81,F81,G81),ListaIndicadores!$AG$7:$AJ$1887,3,FALSE)),"") -> 425909 | Q81: =VLOOKUP(CONCATENATE(E81,F81,G81),ListaIndicadores!$AG$7:$AJ$1887,4,FALSE) -> ¡Faltan datos!
A82: 9428 | B82: Economica | C82: EJE 3: POLÍTICA FISCAL | D82: AGE.12.1 | E82: Gasto Social referido a las funciones de Trabajo, Saneamiento, Vivienda y Desarrollo urbano, Salud, Cultura y deporte, Educación, Protección social y Pensiones (Millones de soles) Devengado SIAF | F82: Vivienda y DU | G82: Amazonas | H82: 2017 | I82: 38848012 | J82: Soles | K82: Ministerio de Economía y Finanzas (MEF)- Seguimiento de la Ejecución Presupuestal (Consulta amigable) | L82: Portal de Transparencia Económica | M82: http://apps5.mineco.gob.pe/transparencia/Navegador/default.aspx | P82: =IFERROR(IF(VLOOKUP(CONCATENATE(E82,F82,G82),ListaIndicadores!$AG$7:$AJ$1887,3,FALSE)="","",VLOOKUP(CONCATENATE(E82,F82,G82),ListaIndicadores!$AG$7:$AJ$1887,3,FALSE)),"") -> 425909 | Q82: =VLOOKUP(CONCATENATE(E82,F82,G82),ListaIndicadores!$AG$7:$AJ$1887,4,FALSE) -> ¡Faltan datos!
A83: 9429 | B83: Economica | C83: EJE 3: POLÍTICA FISCAL | D83: AGE.12.1 | E83: Gasto Social referido a las funciones de Trabajo, Saneamiento, Vivienda y Desarrollo urbano, Salud, Cultura y deporte, Educación, Protección social y Pensiones (Millones de soles) Devengado SIAF | F83: Vivienda y DU | G83: Amazonas | H83: 2018 | I83: 19362359 | J83: Soles | K83: Ministerio de Economía y Finanzas (MEF)- Seguimiento de la Ejecución Presupuestal (Consulta amigable) | L83: Portal de Transparencia Económica | M83: http://apps5.mineco.gob.pe/transparencia/Navegador/default.aspx | P83: =IFERROR(IF(VLOOKUP(CONCATENATE(E83,F83,G83),ListaIndicadores!$AG$7:$AJ$1887,3,FALSE)="","",VLOOKUP(CONCATENATE(E83,F83,G83),ListaIndicadores!$AG$7:$AJ$1887,3,FALSE)),"") -> 425909 | Q83: =VLOOKUP(CONCATENATE(E83,F83,G83),ListaIndicadores!$AG$7:$AJ$1887,4,FALSE) -> ¡Faltan datos!
A84: 9556 | B84: Economica | C84: EJE 3: POLÍTICA FISCAL | D84: AGE.12.2 | E84: Monto ejecutado en programas presupuestales vinculados a servicios universales en salud y educación.(soles, Devengado Anual | F84: Cáncer | G84: Amazonas | H84: 2014 | I84: 1271024 | J84: Soles | K84: Ministerio de Economía y Finanzas (MEF)- Seguimiento de la Ejecución Presupuestal (Consulta amigable) | L84: Portal de Transparencia Económica | M84: http://apps5.mineco.gob.pe/transparencia/Navegador/default.aspx | P84: =IFERROR(IF(VLOOKUP(CONCATENATE(E84,F84,G84),ListaIndicadores!$AG$7:$AJ$1887,3,FALSE)="","",VLOOKUP(CONCATENATE(E84,F84,G84),ListaIndicadores!$AG$7:$AJ$1887,3,FALSE)),"") -> 4386334 | Q84: =VLOOKUP(CONCATENATE(E84,F84,G84),ListaIndicadores!$AG$7:$AJ$1887,4,FALSE) -> ¡Faltan datos!
A85: 9557 | B85: Economica | C85: EJE 3: POLÍTICA FISCAL | D85: AGE.12.2 | E85: Monto ejecutado en programas presupuestales vinculados a servicios universales en salud y educación.(soles, Devengado Anual | F85: Cáncer | G85: Amazonas | H85: 2015 | I85: 2990715 | J85: Soles | K85: Ministerio de Economía y Finanzas (MEF)- Seguimiento de la Ejecución Presupuestal (Consulta amigable) | L85: Portal de Transparencia Económica | M85: http://apps5.mineco.gob.pe/transparencia/Navegador/default.aspx | P85: =IFERROR(IF(VLOOKUP(CONCATENATE(E85,F85,G85),ListaIndicadores!$AG$7:$AJ$1887,3,FALSE)="","",VLOOKUP(CONCATENATE(E85,F85,G85),ListaIndicadores!$AG$7:$AJ$1887,3,FALSE)),"") -> 4386334 | Q85: =VLOOKUP(CONCATENATE(E85,F85,G85),ListaIndicadores!$AG$7:$AJ$1887,4,FALSE) -> ¡Faltan datos!
A86: 9558 | B86: Economica | C86: EJE 3: POLÍTICA FISCAL | D86: AGE.12.2 | E86: Monto ejecutado en programas presupuestales vinculados a servicios universales en salud y educación.(soles, Devengado Anual | F86: Cáncer | G86: Amazonas | H86: 2016 | I86: 1740443 | J86: Soles | K86: Ministerio de Economía y Finanzas (MEF)- Seguimiento de la Ejecución Presupuestal (Consulta amigable) | L86: Portal de Transparencia Económica | M86: http://apps5.mineco.gob.pe/transparencia/Navegador/default.aspx | P86: =IFERROR(IF(VLOOKUP(CONCATENATE(E86,F86,G86),ListaIndicadores!$AG$7:$AJ$1887,3,FALSE)="","",VLOOKUP(CONCATENATE(E86,F86,G86),ListaIndicadores!$AG$7:$AJ$1887,3,FALSE)),"") -> 4386334 | Q86: =VLOOKUP(CONCATENATE(E86,F86,G86),ListaIndicadores!$AG$7:$AJ$1887,4,FALSE) -> ¡Faltan datos!
A87: 9559 | B87: Economica | C87: EJE 3: POLÍTICA FISCAL | D87: AGE.12.2 | E87: Monto ejecutado en programas presupuestales vinculados a servicios universales en salud y educación.(soles, Devengado Anual | F87: Cáncer | G87: Amazonas | H87: 2017 | I87: 2205719 | J87: Soles | K87: Ministerio de Economía y Finanzas (MEF)- Seguimiento de la Ejecución Presupuestal (Consulta amigable) | L87: Portal de Transparencia Económica | M87: http://apps5.mineco.gob.pe/transparencia/Navegador/default.aspx | P87: =IFERROR(IF(VLOOKUP(CONCATENATE(E87,F87,G87),ListaIndicadores!$AG$7:$AJ$1887,3,FALSE)="","",VLOOKUP(CONCATENATE(E87,F87,G87),ListaIndicadores!$AG$7:$AJ$1887,3,FALSE)),"") -> 4386334 | Q87: =VLOOKUP(CONCATENATE(E87,F87,G87),ListaIndicadores!$AG$7:$AJ$1887,4,FALSE) -> ¡Faltan datos!
A88: 9560 | B88: Economica | C88: EJE 3: POLÍTICA FISCAL | D88: AGE.12.2 | E88: Monto ejecutado en programas presupuestales vinculados a servicios universales en salud y educación.(soles, Devengado Anual | F88: Cáncer | G88: Amazonas | H88: 2018 | I88: 1922861 | J88: Soles | K88: Ministerio de Economía y Finanzas (MEF)- Seguimiento de la Ejecución Presupuestal (Consulta amigable) | L88: Portal de Transparencia Económica | M88: http://apps5.mineco.gob.pe/transparencia/Navegador/default.aspx | P88: =IFERROR(IF(VLOOKUP(CONCATENATE(E88,F88,G88),ListaIndicadores!$AG$7:$AJ$1887,3,FALSE)="","",VLOOKUP(CONCATENATE(E88,F88,G88),ListaIndicadores!$AG$7:$AJ$1887,3,FALSE)),"") -> 4386334 | Q88: =VLOOKUP(CONCATENATE(E88,F88,G88),ListaIndicadores!$AG$7:$AJ$1887,4,FALSE) -> ¡Faltan datos!
A89: 9687 | B89: Economica | C89: EJE 3: POLÍTICA FISCAL | D89: AGE.12.2 | E89: Monto ejecutado en programas presupuestales vinculados a servicios universales en salud y educación.(soles, Devengado Anual | F89: Inclusión | G89: Amazonas | H89: 2014 | I89: 1909088 | J89: Soles | K89: Ministerio de Economía y Finanzas (MEF)- Seguimiento de la Ejecución Presupuestal (Consulta amigable) | L89: Portal de Transparencia Económica | M89: http://apps5.mineco.gob.pe/transparencia/Navegador/default.aspx | P89: =IFERROR(IF(VLOOKUP(CONCATENATE(E89,F89,G89),ListaIndicadores!$AG$7:$AJ$1887,3,FALSE)="","",VLOOKUP(CONCATENATE(E89,F89,G89),ListaIndicadores!$AG$7:$AJ$1887,3,FALSE)),"") -> 2177333 | Q89: =VLOOKUP(CONCATENATE(E89,F89,G89),ListaIndicadores!$AG$7:$AJ$1887,4,FALSE) -> ¡Faltan datos!
A90: 9688 | B90: Economica | C90: EJE 3: POLÍTICA FISCAL | D90: AGE.12.2 | E90: Monto ejecutado en programas presupuestales vinculados a servicios universales en salud y educación.(soles, Devengado Anual | F90: Inclusión | G90: Amazonas | H90: 2015 | I90: 545845 | J90: Soles | K90: Ministerio de Economía y Finanzas (MEF)- Seguimiento de la Ejecución Presupuestal (Consulta amigable) | L90: Portal de Transparencia Económica | M90: http://apps5.mineco.gob.pe/transparencia/Navegador/default.aspx | P90: =IFERROR(IF(VLOOKUP(CONCATENATE(E90,F90,G90),ListaIndicadores!$AG$7:$AJ$1887,3,FALSE)="","",VLOOKUP(CONCATENATE(E90,F90,G90),ListaIndicadores!$AG$7:$AJ$1887,3,FALSE)),"") -> 2177333 | Q90: =VLOOKUP(CONCATENATE(E90,F90,G90),ListaIndicadores!$AG$7:$AJ$1887,4,FALSE) -> ¡Faltan datos!
A91: 9689 | B91: Economica | C91: EJE 3: POLÍTICA FISCAL | D91: AGE.12.2 | E91: Monto ejecutado en programas presupuestales vinculados a servicios universales en salud y educación.(soles, Devengado Anual | F91: Inclusión | G91: Amazonas | H91: 2016 | I91: 917095 | J91: Soles | K91: Ministerio de Economía y Finanzas (MEF)- Seguimiento de la Ejecución Presupuestal (Consulta amigable) | L91: Portal de Transparencia Económica | M91: http://apps5.mineco.gob.pe/transparencia/Navegador/default.aspx | P91: =IFERROR(IF(VLOOKUP(CONCATENATE(E91,F91,G91),ListaIndicadores!$AG$7:$AJ$1887,3,FALSE)="","",VLOOKUP(CONCATENATE(E91,F91,G91),ListaIndicadores!$AG$7:$AJ$1887,3,FALSE)),"") -> 2177333 | Q91: =VLOOKUP(CONCATENATE(E91,F91,G91),ListaIndicadores!$AG$7:$AJ$1887,4,FALSE) -> ¡Faltan datos!
A92: 9690 | B92: Economica | C92: EJE 3: POLÍTICA FISCAL | D92: AGE.12.2 | E92: Monto ejecutado en programas presupuestales vinculados a servicios universales en salud y educación.(soles, Devengado Anual | F92: Inclusión | G92: Amazonas | H92: 2017 | I92: 948211 | J92: Soles | K92: Ministerio de Economía y Finanzas (MEF)- Seguimiento de la Ejecución Presupuestal (Consulta amigable) | L92: Portal de Transparencia Económica | M92: http://apps5.mineco.gob.pe/transparencia/Navegador/default.aspx | P92: =IFERROR(IF(VLOOKUP(CONCATENATE(E92,F92,G92),ListaIndicadores!$AG$7:$AJ$1887,3,FALSE)="","",VLOOKUP(CONCATENATE(E92,F92,G92),ListaIndicadores!$AG$7:$AJ$1887,3,FALSE)),"") -> 2177333 | Q92: =VLOOKUP(CONCATENATE(E92,F92,G92),ListaIndicadores!$AG$7:$AJ$1887,4,FALSE) -> ¡Faltan datos!
A93: 9691 | B93: Economica | C93: EJE 3: POLÍTICA FISCAL | D93: AGE.12.2 | E93: Monto ejecutado en programas presupuestales vinculados a servicios universales en salud y educación.(soles, Devengado Anual | F93: Inclusión | G93: Amazonas | H93: 2018 | I93: 1513034 | J93: Soles | K93: Ministerio de Economía y Finanzas (MEF)- Seguimiento de la Ejecución Presupuestal (Consulta amigable) | L93: Portal de Transparencia Económica | M93: http://apps5.mineco.gob.pe/transparencia/Navegador/default.aspx | P93: =IFERROR(IF(VLOOKUP(CONCATENATE(E93,F93,G93),ListaIndicadores!$AG$7:$AJ$1887,3,FALSE)="","",VLOOKUP(CONCATENATE(E93,F93,G93),ListaIndicadores!$AG$7:$AJ$1887,3,FALSE)),"") -> 2177333 | Q93: =VLOOKUP(CONCATENATE(E93,F93,G93),ListaIndicadores!$AG$7:$AJ$1887,4,FALSE) -> ¡Faltan datos!
A94: 9818 | B94: Economica | C94: EJE 3: POLÍTICA FISCAL | D94: AGE.12.2 | E94: Monto ejecutado en programas presupuestales vinculados a servicios universales en salud y educación.(soles, Devengado Anual | F94: PAN | G94: Amazonas | H94: 2014 | I94: 52894585 | J94: Soles | K94: Ministerio de Economía y Finanzas (MEF)- Seguimiento de la Ejecución Presupuestal (Consulta amigable) | L94: Portal de Transparencia Económica | M94: http://apps5.mineco.gob.pe/transparencia/Navegador/default.aspx | P94: =IFERROR(IF(VLOOKUP(CONCATENATE(E94,F94,G94),ListaIndicadores!$AG$7:$AJ$1887,3,FALSE)="","",VLOOKUP(CONCATENATE(E94,F94,G94),ListaIndicadores!$AG$7:$AJ$1887,3,FALSE)),"") -> 121330438 | Q94: =VLOOKUP(CONCATENATE(E94,F94,G94),ListaIndicadores!$AG$7:$AJ$1887,4,FALSE) -> ¡Faltan datos!
A95: 9819 | B95: Economica | C95: EJE 3: POLÍTICA FISCAL | D95: AGE.12.2 | E95: Monto ejecutado en programas presupuestales vinculados a servicios universales en salud y educación.(soles, Devengado Anual | F95: PAN | G95: Amazonas | H95: 2015 | I95: 90645069 | J95: Soles | K95: Ministerio de Economía y Finanzas (MEF)- Seguimiento de la Ejecución Presupuestal (Consulta amigable) | L95: Portal de Transparencia Económica | M95: http://apps5.mineco.gob.pe/transparencia/Navegador/default.aspx | P95: =IFERROR(IF(VLOOKUP(CONCATENATE(E95,F95,G95),ListaIndicadores!$AG$7:$AJ$1887,3,FALSE)="","",VLOOKUP(CONCATENATE(E95,F95,G95),ListaIndicadores!$AG$7:$AJ$1887,3,FALSE)),"") -> 121330438 | Q95: =VLOOKUP(CONCATENATE(E95,F95,G95),ListaIndicadores!$AG$7:$AJ$1887,4,FALSE) -> ¡Faltan datos!
A96: 9820 | B96: Economica | C96: EJE 3: POLÍTICA FISCAL | D96: AGE.12.2 | E96: Monto ejecutado en programas presupuestales vinculados a servicios universales en salud y educación.(soles, Devengado Anual | F96: PAN | G96: Amazonas | H96: 2016 | I96: 65009092 | J96: Soles | K96: Ministerio de Economía y Finanzas (MEF)- Seguimiento de la Ejecución Presupuestal (Consulta amigable) | L96: Portal de Transparencia Económica | M96: http://apps5.mineco.gob.pe/transparencia/Navegador/default.aspx | P96: =IFERROR(IF(VLOOKUP(CONCATENATE(E96,F96,G96),ListaIndicadores!$AG$7:$AJ$1887,3,FALSE)="","",VLOOKUP(CONCATENATE(E96,F96,G96),ListaIndicadores!$AG$7:$AJ$1887,3,FALSE)),"") -> 121330438 | Q96: =VLOOKUP(CONCATENATE(E96,F96,G96),ListaIndicadores!$AG$7:$AJ$1887,4,FALSE) -> ¡Faltan datos!
A97: 9821 | B97: Economica | C97: EJE 3: POLÍTICA FISCAL | D97: AGE.12.2 | E97: Monto ejecutado en programas presupuestales vinculados a servicios universales en salud y educación.(soles, Devengado Anual | F97: PAN | G97: Amazonas | H97: 2017 | I97: 62880167 | J97: Soles | K97: Ministerio de Economía y Finanzas (MEF)- Seguimiento de la Ejecución Presupuestal (Consulta amigable) | L97: Portal de Transparencia Económica | M97: http://apps5.mineco.gob.pe/transparencia/Navegador/default.aspx | P97: =IFERROR(IF(VLOOKUP(CONCATENATE(E97,F97,G97),ListaIndicadores!$AG$7:$AJ$1887,3,FALSE)="","",VLOOKUP(CONCATENATE(E97,F97,G97),ListaIndicadores!$AG$7:$AJ$1887,3,FALSE)),"") -> 121330438 | Q97: =VLOOKUP(CONCATENATE(E97,F97,G97),ListaIndicadores!$AG$7:$AJ$1887,4,FALSE) -> ¡Faltan datos!
A98: 9822 | B98: Economica | C98: EJE 3: POLÍTICA FISCAL | D98: AGE.12.2 | E98: Monto ejecutado en programas presupuestales vinculados a servicios universales en salud y educación.(soles, Devengado Anual | F98: PAN | G98: Amazonas | H98: 2018 | I98: 84194301 | J98: Soles | K98: Ministerio de Economía y Finanzas (MEF)- Seguimiento de la Ejecución Presupuestal (Consulta amigable) | L98: Portal de Transparencia Económica | M98: http://apps5.mineco.gob.pe/transparencia/Navegador/default.aspx | P98: =IFERROR(IF(VLOOKUP(CONCATENATE(E98,F98,G98),ListaIndicadores!$AG$7:$AJ$1887,3,FALSE)="","",VLOOKUP(CONCATENATE(E98,F98,G98),ListaIndicadores!$AG$7:$AJ$1887,3,FALSE)),"") -> 121330438 | Q98: =VLOOKUP(CONCATENATE(E98,F98,G98),ListaIndicadores!$AG$7:$AJ$1887,4,FALSE) -> ¡Faltan datos!
A99: 9949 | B99: Economica | C99: EJE 3: POLÍTICA FISCAL | D99: AGE.12.2 | E99: Monto ejecutado en programas presupuestales vinculados a servicios universales en salud y educación.(soles, Devengado Anual | F99: PELA B.Regular | G99: Amazonas | H99: 2014 | I99: 257197368 | J99: Soles | K99: Ministerio de Economía y Finanzas (MEF)- Seguimiento de la Ejecución Presupuestal (Consulta amigable) | L99: Portal de Transparencia Económica | M99: http://apps5.mineco.gob.pe/transparencia/Navegador/default.aspx | P99: =IFERROR(IF(VLOOKUP(CONCATENATE(E99,F99,G99),ListaIndicadores!$AG$7:$AJ$1887,3,FALSE)="","",VLOOKUP(CONCATENATE(E99,F99,G99),ListaIndicadores!$AG$7:$AJ$1887,3,FALSE)),"") -> 724523641 | Q99: =VLOOKUP(CONCATENATE(E99,F99,G99),ListaIndicadores!$AG$7:$AJ$1887,4,FALSE) -> ¡Faltan datos!
A100: 9950 | B100: Economica | C100: EJE 3: POLÍTICA FISCAL | D100: AGE.12.2 | E100: Monto ejecutado en programas presupuestales vinculados a servicios universales en salud y educación.(soles, Devengado Anual | F100: PELA B.Regular | G100: Amazonas | H100: 2015 | I100: 383719046 | J100: Soles | K100: Ministerio de Economía y Finanzas (MEF)- Seguimiento de la Ejecución Presupuestal (Consulta amigable) | L100: Portal de Transparencia Económica | M100: http://apps5.mineco.gob.pe/transparencia/Navegador/default.aspx | P100: =IFERROR(IF(VLOOKUP(CONCATENATE(E100,F100,G100),ListaIndicadores!$AG$7:$AJ$1887,3,FALSE)="","",VLOOKUP(CONCATENATE(E100,F100,G100),ListaIndicadores!$AG$7:$AJ$1887,3,FALSE)),"") -> 724523641 | Q100: =VLOOKUP(CONCATENATE(E100,F100,G100),ListaIndicadores!$AG$7:$AJ$1887,4,FALSE) -> ¡Faltan datos!
A101: 9951 | B101: Economica | C101: EJE 3: POLÍTICA FISCAL | D101: AGE.12.2 | E101: Monto ejecutado en programas presupuestales vinculados a servicios universales en salud y educación.(soles, Devengado Anual | F101: PELA B.Regular | G101: Amazonas | H101: 2016 | I101: 361519053 | J101: Soles | K101: Ministerio de Economía y Finanzas (MEF)- Seguimiento de la Ejecución Presupuestal (Consulta amigable) | L101: Portal de Transparencia Económica | M101: http://apps5.mineco.gob.pe/transparencia/Navegador/default.aspx | P101: =IFERROR(IF(VLOOKUP(CONCATENATE(E101,F101,G101),ListaIndicadores!$AG$7:$AJ$1887,3,FALSE)="","",VLOOKUP(CONCATENATE(E101,F101,G101),ListaIndicadores!$AG$7:$AJ$1887,3,FALSE)),"") -> 724523641 | Q101: =VLOOKUP(CONCATENATE(E101,F101,G101),ListaIndicadores!$AG$7:$AJ$1887,4,FALSE) -> ¡Faltan datos!
A102: 9952 | B102: Economica | C102: EJE 3: POLÍTICA FISCAL | D102: AGE.12.2 | E102: Monto ejecutado en programas presupuestales vinculados a servicios universales en salud y educación.(soles, Devengado Anual | F102: PELA B.Regular | G102: Amazonas | H102: 2017 | I102: 419702469 | J102: Soles | K102: Ministerio de Economía y Finanzas (MEF)- Seguimiento de la Ejecución Presupuestal (Consulta amigable) | L102: Portal de Transparencia Económica | M102: http://apps5.mineco.gob.pe/transparencia/Navegador/default.aspx | P102: =IFERROR(IF(VLOOKUP(CONCATENATE(E102,F102,G102),ListaIndicadores!$AG$7:$AJ$1887,3,FALSE)="","",VLOOKUP(CONCATENATE(E102,F102,G102),ListaIndicadores!$AG$7:$AJ$1887,3,FALSE)),"") -> 724523641 | Q102: =VLOOKUP(CONCATENATE(E102,F102,G102),ListaIndicadores!$AG$7:$AJ$1887,4,FALSE) -> ¡Faltan datos!
A103: 9953 | B103: Economica | C103: EJE 3: POLÍTICA FISCAL | D103: AGE.12.2 | E103: Monto ejecutado en programas presupuestales vinculados a servicios universales en salud y educación.(soles, Devengado Anual | F103: PELA B.Regular | G103: Amazonas | H103: 2018 | I103: 455063131 | J103: Soles | K103: Ministerio de Economía y Finanzas (MEF)- Seguimiento de la Ejecución Presupuestal (Consulta amigable) | L103: Portal de Transparencia Económica | M103: http://apps5.mineco.gob.pe/transparencia/Navegador/default.aspx | P103: =IFERROR(IF(VLOOKUP(CONCATENATE(E103,F103,G103),ListaIndicadores!$AG$7:$AJ$1887,3,FALSE)="","",VLOOKUP(CONCATENATE(E103,F103,G103),ListaIndicadores!$AG$7:$AJ$1887,3,FALSE)),"") -> 724523641 | Q103: =VLOOKUP(CONCATENATE(E103,F103,G103),ListaIndicadores!$AG$7:$AJ$1887,4,FALSE) -> ¡Faltan datos!
A104: 10080 | B104: Economica | C104: EJE 3: POLÍTICA FISCAL | D104: AGE.12.2 | E104: Monto ejecutado en programas presupuestales vinculados a servicios universales en salud y educación.(soles, Devengado Anual | F104: SMN | G104: Amazonas | H104: 2014 | I104: 43401907 | J104: Soles | K104: Ministerio de Economía y Finanzas (MEF)- Seguimiento de la Ejecución Presupuestal (Consulta amigable) | L104: Portal de Transparencia Económica | M104: http://apps5.mineco.gob.pe/transparencia/Navegador/default.aspx | P104: =IFERROR(IF(VLOOKUP(CONCATENATE(E104,F104,G104),ListaIndicadores!$AG$7:$AJ$1887,3,FALSE)="","",VLOOKUP(CONCATENATE(E104,F104,G104),ListaIndicadores!$AG$7:$AJ$1887,3,FALSE)),"") -> 21795477 | Q104: =VLOOKUP(CONCATENATE(E104,F104,G104),ListaIndicadores!$AG$7:$AJ$1887,4,FALSE) -> ¡Faltan datos!
A105: 10081 | B105: Economica | C105: EJE 3: POLÍTICA FISCAL | D105: AGE.12.2 | E105: Monto ejecutado en programas presupuestales vinculados a servicios universales en salud y educación.(soles, Devengado Anual | F105: SMN | G105: Amazonas | H105: 2015 | I105: 54513476 | J105: Soles | K105: Ministerio de Economía y Finanzas (MEF)- Seguimiento de la Ejecución Presupuestal (Consulta amigable) | L105: Portal de Transparencia Económica | M105: http://apps5.mineco.gob.pe/transparencia/Navegador/default.aspx | P105: =IFERROR(IF(VLOOKUP(CONCATENATE(E105,F105,G105),ListaIndicadores!$AG$7:$AJ$1887,3,FALSE)="","",VLOOKUP(CONCATENATE(E105,F105,G105),ListaIndicadores!$AG$7:$AJ$1887,3,FALSE)),"") -> 21795477 | Q105: =VLOOKUP(CONCATENATE(E105,F105,G105),ListaIndicadores!$AG$7:$AJ$1887,4,FALSE) -> ¡Faltan datos!
A106: 10082 | B106: Economica | C106: EJE 3: POLÍTICA FISCAL | D106: AGE.12.2 | E106: Monto ejecutado en programas presupuestales vinculados a servicios universales en salud y educación.(soles, Devengado Anual | F106: SMN | G106: Amazonas | H106: 2016 | I106: 41725453 | J106: Soles | K106: Ministerio de Economía y Finanzas (MEF)- Seguimiento de la Ejecución Presupuestal (Consulta amigable) | L106: Portal de Transparencia Económica | M106: http://apps5.mineco.gob.pe/transparencia/Navegador/default.aspx | P106: =IFERROR(IF(VLOOKUP(CONCATENATE(E106,F106,G106),ListaIndicadores!$AG$7:$AJ$1887,3,FALSE)="","",VLOOKUP(CONCATENATE(E106,F106,G106),ListaIndicadores!$AG$7:$AJ$1887,3,FALSE)),"") -> 21795477 | Q106: =VLOOKUP(CONCATENATE(E106,F106,G106),ListaIndicadores!$AG$7:$AJ$1887,4,FALSE) -> ¡Faltan datos!
A107: 10083 | B107: Economica | C107: EJE 3: POLÍTICA FISCAL | D107: AGE.12.2 | E107: Monto ejecutado en programas presupuestales vinculados a servicios universales en salud y educación.(soles, Devengado Anual | F107: SMN | G107: Amazonas | H107: 2017 | I107: 31823569 | J107: Soles | K107: Ministerio de Economía y Finanzas (MEF)- Seguimiento de la Ejecución Presupuestal (Consulta amigable) | L107: Portal de Transparencia Económica | M107: http://apps5.mineco.gob.pe/transparencia/Navegador/default.aspx | P107: =IFERROR(IF(VLOOKUP(CONCATENATE(E107,F107,G107),ListaIndicadores!$AG$7:$AJ$1887,3,FALSE)="","",VLOOKUP(CONCATENATE(E107,F107,G107),ListaIndicadores!$AG$7:$AJ$1887,3,FALSE)),"") -> 21795477 | Q107: =VLOOKUP(CONCATENATE(E107,F107,G107),ListaIndicadores!$AG$7:$AJ$1887,4,FALSE) -> ¡Faltan datos!
A108: 10084 | B108: Economica | C108: EJE 3: POLÍTICA FISCAL | D108: AGE.12.2 | E108: Monto ejecutado en programas presupuestales vinculados a servicios universales en salud y educación.(soles, Devengado Anual | F108: SMN | G108: Amazonas | H108: 2018 | I108: 38377747 | J108: Soles | K108: Ministerio de Economía y Finanzas (MEF)- Seguimiento de la Ejecución Presupuestal (Consulta amigable) | L108: Portal de Transparencia Económica | M108: http://apps5.mineco.gob.pe/transparencia/Navegador/default.aspx | P108: =IFERROR(IF(VLOOKUP(CONCATENATE(E108,F108,G108),ListaIndicadores!$AG$7:$AJ$1887,3,FALSE)="","",VLOOKUP(CONCATENATE(E108,F108,G108),ListaIndicadores!$AG$7:$AJ$1887,3,FALSE)),"") -> 21795477 | Q108: =VLOOKUP(CONCATENATE(E108,F108,G108),ListaIndicadores!$AG$7:$AJ$1887,4,FALSE) -> ¡Faltan datos!
A109: 10211 | B109: Economica | C109: EJE 3: POLÍTICA FISCAL | D109: AGE.12.2 | E109: Monto ejecutado en programas presupuestales vinculados a servicios universales en salud y educación.(soles, Devengado Anual | F109: TBC-VIH Sida | G109: Amazonas | H109: 2014 | I109: 4315499 | J109: Soles | K109: Ministerio de Economía y Finanzas (MEF)- Seguimiento de la Ejecución Presupuestal (Consulta amigable) | L109: Portal de Transparencia Económica | M109: http://apps5.mineco.gob.pe/transparencia/Navegador/default.aspx | P109: =IFERROR(IF(VLOOKUP(CONCATENATE(E109,F109,G109),ListaIndicadores!$AG$7:$AJ$1887,3,FALSE)="","",VLOOKUP(CONCATENATE(E109,F109,G109),ListaIndicadores!$AG$7:$AJ$1887,3,FALSE)),"") -> 22618507 | Q109: =VLOOKUP(CONCATENATE(E109,F109,G109),ListaIndicadores!$AG$7:$AJ$1887,4,FALSE) -> ¡Faltan datos!
A110: 10212 | B110: Economica | C110: EJE 3: POLÍTICA FISCAL | D110: AGE.12.2 | E110: Monto ejecutado en programas presupuestales vinculados a servicios universales en salud y educación.(soles, Devengado Anual | F110: TBC-VIH Sida | G110: Amazonas | H110: 2015 | I110: 4592325 | J110: Soles | K110: Ministerio de Economía y Finanzas (MEF)- Seguimiento de la Ejecución Presupuestal (Consulta amigable) | L110: Portal de Transparencia Económica | M110: http://apps5.mineco.gob.pe/transparencia/Navegador/default.aspx | P110: =IFERROR(IF(VLOOKUP(CONCATENATE(E110,F110,G110),ListaIndicadores!$AG$7:$AJ$1887,3,FALSE)="","",VLOOKUP(CONCATENATE(E110,F110,G110),ListaIndicadores!$AG$7:$AJ$1887,3,FALSE)),"") -> 22618507 | Q110: =VLOOKUP(CONCATENATE(E110,F110,G110),ListaIndicadores!$AG$7:$AJ$1887,4,FALSE) -> ¡Faltan datos!
A111: 10213 | B111: Economica | C111: EJE 3: POLÍTICA FISCAL | D111: AGE.12.2 | E111: Monto ejecutado en programas presupuestales vinculados a servicios universales en salud y educación.(soles, Devengado Anual | F111: TBC-VIH Sida | G111: Amazonas | H111: 2016 | I111: 5725822 | J111: Soles | K111: Ministerio de Economía y Finanzas (MEF)- Seguimiento de la Ejecución Presupuestal (Consulta amigable) | L111: Portal de Transparencia Económica | M111: http://apps5.mineco.gob.pe/transparencia/Navegador/default.aspx | P111: =IFERROR(IF(VLOOKUP(CONCATENATE(E111,F111,G111),ListaIndicadores!$AG$7:$AJ$1887,3,FALSE)="","",VLOOKUP(CONCATENATE(E111,F111,G111),ListaIndicadores!$AG$7:$AJ$1887,3,FALSE)),"") -> 22618507 | Q111: =VLOOKUP(CONCATENATE(E111,F111,G111),ListaIndicadores!$AG$7:$AJ$1887,4,FALSE) -> ¡Faltan datos!
A112: 10214 | B112: Economica | C112: EJE 3: POLÍTICA FISCAL | D112: AGE.12.2 | E112: Monto ejecutado en programas presupuestales vinculados a servicios universales en salud y educación.(soles, Devengado Anual | F112: TBC-VIH Sida | G112: Amazonas | H112: 2017 | I112: 5842915 | J112: Soles | K112: Ministerio de Economía y Finanzas (MEF)- Seguimiento de la Ejecución Presupuestal (Consulta amigable) | L112: Portal de Transparencia Económica | M112: http://apps5.mineco.gob.pe/transparencia/Navegador/default.aspx | P112: =IFERROR(IF(VLOOKUP(CONCATENATE(E112,F112,G112),ListaIndicadores!$AG$7:$AJ$1887,3,FALSE)="","",VLOOKUP(CONCATENATE(E112,F112,G112),ListaIndicadores!$AG$7:$AJ$1887,3,FALSE)),"") -> 22618507 | Q112: =VLOOKUP(CONCATENATE(E112,F112,G112),ListaIndicadores!$AG$7:$AJ$1887,4,FALSE) -> ¡Faltan datos!
A113: 10215 | B113: Economica | C113: EJE 3: POLÍTICA FISCAL | D113: AGE.12.2 | E113: Monto ejecutado en programas presupuestales vinculados a servicios universales en salud y educación.(soles, Devengado Anual | F113: TBC-VIH Sida | G113: Amazonas | H113: 2018 | I113: 6970263 | J113: Soles | K113: Ministerio de Economía y Finanzas (MEF)- Seguimiento de la Ejecución Presupuestal (Consulta amigable) | L113: Portal de Transparencia Económica | M113: http://apps5.mineco.gob.pe/transparencia/Navegador/default.aspx | P113: =IFERROR(IF(VLOOKUP(CONCATENATE(E113,F113,G113),ListaIndicadores!$AG$7:$AJ$1887,3,FALSE)="","",VLOOKUP(CONCATENATE(E113,F113,G113),ListaIndicadores!$AG$7:$AJ$1887,3,FALSE)),"") -> 22618507 | Q113: =VLOOKUP(CONCATENATE(E113,F113,G113),ListaIndicadores!$AG$7:$AJ$1887,4,FALSE) -> ¡Faltan datos!
A114: 10342 | B114: Economica | C114: EJE 3: POLÍTICA FISCAL | D114: AGE.12.3 | E114: Monto ejecutado en programas presupuestales vinculados a servicios universales en salud y educación.(soles, Devengado Anual | F114: Acceso y uso adecuado de los servicios publicos de telecomunicaciones e informacion asociados | G114: Amazonas | H114: 2014 | I114: 1964138 | J114: Soles | K114: Ministerio de Economía y Finanzas (MEF)- Seguimiento de la Ejecución Presupuestal (Consulta amigable) | L114: Portal de Transparencia Económica | M114: http://apps5.mineco.gob.pe/transparencia/Navegador/default.aspx | P114: =IFERROR(IF(VLOOKUP(CONCATENATE(E114,F114,G114),ListaIndicadores!$AG$7:$AJ$1887,3,FALSE)="","",VLOOKUP(CONCATENATE(E114,F114,G114),ListaIndicadores!$AG$7:$AJ$1887,3,FALSE)),"") -> 38353512 | Q114: =VLOOKUP(CONCATENATE(E114,F114,G114),ListaIndicadores!$AG$7:$AJ$1887,4,FALSE) -> ¡Faltan datos!
A115: 10343 | B115: Economica | C115: EJE 3: POLÍTICA FISCAL | D115: AGE.12.3 | E115: Monto ejecutado en programas presupuestales vinculados a servicios universales en salud y educación.(soles, Devengado Anual | F115: Acceso y uso adecuado de los servicios publicos de telecomunicaciones e informacion asociados | G115: Amazonas | H115: 2015 | I115: 1022652 | J115: Soles | K115: Ministerio de Economía y Finanzas (MEF)- Seguimiento de la Ejecución Presupuestal (Consulta amigable) | L115: Portal de Transparencia Económica | M115: http://apps5.mineco.gob.pe/transparencia/Navegador/default.aspx | P115: =IFERROR(IF(VLOOKUP(CONCATENATE(E115,F115,G115),ListaIndicadores!$AG$7:$AJ$1887,3,FALSE)="","",VLOOKUP(CONCATENATE(E115,F115,G115),ListaIndicadores!$AG$7:$AJ$1887,3,FALSE)),"") -> 38353512 | Q115: =VLOOKUP(CONCATENATE(E115,F115,G115),ListaIndicadores!$AG$7:$AJ$1887,4,FALSE) -> ¡Faltan datos!
A116: 10344 | B116: Economica | C116: EJE 3: POLÍTICA FISCAL | D116: AGE.12.3 | E116: Monto ejecutado en programas presupuestales vinculados a servicios universales en salud y educación.(soles, Devengado Anual | F116: Acceso y uso adecuado de los servicios publicos de telecomunicaciones e informacion asociados | G116: Amazonas | H116: 2016 | I116: 516600 | J116: Soles | K116: Ministerio de Economía y Finanzas (MEF)- Seguimiento de la Ejecución Presupuestal (Consulta amigable) | L116: Portal de Transparencia Económica | M116: http://apps5.mineco.gob.pe/transparencia/Navegador/default.aspx | P116: =IFERROR(IF(VLOOKUP(CONCATENATE(E116,F116,G116),ListaIndicadores!$AG$7:$AJ$1887,3,FALSE)="","",VLOOKUP(CONCATENATE(E116,F116,G116),ListaIndicadores!$AG$7:$AJ$1887,3,FALSE)),"") -> 38353512 | Q116: =VLOOKUP(CONCATENATE(E116,F116,G116),ListaIndicadores!$AG$7:$AJ$1887,4,FALSE) -> ¡Faltan datos!
A117: 10345 | B117: Economica | C117: EJE 3: POLÍTICA FISCAL | D117: AGE.12.3 | E117: Monto ejecutado en programas presupuestales vinculados a servicios universales en salud y educación.(soles, Devengado Anual | F117: Acceso y uso adecuado de los servicios publicos de telecomunicaciones e informacion asociados | G117: Amazonas | H117: 2017 | I117: Sin datos | J117: Soles | K117: Ministerio de Economía y Finanzas (MEF)- Seguimiento de la Ejecución Presupuestal (Consulta amigable) | L117: Portal de Transparencia Económica | M117: http://apps5.mineco.gob.pe/transparencia/Navegador/default.aspx | P117: =IFERROR(IF(VLOOKUP(CONCATENATE(E117,F117,G117),ListaIndicadores!$AG$7:$AJ$1887,3,FALSE)="","",VLOOKUP(CONCATENATE(E117,F117,G117),ListaIndicadores!$AG$7:$AJ$1887,3,FALSE)),"") -> 38353512 | Q117: =VLOOKUP(CONCATENATE(E117,F117,G117),ListaIndicadores!$AG$7:$AJ$1887,4,FALSE) -> ¡Faltan datos!
A118: 10346 | B118: Economica | C118: EJE 3: POLÍTICA FISCAL | D118: AGE.12.3 | E118: Monto ejecutado en programas presupuestales vinculados a servicios universales en salud y educación.(soles, Devengado Anual | F118: Acceso y uso adecuado de los servicios publicos de telecomunicaciones e informacion asociados | G118: Amazonas | H118: 2018 | I118: 35355715 | J118: Soles | K118: Ministerio de Economía y Finanzas (MEF)- Seguimiento de la Ejecución Presupuestal (Consulta amigable) | L118: Portal de Transparencia Económica | M118: http://apps5.mineco.gob.pe/transparencia/Navegador/default.aspx | P118: =IFERROR(IF(VLOOKUP(CONCATENATE(E118,F118,G118),ListaIndicadores!$AG$7:$AJ$1887,3,FALSE)="","",VLOOKUP(CONCATENATE(E118,F118,G118),ListaIndicadores!$AG$7:$AJ$1887,3,FALSE)),"") -> 38353512 | Q118: =VLOOKUP(CONCATENATE(E118,F118,G118),ListaIndicadores!$AG$7:$AJ$1887,4,FALSE) -> ¡Faltan datos!
A119: 10467 | B119: Economica | C119: EJE 3: POLÍTICA FISCAL | D119: AGE.12.3 | E119: Monto ejecutado en programas presupuestales vinculados a servicios universales en salud y educación.(soles, Devengado Anual | F119: Electrificación Rural | G119: Amazonas | H119: 2014 | I119: 19072884 | J119: Soles | K119: Ministerio de Economía y Finanzas (MEF)- Seguimiento de la Ejecución Presupuestal (Consulta amigable) | L119: Portal de Transparencia Económica | M119: http://apps5.mineco.gob.pe/transparencia/Navegador/default.aspx | P119: =IFERROR(IF(VLOOKUP(CONCATENATE(E119,F119,G119),ListaIndicadores!$AG$7:$AJ$1887,3,FALSE)="","",VLOOKUP(CONCATENATE(E119,F119,G119),ListaIndicadores!$AG$7:$AJ$1887,3,FALSE)),"") -> 1421316 | Q119: =VLOOKUP(CONCATENATE(E119,F119,G119),ListaIndicadores!$AG$7:$AJ$1887,4,FALSE) -> ¡Faltan datos!
A120: 10468 | B120: Economica | C120: EJE 3: POLÍTICA FISCAL | D120: AGE.12.3 | E120: Monto ejecutado en programas presupuestales vinculados a servicios universales en salud y educación.(soles, Devengado Anual | F120: Electrificación Rural | G120: Amazonas | H120: 2015 | I120: 13356954 | J120: Soles | K120: Ministerio de Economía y Finanzas (MEF)- Seguimiento de la Ejecución Presupuestal (Consulta amigable) | L120: Portal de Transparencia Económica | M120: http://apps5.mineco.gob.pe/transparencia/Navegador/default.aspx | P120: =IFERROR(IF(VLOOKUP(CONCATENATE(E120,F120,G120),ListaIndicadores!$AG$7:$AJ$1887,3,FALSE)="","",VLOOKUP(CONCATENATE(E120,F120,G120),ListaIndicadores!$AG$7:$AJ$1887,3,FALSE)),"") -> 1421316 | Q120: =VLOOKUP(CONCATENATE(E120,F120,G120),ListaIndicadores!$AG$7:$AJ$1887,4,FALSE) -> ¡Faltan datos!
A121: 10469 | B121: Economica | C121: EJE 3: POLÍTICA FISCAL | D121: AGE.12.3 | E121: Monto ejecutado en programas presupuestales vinculados a servicios universales en salud y educación.(soles, Devengado Anual | F121: Electrificación Rural | G121: Amazonas | H121: 2016 | I121: 7742900 | J121: Soles | K121: Ministerio de Economía y Finanzas (MEF)- Seguimiento de la Ejecución Presupuestal (Consulta amigable) | L121: Portal de Transparencia Económica | M121: http://apps5.mineco.gob.pe/transparencia/Navegador/default.aspx | P121: =IFERROR(IF(VLOOKUP(CONCATENATE(E121,F121,G121),ListaIndicadores!$AG$7:$AJ$1887,3,FALSE)="","",VLOOKUP(CONCATENATE(E121,F121,G121),ListaIndicadores!$AG$7:$AJ$1887,3,FALSE)),"") -> 1421316 | Q121: =VLOOKUP(CONCATENATE(E121,F121,G121),ListaIndicadores!$AG$7:$AJ$1887,4,FALSE) -> ¡Faltan datos!
A122: 10470 | B122: Economica | C122: EJE 3: POLÍTICA FISCAL | D122: AGE.12.3 | E122: Monto ejecutado en programas presupuestales vinculados a servicios universales en salud y educación.(soles, Devengado Anual | F122: Electrificación Rural | G122: Amazonas | H122: 2017 | I122: 5590857 | J122: Soles | K122: Ministerio de Economía y Finanzas (MEF)- Seguimiento de la Ejecución Presupuestal (Consulta amigable) | L122: Portal de Transparencia Económica | M122: http://apps5.mineco.gob.pe/transparencia/Navegador/default.aspx | P122: =IFERROR(IF(VLOOKUP(CONCATENATE(E122,F122,G122),ListaIndicadores!$AG$7:$AJ$1887,3,FALSE)="","",VLOOKUP(CONCATENATE(E122,F122,G122),ListaIndicadores!$AG$7:$AJ$1887,3,FALSE)),"") -> 1421316 | Q122: =VLOOKUP(CONCATENATE(E122,F122,G122),ListaIndicadores!$AG$7:$AJ$1887,4,FALSE) -> ¡Faltan datos!
A123: 10471 | B123: Economica | C123: EJE 3: POLÍTICA FISCAL | D123: AGE.12.3 | E123: Monto ejecutado en programas presupuestales vinculados a servicios universales en salud y educación.(soles, Devengado Anual | F123: Electrificación Rural | G123: Amazonas | H123: 2018 | I123: 8355623 | J123: Soles | K123: Ministerio de Economía y Finanzas (MEF)- Seguimiento de la Ejecución Presupuestal (Consulta amigable) | L123: Portal de Transparencia Económica | M123: http://apps5.mineco.gob.pe/transparencia/Navegador/default.aspx | P123: =IFERROR(IF(VLOOKUP(CONCATENATE(E123,F123,G123),ListaIndicadores!$AG$7:$AJ$1887,3,FALSE)="","",VLOOKUP(CONCATENATE(E123,F123,G123),ListaIndicadores!$AG$7:$AJ$1887,3,FALSE)),"") -> 1421316 | Q123: =VLOOKUP(CONCATENATE(E123,F123,G123),ListaIndicadores!$AG$7:$AJ$1887,4,FALSE) -> ¡Faltan datos!
A124: 10598 | B124: Economica | C124: EJE 3: POLÍTICA FISCAL | D124: AGE.12.3 | E124: Monto ejecutado en programas presupuestales vinculados a servicios universales en salud y educación.(soles, Devengado Anual | F124: Saneamiento Rural | G124: Amazonas | H124: 2014 | I124: 131745926 | J124: Soles | K124: Ministerio de Economía y Finanzas (MEF)- Seguimiento de la Ejecución Presupuestal (Consulta amigable) | L124: Portal de Transparencia Económica | M124: http://apps5.mineco.gob.pe/transparencia/Navegador/default.aspx | P124: =IFERROR(IF(VLOOKUP(CONCATENATE(E124,F124,G124),ListaIndicadores!$AG$7:$AJ$1887,3,FALSE)="","",VLOOKUP(CONCATENATE(E124,F124,G124),ListaIndicadores!$AG$7:$AJ$1887,3,FALSE)),"") -> 231468945 | Q124: =VLOOKUP(CONCATENATE(E124,F124,G124),ListaIndicadores!$AG$7:$AJ$1887,4,FALSE) -> ¡Faltan datos!
A125: 10599 | B125: Economica | C125: EJE 3: POLÍTICA FISCAL | D125: AGE.12.3 | E125: Monto ejecutado en programas presupuestales vinculados a servicios universales en salud y educación.(soles, Devengado Anual | F125: Saneamiento Rural | G125: Amazonas | H125: 2015 | I125: 90502509 | J125: Soles | K125: Ministerio de Economía y Finanzas (MEF)- Seguimiento de la Ejecución Presupuestal (Consulta amigable) | L125: Portal de Transparencia Económica | M125: http://apps5.mineco.gob.pe/transparencia/Navegador/default.aspx | P125: =IFERROR(IF(VLOOKUP(CONCATENATE(E125,F125,G125),ListaIndicadores!$AG$7:$AJ$1887,3,FALSE)="","",VLOOKUP(CONCATENATE(E125,F125,G125),ListaIndicadores!$AG$7:$AJ$1887,3,FALSE)),"") -> 231468945 | Q125: =VLOOKUP(CONCATENATE(E125,F125,G125),ListaIndicadores!$AG$7:$AJ$1887,4,FALSE) -> ¡Faltan datos!
A126: 10600 | B126: Economica | C126: EJE 3: POLÍTICA FISCAL | D126: AGE.12.3 | E126: Monto ejecutado en programas presupuestales vinculados a servicios universales en salud y educación.(soles, Devengado Anual | F126: Saneamiento Rural | G126: Amazonas | H126: 2016 | I126: 69623354 | J126: Soles | K126: Ministerio de Economía y Finanzas (MEF)- Seguimiento de la Ejecución Presupuestal (Consulta amigable) | L126: Portal de Transparencia Económica | M126: http://apps5.mineco.gob.pe/transparencia/Navegador/default.aspx | P126: =IFERROR(IF(VLOOKUP(CONCATENATE(E126,F126,G126),ListaIndicadores!$AG$7:$AJ$1887,3,FALSE)="","",VLOOKUP(CONCATENATE(E126,F126,G126),ListaIndicadores!$AG$7:$AJ$1887,3,FALSE)),"") -> 231468945 | Q126: =VLOOKUP(CONCATENATE(E126,F126,G126),ListaIndicadores!$AG$7:$AJ$1887,4,FALSE) -> ¡Faltan datos!
A127: 10601 | B127: Economica | C127: EJE 3: POLÍTICA FISCAL | D127: AGE.12.3 | E127: Monto ejecutado en programas presupuestales vinculados a servicios universales en salud y educación.(soles, Devengado Anual | F127: Saneamiento Rural | G127: Amazonas | H127: 2017 | I127: 259828632 | J127: Soles | K127: Ministerio de Economía y Finanzas (MEF)- Seguimiento de la Ejecución Presupuestal (Consulta amigable) | L127: Portal de Transparencia Económica | M127: http://apps5.mineco.gob.pe/transparencia/Navegador/default.aspx | P127: =IFERROR(IF(VLOOKUP(CONCATENATE(E127,F127,G127),ListaIndicadores!$AG$7:$AJ$1887,3,FALSE)="","",VLOOKUP(CONCATENATE(E127,F127,G127),ListaIndicadores!$AG$7:$AJ$1887,3,FALSE)),"") -> 231468945 | Q127: =VLOOKUP(CONCATENATE(E127,F127,G127),ListaIndicadores!$AG$7:$AJ$1887,4,FALSE) -> ¡Faltan datos!
A128: 10602 | B128: Economica | C128: EJE 3: POLÍTICA FISCAL | D128: AGE.12.3 | E128: Monto ejecutado en programas presupuestales vinculados a servicios universales en salud y educación.(soles, Devengado Anual | F128: Saneamiento Rural | G128: Amazonas | H128: 2018 | I128: 420937843 | J128: Soles | K128: Ministerio de Economía y Finanzas (MEF)- Seguimiento de la Ejecución Presupuestal (Consulta amigable) | L128: Portal de Transparencia Económica | M128: http://apps5.mineco.gob.pe/transparencia/Navegador/default.aspx | P128: =IFERROR(IF(VLOOKUP(CONCATENATE(E128,F128,G128),ListaIndicadores!$AG$7:$AJ$1887,3,FALSE)="","",VLOOKUP(CONCATENATE(E128,F128,G128),ListaIndicadores!$AG$7:$AJ$1887,3,FALSE)),"") -> 231468945 | Q128: =VLOOKUP(CONCATENATE(E128,F128,G128),ListaIndicadores!$AG$7:$AJ$1887,4,FALSE) -> ¡Faltan datos!
A129: 10729 | B129: Economica | C129: EJE 3: POLÍTICA FISCAL | D129: AGE.12.3 | E129: Monto ejecutado en programas presupuestales vinculados a servicios universales en salud y educación.(soles, Devengado Anual | F129: Saneamiento Urbano | G129: Amazonas | H129: 2014 | I129: 19332465 | J129: Soles | K129: Ministerio de Economía y Finanzas (MEF)- Seguimiento de la Ejecución Presupuestal (Consulta amigable) | L129: Portal de Transparencia Económica | M129: http://apps5.mineco.gob.pe/transparencia/Navegador/default.aspx | P129: =IFERROR(IF(VLOOKUP(CONCATENATE(E129,F129,G129),ListaIndicadores!$AG$7:$AJ$1887,3,FALSE)="","",VLOOKUP(CONCATENATE(E129,F129,G129),ListaIndicadores!$AG$7:$AJ$1887,3,FALSE)),"") -> -8225753 | Q129: =VLOOKUP(CONCATENATE(E129,F129,G129),ListaIndicadores!$AG$7:$AJ$1887,4,FALSE) -> ¡Faltan datos!
A130: 10730 | B130: Economica | C130: EJE 3: POLÍTICA FISCAL | D130: AGE.12.3 | E130: Monto ejecutado en programas presupuestales vinculados a servicios universales en salud y educación.(soles, Devengado Anual | F130: Saneamiento Urbano | G130: Amazonas | H130: 2015 | I130: 35946474 | J130: Soles | K130: Ministerio de Economía y Finanzas (MEF)- Seguimiento de la Ejecución Presupuestal (Consulta amigable) | L130: Portal de Transparencia Económica | M130: http://apps5.mineco.gob.pe/transparencia/Navegador/default.aspx | P130: =IFERROR(IF(VLOOKUP(CONCATENATE(E130,F130,G130),ListaIndicadores!$AG$7:$AJ$1887,3,FALSE)="","",VLOOKUP(CONCATENATE(E130,F130,G130),ListaIndicadores!$AG$7:$AJ$1887,3,FALSE)),"") -> -8225753 | Q130: =VLOOKUP(CONCATENATE(E130,F130,G130),ListaIndicadores!$AG$7:$AJ$1887,4,FALSE) -> ¡Faltan datos!
A131: 10731 | B131: Economica | C131: EJE 3: POLÍTICA FISCAL | D131: AGE.12.3 | E131: Monto ejecutado en programas presupuestales vinculados a servicios universales en salud y educación.(soles, Devengado Anual | F131: Saneamiento Urbano | G131: Amazonas | H131: 2016 | I131: 19326620 | J131: Soles | K131: Ministerio de Economía y Finanzas (MEF)- Seguimiento de la Ejecución Presupuestal (Consulta amigable) | L131: Portal de Transparencia Económica | M131: http://apps5.mineco.gob.pe/transparencia/Navegador/default.aspx | P131: =IFERROR(IF(VLOOKUP(CONCATENATE(E131,F131,G131),ListaIndicadores!$AG$7:$AJ$1887,3,FALSE)="","",VLOOKUP(CONCATENATE(E131,F131,G131),ListaIndicadores!$AG$7:$AJ$1887,3,FALSE)),"") -> -8225753 | Q131: =VLOOKUP(CONCATENATE(E131,F131,G131),ListaIndicadores!$AG$7:$AJ$1887,4,FALSE) -> ¡Faltan datos!
A132: 10732 | B132: Economica | C132: EJE 3: POLÍTICA FISCAL | D132: AGE.12.3 | E132: Monto ejecutado en programas presupuestales vinculados a servicios universales en salud y educación.(soles, Devengado Anual | F132: Saneamiento Urbano | G132: Amazonas | H132: 2017 | I132: 15471738 | J132: Soles | K132: Ministerio de Economía y Finanzas (MEF)- Seguimiento de la Ejecución Presupuestal (Consulta amigable) | L132: Portal de Transparencia Económica | M132: http://apps5.mineco.gob.pe/transparencia/Navegador/default.aspx | P132: =IFERROR(IF(VLOOKUP(CONCATENATE(E132,F132,G132),ListaIndicadores!$AG$7:$AJ$1887,3,FALSE)="","",VLOOKUP(CONCATENATE(E132,F132,G132),ListaIndicadores!$AG$7:$AJ$1887,3,FALSE)),"") -> -8225753 | Q132: =VLOOKUP(CONCATENATE(E132,F132,G132),ListaIndicadores!$AG$7:$AJ$1887,4,FALSE) -> ¡Faltan datos!
A133: 10733 | B133: Economica | C133: EJE 3: POLÍTICA FISCAL | D133: AGE.12.3 | E133: Monto ejecutado en programas presupuestales vinculados a servicios universales en salud y educación.(soles, Devengado Anual | F133: Saneamiento Urbano | G133: Amazonas | H133: 2018 | I133: 10118517 | J133: Soles | K133: Ministerio de Economía y Finanzas (MEF)- Seguimiento de la Ejecución Presupuestal (Consulta amigable) | L133: Portal de Transparencia Económica | M133: http://apps5.mineco.gob.pe/transparencia/Navegador/default.aspx | P133: =IFERROR(IF(VLOOKUP(CONCATENATE(E133,F133,G133),ListaIndicadores!$AG$7:$AJ$1887,3,FALSE)="","",VLOOKUP(CONCATENATE(E133,F133,G133),ListaIndicadores!$AG$7:$AJ$1887,3,FALSE)),"") -> -8225753 | Q133: =VLOOKUP(CONCATENATE(E133,F133,G133),ListaIndicadores!$AG$7:$AJ$1887,4,FALSE) -> ¡Faltan datos!
A134: 10866 | B134: Economica | C134: EJE 3: POLÍTICA FISCAL | D134: AGE.13.1 | E134: Monto ejecutado en proyectos de inversión. (Devengado) | F134: Gobierno Locales | G134: Amazonas | H134: 2014 | I134: 251627238 | J134: Soles | K134: Ministerio de Economía y Finanzas (MEF)- Seguimiento de la Ejecución Presupuestal (Consulta amigable) | L134: Portal de Transparencia Económica | M134: http://apps5.mineco.gob.pe/transparencia/Navegador/default.aspx | P134: =IFERROR(IF(VLOOKUP(CONCATENATE(E134,F134,G134),ListaIndicadores!$AG$7:$AJ$1887,3,FALSE)="","",VLOOKUP(CONCATENATE(E134,F134,G134),ListaIndicadores!$AG$7:$AJ$1887,3,FALSE)),"") -> 225857008 | Q134: =VLOOKUP(CONCATENATE(E134,F134,G134),ListaIndicadores!$AG$7:$AJ$1887,4,FALSE) -> ¡Faltan datos!
A135: 10867 | B135: Economica | C135: EJE 3: POLÍTICA FISCAL | D135: AGE.13.1 | E135: Monto ejecutado en proyectos de inversión. (Devengado) | F135: Gobierno Locales | G135: Amazonas | H135: 2015 | I135: 227868128 | J135: Soles | K135: Ministerio de Economía y Finanzas (MEF)- Seguimiento de la Ejecución Presupuestal (Consulta amigable) | L135: Portal de Transparencia Económica | M135: http://apps5.mineco.gob.pe/transparencia/Navegador/default.aspx | P135: =IFERROR(IF(VLOOKUP(CONCATENATE(E135,F135,G135),ListaIndicadores!$AG$7:$AJ$1887,3,FALSE)="","",VLOOKUP(CONCATENATE(E135,F135,G135),ListaIndicadores!$AG$7:$AJ$1887,3,FALSE)),"") -> 225857008 | Q135: =VLOOKUP(CONCATENATE(E135,F135,G135),ListaIndicadores!$AG$7:$AJ$1887,4,FALSE) -> ¡Faltan datos!
A136: 10868 | B136: Economica | C136: EJE 3: POLÍTICA FISCAL | D136: AGE.13.1 | E136: Monto ejecutado en proyectos de inversión. (Devengado) | F136: Gobierno Locales | G136: Amazonas | H136: 2016 | I136: 219345142 | J136: Soles | K136: Ministerio de Economía y Finanzas (MEF)- Seguimiento de la Ejecución Presupuestal (Consulta amigable) | L136: Portal de Transparencia Económica | M136: http://apps5.mineco.gob.pe/transparencia/Navegador/default.aspx | P136: =IFERROR(IF(VLOOKUP(CONCATENATE(E136,F136,G136),ListaIndicadores!$AG$7:$AJ$1887,3,FALSE)="","",VLOOKUP(CONCATENATE(E136,F136,G136),ListaIndicadores!$AG$7:$AJ$1887,3,FALSE)),"") -> 225857008 | Q136: =VLOOKUP(CONCATENATE(E136,F136,G136),ListaIndicadores!$AG$7:$AJ$1887,4,FALSE) -> ¡Faltan datos!
A137: 10869 | B137: Economica | C137: EJE 3: POLÍTICA FISCAL | D137: AGE.13.1 | E137: Monto ejecutado en proyectos de inversión. (Devengado) | F137: Gobierno Locales | G137: Amazonas | H137: 2017 | I137: 245531756 | J137: Soles | K137: Ministerio de Economía y Finanzas (MEF)- Seguimiento de la Ejecución Presupuestal (Consulta amigable) | L137: Portal de Transparencia Económica | M137: http://apps5.mineco.gob.pe/transparencia/Navegador/default.aspx | P137: =IFERROR(IF(VLOOKUP(CONCATENATE(E137,F137,G137),ListaIndicadores!$AG$7:$AJ$1887,3,FALSE)="","",VLOOKUP(CONCATENATE(E137,F137,G137),ListaIndicadores!$AG$7:$AJ$1887,3,FALSE)),"") -> 225857008 | Q137: =VLOOKUP(CONCATENATE(E137,F137,G137),ListaIndicadores!$AG$7:$AJ$1887,4,FALSE) -> ¡Faltan datos!
A138: 10870 | B138: Economica | C138: EJE 3: POLÍTICA FISCAL | D138: AGE.13.1 | E138: Monto ejecutado en proyectos de inversión. (Devengado) | F138: Gobierno Locales | G138: Amazonas | H138: 2018 | I138: 308638136 | J138: Soles | K138: Ministerio de Economía y Finanzas (MEF)- Seguimiento de la Ejecución Presupuestal (Consulta amigable) | L138: Portal de Transparencia Económica | M138: http://apps5.mineco.gob.pe/transparencia/Navegador/default.aspx | P138: =IFERROR(IF(VLOOKUP(CONCATENATE(E138,F138,G138),ListaIndicadores!$AG$7:$AJ$1887,3,FALSE)="","",VLOOKUP(CONCATENATE(E138,F138,G138),ListaIndicadores!$AG$7:$AJ$1887,3,FALSE)),"") -> 225857008 | Q138: =VLOOKUP(CONCATENATE(E138,F138,G138),ListaIndicadores!$AG$7:$AJ$1887,4,FALSE) -> ¡Faltan datos!
A139: 10991 | B139: Economica | C139: EJE 3: POLÍTICA FISCAL | D139: AGE.13.1 | E139: Monto ejecutado en proyectos de inversión. (Devengado) | F139: Gobierno Nacional | G139: Amazonas | H139: 2014 | I139: 301319384 | J139: Soles | K139: Ministerio de Economía y Finanzas (MEF)- Seguimiento de la Ejecución Presupuestal (Consulta amigable) | L139: Portal de Transparencia Económica | M139: http://apps5.mineco.gob.pe/transparencia/Navegador/default.aspx | P139: =IFERROR(IF(VLOOKUP(CONCATENATE(E139,F139,G139),ListaIndicadores!$AG$7:$AJ$1887,3,FALSE)="","",VLOOKUP(CONCATENATE(E139,F139,G139),ListaIndicadores!$AG$7:$AJ$1887,3,FALSE)),"") -> 274885396 | Q139: =VLOOKUP(CONCATENATE(E139,F139,G139),ListaIndicadores!$AG$7:$AJ$1887,4,FALSE) -> ¡Faltan datos!
A140: 10992 | B140: Economica | C140: EJE 3: POLÍTICA FISCAL | D140: AGE.13.1 | E140: Monto ejecutado en proyectos de inversión. (Devengado) | F140: Gobierno Nacional | G140: Amazonas | H140: 2015 | I140: 341393096 | J140: Soles | K140: Ministerio de Economía y Finanzas (MEF)- Seguimiento de la Ejecución Presupuestal (Consulta amigable) | L140: Portal de Transparencia Económica | M140: http://apps5.mineco.gob.pe/transparencia/Navegador/default.aspx | P140: =IFERROR(IF(VLOOKUP(CONCATENATE(E140,F140,G140),ListaIndicadores!$AG$7:$AJ$1887,3,FALSE)="","",VLOOKUP(CONCATENATE(E140,F140,G140),ListaIndicadores!$AG$7:$AJ$1887,3,FALSE)),"") -> 274885396 | Q140: =VLOOKUP(CONCATENATE(E140,F140,G140),ListaIndicadores!$AG$7:$AJ$1887,4,FALSE) -> ¡Faltan datos!
A141: 10993 | B141: Economica | C141: EJE 3: POLÍTICA FISCAL | D141: AGE.13.1 | E141: Monto ejecutado en proyectos de inversión. (Devengado) | F141: Gobierno Nacional | G141: Amazonas | H141: 2016 | I141: 285503259 | J141: Soles | K141: Ministerio de Economía y Finanzas (MEF)- Seguimiento de la Ejecución Presupuestal (Consulta amigable) | L141: Portal de Transparencia Económica | M141: http://apps5.mineco.gob.pe/transparencia/Navegador/default.aspx | P141: =IFERROR(IF(VLOOKUP(CONCATENATE(E141,F141,G141),ListaIndicadores!$AG$7:$AJ$1887,3,FALSE)="","",VLOOKUP(CONCATENATE(E141,F141,G141),ListaIndicadores!$AG$7:$AJ$1887,3,FALSE)),"") -> 274885396 | Q141: =VLOOKUP(CONCATENATE(E141,F141,G141),ListaIndicadores!$AG$7:$AJ$1887,4,FALSE) -> ¡Faltan datos!
A142: 10994 | B142: Economica | C142: EJE 3: POLÍTICA FISCAL | D142: AGE.13.1 | E142: Monto ejecutado en proyectos de inversión. (Devengado) | F142: Gobierno Nacional | G142: Amazonas | H142: 2017 | I142: 336977446 | J142: Soles | K142: Ministerio de Economía y Finanzas (MEF)- Seguimiento de la Ejecución Presupuestal (Consulta amigable) | L142: Portal de Transparencia Económica | M142: http://apps5.mineco.gob.pe/transparencia/Navegador/default.aspx | P142: =IFERROR(IF(VLOOKUP(CONCATENATE(E142,F142,G142),ListaIndicadores!$AG$7:$AJ$1887,3,FALSE)="","",VLOOKUP(CONCATENATE(E142,F142,G142),ListaIndicadores!$AG$7:$AJ$1887,3,FALSE)),"") -> 274885396 | Q142: =VLOOKUP(CONCATENATE(E142,F142,G142),ListaIndicadores!$AG$7:$AJ$1887,4,FALSE) -> ¡Faltan datos!
A143: 10995 | B143: Economica | C143: EJE 3: POLÍTICA FISCAL | D143: AGE.13.1 | E143: Monto ejecutado en proyectos de inversión. (Devengado) | F143: Gobierno Nacional | G143: Amazonas | H143: 2018 | I143: 362822711 | J143: Soles | K143: Ministerio de Economía y Finanzas (MEF)- Seguimiento de la Ejecución Presupuestal (Consulta amigable) | L143: Portal de Transparencia Económica | M143: http://apps5.mineco.gob.pe/transparencia/Navegador/default.aspx | P143: =IFERROR(IF(VLOOKUP(CONCATENATE(E143,F143,G143),ListaIndicadores!$AG$7:$AJ$1887,3,FALSE)="","",VLOOKUP(CONCATENATE(E143,F143,G143),ListaIndicadores!$AG$7:$AJ$1887,3,FALSE)),"") -> 274885396 | Q143: =VLOOKUP(CONCATENATE(E143,F143,G143),ListaIndicadores!$AG$7:$AJ$1887,4,FALSE) -> ¡Faltan datos!
A144: 11116 | B144: Economica | C144: EJE 3: POLÍTICA FISCAL | D144: AGE.13.1 | E144: Monto ejecutado en proyectos de inversión. (Devengado) | F144: Gobierno Regional | G144: Amazonas | H144: 2014 | I144: 259592652 | J144: Soles | K144: Ministerio de Economía y Finanzas (MEF)- Seguimiento de la Ejecución Presupuestal (Consulta amigable) | L144: Portal de Transparencia Económica | M144: http://apps5.mineco.gob.pe/transparencia/Navegador/default.aspx | P144: =IFERROR(IF(VLOOKUP(CONCATENATE(E144,F144,G144),ListaIndicadores!$AG$7:$AJ$1887,3,FALSE)="","",VLOOKUP(CONCATENATE(E144,F144,G144),ListaIndicadores!$AG$7:$AJ$1887,3,FALSE)),"") -> 297983964 | Q144: =VLOOKUP(CONCATENATE(E144,F144,G144),ListaIndicadores!$AG$7:$AJ$1887,4,FALSE) -> ¡Faltan datos!
A145: 11117 | B145: Economica | C145: EJE 3: POLÍTICA FISCAL | D145: AGE.13.1 | E145: Monto ejecutado en proyectos de inversión. (Devengado) | F145: Gobierno Regional | G145: Amazonas | H145: 2015 | I145: 166347025 | J145: Soles | K145: Ministerio de Economía y Finanzas (MEF)- Seguimiento de la Ejecución Presupuestal (Consulta amigable) | L145: Portal de Transparencia Económica | M145: http://apps5.mineco.gob.pe/transparencia/Navegador/default.aspx | P145: =IFERROR(IF(VLOOKUP(CONCATENATE(E145,F145,G145),ListaIndicadores!$AG$7:$AJ$1887,3,FALSE)="","",VLOOKUP(CONCATENATE(E145,F145,G145),ListaIndicadores!$AG$7:$AJ$1887,3,FALSE)),"") -> 297983964 | Q145: =VLOOKUP(CONCATENATE(E145,F145,G145),ListaIndicadores!$AG$7:$AJ$1887,4,FALSE) -> ¡Faltan datos!
A146: 11118 | B146: Economica | C146: EJE 3: POLÍTICA FISCAL | D146: AGE.13.1 | E146: Monto ejecutado en proyectos de inversión. (Devengado) | F146: Gobierno Regional | G146: Amazonas | H146: 2016 | I146: 173227726 | J146: Soles | K146: Ministerio de Economía y Finanzas (MEF)- Seguimiento de la Ejecución Presupuestal (Consulta amigable) | L146: Portal de Transparencia Económica | M146: http://apps5.mineco.gob.pe/transparencia/Navegador/default.aspx | P146: =IFERROR(IF(VLOOKUP(CONCATENATE(E146,F146,G146),ListaIndicadores!$AG$7:$AJ$1887,3,FALSE)="","",VLOOKUP(CONCATENATE(E146,F146,G146),ListaIndicadores!$AG$7:$AJ$1887,3,FALSE)),"") -> 297983964 | Q146: =VLOOKUP(CONCATENATE(E146,F146,G146),ListaIndicadores!$AG$7:$AJ$1887,4,FALSE) -> ¡Faltan datos!
A147: 11119 | B147: Economica | C147: EJE 3: POLÍTICA FISCAL | D147: AGE.13.1 | E147: Monto ejecutado en proyectos de inversión. (Devengado) | F147: Gobierno Regional | G147: Amazonas | H147: 2017 | I147: 237212964 | J147: Soles | K147: Ministerio de Economía y Finanzas (MEF)- Seguimiento de la Ejecución Presupuestal (Consulta amigable) | L147: Portal de Transparencia Económica | M147: http://apps5.mineco.gob.pe/transparencia/Navegador/default.aspx | P147: =IFERROR(IF(VLOOKUP(CONCATENATE(E147,F147,G147),ListaIndicadores!$AG$7:$AJ$1887,3,FALSE)="","",VLOOKUP(CONCATENATE(E147,F147,G147),ListaIndicadores!$AG$7:$AJ$1887,3,FALSE)),"") -> 297983964 | Q147: =VLOOKUP(CONCATENATE(E147,F147,G147),ListaIndicadores!$AG$7:$AJ$1887,4,FALSE) -> ¡Faltan datos!
A148: 11120 | B148: Economica | C148: EJE 3: POLÍTICA FISCAL | D148: AGE.13.1 | E148: Monto ejecutado en proyectos de inversión. (Devengado) | F148: Gobierno Regional | G148: Amazonas | H148: 2018 | I148: 268910030 | J148: Soles | K148: Ministerio de Economía y Finanzas (MEF)- Seguimiento de la Ejecución Presupuestal (Consulta amigable) | L148: Portal de Transparencia Económica | M148: http://apps5.mineco.gob.pe/transparencia/Navegador/default.aspx | P148: =IFERROR(IF(VLOOKUP(CONCATENATE(E148,F148,G148),ListaIndicadores!$AG$7:$AJ$1887,3,FALSE)="","",VLOOKUP(CONCATENATE(E148,F148,G148),ListaIndicadores!$AG$7:$AJ$1887,3,FALSE)),"") -> 297983964 | Q148: =VLOOKUP(CONCATENATE(E148,F148,G148),ListaIndicadores!$AG$7:$AJ$1887,4,FALSE) -> ¡Faltan datos!
A149: 11241 | B149: Economica | C149: EJE 3: POLÍTICA FISCAL | D149: AGE.13.1 | E149: Monto ejecutado en proyectos de inversión. (Devengado) | F149: Total Nacional | G149: Amazonas | H149: 2014 | I149: 812539274 | J149: Soles | K149: Ministerio de Economía y Finanzas (MEF)- Seguimiento de la Ejecución Presupuestal (Consulta amigable) | L149: Portal de Transparencia Económica | M149: http://apps5.mineco.gob.pe/transparencia/Navegador/default.aspx | P149: =IFERROR(IF(VLOOKUP(CONCATENATE(E149,F149,G149),ListaIndicadores!$AG$7:$AJ$1887,3,FALSE)="","",VLOOKUP(CONCATENATE(E149,F149,G149),ListaIndicadores!$AG$7:$AJ$1887,3,FALSE)),"") -> 1166271386 | Q149: =VLOOKUP(CONCATENATE(E149,F149,G149),ListaIndicadores!$AG$7:$AJ$1887,4,FALSE) -> ¡Faltan datos!
A150: 11242 | B150: Economica | C150: EJE 3: POLÍTICA FISCAL | D150: AGE.13.1 | E150: Monto ejecutado en proyectos de inversión. (Devengado) | F150: Total Nacional | G150: Amazonas | H150: 2015 | I150: 518210 | J150: Soles | K150: Ministerio de Economía y Finanzas (MEF)- Seguimiento de la Ejecución Presupuestal (Consulta amigable) | L150: Portal de Transparencia Económica | M150: http://apps5.mineco.gob.pe/transparencia/Navegador/default.aspx | P150: =IFERROR(IF(VLOOKUP(CONCATENATE(E150,F150,G150),ListaIndicadores!$AG$7:$AJ$1887,3,FALSE)="","",VLOOKUP(CONCATENATE(E150,F150,G150),ListaIndicadores!$AG$7:$AJ$1887,3,FALSE)),"") -> 1166271386 | Q150: =VLOOKUP(CONCATENATE(E150,F150,G150),ListaIndicadores!$AG$7:$AJ$1887,4,FALSE) -> ¡Faltan datos!
A151: 11243 | B151: Economica | C151: EJE 3: POLÍTICA FISCAL | D151: AGE.13.1 | E151: Monto ejecutado en proyectos de inversión. (Devengado) | F151: Total Nacional | G151: Amazonas | H151: 2016 | I151: 678076128 | J151: Soles | K151: Ministerio de Economía y Finanzas (MEF)- Seguimiento de la Ejecución Presupuestal (Consulta amigable) | L151: Portal de Transparencia Económica | M151: http://apps5.mineco.gob.pe/transparencia/Navegador/default.aspx | P151: =IFERROR(IF(VLOOKUP(CONCATENATE(E151,F151,G151),ListaIndicadores!$AG$7:$AJ$1887,3,FALSE)="","",VLOOKUP(CONCATENATE(E151,F151,G151),ListaIndicadores!$AG$7:$AJ$1887,3,FALSE)),"") -> 1166271386 | Q151: =VLOOKUP(CONCATENATE(E151,F151,G151),ListaIndicadores!$AG$7:$AJ$1887,4,FALSE) -> ¡Faltan datos!
A152: 11244 | B152: Economica | C152: EJE 3: POLÍTICA FISCAL | D152: AGE.13.1 | E152: Monto ejecutado en proyectos de inversión. (Devengado) | F152: Total Nacional | G152: Amazonas | H152: 2017 | I152: 819722166 | J152: Soles | K152: Ministerio de Economía y Finanzas (MEF)- Seguimiento de la Ejecución Presupuestal (Consulta amigable) | L152: Portal de Transparencia Económica | M152: http://apps5.mineco.gob.pe/transparencia/Navegador/default.aspx | P152: =IFERROR(IF(VLOOKUP(CONCATENATE(E152,F152,G152),ListaIndicadores!$AG$7:$AJ$1887,3,FALSE)="","",VLOOKUP(CONCATENATE(E152,F152,G152),ListaIndicadores!$AG$7:$AJ$1887,3,FALSE)),"") -> 1166271386 | Q152: =VLOOKUP(CONCATENATE(E152,F152,G152),ListaIndicadores!$AG$7:$AJ$1887,4,FALSE) -> ¡Faltan datos!
A153: 11245 | B153: Economica | C153: EJE 3: POLÍTICA FISCAL | D153: AGE.13.1 | E153: Monto ejecutado en proyectos de inversión. (Devengado) | F153: Total Nacional | G153: Amazonas | H153: 2018 | I153: 940370876 | J153: Soles | K153: Ministerio de Economía y Finanzas (MEF)- Seguimiento de la Ejecución Presupuestal (Consulta amigable) | L153: Portal de Transparencia Económica | M153: http://apps5.mineco.gob.pe/transparencia/Navegador/default.aspx | P153: =IFERROR(IF(VLOOKUP(CONCATENATE(E153,F153,G153),ListaIndicadores!$AG$7:$AJ$1887,3,FALSE)="","",VLOOKUP(CONCATENATE(E153,F153,G153),ListaIndicadores!$AG$7:$AJ$1887,3,FALSE)),"") -> 1166271386 | Q153: =VLOOKUP(CONCATENATE(E153,F153,G153),ListaIndicadores!$AG$7:$AJ$1887,4,FALSE) -> ¡Faltan datos!
A154: 11370 | B154: Economica | C154: EJE 3: POLÍTICA FISCAL | D154: AGE.14.1 | E154: Gasto Público Corriente no financiero ni previsional Total y Per capita | F154: G. Corriente sin Prev. ni Deuda | G154: Amazonas | H154: 2014 | I154: 877180781 | J154: Soles | K154: Ministerio de Economía y Finanzas (MEF)- Seguimiento de la Ejecución Presupuestal (Consulta amigable) | L154: Portal de Transparencia Económica | M154: http://apps5.mineco.gob.pe/transparencia/Navegador/default.aspx | P154: =IFERROR(IF(VLOOKUP(CONCATENATE(E154,F154,G154),ListaIndicadores!$AG$7:$AJ$1887,3,FALSE)="","",VLOOKUP(CONCATENATE(E154,F154,G154),ListaIndicadores!$AG$7:$AJ$1887,3,FALSE)),"") -> 2566894527 | Q154: =VLOOKUP(CONCATENATE(E154,F154,G154),ListaIndicadores!$AG$7:$AJ$1887,4,FALSE) -> ¡Faltan datos!
A155: 11371 | B155: Economica | C155: EJE 3: POLÍTICA FISCAL | D155: AGE.14.1 | E155: Gasto Público Corriente no financiero ni previsional Total y Per capita | F155: G. Corriente sin Prev. ni Deuda | G155: Amazonas | H155: 2015 | I155: 1195891167 | J155: Soles | K155: Ministerio de Economía y Finanzas (MEF)- Seguimiento de la Ejecución Presupuestal (Consulta amigable) | L155: Portal de Transparencia Económica | M155: http://apps5.mineco.gob.pe/transparencia/Navegador/default.aspx | P155: =IFERROR(IF(VLOOKUP(CONCATENATE(E155,F155,G155),ListaIndicadores!$AG$7:$AJ$1887,3,FALSE)="","",VLOOKUP(CONCATENATE(E155,F155,G155),ListaIndicadores!$AG$7:$AJ$1887,3,FALSE)),"") -> 2566894527 | Q155: =VLOOKUP(CONCATENATE(E155,F155,G155),ListaIndicadores!$AG$7:$AJ$1887,4,FALSE) -> ¡Faltan datos!
A156: 11372 | B156: Economica | C156: EJE 3: POLÍTICA FISCAL | D156: AGE.14.1 | E156: Gasto Público Corriente no financiero ni previsional Total y Per capita | F156: G. Corriente sin Prev. ni Deuda | G156: Amazonas | H156: 2016 | I156: 1058471253 | J156: Soles | K156: Ministerio de Economía y Finanzas (MEF)- Seguimiento de la Ejecución Presupuestal (Consulta amigable) | L156: Portal de Transparencia Económica | M156: http://apps5.mineco.gob.pe/transparencia/Navegador/default.aspx | P156: =IFERROR(IF(VLOOKUP(CONCATENATE(E156,F156,G156),ListaIndicadores!$AG$7:$AJ$1887,3,FALSE)="","",VLOOKUP(CONCATENATE(E156,F156,G156),ListaIndicadores!$AG$7:$AJ$1887,3,FALSE)),"") -> 2566894527 | Q156: =VLOOKUP(CONCATENATE(E156,F156,G156),ListaIndicadores!$AG$7:$AJ$1887,4,FALSE) -> ¡Faltan datos!
A157: 11373 | B157: Economica | C157: EJE 3: POLÍTICA FISCAL | D157: AGE.14.1 | E157: Gasto Público Corriente no financiero ni previsional Total y Per capita | F157: G. Corriente sin Prev. ni Deuda | G157: Amazonas | H157: 2017 | I157: 1572881906 | J157: Soles | K157: Ministerio de Economía y Finanzas (MEF)- Seguimiento de la Ejecución Presupuestal (Consulta amigable) | L157: Portal de Transparencia Económica | M157: http://apps5.mineco.gob.pe/transparencia/Navegador/default.aspx | P157: =IFERROR(IF(VLOOKUP(CONCATENATE(E157,F157,G157),ListaIndicadores!$AG$7:$AJ$1887,3,FALSE)="","",VLOOKUP(CONCATENATE(E157,F157,G157),ListaIndicadores!$AG$7:$AJ$1887,3,FALSE)),"") -> 2566894527 | Q157: =VLOOKUP(CONCATENATE(E157,F157,G157),ListaIndicadores!$AG$7:$AJ$1887,4,FALSE) -> ¡Faltan datos!
A158: 11374 | B158: Economica | C158: EJE 3: POLÍTICA FISCAL | D158: AGE.14.1 | E158: Gasto Público Corriente no financiero ni previsional Total y Per capita | F158: G. Corriente sin Prev. ni Deuda | G158: Amazonas | H158: 2018 | I158: 1811704995 | J158: Soles | K158: Ministerio de Economía y Finanzas (MEF)- Seguimiento de la Ejecución Presupuestal (Consulta amigable) | L158: Portal de Transparencia Económica | M158: http://apps5.mineco.gob.pe/transparencia/Navegador/default.aspx | P158: =IFERROR(IF(VLOOKUP(CONCATENATE(E158,F158,G158),ListaIndicadores!$AG$7:$AJ$1887,3,FALSE)="","",VLOOKUP(CONCATENATE(E158,F158,G158),ListaIndicadores!$AG$7:$AJ$1887,3,FALSE)),"") -> 2566894527 | Q158: =VLOOKUP(CONCATENATE(E158,F158,G158),ListaIndicadores!$AG$7:$AJ$1887,4,FALSE) -> ¡Faltan datos!
A159: 11513 | B159: Economica | C159: EJE 3: POLÍTICA FISCAL | D159: AGE.14.1 | E159: Gasto Público Corriente no financiero ni previsional Total y Per capita | F159: Pago de Deuda | G159: Amazonas | H159: 2014 | I159: 4835503 | J159: Soles | K159: Ministerio de Economía y Finanzas (MEF)- Seguimiento de la Ejecución Presupuestal (Consulta amigable) | L159: Portal de Transparencia Económica | M159: http://apps5.mineco.gob.pe/transparencia/Navegador/default.aspx | P159: =IFERROR(IF(VLOOKUP(CONCATENATE(E159,F159,G159),ListaIndicadores!$AG$7:$AJ$1887,3,FALSE)="","",VLOOKUP(CONCATENATE(E159,F159,G159),ListaIndicadores!$AG$7:$AJ$1887,3,FALSE)),"") -> -182298 | Q159: =VLOOKUP(CONCATENATE(E159,F159,G159),ListaIndicadores!$AG$7:$AJ$1887,4,FALSE) -> ¡Faltan datos!
A160: 11514 | B160: Economica | C160: EJE 3: POLÍTICA FISCAL | D160: AGE.14.1 | E160: Gasto Público Corriente no financiero ni previsional Total y Per capita | F160: Pago de Deuda | G160: Amazonas | H160: 2015 | I160: 622611 | J160: Soles | K160: Ministerio de Economía y Finanzas (MEF)- Seguimiento de la Ejecución Presupuestal (Consulta amigable) | L160: Portal de Transparencia Económica | M160: http://apps5.mineco.gob.pe/transparencia/Navegador/default.aspx | P160: =IFERROR(IF(VLOOKUP(CONCATENATE(E160,F160,G160),ListaIndicadores!$AG$7:$AJ$1887,3,FALSE)="","",VLOOKUP(CONCATENATE(E160,F160,G160),ListaIndicadores!$AG$7:$AJ$1887,3,FALSE)),"") -> -182298 | Q160: =VLOOKUP(CONCATENATE(E160,F160,G160),ListaIndicadores!$AG$7:$AJ$1887,4,FALSE) -> ¡Faltan datos!
A161: 11515 | B161: Economica | C161: EJE 3: POLÍTICA FISCAL | D161: AGE.14.1 | E161: Gasto Público Corriente no financiero ni previsional Total y Per capita | F161: Pago de Deuda | G161: Amazonas | H161: 2016 | I161: 4952078 | J161: Soles | K161: Ministerio de Economía y Finanzas (MEF)- Seguimiento de la Ejecución Presupuestal (Consulta amigable) | L161: Portal de Transparencia Económica | M161: http://apps5.mineco.gob.pe/transparencia/Navegador/default.aspx | P161: =IFERROR(IF(VLOOKUP(CONCATENATE(E161,F161,G161),ListaIndicadores!$AG$7:$AJ$1887,3,FALSE)="","",VLOOKUP(CONCATENATE(E161,F161,G161),ListaIndicadores!$AG$7:$AJ$1887,3,FALSE)),"") -> -182298 | Q161: =VLOOKUP(CONCATENATE(E161,F161,G161),ListaIndicadores!$AG$7:$AJ$1887,4,FALSE) -> ¡Faltan datos!
A162: 11516 | B162: Economica | C162: EJE 3: POLÍTICA FISCAL | D162: AGE.14.1 | E162: Gasto Público Corriente no financiero ni previsional Total y Per capita | F162: Pago de Deuda | G162: Amazonas | H162: 2017 | I162: 6301680 | J162: Soles | K162: Ministerio de Economía y Finanzas (MEF)- Seguimiento de la Ejecución Presupuestal (Consulta amigable) | L162: Portal de Transparencia Económica | M162: http://apps5.mineco.gob.pe/transparencia/Navegador/default.aspx | P162: =IFERROR(IF(VLOOKUP(CONCATENATE(E162,F162,G162),ListaIndicadores!$AG$7:$AJ$1887,3,FALSE)="","",VLOOKUP(CONCATENATE(E162,F162,G162),ListaIndicadores!$AG$7:$AJ$1887,3,FALSE)),"") -> -182298 | Q162: =VLOOKUP(CONCATENATE(E162,F162,G162),ListaIndicadores!$AG$7:$AJ$1887,4,FALSE) -> ¡Faltan datos!
A163: 11517 | B163: Economica | C163: EJE 3: POLÍTICA FISCAL | D163: AGE.14.1 | E163: Gasto Público Corriente no financiero ni previsional Total y Per capita | F163: Pago de Deuda | G163: Amazonas | H163: 2018 | I163: 4273670 | J163: Soles | K163: Ministerio de Economía y Finanzas (MEF)- Seguimiento de la Ejecución Presupuestal (Consulta amigable) | L163: Portal de Transparencia Económica | M163: http://apps5.mineco.gob.pe/transparencia/Navegador/default.aspx | P163: =IFERROR(IF(VLOOKUP(CONCATENATE(E163,F163,G163),ListaIndicadores!$AG$7:$AJ$1887,3,FALSE)="","",VLOOKUP(CONCATENATE(E163,F163,G163),ListaIndicadores!$AG$7:$AJ$1887,3,FALSE)),"") -> -182298 | Q163: =VLOOKUP(CONCATENATE(E163,F163,G163),ListaIndicadores!$AG$7:$AJ$1887,4,FALSE) -> ¡Faltan datos!
A164: 11644 | B164: Economica | C164: EJE 3: POLÍTICA FISCAL | D164: AGE.14.1 | E164: Gasto Público Corriente no financiero ni previsional Total y Per capita | F164: Total Gasto Actividades | G164: Amazonas | H164: 2014 | I164: 910291580 | J164: Soles | K164: Ministerio de Economía y Finanzas (MEF)- Seguimiento de la Ejecución Presupuestal (Consulta amigable) | L164: Portal de Transparencia Económica | M164: http://apps5.mineco.gob.pe/transparencia/Navegador/default.aspx | P164: =IFERROR(IF(VLOOKUP(CONCATENATE(E164,F164,G164),ListaIndicadores!$AG$7:$AJ$1887,3,FALSE)="","",VLOOKUP(CONCATENATE(E164,F164,G164),ListaIndicadores!$AG$7:$AJ$1887,3,FALSE)),"") -> 2582357430 | Q164: =VLOOKUP(CONCATENATE(E164,F164,G164),ListaIndicadores!$AG$7:$AJ$1887,4,FALSE) -> ¡Faltan datos!
A165: 11645 | B165: Economica | C165: EJE 3: POLÍTICA FISCAL | D165: AGE.14.1 | E165: Gasto Público Corriente no financiero ni previsional Total y Per capita | F165: Total Gasto Actividades | G165: Amazonas | H165: 2015 | I165: 1224460890 | J165: Soles | K165: Ministerio de Economía y Finanzas (MEF)- Seguimiento de la Ejecución Presupuestal (Consulta amigable) | L165: Portal de Transparencia Económica | M165: http://apps5.mineco.gob.pe/transparencia/Navegador/default.aspx | P165: =IFERROR(IF(VLOOKUP(CONCATENATE(E165,F165,G165),ListaIndicadores!$AG$7:$AJ$1887,3,FALSE)="","",VLOOKUP(CONCATENATE(E165,F165,G165),ListaIndicadores!$AG$7:$AJ$1887,3,FALSE)),"") -> 2582357430 | Q165: =VLOOKUP(CONCATENATE(E165,F165,G165),ListaIndicadores!$AG$7:$AJ$1887,4,FALSE) -> ¡Faltan datos!
A166: 11646 | B166: Economica | C166: EJE 3: POLÍTICA FISCAL | D166: AGE.14.1 | E166: Gasto Público Corriente no financiero ni previsional Total y Per capita | F166: Total Gasto Actividades | G166: Amazonas | H166: 2016 | I166: 1092096288 | J166: Soles | K166: Ministerio de Economía y Finanzas (MEF)- Seguimiento de la Ejecución Presupuestal (Consulta amigable) | L166: Portal de Transparencia Económica | M166: http://apps5.mineco.gob.pe/transparencia/Navegador/default.aspx | P166: =IFERROR(IF(VLOOKUP(CONCATENATE(E166,F166,G166),ListaIndicadores!$AG$7:$AJ$1887,3,FALSE)="","",VLOOKUP(CONCATENATE(E166,F166,G166),ListaIndicadores!$AG$7:$AJ$1887,3,FALSE)),"") -> 2582357430 | Q166: =VLOOKUP(CONCATENATE(E166,F166,G166),ListaIndicadores!$AG$7:$AJ$1887,4,FALSE) -> ¡Faltan datos!
A167: 11647 | B167: Economica | C167: EJE 3: POLÍTICA FISCAL | D167: AGE.14.1 | E167: Gasto Público Corriente no financiero ni previsional Total y Per capita | F167: Total Gasto Actividades | G167: Amazonas | H167: 2017 | I167: 1606910835 | J167: Soles | K167: Ministerio de Economía y Finanzas (MEF)- Seguimiento de la Ejecución Presupuestal (Consulta amigable) | L167: Portal de Transparencia Económica | M167: http://apps5.mineco.gob.pe/transparencia/Navegador/default.aspx | P167: =IFERROR(IF(VLOOKUP(CONCATENATE(E167,F167,G167),ListaIndicadores!$AG$7:$AJ$1887,3,FALSE)="","",VLOOKUP(CONCATENATE(E167,F167,G167),ListaIndicadores!$AG$7:$AJ$1887,3,FALSE)),"") -> 2582357430 | Q167: =VLOOKUP(CONCATENATE(E167,F167,G167),ListaIndicadores!$AG$7:$AJ$1887,4,FALSE) -> ¡Faltan datos!
A168: 11648 | B168: Economica | C168: EJE 3: POLÍTICA FISCAL | D168: AGE.14.1 | E168: Gasto Público Corriente no financiero ni previsional Total y Per capita | F168: Total Gasto Actividades | G168: Amazonas | H168: 2018 | I168: 1848433479 | J168: Soles | K168: Ministerio de Economía y Finanzas (MEF)- Seguimiento de la Ejecución Presupuestal (Consulta amigable) | L168: Portal de Transparencia Económica | M168: http://apps5.mineco.gob.pe/transparencia/Navegador/default.aspx | P168: =IFERROR(IF(VLOOKUP(CONCATENATE(E168,F168,G168),ListaIndicadores!$AG$7:$AJ$1887,3,FALSE)="","",VLOOKUP(CONCATENATE(E168,F168,G168),ListaIndicadores!$AG$7:$AJ$1887,3,FALSE)),"") -> 2582357430 | Q168: =VLOOKUP(CONCATENATE(E168,F168,G168),ListaIndicadores!$AG$7:$AJ$1887,4,FALSE) -> ¡Faltan datos!
A169: 11775 | B169: Economica | C169: EJE 3: POLÍTICA FISCAL | D169: AGE.14.1 | E169: Gasto Público Corriente no financiero ni previsional Total y Per capita | F169: Total Previsional | G169: Amazonas | H169: 2014 | I169: 28275296 | J169: Soles | K169: Ministerio de Economía y Finanzas (MEF)- Seguimiento de la Ejecución Presupuestal (Consulta amigable) | L169: Portal de Transparencia Económica | M169: http://apps5.mineco.gob.pe/transparencia/Navegador/default.aspx | P169: =IFERROR(IF(VLOOKUP(CONCATENATE(E169,F169,G169),ListaIndicadores!$AG$7:$AJ$1887,3,FALSE)="","",VLOOKUP(CONCATENATE(E169,F169,G169),ListaIndicadores!$AG$7:$AJ$1887,3,FALSE)),"") -> 46200225 | Q169: =VLOOKUP(CONCATENATE(E169,F169,G169),ListaIndicadores!$AG$7:$AJ$1887,4,FALSE) -> ¡Faltan datos!
A170: 11776 | B170: Economica | C170: EJE 3: POLÍTICA FISCAL | D170: AGE.14.1 | E170: Gasto Público Corriente no financiero ni previsional Total y Per capita | F170: Total Previsional | G170: Amazonas | H170: 2015 | I170: 27947112 | J170: Soles | K170: Ministerio de Economía y Finanzas (MEF)- Seguimiento de la Ejecución Presupuestal (Consulta amigable) | L170: Portal de Transparencia Económica | M170: http://apps5.mineco.gob.pe/transparencia/Navegador/default.aspx | P170: =IFERROR(IF(VLOOKUP(CONCATENATE(E170,F170,G170),ListaIndicadores!$AG$7:$AJ$1887,3,FALSE)="","",VLOOKUP(CONCATENATE(E170,F170,G170),ListaIndicadores!$AG$7:$AJ$1887,3,FALSE)),"") -> 46200225 | Q170: =VLOOKUP(CONCATENATE(E170,F170,G170),ListaIndicadores!$AG$7:$AJ$1887,4,FALSE) -> ¡Faltan datos!
A171: 11777 | B171: Economica | C171: EJE 3: POLÍTICA FISCAL | D171: AGE.14.1 | E171: Gasto Público Corriente no financiero ni previsional Total y Per capita | F171: Total Previsional | G171: Amazonas | H171: 2016 | I171: 28672957 | J171: Soles | K171: Ministerio de Economía y Finanzas (MEF)- Seguimiento de la Ejecución Presupuestal (Consulta amigable) | L171: Portal de Transparencia Económica | M171: http://apps5.mineco.gob.pe/transparencia/Navegador/default.aspx | P171: =IFERROR(IF(VLOOKUP(CONCATENATE(E171,F171,G171),ListaIndicadores!$AG$7:$AJ$1887,3,FALSE)="","",VLOOKUP(CONCATENATE(E171,F171,G171),ListaIndicadores!$AG$7:$AJ$1887,3,FALSE)),"") -> 46200225 | Q171: =VLOOKUP(CONCATENATE(E171,F171,G171),ListaIndicadores!$AG$7:$AJ$1887,4,FALSE) -> ¡Faltan datos!
A172: 11778 | B172: Economica | C172: EJE 3: POLÍTICA FISCAL | D172: AGE.14.1 | E172: Gasto Público Corriente no financiero ni previsional Total y Per capita | F172: Total Previsional | G172: Amazonas | H172: 2017 | I172: 27727249 | J172: Soles | K172: Ministerio de Economía y Finanzas (MEF)- Seguimiento de la Ejecución Presupuestal (Consulta amigable) | L172: Portal de Transparencia Económica | M172: http://apps5.mineco.gob.pe/transparencia/Navegador/default.aspx | P172: =IFERROR(IF(VLOOKUP(CONCATENATE(E172,F172,G172),ListaIndicadores!$AG$7:$AJ$1887,3,FALSE)="","",VLOOKUP(CONCATENATE(E172,F172,G172),ListaIndicadores!$AG$7:$AJ$1887,3,FALSE)),"") -> 46200225 | Q172: =VLOOKUP(CONCATENATE(E172,F172,G172),ListaIndicadores!$AG$7:$AJ$1887,4,FALSE) -> ¡Faltan datos!
A173: 11779 | B173: Economica | C173: EJE 3: POLÍTICA FISCAL | D173: AGE.14.1 | E173: Gasto Público Corriente no financiero ni previsional Total y Per capita | F173: Total Previsional | G173: Amazonas | H173: 2018 | I173: 32454814 | J173: Soles | K173: Ministerio de Economía y Finanzas (MEF)- Seguimiento de la Ejecución Presupuestal (Consulta amigable) | L173: Portal de Transparencia Económica | M173: http://apps5.mineco.gob.pe/transparencia/Navegador/default.aspx | P173: =IFERROR(IF(VLOOKUP(CONCATENATE(E173,F173,G173),ListaIndicadores!$AG$7:$AJ$1887,3,FALSE)="","",VLOOKUP(CONCATENATE(E173,F173,G173),ListaIndicadores!$AG$7:$AJ$1887,3,FALSE)),"") -> 46200225 | Q173: =VLOOKUP(CONCATENATE(E173,F173,G173),ListaIndicadores!$AG$7:$AJ$1887,4,FALSE) -> ¡Faltan datos!
A174: 12149 | B174: Economica | C174: EJE 4: EMPLEO E INGRESOS | D174: AGE.18.1 | E174: Tasa de Actividad de hombres y mujeres.En América Latina y El Caribe la tasa de actividad total es 61.7%; mujeres 49.1% y hombres 75.2% (Panorama Laboral 2015 OIT) | F174: Hombres | G174: Amazonas | H174: 2011 | I174: 89.2 | J174: Porcentaje | K174: Sistema de Información Regional para la Toma de Decisiones (SIRTOD) - Instituto Nacional de Estadística e Información (INEI) | L174: Encuesta Nacional de Hogares (ENAHO) - Instituto Nacional de Estadística e Informática (INEI) | M174: http://webinei.inei.gob.pe:8080/SIRTOD1/inicio.html#app=db26&d4a2-selectedIndex=0&d9ef-selectedIndex=1 | P174: =IFERROR(IF(VLOOKUP(CONCATENATE(E174,F174,G174),ListaIndicadores!$AG$7:$AJ$1887,3,FALSE)="","",VLOOKUP(CONCATENATE(E174,F174,G174),ListaIndicadores!$AG$7:$AJ$1887,3,FALSE)),"") -> 88 | Q174: =VLOOKUP(CONCATENATE(E174,F174,G174),ListaIndicadores!$AG$7:$AJ$1887,4,FALSE) -> ¡Faltan datos!
A175: 12150 | B175: Economica | C175: EJE 4: EMPLEO E INGRESOS | D175: AGE.18.1 | E175: Tasa de Actividad de hombres y mujeres.En América Latina y El Caribe la tasa de actividad total es 61.7%; mujeres 49.1% y hombres 75.2% (Panorama Laboral 2015 OIT) | F175: Hombres | G175: Amazonas | H175: 2012 | I175: 88.7 | J175: Porcentaje | K175: Sistema de Información Regional para la Toma de Decisiones (SIRTOD) - Instituto Nacional de Estadística e Información (INEI) | L175: Encuesta Nacional de Hogares (ENAHO) - Instituto Nacional de Estadística e Informática (INEI) | M175: http://webinei.inei.gob.pe:8080/SIRTOD1/inicio.html#app=db26&d4a2-selectedIndex=0&d9ef-selectedIndex=0 | P175: =IFERROR(IF(VLOOKUP(CONCATENATE(E175,F175,G175),ListaIndicadores!$AG$7:$AJ$1887,3,FALSE)="","",VLOOKUP(CONCATENATE(E175,F175,G175),ListaIndicadores!$AG$7:$AJ$1887,3,FALSE)),"") -> 88 | Q175: =VLOOKUP(CONCATENATE(E175,F175,G175),ListaIndicadores!$AG$7:$AJ$1887,4,FALSE) -> ¡Faltan datos!
A176: 12151 | B176: Economica | C176: EJE 4: EMPLEO E INGRESOS | D176: AGE.18.1 | E176: Tasa de Actividad de hombres y mujeres.En América Latina y El Caribe la tasa de actividad total es 61.7%; mujeres 49.1% y hombres 75.2% (Panorama Laboral 2015 OIT) | F176: Hombres | G176: Amazonas | H176: 2013 | I176: 87.9 | J176: Porcentaje | K176: Sistema de Información Regional para la Toma de Decisiones (SIRTOD) - Instituto Nacional de Estadística e Información (INEI) | L176: Encuesta Nacional de Hogares (ENAHO) - Instituto Nacional de Estadística e Informática (INEI) | M176: http://webinei.inei.gob.pe:8080/SIRTOD1/inicio.html#app=db26&d4a2-selectedIndex=0&d9ef-selectedIndex=0 | P176: =IFERROR(IF(VLOOKUP(CONCATENATE(E176,F176,G176),ListaIndicadores!$AG$7:$AJ$1887,3,FALSE)="","",VLOOKUP(CONCATENATE(E176,F176,G176),ListaIndicadores!$AG$7:$AJ$1887,3,FALSE)),"") -> 88 | Q176: =VLOOKUP(CONCATENATE(E176,F176,G176),ListaIndicadores!$AG$7:$AJ$1887,4,FALSE) -> ¡Faltan datos!
A177: 12152 | B177: Economica | C177: EJE 4: EMPLEO E INGRESOS | D177: AGE.18.1 | E177: Tasa de Actividad de hombres y mujeres.En América Latina y El Caribe la tasa de actividad total es 61.7%; mujeres 49.1% y hombres 75.2% (Panorama Laboral 2015 OIT) | F177: Hombres | G177: Amazonas | H177: 2014 | I177: 87 | J177: Porcentaje | K177: Sistema de Información Regional para la Toma de Decisiones (SIRTOD) - Instituto Nacional de Estadística e Información (INEI) | L177: Encuesta Nacional de Hogares (ENAHO) - Instituto Nacional de Estadística e Informática (INEI) | M177: http://webinei.inei.gob.pe:8080/SIRTOD1/inicio.html#app=db26&d4a2-selectedIndex=0&d9ef-selectedIndex=0 | P177: =IFERROR(IF(VLOOKUP(CONCATENATE(E177,F177,G177),ListaIndicadores!$AG$7:$AJ$1887,3,FALSE)="","",VLOOKUP(CONCATENATE(E177,F177,G177),ListaIndicadores!$AG$7:$AJ$1887,3,FALSE)),"") -> 88 | Q177: =VLOOKUP(CONCATENATE(E177,F177,G177),ListaIndicadores!$AG$7:$AJ$1887,4,FALSE) -> ¡Faltan datos!
A178: 12153 | B178: Economica | C178: EJE 4: EMPLEO E INGRESOS | D178: AGE.18.1 | E178: Tasa de Actividad de hombres y mujeres.En América Latina y El Caribe la tasa de actividad total es 61.7%; mujeres 49.1% y hombres 75.2% (Panorama Laboral 2015 OIT) | F178: Hombres | G178: Amazonas | H178: 2015 | I178: 85.5 | J178: Porcentaje | K178: Sistema de Información Regional para la Toma de Decisiones (SIRTOD) - Instituto Nacional de Estadística e Información (INEI) | L178: Encuesta Nacional de Hogares (ENAHO) - Instituto Nacional de Estadística e Informática (INEI) | M178: http://webinei.inei.gob.pe:8080/SIRTOD1/inicio.html#app=db26&d4a2-selectedIndex=0&d9ef-selectedIndex=0 | P178: =IFERROR(IF(VLOOKUP(CONCATENATE(E178,F178,G178),ListaIndicadores!$AG$7:$AJ$1887,3,FALSE)="","",VLOOKUP(CONCATENATE(E178,F178,G178),ListaIndicadores!$AG$7:$AJ$1887,3,FALSE)),"") -> 88 | Q178: =VLOOKUP(CONCATENATE(E178,F178,G178),ListaIndicadores!$AG$7:$AJ$1887,4,FALSE) -> ¡Faltan datos!
A179: 12154 | B179: Economica | C179: EJE 4: EMPLEO E INGRESOS | D179: AGE.18.1 | E179: Tasa de Actividad de hombres y mujeres.En América Latina y El Caribe la tasa de actividad total es 61.7%; mujeres 49.1% y hombres 75.2% (Panorama Laboral 2015 OIT) | F179: Hombres | G179: Amazonas | H179: 2016 | I179: 87.7 | J179: Porcentaje | K179: Sistema de Información Regional para la Toma de Decisiones (SIRTOD) - Instituto Nacional de Estadística e Información (INEI) | L179: Encuesta Nacional de Hogares (ENAHO) - Instituto Nacional de Estadística e Informática (INEI) | M179: http://webinei.inei.gob.pe:8080/SIRTOD1/inicio.html#app=db26&d4a2-selectedIndex=0&d9ef-selectedIndex=0 | P179: =IFERROR(IF(VLOOKUP(CONCATENATE(E179,F179,G179),ListaIndicadores!$AG$7:$AJ$1887,3,FALSE)="","",VLOOKUP(CONCATENATE(E179,F179,G179),ListaIndicadores!$AG$7:$AJ$1887,3,FALSE)),"") -> 88 | Q179: =VLOOKUP(CONCATENATE(E179,F179,G179),ListaIndicadores!$AG$7:$AJ$1887,4,FALSE) -> ¡Faltan datos!
A180: 12305 | B180: Economica | C180: EJE 4: EMPLEO E INGRESOS | D180: AGE.18.1 | E180: Tasa de Actividad de hombres y mujeres.En América Latina y El Caribe la tasa de actividad total es 61.7%; mujeres 49.1% y hombres 75.2% (Panorama Laboral 2015 OIT) | F180: Mujeres | G180: Amazonas | H180: 2011 | I180: 70.8 | J180: Porcentaje | K180: Sistema de Información Regional para la Toma de Decisiones (SIRTOD) - Instituto Nacional de Estadística e Información (INEI) | L180: Encuesta Nacional de Hogares (ENAHO) - Instituto Nacional de Estadística e Informática (INEI) | M180: http://webinei.inei.gob.pe:8080/SIRTOD1/inicio.html#app=db26&d4a2-selectedIndex=0&d9ef-selectedIndex=1 | P180: =IFERROR(IF(VLOOKUP(CONCATENATE(E180,F180,G180),ListaIndicadores!$AG$7:$AJ$1887,3,FALSE)="","",VLOOKUP(CONCATENATE(E180,F180,G180),ListaIndicadores!$AG$7:$AJ$1887,3,FALSE)),"") -> 78 | Q180: =VLOOKUP(CONCATENATE(E180,F180,G180),ListaIndicadores!$AG$7:$AJ$1887,4,FALSE) -> ¡Faltan datos!
A181: 12306 | B181: Economica | C181: EJE 4: EMPLEO E INGRESOS | D181: AGE.18.1 | E181: Tasa de Actividad de hombres y mujeres.En América Latina y El Caribe la tasa de actividad total es 61.7%; mujeres 49.1% y hombres 75.2% (Panorama Laboral 2015 OIT) | F181: Mujeres | G181: Amazonas | H181: 2012 | I181: 65.2 | J181: Porcentaje | K181: Sistema de Información Regional para la Toma de Decisiones (SIRTOD) - Instituto Nacional de Estadística e Información (INEI) | L181: Encuesta Nacional de Hogares (ENAHO) - Instituto Nacional de Estadística e Informática (INEI) | M181: http://webinei.inei.gob.pe:8080/SIRTOD1/inicio.html#app=db26&d4a2-selectedIndex=0&d9ef-selectedIndex=0 | P181: =IFERROR(IF(VLOOKUP(CONCATENATE(E181,F181,G181),ListaIndicadores!$AG$7:$AJ$1887,3,FALSE)="","",VLOOKUP(CONCATENATE(E181,F181,G181),ListaIndicadores!$AG$7:$AJ$1887,3,FALSE)),"") -> 78 | Q181: =VLOOKUP(CONCATENATE(E181,F181,G181),ListaIndicadores!$AG$7:$AJ$1887,4,FALSE) -> ¡Faltan datos!
A182: 12307 | B182: Economica | C182: EJE 4: EMPLEO E INGRESOS | D182: AGE.18.1 | E182: Tasa de Actividad de hombres y mujeres.En América Latina y El Caribe la tasa de actividad total es 61.7%; mujeres 49.1% y hombres 75.2% (Panorama Laboral 2015 OIT) | F182: Mujeres | G182: Amazonas | H182: 2013 | I182: 68.1 | J182: Porcentaje | K182: Sistema de Información Regional para la Toma de Decisiones (SIRTOD) - Instituto Nacional de Estadística e Información (INEI) | L182: Encuesta Nacional de Hogares (ENAHO) - Instituto Nacional de Estadística e Informática (INEI) | M182: http://webinei.inei.gob.pe:8080/SIRTOD1/inicio.html#app=db26&d4a2-selectedIndex=0&d9ef-selectedIndex=0 | P182: =IFERROR(IF(VLOOKUP(CONCATENATE(E182,F182,G182),ListaIndicadores!$AG$7:$AJ$1887,3,FALSE)="","",VLOOKUP(CONCATENATE(E182,F182,G182),ListaIndicadores!$AG$7:$AJ$1887,3,FALSE)),"") -> 78 | Q182: =VLOOKUP(CONCATENATE(E182,F182,G182),ListaIndicadores!$AG$7:$AJ$1887,4,FALSE) -> ¡Faltan datos!
A183: 12308 | B183: Economica | C183: EJE 4: EMPLEO E INGRESOS | D183: AGE.18.1 | E183: Tasa de Actividad de hombres y mujeres.En América Latina y El Caribe la tasa de actividad total es 61.7%; mujeres 49.1% y hombres 75.2% (Panorama Laboral 2015 OIT) | F183: Mujeres | G183: Amazonas | H183: 2014 | I183: 65.8 | J183: Porcentaje | K183: Sistema de Información Regional para la Toma de Decisiones (SIRTOD) - Instituto Nacional de Estadística e Información (INEI) | L183: Encuesta Nacional de Hogares (ENAHO) - Instituto Nacional de Estadística e Informática (INEI) | M183: http://webinei.inei.gob.pe:8080/SIRTOD1/inicio.html#app=db26&d4a2-selectedIndex=0&d9ef-selectedIndex=0 | P183: =IFERROR(IF(VLOOKUP(CONCATENATE(E183,F183,G183),ListaIndicadores!$AG$7:$AJ$1887,3,FALSE)="","",VLOOKUP(CONCATENATE(E183,F183,G183),ListaIndicadores!$AG$7:$AJ$1887,3,FALSE)),"") -> 78 | Q183: =VLOOKUP(CONCATENATE(E183,F183,G183),ListaIndicadores!$AG$7:$AJ$1887,4,FALSE) -> ¡Faltan datos!
A184: 12309 | B184: Economica | C184: EJE 4: EMPLEO E INGRESOS | D184: AGE.18.1 | E184: Tasa de Actividad de hombres y mujeres.En América Latina y El Caribe la tasa de actividad total es 61.7%; mujeres 49.1% y hombres 75.2% (Panorama Laboral 2015 OIT) | F184: Mujeres | G184: Amazonas | H184: 2015 | I184: 67.7 | J184: Porcentaje | K184: Sistema de Información Regional para la Toma de Decisiones (SIRTOD) - Instituto Nacional de Estadística e Información (INEI) | L184: Encuesta Nacional de Hogares (ENAHO) - Instituto Nacional de Estadística e Informática (INEI) | M184: http://webinei.inei.gob.pe:8080/SIRTOD1/inicio.html#app=db26&d4a2-selectedIndex=0&d9ef-selectedIndex=0 | P184: =IFERROR(IF(VLOOKUP(CONCATENATE(E184,F184,G184),ListaIndicadores!$AG$7:$AJ$1887,3,FALSE)="","",VLOOKUP(CONCATENATE(E184,F184,G184),ListaIndicadores!$AG$7:$AJ$1887,3,FALSE)),"") -> 78 | Q184: =VLOOKUP(CONCATENATE(E184,F184,G184),ListaIndicadores!$AG$7:$AJ$1887,4,FALSE) -> ¡Faltan datos!
A185: 12310 | B185: Economica | C185: EJE 4: EMPLEO E INGRESOS | D185: AGE.18.1 | E185: Tasa de Actividad de hombres y mujeres.En América Latina y El Caribe la tasa de actividad total es 61.7%; mujeres 49.1% y hombres 75.2% (Panorama Laboral 2015 OIT) | F185: Mujeres | G185: Amazonas | H185: 2016 | I185: 68.4 | J185: Porcentaje | K185: Sistema de Información Regional para la Toma de Decisiones (SIRTOD) - Instituto Nacional de Estadística e Información (INEI) | L185: Encuesta Nacional de Hogares (ENAHO) - Instituto Nacional de Estadística e Informática (INEI) | M185: http://webinei.inei.gob.pe:8080/SIRTOD1/inicio.html#app=db26&d4a2-selectedIndex=0&d9ef-selectedIndex=0 | P185: =IFERROR(IF(VLOOKUP(CONCATENATE(E185,F185,G185),ListaIndicadores!$AG$7:$AJ$1887,3,FALSE)="","",VLOOKUP(CONCATENATE(E185,F185,G185),ListaIndicadores!$AG$7:$AJ$1887,3,FALSE)),"") -> 78 | Q185: =VLOOKUP(CONCATENATE(E185,F185,G185),ListaIndicadores!$AG$7:$AJ$1887,4,FALSE) -> ¡Faltan datos!
A186: 12461 | B186: Economica | C186: EJE 4: EMPLEO E INGRESOS | D186: AGE.18.1 | E186: Tasa de Actividad de hombres y mujeres.En América Latina y El Caribe la tasa de actividad total es 61.7%; mujeres 49.1% y hombres 75.2% (Panorama Laboral 2015 OIT) | F186: Total | G186: Amazonas | H186: 2010 | I186: 80 | J186: Porcentaje | K186: Sistema de Información Regional para la Toma de Decisiones (SIRTOD) - Instituto Nacional de Estadística e Información (INEI) | L186: Encuesta Nacional de Hogares (ENAHO) - Instituto Nacional de Estadística e Informática (INEI) | M186: http://webinei.inei.gob.pe:8080/SIRTOD1/inicio.html#app=db26&d4a2-selectedIndex=0&d9ef-selectedIndex=0 | P186: =IFERROR(IF(VLOOKUP(CONCATENATE(E186,F186,G186),ListaIndicadores!$AG$7:$AJ$1887,3,FALSE)="","",VLOOKUP(CONCATENATE(E186,F186,G186),ListaIndicadores!$AG$7:$AJ$1887,3,FALSE)),"") -> 91 | Q186: =VLOOKUP(CONCATENATE(E186,F186,G186),ListaIndicadores!$AG$7:$AJ$1887,4,FALSE) -> ¡Faltan datos!
A187: 12462 | B187: Economica | C187: EJE 4: EMPLEO E INGRESOS | D187: AGE.18.1 | E187: Tasa de Actividad de hombres y mujeres.En América Latina y El Caribe la tasa de actividad total es 61.7%; mujeres 49.1% y hombres 75.2% (Panorama Laboral 2015 OIT) | F187: Total | G187: Amazonas | H187: 2011 | I187: 80.7 | J187: Porcentaje | K187: Sistema de Información Regional para la Toma de Decisiones (SIRTOD) - Instituto Nacional de Estadística e Información (INEI) | L187: Encuesta Nacional de Hogares (ENAHO) - Instituto Nacional de Estadística e Informática (INEI) | M187: http://webinei.inei.gob.pe:8080/SIRTOD1/inicio.html#app=db26&d4a2-selectedIndex=0&d9ef-selectedIndex=0 | P187: =IFERROR(IF(VLOOKUP(CONCATENATE(E187,F187,G187),ListaIndicadores!$AG$7:$AJ$1887,3,FALSE)="","",VLOOKUP(CONCATENATE(E187,F187,G187),ListaIndicadores!$AG$7:$AJ$1887,3,FALSE)),"") -> 91 | Q187: =VLOOKUP(CONCATENATE(E187,F187,G187),ListaIndicadores!$AG$7:$AJ$1887,4,FALSE) -> ¡Faltan datos!
A188: 12463 | B188: Economica | C188: EJE 4: EMPLEO E INGRESOS | D188: AGE.18.1 | E188: Tasa de Actividad de hombres y mujeres.En América Latina y El Caribe la tasa de actividad total es 61.7%; mujeres 49.1% y hombres 75.2% (Panorama Laboral 2015 OIT) | F188: Total | G188: Amazonas | H188: 2011 | I188: 80.7 | J188: Porcentaje | K188: Sistema de Información Regional para la Toma de Decisiones (SIRTOD) - Instituto Nacional de Estadística e Información (INEI) | L188: Encuesta Nacional de Hogares (ENAHO) - Instituto Nacional de Estadística e Informática (INEI) | M188: http://webinei.inei.gob.pe:8080/SIRTOD1/inicio.html#app=db26&d4a2-selectedIndex=0&d9ef-selectedIndex=0 | P188: =IFERROR(IF(VLOOKUP(CONCATENATE(E188,F188,G188),ListaIndicadores!$AG$7:$AJ$1887,3,FALSE)="","",VLOOKUP(CONCATENATE(E188,F188,G188),ListaIndicadores!$AG$7:$AJ$1887,3,FALSE)),"") -> 91 | Q188: =VLOOKUP(CONCATENATE(E188,F188,G188),ListaIndicadores!$AG$7:$AJ$1887,4,FALSE) -> ¡Faltan datos!
A189: 12464 | B189: Economica | C189: EJE 4: EMPLEO E INGRESOS | D189: AGE.18.1 | E189: Tasa de Actividad de hombres y mujeres.En América Latina y El Caribe la tasa de actividad total es 61.7%; mujeres 49.1% y hombres 75.2% (Panorama Laboral 2015 OIT) | F189: Total | G189: Amazonas | H189: 2012 | I189: 77.8 | J189: Porcentaje | K189: Sistema de Información Regional para la Toma de Decisiones (SIRTOD) - Instituto Nacional de Estadística e Información (INEI) | L189: Encuesta Nacional de Hogares (ENAHO) - Instituto Nacional de Estadística e Informática (INEI) | M189: http://webinei.inei.gob.pe:8080/SIRTOD1/inicio.html#app=db26&d4a2-selectedIndex=0&d9ef-selectedIndex=0 | P189: =IFERROR(IF(VLOOKUP(CONCATENATE(E189,F189,G189),ListaIndicadores!$AG$7:$AJ$1887,3,FALSE)="","",VLOOKUP(CONCATENATE(E189,F189,G189),ListaIndicadores!$AG$7:$AJ$1887,3,FALSE)),"") -> 91 | Q189: =VLOOKUP(CONCATENATE(E189,F189,G189),ListaIndicadores!$AG$7:$AJ$1887,4,FALSE) -> ¡Faltan datos!
A190: 12465 | B190: Economica | C190: EJE 4: EMPLEO E INGRESOS | D190: AGE.18.1 | E190: Tasa de Actividad de hombres y mujeres.En América Latina y El Caribe la tasa de actividad total es 61.7%; mujeres 49.1% y hombres 75.2% (Panorama Laboral 2015 OIT) | F190: Total | G190: Amazonas | H190: 2013 | I190: 78.7 | J190: Porcentaje | K190: Sistema de Información Regional para la Toma de Decisiones (SIRTOD) - Instituto Nacional de Estadística e Información (INEI) | L190: Encuesta Nacional de Hogares (ENAHO) - Instituto Nacional de Estadística e Informática (INEI) | M190: http://webinei.inei.gob.pe:8080/SIRTOD1/inicio.html#app=db26&d4a2-selectedIndex=0&d9ef-selectedIndex=0 | P190: =IFERROR(IF(VLOOKUP(CONCATENATE(E190,F190,G190),ListaIndicadores!$AG$7:$AJ$1887,3,FALSE)="","",VLOOKUP(CONCATENATE(E190,F190,G190),ListaIndicadores!$AG$7:$AJ$1887,3,FALSE)),"") -> 91 | Q190: =VLOOKUP(CONCATENATE(E190,F190,G190),ListaIndicadores!$AG$7:$AJ$1887,4,FALSE) -> ¡Faltan datos!
A191: 12466 | B191: Economica | C191: EJE 4: EMPLEO E INGRESOS | D191: AGE.18.1 | E191: Tasa de Actividad de hombres y mujeres.En América Latina y El Caribe la tasa de actividad total es 61.7%; mujeres 49.1% y hombres 75.2% (Panorama Laboral 2015 OIT) | F191: Total | G191: Amazonas | H191: 2014 | I191: 77.1 | J191: Porcentaje | K191: Sistema de Información Regional para la Toma de Decisiones (SIRTOD) - Instituto Nacional de Estadística e Información (INEI) | L191: Encuesta Nacional de Hogares (ENAHO) - Instituto Nacional de Estadística e Informática (INEI) | M191: http://webinei.inei.gob.pe:8080/SIRTOD1/inicio.html#app=db26&d4a2-selectedIndex=0&d9ef-selectedIndex=0 | P191: =IFERROR(IF(VLOOKUP(CONCATENATE(E191,F191,G191),ListaIndicadores!$AG$7:$AJ$1887,3,FALSE)="","",VLOOKUP(CONCATENATE(E191,F191,G191),ListaIndicadores!$AG$7:$AJ$1887,3,FALSE)),"") -> 91 | Q191: =VLOOKUP(CONCATENATE(E191,F191,G191),ListaIndicadores!$AG$7:$AJ$1887,4,FALSE) -> ¡Faltan datos!
A192: 12467 | B192: Economica | C192: EJE 4: EMPLEO E INGRESOS | D192: AGE.18.1 | E192: Tasa de Actividad de hombres y mujeres.En América Latina y El Caribe la tasa de actividad total es 61.7%; mujeres 49.1% y hombres 75.2% (Panorama Laboral 2015 OIT) | F192: Total | G192: Amazonas | H192: 2015 | I192: 77.2 | J192: Porcentaje | K192: Sistema de Información Regional para la Toma de Decisiones (SIRTOD) - Instituto Nacional de Estadística e Información (INEI) | L192: Encuesta Nacional de Hogares (ENAHO) - Instituto Nacional de Estadística e Informática (INEI) | M192: http://webinei.inei.gob.pe:8080/SIRTOD1/inicio.html#app=db26&d4a2-selectedIndex=0&d9ef-selectedIndex=0 | P192: =IFERROR(IF(VLOOKUP(CONCATENATE(E192,F192,G192),ListaIndicadores!$AG$7:$AJ$1887,3,FALSE)="","",VLOOKUP(CONCATENATE(E192,F192,G192),ListaIndicadores!$AG$7:$AJ$1887,3,FALSE)),"") -> 91 | Q192: =VLOOKUP(CONCATENATE(E192,F192,G192),ListaIndicadores!$AG$7:$AJ$1887,4,FALSE) -> ¡Faltan datos!
A193: 12468 | B193: Economica | C193: EJE 4: EMPLEO E INGRESOS | D193: AGE.18.1 | E193: Tasa de Actividad de hombres y mujeres.En América Latina y El Caribe la tasa de actividad total es 61.7%; mujeres 49.1% y hombres 75.2% (Panorama Laboral 2015 OIT) | F193: Total | G193: Amazonas | H193: 2016 | I193: 78.7 | J193: Porcentaje | K193: Sistema de Información Regional para la Toma de Decisiones (SIRTOD) - Instituto Nacional de Estadística e Información (INEI) | L193: Encuesta Nacional de Hogares (ENAHO) - Instituto Nacional de Estadística e Informática (INEI) | M193: http://webinei.inei.gob.pe:8080/SIRTOD1/inicio.html#app=db26&d4a2-selectedIndex=0&d9ef-selectedIndex=0 | P193: =IFERROR(IF(VLOOKUP(CONCATENATE(E193,F193,G193),ListaIndicadores!$AG$7:$AJ$1887,3,FALSE)="","",VLOOKUP(CONCATENATE(E193,F193,G193),ListaIndicadores!$AG$7:$AJ$1887,3,FALSE)),"") -> 91 | Q193: =VLOOKUP(CONCATENATE(E193,F193,G193),ListaIndicadores!$AG$7:$AJ$1887,4,FALSE) -> ¡Faltan datos!
A194: 12877 | B194: Economica | C194: EJE 4: EMPLEO E INGRESOS | D194: AGE.18.3 | E194: Tasa de informalidad laboral para los casos de mujeres y hombres | F194: Hombres | G194: Amazonas | H194: 2011 | I194: 82.3 | J194: Porcentaje | K194: Sistema de Información Regional para la Toma de Decisiones (SIRTOD) - Instituto Nacional de Estadística e Información (INEI) | L194: Encuesta Nacional de Hogares (ENAHO) - Instituto Nacional de Estadística e Informática (INEI) | M194: http://webinei.inei.gob.pe:8080/SIRTOD1/inicio.html#app=db26&d4a2-selectedIndex=0&d9ef-selectedIndex=0 | P194: =IFERROR(IF(VLOOKUP(CONCATENATE(E194,F194,G194),ListaIndicadores!$AG$7:$AJ$1887,3,FALSE)="","",VLOOKUP(CONCATENATE(E194,F194,G194),ListaIndicadores!$AG$7:$AJ$1887,3,FALSE)),"") -> 33 | Q194: =VLOOKUP(CONCATENATE(E194,F194,G194),ListaIndicadores!$AG$7:$AJ$1887,4,FALSE) -> ¡Faltan datos!
A195: 12878 | B195: Economica | C195: EJE 4: EMPLEO E INGRESOS | D195: AGE.18.3 | E195: Tasa de informalidad laboral para los casos de mujeres y hombres | F195: Hombres | G195: Amazonas | H195: 2012 | I195: 57.2 | J195: Porcentaje | K195: Sistema de Información Regional para la Toma de Decisiones (SIRTOD) - Instituto Nacional de Estadística e Información (INEI) | L195: Encuesta Nacional de Hogares (ENAHO) - Instituto Nacional de Estadística e Informática (INEI) | M195: http://webinei.inei.gob.pe:8080/SIRTOD1/inicio.html#app=db26&d4a2-selectedIndex=0&d9ef-selectedIndex=0 | P195: =IFERROR(IF(VLOOKUP(CONCATENATE(E195,F195,G195),ListaIndicadores!$AG$7:$AJ$1887,3,FALSE)="","",VLOOKUP(CONCATENATE(E195,F195,G195),ListaIndicadores!$AG$7:$AJ$1887,3,FALSE)),"") -> 33 | Q195: =VLOOKUP(CONCATENATE(E195,F195,G195),ListaIndicadores!$AG$7:$AJ$1887,4,FALSE) -> ¡Faltan datos!
A196: 12879 | B196: Economica | C196: EJE 4: EMPLEO E INGRESOS | D196: AGE.18.3 | E196: Tasa de informalidad laboral para los casos de mujeres y hombres | F196: Hombres | G196: Amazonas | H196: 2013 | I196: 62.4 | J196: Porcentaje | K196: Sistema de Información Regional para la Toma de Decisiones (SIRTOD) - Instituto Nacional de Estadística e Información (INEI) | L196: Encuesta Nacional de Hogares (ENAHO) - Instituto Nacional de Estadística e Informática (INEI) | M196: http://webinei.inei.gob.pe:8080/SIRTOD1/inicio.html#app=db26&d4a2-selectedIndex=0&d9ef-selectedIndex=0 | P196: =IFERROR(IF(VLOOKUP(CONCATENATE(E196,F196,G196),ListaIndicadores!$AG$7:$AJ$1887,3,FALSE)="","",VLOOKUP(CONCATENATE(E196,F196,G196),ListaIndicadores!$AG$7:$AJ$1887,3,FALSE)),"") -> 33 | Q196: =VLOOKUP(CONCATENATE(E196,F196,G196),ListaIndicadores!$AG$7:$AJ$1887,4,FALSE) -> ¡Faltan datos!
A197: 12880 | B197: Economica | C197: EJE 4: EMPLEO E INGRESOS | D197: AGE.18.3 | E197: Tasa de informalidad laboral para los casos de mujeres y hombres | F197: Hombres | G197: Amazonas | H197: 2014 | I197: 66.8 | J197: Porcentaje | K197: Sistema de Información Regional para la Toma de Decisiones (SIRTOD) - Instituto Nacional de Estadística e Información (INEI) | L197: Encuesta Nacional de Hogares (ENAHO) - Instituto Nacional de Estadística e Informática (INEI) | M197: http://webinei.inei.gob.pe:8080/SIRTOD1/inicio.html#app=db26&d4a2-selectedIndex=0&d9ef-selectedIndex=0 | P197: =IFERROR(IF(VLOOKUP(CONCATENATE(E197,F197,G197),ListaIndicadores!$AG$7:$AJ$1887,3,FALSE)="","",VLOOKUP(CONCATENATE(E197,F197,G197),ListaIndicadores!$AG$7:$AJ$1887,3,FALSE)),"") -> 33 | Q197: =VLOOKUP(CONCATENATE(E197,F197,G197),ListaIndicadores!$AG$7:$AJ$1887,4,FALSE) -> ¡Faltan datos!
A198: 12881 | B198: Economica | C198: EJE 4: EMPLEO E INGRESOS | D198: AGE.18.3 | E198: Tasa de informalidad laboral para los casos de mujeres y hombres | F198: Hombres | G198: Amazonas | H198: 2015 | I198: 63.6 | J198: Porcentaje | K198: Sistema de Información Regional para la Toma de Decisiones (SIRTOD) - Instituto Nacional de Estadística e Información (INEI) | L198: Encuesta Nacional de Hogares (ENAHO) - Instituto Nacional de Estadística e Informática (INEI) | M198: http://webinei.inei.gob.pe:8080/SIRTOD1/inicio.html#app=db26&d4a2-selectedIndex=0&d9ef-selectedIndex=0 | P198: =IFERROR(IF(VLOOKUP(CONCATENATE(E198,F198,G198),ListaIndicadores!$AG$7:$AJ$1887,3,FALSE)="","",VLOOKUP(CONCATENATE(E198,F198,G198),ListaIndicadores!$AG$7:$AJ$1887,3,FALSE)),"") -> 33 | Q198: =VLOOKUP(CONCATENATE(E198,F198,G198),ListaIndicadores!$AG$7:$AJ$1887,4,FALSE) -> ¡Faltan datos!
A199: 12882 | B199: Economica | C199: EJE 4: EMPLEO E INGRESOS | D199: AGE.18.3 | E199: Tasa de informalidad laboral para los casos de mujeres y hombres | F199: Hombres | G199: Amazonas | H199: 2016 | I199: 61.2 | J199: Porcentaje | K199: Sistema de Información Regional para la Toma de Decisiones (SIRTOD) - Instituto Nacional de Estadística e Información (INEI) | L199: Encuesta Nacional de Hogares (ENAHO) - Instituto Nacional de Estadística e Informática (INEI) | M199: http://webinei.inei.gob.pe:8080/SIRTOD1/inicio.html#app=db26&d4a2-selectedIndex=0&d9ef-selectedIndex=0 | P199: =IFERROR(IF(VLOOKUP(CONCATENATE(E199,F199,G199),ListaIndicadores!$AG$7:$AJ$1887,3,FALSE)="","",VLOOKUP(CONCATENATE(E199,F199,G199),ListaIndicadores!$AG$7:$AJ$1887,3,FALSE)),"") -> 33 | Q199: =VLOOKUP(CONCATENATE(E199,F199,G199),ListaIndicadores!$AG$7:$AJ$1887,4,FALSE) -> ¡Faltan datos!
A200: 13034 | B200: Economica | C200: EJE 4: EMPLEO E INGRESOS | D200: AGE.18.3 | E200: Tasa de informalidad laboral para los casos de mujeres y hombres | F200: Mujeres | G200: Amazonas | H200: 2011 | I200: 81.3 | J200: Porcentaje | K200: Sistema de Información Regional para la Toma de Decisiones (SIRTOD) - Instituto Nacional de Estadística e Información (INEI) | L200: Encuesta Nacional de Hogares (ENAHO) - Instituto Nacional de Estadística e Informática (INEI) | M200: http://webinei.inei.gob.pe:8080/SIRTOD1/inicio.html#app=db26&d4a2-selectedIndex=0&d9ef-selectedIndex=0 | P200: =IFERROR(IF(VLOOKUP(CONCATENATE(E200,F200,G200),ListaIndicadores!$AG$7:$AJ$1887,3,FALSE)="","",VLOOKUP(CONCATENATE(E200,F200,G200),ListaIndicadores!$AG$7:$AJ$1887,3,FALSE)),"") -> 67 | Q200: =VLOOKUP(CONCATENATE(E200,F200,G200),ListaIndicadores!$AG$7:$AJ$1887,4,FALSE) -> ¡Faltan datos!
... 4300 more rows

Sheet Menu

Sheet Rep_Balance
B4: Balance | D4: PRIMER DERECHO: AL NOMBRE Y A LA IDENTIDAD
D6: =CONCATENATE("N° de compromisos: ",SUM(ListaIndicadores!L1892:L1894)) -> N° de compromisos: 4 | F6: =CONCATENATE("N° ListaIndicadores!de compromisos: ",SUM(ListaIndicadores!L1897:L1899)) -> N° ListaIndicadores!de compromisos: 0 | H6: =CONCATENATE("N° de compromisos: ",SUM(ListaIndicadores!L1902:L1904)) -> N° de compromisos: 1
B10: =CONCATENATE("N° de compromisos: ",SUM(ListaIndicadores!L1921:L1923)) -> N° de compromisos: 7 | D10: =CONCATENATE("N° de compromisos: ",SUM(ListaIndicadores!L1907:L1909)) -> N° de compromisos: 0 | F10: =CONCATENATE("N° de compromisos: ",SUM(ListaIndicadores!L1912:L1914)) -> N° de compromisos: 2
B13: Nota técnica
B15: Color del semaforo :
B16: Caso 1, con indicadores positivos (ejemplo cobertura de seguro de salud):
B17: Color verde: Cuando la meta proyectada al 2021/ valor de la meta al 2021 >=85%;
B18: Color ambar: Cuando la meta proyectada al 2021/ valor de la meta al 2021 se ecuentra entre >=50 y <85%;
B19: Color rojo: Cuando la meta proyectada al 2021/ valor de la meta al 2021 se ecuentra <50%
B20: Caso 2, con indicadores negativos (ejemplo: tasa de desnutrición crónica):
B21: Color verde: Cuando la meta proyectada al 2021/ valor de la meta al 2021 <=115%;
B22: Color ambar: Cuando la meta proyectada al 2021/ valor de la meta al 2021 se ecuentra entre <115% y =< 150%;
B23: Color rojo: Cuando la meta proyectada al 2021/ valor de la meta al 2021 >150%

Sheet Rep_Balance_Dpt
A8: 1. DESEMPEÑO GLOBAL POR DEPARTAMENTO
A51: Nota técnica
A53: Color del semaforo :
A54: Caso 1, con indicadores positivos (ejemplo cobertura de seguro de salud):
A55: Color verde: Cuando la meta proyectada al 2026/ valor de la meta al 2026 >=85%;
A56: Color ambar: Cuando la meta proyectada al 2026/ valor de la meta al 2026 se ecuentra entre >=50 y <85%;
A57: Color rojo: Cuando la meta proyectada al 2026/ valor de la meta al 2026 se ecuentra <50%
A58: Caso 2, con indicadores negativos (ejemplo: tasa de desnutrición crónica):
A59: Color verde: Cuando la meta proyectada al 2026/ valor de la meta al 2026 <=115%;
A60: Color ambar: Cuando la meta proyectada al 2026/ valor de la meta al 2026 se ecuentra entre <115% y =< 150%;
A61: Color rojo: Cuando la meta proyectada al 2026/ valor de la meta al 2026 >150%

Sheet ReporteIndicador
B4: Gráfico | X4: Comando
X6: Primer paso: Seleccionar el Eje
X7: Derecho
X8: EJE 3: POLÍTICA FISCAL
X9: Segundo paso: Seleccionar el indicador
X10: Indicador:
X11: Monto ejecutado en proyectos de inversión. (Devengado)
X12: Tercer paso: Seleccionar el Sub Indicador
X13: Sub indicador:
X14: Gobierno Nacional
B15: Información Histórica
B16: 2010 | C16: 2011 | D16: 2012 | E16: 2013 | F16: 2014 | G16: 2015 | H16: 2016 | I16: 2017 | J16: 2018 | K16: 2019 | L16: 2020 | M16: 2021 | N16: 2022 | O16: 2023 | P16: 2024 | Q16: 2025 | R16: 2026 | S16: 2027 | T16: 2028 | U16: 2029 | V16: 2030 | X16: Cuarto paso: Seleccionar la Región
B17: =IFERROR(IF(VLOOKUP($X$11&$X$14&$X$18&"2010",BD_Economica!$R$2:$S$13179,2,FALSE)="","",VLOOKUP($X$11&$X$14&$X$18&"2010",BD_Economica!$R$2:$S$13179,2,FALSE)),"") ->  | C17: =IFERROR(IF(VLOOKUP($X$11&$X$14&$X$18&"2011",BD_Economica!$R$2:$S$13179,2,FALSE)="","",VLOOKUP($X$11&$X$14&$X$18&"2011",BD_Economica!$R$2:$S$13179,2,FALSE)),"") ->  | D17: =IFERROR(IF(VLOOKUP($X$11&$X$14&$X$18&"2012",BD_Economica!$R$2:$S$13179,2,FALSE)="","",VLOOKUP($X$11&$X$14&$X$18&"2012",BD_Economica!$R$2:$S$13179,2,FALSE)),"") ->  | E17: =IFERROR(IF(VLOOKUP($X$11&$X$14&$X$18&"2013",BD_Economica!$R$2:$S$13179,2,FALSE)="","",VLOOKUP($X$11&$X$14&$X$18&"2013",BD_Economica!$R$2:$S$13179,2,FALSE)),"") ->  | F17: =IFERROR(IF(VLOOKUP($X$11&$X$14&$X$18&"2014",BD_Economica!$R$2:$S$13329,2,FALSE)="","",VLOOKUP($X$11&$X$14&$X$18&"2014",BD_Economica!$R$2:$S$13329,2,FALSE)),"") -> 596191505 | G17: =IFERROR(IF(VLOOKUP($X$11&$X$14&$X$18&"2015",BD_Economica!$R$2:$S$13329,2,FALSE)="","",VLOOKUP($X$11&$X$14&$X$18&"2015",BD_Economica!$R$2:$S$13329,2,FALSE)),"") -> 398115057 | H17: =IFERROR(IF(VLOOKUP($X$11&$X$14&$X$18&"2016",BD_Economica!$R$2:$S$13329,2,FALSE)="","",VLOOKUP($X$11&$X$14&$X$18&"2016",BD_Economica!$R$2:$S$13329,2,FALSE)),"") -> 238774950 | I17: =IFERROR(IF(VLOOKUP($X$11&$X$14&$X$18&"2017",BD_Economica!$R$2:$S$13329,2,FALSE)="","",VLOOKUP($X$11&$X$14&$X$18&"2017",BD_Economica!$R$2:$S$13329,2,FALSE)),"") -> 311931053 | J17: =IFERROR(IF(VLOOKUP($X$11&$X$14&$X$18&"2018",BD_Economica!$R$2:$S$13329,2,FALSE)="","",VLOOKUP($X$11&$X$14&$X$18&"2018",BD_Economica!$R$2:$S$13329,2,FALSE)),"") -> 315083219 | K17: =IFERROR(IF(VLOOKUP($X$11&$X$14&$X$18&"2019",BD_Economica!$R$2:$S$13329,2,FALSE)="","",VLOOKUP($X$11&$X$14&$X$18&"2019",BD_Economica!$R$2:$S$13329,2,FALSE)),"") -> 364373922 | L17: =IFERROR(IF(VLOOKUP($X$11&$X$14&$X$18&"2020",BD_Economica!$R$2:$S$13329,2,FALSE)="","",VLOOKUP($X$11&$X$14&$X$18&"2020",BD_Economica!$R$2:$S$13329,2,FALSE)),"") -> 209127934 | M17: =IFERROR(IF(VLOOKUP($X$11&$X$14&$X$18&"2021",BD_Economica!$R$2:$S$13329,2,FALSE)="","",VLOOKUP($X$11&$X$14&$X$18&"2021",BD_Economica!$R$2:$S$13329,2,FALSE)),"") -> 204248449 | N17: =IFERROR(IF(VLOOKUP($X$11&$X$14&$X$18&"2022",BD_Economica!$R$2:$S$13179,2,FALSE)="","",VLOOKUP($X$11&$X$14&$X$18&"2022",BD_Economica!$R$2:$S$13179,2,FALSE)),"") ->  | O17: =IFERROR(IF(VLOOKUP($X$11&$X$14&$X$18&"2023",BD_Economica!$R$2:$S$13179,2,FALSE)="","",VLOOKUP($X$11&$X$14&$X$18&"2023",BD_Economica!$R$2:$S$13179,2,FALSE)),"") ->  | P17: =IFERROR(IF(VLOOKUP($X$11&$X$14&$X$18&"2024",BD_Economica!$R$2:$S$13179,2,FALSE)="","",VLOOKUP($X$11&$X$14&$X$18&"2024",BD_Economica!$R$2:$S$13179,2,FALSE)),"") ->  | Q17: =IFERROR(IF(VLOOKUP($X$11&$X$14&$X$18&"2025",BD_Economica!$R$2:$S$13179,2,FALSE)="","",VLOOKUP($X$11&$X$14&$X$18&"2025",BD_Economica!$R$2:$S$13179,2,FALSE)),"") ->  | R17: =IFERROR(IF(VLOOKUP($X$11&$X$14&$X$18&"2026",BD_Economica!$R$2:$S$13179,2,FALSE)="","",VLOOKUP($X$11&$X$14&$X$18&"2026",BD_Economica!$R$2:$S$13179,2,FALSE)),"") ->  | S17: =IFERROR(IF(VLOOKUP($X$11&$X$14&$X$18&"2027",BD_Economica!$R$2:$S$13179,2,FALSE)="","",VLOOKUP($X$11&$X$14&$X$18&"2027",BD_Economica!$R$2:$S$13179,2,FALSE)),"") ->  | T17: =IFERROR(IF(VLOOKUP($X$11&$X$14&$X$18&"2028",BD_Economica!$R$2:$S$13179,2,FALSE)="","",VLOOKUP($X$11&$X$14&$X$18&"2028",BD_Economica!$R$2:$S$13179,2,FALSE)),"") ->  | U17: =IFERROR(IF(VLOOKUP($X$11&$X$14&$X$18&"2029",BD_Economica!$R$2:$S$13179,2,FALSE)="","",VLOOKUP($X$11&$X$14&$X$18&"2029",BD_Economica!$R$2:$S$13179,2,FALSE)),"") ->  | V17: =IFERROR(IF(VLOOKUP($X$11&$X$14&$X$18&"2030",BD_Economica!$R$2:$S$13179,2,FALSE)="","",VLOOKUP($X$11&$X$14&$X$18&"2030",BD_Economica!$R$2:$S$13179,2,FALSE)),"") ->  | X17: Región:
X18: Arequipa
B19: Fuente | F19: =TDValor!B6 -> Ministerio de Economía y Finanzas (MEF)- Seguimiento de la Ejecución Presupuestal (Consulta amigable)
B20: Unidad de medida | F20: =TDValor!A6 -> Soles
B22: Desempeño
B24: Proyección 2022 | K24: Meta 2022 | R24: Semáforo
B25: =IFERROR(IF(VLOOKUP($X$11&$X$14&$X$18,ListaIndicadores!$AG$7:$AJ$1887,3,FALSE)="","",VLOOKUP($X$11&$X$14&$X$18,ListaIndicadores!$AG$7:$AJ$1887,3,FALSE)),"") -> -22746138 | K25: =IFERROR(IF(VLOOKUP($X$11&$X$14&$X$18,ListaIndicadores!$AG$7:$AJ$1887,2,FALSE)="","",VLOOKUP($X$11&$X$14&$X$18,ListaIndicadores!$AG$7:$AJ$1887,2,FALSE)),"") ->  | R25: =IFERROR(IF(VLOOKUP($X$11&$X$14&$X$18,ListaIndicadores!$AG$7:$AJ$1887,4,FALSE)="","",VLOOKUP($X$11&$X$14&$X$18,ListaIndicadores!$AG$7:$AJ$1887,4,FALSE)),"") -> ¡Faltan datos!

Sheet BD_Economica
A1: Num. | B1: Dimensión | C1: Segundo Nivel | D1: Indicador | E1: Matriz de Resultado | F1: Subindicador | G1: Nombre de la región/Nacional | H1: Año | I1: Valor | J1: Unidad | K1: Fuente web | L1: Fuente ficha tecnica | M1: Link | N1: Descripción del indicador | O1: Observaciones internas | P1: Proyección | Q1: Semáforo | R1: concatenar | S1: Valor | U1: ACTUALIZAR LOS VALORES DE LOS AÑOS
A2: 17913 | B2: Economica | C2: EJE 7: DESARROLLO ECONÓMICO DE LAS AREAS RURALES DEL PAIS | D2: Número de municipalidades que realizan acciones de fomento a la artesanía | E2: AGE.28.3. | F2: Departamental | G2: Amazonas | H2: 2012 | I2: 39 | J2: Municipalidades | K2: Instituto Nacional de Estadística e Informática (INEI) - Registro Nacional de Municipalidades (RENAMU) | L2: Instituto Nacional de Estadística e Informática (INEI) - Registro Nacional de Municipalidades (RENAMU) | M2: https://www.inei.gob.pe/media/MenuRecursivo/publicaciones_digitales/Est/Lib1186/index.html | P2: =IFERROR(IF(VLOOKUP(CONCATENATE(D2,F2,G2),ListaIndicadores!$AG$7:$AJ$1887,3,FALSE)="","",VLOOKUP(CONCATENATE(D2,F2,G2),ListaIndicadores!$AG$7:$AJ$1887,3,FALSE)),"") -> 8 | Q2: =VLOOKUP(CONCATENATE(D2,F2,G2),ListaIndicadores!$AG$7:$AJ$1887,4,FALSE) -> ¡Faltan datos! | R2: =CONCATENATE(D2,F2,G2,H2) -> Número de municipalidades que realizan acciones de fomento a la artesaníaDepartamentalAmazonas2012 | S2: 39
A3: 17914 | B3: Economica | C3: EJE 7: DESARROLLO ECONÓMICO DE LAS AREAS RURALES DEL PAIS | D3: Número de municipalidades que realizan acciones de fomento a la artesanía | E3: AGE.28.3. | F3: Departamental | G3: Amazonas | H3: 2013 | I3: 44 | J3: Municipalidades | K3: Instituto Nacional de Estadística e Informática (INEI) - Registro Nacional de Municipalidades (RENAMU) | L3: Instituto Nacional de Estadística e Informática (INEI) - Registro Nacional de Municipalidades (RENAMU) | M3: https://www.inei.gob.pe/media/MenuRecursivo/publicaciones_digitales/Est/Lib1246/index.html | P3: =IFERROR(IF(VLOOKUP(CONCATENATE(D3,F3,G3),ListaIndicadores!$AG$7:$AJ$1887,3,FALSE)="","",VLOOKUP(CONCATENATE(D3,F3,G3),ListaIndicadores!$AG$7:$AJ$1887,3,FALSE)),"") -> 8 | Q3: =VLOOKUP(CONCATENATE(D3,F3,G3),ListaIndicadores!$AG$7:$AJ$1887,4,FALSE) -> ¡Faltan datos! | R3: Número de municipalidades que realizan acciones de fomento a la artesaníaDepartamentalAmazonas2013 | S3: 44
A4: 17915 | B4: Economica | C4: EJE 7: DESARROLLO ECONÓMICO DE LAS AREAS RURALES DEL PAIS | D4: Número de municipalidades que realizan acciones de fomento a la artesanía | E4: AGE.28.3. | F4: Departamental | G4: Amazonas | H4: 2014 | I4: 32 | J4: Municipalidades | K4: Instituto Nacional de Estadística e Informática (INEI) - Registro Nacional de Municipalidades (RENAMU) | L4: Instituto Nacional de Estadística e Informática (INEI) - Registro Nacional de Municipalidades (RENAMU) | M4: https://www.inei.gob.pe/media/MenuRecursivo/publicaciones_digitales/Est/Lib1362/index.html | P4: =IFERROR(IF(VLOOKUP(CONCATENATE(D4,F4,G4),ListaIndicadores!$AG$7:$AJ$1887,3,FALSE)="","",VLOOKUP(CONCATENATE(D4,F4,G4),ListaIndicadores!$AG$7:$AJ$1887,3,FALSE)),"") -> 8 | Q4: =VLOOKUP(CONCATENATE(D4,F4,G4),ListaIndicadores!$AG$7:$AJ$1887,4,FALSE) -> ¡Faltan datos! | R4: Número de municipalidades que realizan acciones de fomento a la artesaníaDepartamentalAmazonas2014 | S4: 32
A5: 17916 | B5: Economica | C5: EJE 7: DESARROLLO ECONÓMICO DE LAS AREAS RURALES DEL PAIS | D5: Número de municipalidades que realizan acciones de fomento a la artesanía | E5: AGE.28.3. | F5: Departamental | G5: Amazonas | H5: 2015 | I5: 33 | J5: Municipalidades | K5: Instituto Nacional de Estadística e Informática (INEI) - Registro Nacional de Municipalidades (RENAMU) | L5: Instituto Nacional de Estadística e Informática (INEI) - Registro Nacional de Municipalidades (RENAMU) | M5: https://www.inei.gob.pe/media/MenuRecursivo/publicaciones_digitales/Est/Lib1417/index.html | P5: =IFERROR(IF(VLOOKUP(CONCATENATE(D5,F5,G5),ListaIndicadores!$AG$7:$AJ$1887,3,FALSE)="","",VLOOKUP(CONCATENATE(D5,F5,G5),ListaIndicadores!$AG$7:$AJ$1887,3,FALSE)),"") -> 8 | Q5: =VLOOKUP(CONCATENATE(D5,F5,G5),ListaIndicadores!$AG$7:$AJ$1887,4,FALSE) -> ¡Faltan datos! | R5: Número de municipalidades que realizan acciones de fomento a la artesaníaDepartamentalAmazonas2015 | S5: 33
A6: 17917 | B6: Economica | C6: EJE 7: DESARROLLO ECONÓMICO DE LAS AREAS RURALES DEL PAIS | D6: Número de municipalidades que realizan acciones de fomento a la artesanía | E6: AGE.28.3. | F6: Departamental | G6: Amazonas | H6: 2016 | I6: 27 | J6: Municipalidades | K6: Instituto Nacional de Estadística e Informática (INEI) - Registro Nacional de Municipalidades (RENAMU) | L6: Instituto Nacional de Estadística e Informática (INEI) - Registro Nacional de Municipalidades (RENAMU) | M6: https://www.inei.gob.pe/media/MenuRecursivo/publicaciones_digitales/Est/Lib1474/index.html | P6: =IFERROR(IF(VLOOKUP(CONCATENATE(D6,F6,G6),ListaIndicadores!$AG$7:$AJ$1887,3,FALSE)="","",VLOOKUP(CONCATENATE(D6,F6,G6),ListaIndicadores!$AG$7:$AJ$1887,3,FALSE)),"") -> 8 | Q6: =VLOOKUP(CONCATENATE(D6,F6,G6),ListaIndicadores!$AG$7:$AJ$1887,4,FALSE) -> ¡Faltan datos! | R6: Número de municipalidades que realizan acciones de fomento a la artesaníaDepartamentalAmazonas2016 | S6: 27
A7: 18330 | B7: Economica | C7: EJE 7: DESARROLLO ECONÓMICO DE LAS AREAS RURALES DEL PAIS | D7: Caminos rurales construidos o reparados. (Kilometros) | E7: AGE.30.8. | F7: Caminos Afirmados | G7: Amazonas | J7: Kilómetros | K7: Instituto Nacional de Estadística e Informática (INEI) - Registro Nacional de Municipalidades (RENAMU) | L7: Instituto Nacional de Estadística e Informática (INEI) - Registro Nacional de Municipalidades (RENAMU) | M7: https://www.mesadeconcertacion.org.pe/acuerdos-de-gobernabilidad-regionales-y-locales-2019-2031 | P7: =IFERROR(IF(VLOOKUP(CONCATENATE(D7,F7,G7),ListaIndicadores!$AG$7:$AJ$1887,3,FALSE)="","",VLOOKUP(CONCATENATE(D7,F7,G7),ListaIndicadores!$AG$7:$AJ$1887,3,FALSE)),"") ->  | Q7: =VLOOKUP(CONCATENATE(D7,F7,G7),ListaIndicadores!$AG$7:$AJ$1887,4,FALSE) ->  | R7: Caminos rurales construidos o reparados. (Kilometros) Caminos Afirmados Amazonas
A8: 18331 | B8: Economica | C8: EJE 7: DESARROLLO ECONÓMICO DE LAS AREAS RURALES DEL PAIS | D8: Caminos rurales construidos o reparados. (Kilometros) | E8: AGE.30.8. | F8: Caminos Rurales Afirmados Construidos | G8: Amazonas | H8: 2012 | I8: 20 | J8: Kilómetros | K8: Instituto Nacional de Estadística e Informática (INEI) - Registro Nacional de Municipalidades (RENAMU) | L8: Instituto Nacional de Estadística e Informática (INEI) - Registro Nacional de Municipalidades (RENAMU) | M8: https://www.inei.gob.pe/media/MenuRecursivo/publicaciones_digitales/Est/Lib1186/index.html | P8: =IFERROR(IF(VLOOKUP(CONCATENATE(D8,F8,G8),ListaIndicadores!$AG$7:$AJ$1887,3,FALSE)="","",VLOOKUP(CONCATENATE(D8,F8,G8),ListaIndicadores!$AG$7:$AJ$1887,3,FALSE)),"") -> -1894 | Q8: =VLOOKUP(CONCATENATE(D8,F8,G8),ListaIndicadores!$AG$7:$AJ$1887,4,FALSE) -> ¡Faltan datos! | R8: Caminos rurales construidos o reparados. (Kilometros) Caminos Rurales Afirmados ConstruidosAmazonas2012 | S8: 20
A9: 18332 | B9: Economica | C9: EJE 7: DESARROLLO ECONÓMICO DE LAS AREAS RURALES DEL PAIS | D9: Caminos rurales construidos o reparados. (Kilometros) | E9: AGE.30.8. | F9: Caminos Rurales Afirmados Construidos | G9: Amazonas | H9: 2013 | I9: 35 | J9: Kilómetros | K9: Instituto Nacional de Estadística e Informática (INEI) - Registro Nacional de Municipalidades (RENAMU) | L9: Instituto Nacional de Estadística e Informática (INEI) - Registro Nacional de Municipalidades (RENAMU) | M9: https://www.inei.gob.pe/media/MenuRecursivo/publicaciones_digitales/Est/Lib1246/index.html | P9: =IFERROR(IF(VLOOKUP(CONCATENATE(D9,F9,G9),ListaIndicadores!$AG$7:$AJ$1887,3,FALSE)="","",VLOOKUP(CONCATENATE(D9,F9,G9),ListaIndicadores!$AG$7:$AJ$1887,3,FALSE)),"") -> -1894 | Q9: =VLOOKUP(CONCATENATE(D9,F9,G9),ListaIndicadores!$AG$7:$AJ$1887,4,FALSE) -> ¡Faltan datos! | R9: Caminos rurales construidos o reparados. (Kilometros) Caminos Rurales Afirmados ConstruidosAmazonas2013 | S9: 35
A10: 18333 | B10: Economica | C10: EJE 7: DESARROLLO ECONÓMICO DE LAS AREAS RURALES DEL PAIS | D10: Caminos rurales construidos o reparados. (Kilometros) | E10: AGE.30.8. | F10: Caminos Rurales Afirmados Construidos | G10: Amazonas | H10: 2014 | I10: 182 | J10: Kilómetros | K10: Instituto Nacional de Estadística e Informática (INEI) - Registro Nacional de Municipalidades (RENAMU) | L10: Instituto Nacional de Estadística e Informática (INEI) - Registro Nacional de Municipalidades (RENAMU) | M10: https://www.inei.gob.pe/media/MenuRecursivo/publicaciones_digitales/Est/Lib1362/index.html | P10: =IFERROR(IF(VLOOKUP(CONCATENATE(D10,F10,G10),ListaIndicadores!$AG$7:$AJ$1887,3,FALSE)="","",VLOOKUP(CONCATENATE(D10,F10,G10),ListaIndicadores!$AG$7:$AJ$1887,3,FALSE)),"") -> -1894 | Q10: =VLOOKUP(CONCATENATE(D10,F10,G10),ListaIndicadores!$AG$7:$AJ$1887,4,FALSE) -> ¡Faltan datos! | R10: Caminos rurales construidos o reparados. (Kilometros) Caminos Rurales Afirmados ConstruidosAmazonas2014 | S10: 182
A11: 18334 | B11: Economica | C11: EJE 7: DESARROLLO ECONÓMICO DE LAS AREAS RURALES DEL PAIS | D11: Caminos rurales construidos o reparados. (Kilometros) | E11: AGE.30.8. | F11: Caminos Rurales Afirmados Construidos | G11: Amazonas | H11: 2015 | I11: 9 | J11: Kilómetros | K11: Instituto Nacional de Estadística e Informática (INEI) - Registro Nacional de Municipalidades (RENAMU) | L11: Instituto Nacional de Estadística e Informática (INEI) - Registro Nacional de Municipalidades (RENAMU) | M11: https://www.inei.gob.pe/media/MenuRecursivo/publicaciones_digitales/Est/Lib1417/index.html | P11: =IFERROR(IF(VLOOKUP(CONCATENATE(D11,F11,G11),ListaIndicadores!$AG$7:$AJ$1887,3,FALSE)="","",VLOOKUP(CONCATENATE(D11,F11,G11),ListaIndicadores!$AG$7:$AJ$1887,3,FALSE)),"") -> -1894 | Q11: =VLOOKUP(CONCATENATE(D11,F11,G11),ListaIndicadores!$AG$7:$AJ$1887,4,FALSE) -> ¡Faltan datos! | R11: Caminos rurales construidos o reparados. (Kilometros) Caminos Rurales Afirmados ConstruidosAmazonas2015 | S11: 9
A12: 18335 | B12: Economica | C12: EJE 7: DESARROLLO ECONÓMICO DE LAS AREAS RURALES DEL PAIS | D12: Caminos rurales construidos o reparados. (Kilometros) | E12: AGE.30.8. | F12: Caminos Rurales Afirmados Construidos | G12: Amazonas | H12: 2016 | I12: 0 | J12: Kilómetros | K12: Instituto Nacional de Estadística e Informática (INEI) - Registro Nacional de Municipalidades (RENAMU) | L12: Instituto Nacional de Estadística e Informática (INEI) - Registro Nacional de Municipalidades (RENAMU) | M12: https://www.inei.gob.pe/media/MenuRecursivo/publicaciones_digitales/Est/Lib1474/index.html | P12: =IFERROR(IF(VLOOKUP(CONCATENATE(D12,F12,G12),ListaIndicadores!$AG$7:$AJ$1887,3,FALSE)="","",VLOOKUP(CONCATENATE(D12,F12,G12),ListaIndicadores!$AG$7:$AJ$1887,3,FALSE)),"") -> -1894 | Q12: =VLOOKUP(CONCATENATE(D12,F12,G12),ListaIndicadores!$AG$7:$AJ$1887,4,FALSE) -> ¡Faltan datos! | R12: Caminos rurales construidos o reparados. (Kilometros) Caminos Rurales Afirmados ConstruidosAmazonas2016 | S12: 0
A13: 18466 | B13: Economica | C13: EJE 7: DESARROLLO ECONÓMICO DE LAS AREAS RURALES DEL PAIS | D13: Caminos rurales construidos o reparados. (Kilometros) | E13: AGE.30.8. | F13: Caminos Rurales Afirmados Reparados | G13: Amazonas | H13: 2012 | I13: 400 | J13: Kilómetros | K13: Instituto Nacional de Estadística e Informática (INEI) - Registro Nacional de Municipalidades (RENAMU) | L13: Instituto Nacional de Estadística e Informática (INEI) - Registro Nacional de Municipalidades (RENAMU) | M13: https://www.inei.gob.pe/media/MenuRecursivo/publicaciones_digitales/Est/Lib1186/index.html | P13: =IFERROR(IF(VLOOKUP(CONCATENATE(D13,F13,G13),ListaIndicadores!$AG$7:$AJ$1887,3,FALSE)="","",VLOOKUP(CONCATENATE(D13,F13,G13),ListaIndicadores!$AG$7:$AJ$1887,3,FALSE)),"") -> -2557 | Q13: =VLOOKUP(CONCATENATE(D13,F13,G13),ListaIndicadores!$AG$7:$AJ$1887,4,FALSE) -> ¡Faltan datos! | R13: Caminos rurales construidos o reparados. (Kilometros) Caminos Rurales Afirmados ReparadosAmazonas2012 | S13: 400
A14: 18467 | B14: Economica | C14: EJE 7: DESARROLLO ECONÓMICO DE LAS AREAS RURALES DEL PAIS | D14: Caminos rurales construidos o reparados. (Kilometros) | E14: AGE.30.8. | F14: Caminos Rurales Afirmados Reparados | G14: Amazonas | H14: 2013 | I14: 447 | J14: Kilómetros | K14: Instituto Nacional de Estadística e Informática (INEI) - Registro Nacional de Municipalidades (RENAMU) | L14: Instituto Nacional de Estadística e Informática (INEI) - Registro Nacional de Municipalidades (RENAMU) | M14: https://www.inei.gob.pe/media/MenuRecursivo/publicaciones_digitales/Est/Lib1246/index.html | P14: =IFERROR(IF(VLOOKUP(CONCATENATE(D14,F14,G14),ListaIndicadores!$AG$7:$AJ$1887,3,FALSE)="","",VLOOKUP(CONCATENATE(D14,F14,G14),ListaIndicadores!$AG$7:$AJ$1887,3,FALSE)),"") -> -2557 | Q14: =VLOOKUP(CONCATENATE(D14,F14,G14),ListaIndicadores!$AG$7:$AJ$1887,4,FALSE) -> ¡Faltan datos! | R14: Caminos rurales construidos o reparados. (Kilometros) Caminos Rurales Afirmados ReparadosAmazonas2013 | S14: 447
A15: 18468 | B15: Economica | C15: EJE 7: DESARROLLO ECONÓMICO DE LAS AREAS RURALES DEL PAIS | D15: Caminos rurales construidos o reparados. (Kilometros) | E15: AGE.30.8. | F15: Caminos Rurales Afirmados Reparados | G15: Amazonas | H15: 2014 | I15: 813 | J15: Kilómetros | K15: Instituto Nacional de Estadística e Informática (INEI) - Registro Nacional de Municipalidades (RENAMU) | L15: Instituto Nacional de Estadística e Informática (INEI) - Registro Nacional de Municipalidades (RENAMU) | M15: https://www.inei.gob.pe/media/MenuRecursivo/publicaciones_digitales/Est/Lib1362/index.html | P15: =IFERROR(IF(VLOOKUP(CONCATENATE(D15,F15,G15),ListaIndicadores!$AG$7:$AJ$1887,3,FALSE)="","",VLOOKUP(CONCATENATE(D15,F15,G15),ListaIndicadores!$AG$7:$AJ$1887,3,FALSE)),"") -> -2557 | Q15: =VLOOKUP(CONCATENATE(D15,F15,G15),ListaIndicadores!$AG$7:$AJ$1887,4,FALSE) -> ¡Faltan datos! | R15: Caminos rurales construidos o reparados. (Kilometros) Caminos Rurales Afirmados ReparadosAmazonas2014 | S15: 813
A16: 18469 | B16: Economica | C16: EJE 7: DESARROLLO ECONÓMICO DE LAS AREAS RURALES DEL PAIS | D16: Caminos rurales construidos o reparados. (Kilometros) | E16: AGE.30.8. | F16: Caminos Rurales Afirmados Reparados | G16: Amazonas | H16: 2015 | I16: 224 | J16: Kilómetros | K16: Instituto Nacional de Estadística e Informática (INEI) - Registro Nacional de Municipalidades (RENAMU) | L16: Instituto Nacional de Estadística e Informática (INEI) - Registro Nacional de Municipalidades (RENAMU) | M16: https://www.inei.gob.pe/media/MenuRecursivo/publicaciones_digitales/Est/Lib1417/index.html | P16: =IFERROR(IF(VLOOKUP(CONCATENATE(D16,F16,G16),ListaIndicadores!$AG$7:$AJ$1887,3,FALSE)="","",VLOOKUP(CONCATENATE(D16,F16,G16),ListaIndicadores!$AG$7:$AJ$1887,3,FALSE)),"") -> -2557 | Q16: =VLOOKUP(CONCATENATE(D16,F16,G16),ListaIndicadores!$AG$7:$AJ$1887,4,FALSE) -> ¡Faltan datos! | R16: Caminos rurales construidos o reparados. (Kilometros) Caminos Rurales Afirmados ReparadosAmazonas2015 | S16: 224
A17: 18470 | B17: Economica | C17: EJE 7: DESARROLLO ECONÓMICO DE LAS AREAS RURALES DEL PAIS | D17: Caminos rurales construidos o reparados. (Kilometros) | E17: AGE.30.8. | F17: Caminos Rurales Afirmados Reparados | G17: Amazonas | H17: 2016 | I17: 269 | J17: Kilómetros | K17: Instituto Nacional de Estadística e Informática (INEI) - Registro Nacional de Municipalidades (RENAMU) | L17: Instituto Nacional de Estadística e Informática (INEI) - Registro Nacional de Municipalidades (RENAMU) | M17: https://www.inei.gob.pe/media/MenuRecursivo/publicaciones_digitales/Est/Lib1474/index.html | P17: =IFERROR(IF(VLOOKUP(CONCATENATE(D17,F17,G17),ListaIndicadores!$AG$7:$AJ$1887,3,FALSE)="","",VLOOKUP(CONCATENATE(D17,F17,G17),ListaIndicadores!$AG$7:$AJ$1887,3,FALSE)),"") -> -2557 | Q17: =VLOOKUP(CONCATENATE(D17,F17,G17),ListaIndicadores!$AG$7:$AJ$1887,4,FALSE) -> ¡Faltan datos! | R17: Caminos rurales construidos o reparados. (Kilometros) Caminos Rurales Afirmados ReparadosAmazonas2016 | S17: 269
A18: 18601 | B18: Economica | C18: EJE 7: DESARROLLO ECONÓMICO DE LAS AREAS RURALES DEL PAIS | D18: Caminos rurales construidos o reparados. (Kilometros) | E18: AGE.30.8. | F18: Caminos Rurales Sin Afirmar Construidos | G18: Amazonas | H18: 2012 | I18: 125 | J18: Kilómetros | K18: Instituto Nacional de Estadística e Informática (INEI) - Registro Nacional de Municipalidades (RENAMU) | L18: Instituto Nacional de Estadística e Informática (INEI) - Registro Nacional de Municipalidades (RENAMU) | M18: https://www.inei.gob.pe/media/MenuRecursivo/publicaciones_digitales/Est/Lib1186/index.html | P18: =IFERROR(IF(VLOOKUP(CONCATENATE(D18,F18,G18),ListaIndicadores!$AG$7:$AJ$1887,3,FALSE)="","",VLOOKUP(CONCATENATE(D18,F18,G18),ListaIndicadores!$AG$7:$AJ$1887,3,FALSE)),"") -> -309 | Q18: =VLOOKUP(CONCATENATE(D18,F18,G18),ListaIndicadores!$AG$7:$AJ$1887,4,FALSE) -> ¡Faltan datos! | R18: Caminos rurales construidos o reparados. (Kilometros) Caminos Rurales Sin Afirmar ConstruidosAmazonas2012 | S18: 125
A19: 18602 | B19: Economica | C19: EJE 7: DESARROLLO ECONÓMICO DE LAS AREAS RURALES DEL PAIS | D19: Caminos rurales construidos o reparados. (Kilometros) | E19: AGE.30.8. | F19: Caminos Rurales Sin Afirmar Construidos | G19: Amazonas | H19: 2013 | I19: 94 | J19: Kilómetros | K19: Instituto Nacional de Estadística e Informática (INEI) - Registro Nacional de Municipalidades (RENAMU) | L19: Instituto Nacional de Estadística e Informática (INEI) - Registro Nacional de Municipalidades (RENAMU) | M19: https://www.inei.gob.pe/media/MenuRecursivo/publicaciones_digitales/Est/Lib1246/index.html | P19: =IFERROR(IF(VLOOKUP(CONCATENATE(D19,F19,G19),ListaIndicadores!$AG$7:$AJ$1887,3,FALSE)="","",VLOOKUP(CONCATENATE(D19,F19,G19),ListaIndicadores!$AG$7:$AJ$1887,3,FALSE)),"") -> -309 | Q19: =VLOOKUP(CONCATENATE(D19,F19,G19),ListaIndicadores!$AG$7:$AJ$1887,4,FALSE) -> ¡Faltan datos! | R19: Caminos rurales construidos o reparados. (Kilometros) Caminos Rurales Sin Afirmar ConstruidosAmazonas2013 | S19: 94
A20: 18603 | B20: Economica | C20: EJE 7: DESARROLLO ECONÓMICO DE LAS AREAS RURALES DEL PAIS | D20: Caminos rurales construidos o reparados. (Kilometros) | E20: AGE.30.8. | F20: Caminos Rurales Sin Afirmar Construidos | G20: Amazonas | H20: 2014 | I20: 127 | J20: Kilómetros | K20: Instituto Nacional de Estadística e Informática (INEI) - Registro Nacional de Municipalidades (RENAMU) | L20: Instituto Nacional de Estadística e Informática (INEI) - Registro Nacional de Municipalidades (RENAMU) | M20: https://www.inei.gob.pe/media/MenuRecursivo/publicaciones_digitales/Est/Lib1362/index.html | P20: =IFERROR(IF(VLOOKUP(CONCATENATE(D20,F20,G20),ListaIndicadores!$AG$7:$AJ$1887,3,FALSE)="","",VLOOKUP(CONCATENATE(D20,F20,G20),ListaIndicadores!$AG$7:$AJ$1887,3,FALSE)),"") -> -309 | Q20: =VLOOKUP(CONCATENATE(D20,F20,G20),ListaIndicadores!$AG$7:$AJ$1887,4,FALSE) -> ¡Faltan datos! | R20: Caminos rurales construidos o reparados. (Kilometros) Caminos Rurales Sin Afirmar ConstruidosAmazonas2014 | S20: 127
A21: 18604 | B21: Economica | C21: EJE 7: DESARROLLO ECONÓMICO DE LAS AREAS RURALES DEL PAIS | D21: Caminos rurales construidos o reparados. (Kilometros) | E21: AGE.30.8. | F21: Caminos Rurales Sin Afirmar Construidos | G21: Amazonas | H21: 2015 | I21: 43 | J21: Kilómetros | K21: Instituto Nacional de Estadística e Informática (INEI) - Registro Nacional de Municipalidades (RENAMU) | L21: Instituto Nacional de Estadística e Informática (INEI) - Registro Nacional de Municipalidades (RENAMU) | M21: https://www.inei.gob.pe/media/MenuRecursivo/publicaciones_digitales/Est/Lib1417/index.html | P21: =IFERROR(IF(VLOOKUP(CONCATENATE(D21,F21,G21),ListaIndicadores!$AG$7:$AJ$1887,3,FALSE)="","",VLOOKUP(CONCATENATE(D21,F21,G21),ListaIndicadores!$AG$7:$AJ$1887,3,FALSE)),"") -> -309 | Q21: =VLOOKUP(CONCATENATE(D21,F21,G21),ListaIndicadores!$AG$7:$AJ$1887,4,FALSE) -> ¡Faltan datos! | R21: Caminos rurales construidos o reparados. (Kilometros) Caminos Rurales Sin Afirmar ConstruidosAmazonas2015 | S21: 43
A22: 18605 | B22: Economica | C22: EJE 7: DESARROLLO ECONÓMICO DE LAS AREAS RURALES DEL PAIS | D22: Caminos rurales construidos o reparados. (Kilometros) | E22: AGE.30.8. | F22: Caminos Rurales Sin Afirmar Construidos | G22: Amazonas | H22: 2016 | I22: 57 | J22: Kilómetros | K22: Instituto Nacional de Estadística e Informática (INEI) - Registro Nacional de Municipalidades (RENAMU) | L22: Instituto Nacional de Estadística e Informática (INEI) - Registro Nacional de Municipalidades (RENAMU) | M22: https://www.inei.gob.pe/media/MenuRecursivo/publicaciones_digitales/Est/Lib1474/index.html | P22: =IFERROR(IF(VLOOKUP(CONCATENATE(D22,F22,G22),ListaIndicadores!$AG$7:$AJ$1887,3,FALSE)="","",VLOOKUP(CONCATENATE(D22,F22,G22),ListaIndicadores!$AG$7:$AJ$1887,3,FALSE)),"") -> -309 | Q22: =VLOOKUP(CONCATENATE(D22,F22,G22),ListaIndicadores!$AG$7:$AJ$1887,4,FALSE) -> ¡Faltan datos! | R22: Caminos rurales construidos o reparados. (Kilometros) Caminos Rurales Sin Afirmar ConstruidosAmazonas2016 | S22: 57
A23: 18736 | B23: Economica | C23: EJE 7: DESARROLLO ECONÓMICO DE LAS AREAS RURALES DEL PAIS | D23: Caminos rurales construidos o reparados. (Kilometros) | E23: AGE.30.8. | F23: Caminos Rurales Sin Afirmar Reparados | G23: Amazonas | H23: 2012 | I23: 232 | J23: Kilómetros | K23: Instituto Nacional de Estadística e Informática (INEI) - Registro Nacional de Municipalidades (RENAMU) | L23: Instituto Nacional de Estadística e Informática (INEI) - Registro Nacional de Municipalidades (RENAMU) | M23: https://www.inei.gob.pe/media/MenuRecursivo/publicaciones_digitales/Est/Lib1186/index.html | P23: =IFERROR(IF(VLOOKUP(CONCATENATE(D23,F23,G23),ListaIndicadores!$AG$7:$AJ$1887,3,FALSE)="","",VLOOKUP(CONCATENATE(D23,F23,G23),ListaIndicadores!$AG$7:$AJ$1887,3,FALSE)),"") -> 314 | Q23: =VLOOKUP(CONCATENATE(D23,F23,G23),ListaIndicadores!$AG$7:$AJ$1887,4,FALSE) -> ¡Faltan datos! | R23: Caminos rurales construidos o reparados. (Kilometros) Caminos Rurales Sin Afirmar ReparadosAmazonas2012 | S23: 232
A24: 18737 | B24: Economica | C24: EJE 7: DESARROLLO ECONÓMICO DE LAS AREAS RURALES DEL PAIS | D24: Caminos rurales construidos o reparados. (Kilometros) | E24: AGE.30.8. | F24: Caminos Rurales Sin Afirmar Reparados | G24: Amazonas | H24: 2013 | I24: 92 | J24: Kilómetros | K24: Instituto Nacional de Estadística e Informática (INEI) - Registro Nacional de Municipalidades (RENAMU) | L24: Instituto Nacional de Estadística e Informática (INEI) - Registro Nacional de Municipalidades (RENAMU) | M24: https://www.inei.gob.pe/media/MenuRecursivo/publicaciones_digitales/Est/Lib1246/index.html | P24: =IFERROR(IF(VLOOKUP(CONCATENATE(D24,F24,G24),ListaIndicadores!$AG$7:$AJ$1887,3,FALSE)="","",VLOOKUP(CONCATENATE(D24,F24,G24),ListaIndicadores!$AG$7:$AJ$1887,3,FALSE)),"") -> 314 | Q24: =VLOOKUP(CONCATENATE(D24,F24,G24),ListaIndicadores!$AG$7:$AJ$1887,4,FALSE) -> ¡Faltan datos! | R24: Caminos rurales construidos o reparados. (Kilometros) Caminos Rurales Sin Afirmar ReparadosAmazonas2013 | S24: 92
A25: 18738 | B25: Economica | C25: EJE 7: DESARROLLO ECONÓMICO DE LAS AREAS RURALES DEL PAIS | D25: Caminos rurales construidos o reparados. (Kilometros) | E25: AGE.30.8. | F25: Caminos Rurales Sin Afirmar Reparados | G25: Amazonas | H25: 2014 | I25: 264 | J25: Kilómetros | K25: Instituto Nacional de Estadística e Informática (INEI) - Registro Nacional de Municipalidades (RENAMU) | L25: Instituto Nacional de Estadística e Informática (INEI) - Registro Nacional de Municipalidades (RENAMU) | M25: https://www.inei.gob.pe/media/MenuRecursivo/publicaciones_digitales/Est/Lib1362/index.html | P25: =IFERROR(IF(VLOOKUP(CONCATENATE(D25,F25,G25),ListaIndicadores!$AG$7:$AJ$1887,3,FALSE)="","",VLOOKUP(CONCATENATE(D25,F25,G25),ListaIndicadores!$AG$7:$AJ$1887,3,FALSE)),"") -> 314 | Q25: =VLOOKUP(CONCATENATE(D25,F25,G25),ListaIndicadores!$AG$7:$AJ$1887,4,FALSE) -> ¡Faltan datos! | R25: Caminos rurales construidos o reparados. (Kilometros) Caminos Rurales Sin Afirmar ReparadosAmazonas2014 | S25: 264
A26: 18739 | B26: Economica | C26: EJE 7: DESARROLLO ECONÓMICO DE LAS AREAS RURALES DEL PAIS | D26: Caminos rurales construidos o reparados. (Kilometros) | E26: AGE.30.8. | F26: Caminos Rurales Sin Afirmar Reparados | G26: Amazonas | H26: 2015 | I26: 203 | J26: Kilómetros | K26: Instituto Nacional de Estadística e Informática (INEI) - Registro Nacional de Municipalidades (RENAMU) | L26: Instituto Nacional de Estadística e Informática (INEI) - Registro Nacional de Municipalidades (RENAMU) | M26: https://www.inei.gob.pe/media/MenuRecursivo/publicaciones_digitales/Est/Lib1417/index.html | P26: =IFERROR(IF(VLOOKUP(CONCATENATE(D26,F26,G26),ListaIndicadores!$AG$7:$AJ$1887,3,FALSE)="","",VLOOKUP(CONCATENATE(D26,F26,G26),ListaIndicadores!$AG$7:$AJ$1887,3,FALSE)),"") -> 314 | Q26: =VLOOKUP(CONCATENATE(D26,F26,G26),ListaIndicadores!$AG$7:$AJ$1887,4,FALSE) -> ¡Faltan datos! | R26: Caminos rurales construidos o reparados. (Kilometros) Caminos Rurales Sin Afirmar ReparadosAmazonas2015 | S26: 203
A27: 18740 | B27: Economica | C27: EJE 7: DESARROLLO ECONÓMICO DE LAS AREAS RURALES DEL PAIS | D27: Caminos rurales construidos o reparados. (Kilometros) | E27: AGE.30.8. | F27: Caminos Rurales Sin Afirmar Reparados | G27: Amazonas | H27: 2016 | I27: 276 | J27: Kilómetros | K27: Instituto Nacional de Estadística e Informática (INEI) - Registro Nacional de Municipalidades (RENAMU) | L27: Instituto Nacional de Estadística e Informática (INEI) - Registro Nacional de Municipalidades (RENAMU) | M27: https://www.inei.gob.pe/media/MenuRecursivo/publicaciones_digitales/Est/Lib1474/index.html | P27: =IFERROR(IF(VLOOKUP(CONCATENATE(D27,F27,G27),ListaIndicadores!$AG$7:$AJ$1887,3,FALSE)="","",VLOOKUP(CONCATENATE(D27,F27,G27),ListaIndicadores!$AG$7:$AJ$1887,3,FALSE)),"") -> 314 | Q27: =VLOOKUP(CONCATENATE(D27,F27,G27),ListaIndicadores!$AG$7:$AJ$1887,4,FALSE) -> ¡Faltan datos! | R27: Caminos rurales construidos o reparados. (Kilometros) Caminos Rurales Sin Afirmar ReparadosAmazonas2016 | S27: 276
A28: 8025 | B28: Economica | C28: EJE 2: INFRAESTRUCTURA LOGÍSTICA, DE TRANSPORTE Y DE COMUNICACIONES | D28: % de hogares con al menos 1 miembro con teléfono celular | E28: AGE.8.1 | F28: Departamental | G28: Amazonas | H28: 2012 | I28: 72.7 | J28: Porcentaje | K28: INEI: Compendio Estadístico Perú | L28: Encuesta Nacional de Hogares (ENAHO) - Instituto Nacional de Estadística e Informática (INEI) | M28: https://www.inei.gob.pe/media/MenuRecursivo/publicaciones_digitales/Est/Lib1635/cap11/ind11.htm | P28: =IFERROR(IF(VLOOKUP(CONCATENATE(D28,F28,G28),ListaIndicadores!$AG$7:$AJ$1887,3,FALSE)="","",VLOOKUP(CONCATENATE(D28,F28,G28),ListaIndicadores!$AG$7:$AJ$1887,3,FALSE)),"") ->  | Q28: =VLOOKUP(CONCATENATE(D28,F28,G28),ListaIndicadores!$AG$7:$AJ$1887,4,FALSE) ->  | R28: % de hogares con al menos 1 miembro con teléfono celular DepartamentalAmazonas2012 | S28: 72.7
A29: 8026 | B29: Economica | C29: EJE 2: INFRAESTRUCTURA LOGÍSTICA, DE TRANSPORTE Y DE COMUNICACIONES | D29: % de hogares con al menos 1 miembro con teléfono celular | E29: AGE.8.1 | F29: Departamental | G29: Amazonas | H29: 2013 | I29: 76.75 | J29: Porcentaje | K29: INEI: Compendio Estadístico Perú | L29: Encuesta Nacional de Hogares (ENAHO) - Instituto Nacional de Estadística e Informática (INEI) | M29: https://www.inei.gob.pe/media/MenuRecursivo/publicaciones_digitales/Est/Lib1635/cap11/ind11.htm | P29: =IFERROR(IF(VLOOKUP(CONCATENATE(D29,F29,G29),ListaIndicadores!$AG$7:$AJ$1887,3,FALSE)="","",VLOOKUP(CONCATENATE(D29,F29,G29),ListaIndicadores!$AG$7:$AJ$1887,3,FALSE)),"") ->  | Q29: =VLOOKUP(CONCATENATE(D29,F29,G29),ListaIndicadores!$AG$7:$AJ$1887,4,FALSE) ->  | R29: % de hogares con al menos 1 miembro con teléfono celular DepartamentalAmazonas2013 | S29: 76.75
A30: 8027 | B30: Economica | C30: EJE 2: INFRAESTRUCTURA LOGÍSTICA, DE TRANSPORTE Y DE COMUNICACIONES | D30: % de hogares con al menos 1 miembro con teléfono celular | E30: AGE.8.1 | F30: Departamental | G30: Amazonas | H30: 2014 | I30: 76.6 | J30: Porcentaje | K30: INEI: Compendio Estadístico Perú | L30: Encuesta Nacional de Hogares (ENAHO) - Instituto Nacional de Estadística e Informática (INEI) | M30: https://www.inei.gob.pe/media/MenuRecursivo/publicaciones_digitales/Est/Lib1635/cap11/ind11.htm | P30: =IFERROR(IF(VLOOKUP(CONCATENATE(D30,F30,G30),ListaIndicadores!$AG$7:$AJ$1887,3,FALSE)="","",VLOOKUP(CONCATENATE(D30,F30,G30),ListaIndicadores!$AG$7:$AJ$1887,3,FALSE)),"") ->  | Q30: =VLOOKUP(CONCATENATE(D30,F30,G30),ListaIndicadores!$AG$7:$AJ$1887,4,FALSE) ->  | R30: % de hogares con al menos 1 miembro con teléfono celular DepartamentalAmazonas2014 | S30: 76.6
A31: 8028 | B31: Economica | C31: EJE 2: INFRAESTRUCTURA LOGÍSTICA, DE TRANSPORTE Y DE COMUNICACIONES | D31: % de hogares con al menos 1 miembro con teléfono celular | E31: AGE.8.1 | F31: Departamental | G31: Amazonas | H31: 2015 | I31: 80.2 | J31: Porcentaje | K31: INEI: Compendio Estadístico Perú | L31: Encuesta Nacional de Hogares (ENAHO) - Instituto Nacional de Estadística e Informática (INEI) | M31: https://www.inei.gob.pe/media/MenuRecursivo/publicaciones_digitales/Est/Lib1635/cap11/ind11.htm | P31: =IFERROR(IF(VLOOKUP(CONCATENATE(D31,F31,G31),ListaIndicadores!$AG$7:$AJ$1887,3,FALSE)="","",VLOOKUP(CONCATENATE(D31,F31,G31),ListaIndicadores!$AG$7:$AJ$1887,3,FALSE)),"") ->  | Q31: =VLOOKUP(CONCATENATE(D31,F31,G31),ListaIndicadores!$AG$7:$AJ$1887,4,FALSE) ->  | R31: % de hogares con al menos 1 miembro con teléfono celular DepartamentalAmazonas2015 | S31: 80.2
A32: 8029 | B32: Economica | C32: EJE 2: INFRAESTRUCTURA LOGÍSTICA, DE TRANSPORTE Y DE COMUNICACIONES | D32: % de hogares con al menos 1 miembro con teléfono celular | E32: AGE.8.1 | F32: Departamental | G32: Amazonas | H32: 2016 | I32: 83.6 | J32: Porcentaje | K32: INEI: Compendio Estadístico Perú | L32: Encuesta Nacional de Hogares (ENAHO) - Instituto Nacional de Estadística e Informática (INEI) | M32: https://www.inei.gob.pe/media/MenuRecursivo/publicaciones_digitales/Est/Lib1635/cap11/ind11.htm | P32: =IFERROR(IF(VLOOKUP(CONCATENATE(D32,F32,G32),ListaIndicadores!$AG$7:$AJ$1887,3,FALSE)="","",VLOOKUP(CONCATENATE(D32,F32,G32),ListaIndicadores!$AG$7:$AJ$1887,3,FALSE)),"") ->  | Q32: =VLOOKUP(CONCATENATE(D32,F32,G32),ListaIndicadores!$AG$7:$AJ$1887,4,FALSE) ->  | R32: % de hogares con al menos 1 miembro con teléfono celular DepartamentalAmazonas2016 | S32: 83.6
A33: 8030 | B33: Economica | C33: EJE 2: INFRAESTRUCTURA LOGÍSTICA, DE TRANSPORTE Y DE COMUNICACIONES | D33: % de hogares con al menos 1 miembro con teléfono celular | E33: AGE.8.1 | F33: Departamental | G33: Amazonas | H33: 2017 | I33: 84.8 | J33: Porcentaje | K33: INEI: Compendio Estadístico Perú | L33: Encuesta Nacional de Hogares (ENAHO) - Instituto Nacional de Estadística e Informática (INEI) | M33: https://www.inei.gob.pe/media/MenuRecursivo/publicaciones_digitales/Est/Lib1635/cap11/ind11.htm | P33: =IFERROR(IF(VLOOKUP(CONCATENATE(D33,F33,G33),ListaIndicadores!$AG$7:$AJ$1887,3,FALSE)="","",VLOOKUP(CONCATENATE(D33,F33,G33),ListaIndicadores!$AG$7:$AJ$1887,3,FALSE)),"") ->  | Q33: =VLOOKUP(CONCATENATE(D33,F33,G33),ListaIndicadores!$AG$7:$AJ$1887,4,FALSE) ->  | R33: % de hogares con al menos 1 miembro con teléfono celular DepartamentalAmazonas2017 | S33: 84.8
A34: 8031 | B34: Economica | C34: EJE 2: INFRAESTRUCTURA LOGÍSTICA, DE TRANSPORTE Y DE COMUNICACIONES | D34: % de hogares con al menos 1 miembro con teléfono celular | E34: AGE.8.1 | F34: Departamental | G34: Amazonas | H34: 2018 | I34: Sin datos | J34: Porcentaje | K34: INEI: Compendio Estadístico Perú | L34: Encuesta Nacional de Hogares (ENAHO) - Instituto Nacional de Estadística e Informática (INEI) | M34: https://www.inei.gob.pe/media/MenuRecursivo/publicaciones_digitales/Est/Lib1635/cap11/ind11.htm | P34: =IFERROR(IF(VLOOKUP(CONCATENATE(D34,F34,G34),ListaIndicadores!$AG$7:$AJ$1887,3,FALSE)="","",VLOOKUP(CONCATENATE(D34,F34,G34),ListaIndicadores!$AG$7:$AJ$1887,3,FALSE)),"") ->  | Q34: =VLOOKUP(CONCATENATE(D34,F34,G34),ListaIndicadores!$AG$7:$AJ$1887,4,FALSE) ->  | R34: % de hogares con al menos 1 miembro con teléfono celular DepartamentalAmazonas2018 | S34: Sin datos
A35: 8227 | B35: Economica | C35: EJE 2: INFRAESTRUCTURA LOGÍSTICA, DE TRANSPORTE Y DE COMUNICACIONES | D35: Municipalidades con conexión por fibra óptica o transporte de alta velocidad (con cobertura internet) | E35: AGE.8.2 | F35: Departamental | G35: Amazonas | H35: 2012 | I35: 35 | J35: Municipalidades | K35: Instituto Nacional de Estadística e Informática (INEI) - Registro Nacional de Municipalidades (RENAMU) | L35: Instituto Nacional de Estadística e Informática (INEI) - Registro Nacional de Municipalidades (RENAMU) | M35: https://www.inei.gob.pe/media/MenuRecursivo/publicaciones_digitales/Est/Lib1110/index.html | P35: =IFERROR(IF(VLOOKUP(CONCATENATE(D35,F35,G35),ListaIndicadores!$AG$7:$AJ$1887,3,FALSE)="","",VLOOKUP(CONCATENATE(D35,F35,G35),ListaIndicadores!$AG$7:$AJ$1887,3,FALSE)),"") ->  | Q35: =VLOOKUP(CONCATENATE(D35,F35,G35),ListaIndicadores!$AG$7:$AJ$1887,4,FALSE) ->  | R35: Municipalidades con conexión por fibra óptica o transporte de alta velocidad (con cobertura internet)DepartamentalAmazonas2012 | S35: 35
A36: 8228 | B36: Economica | C36: EJE 2: INFRAESTRUCTURA LOGÍSTICA, DE TRANSPORTE Y DE COMUNICACIONES | D36: Municipalidades con conexión por fibra óptica o transporte de alta velocidad (con cobertura internet) | E36: AGE.8.2 | F36: Departamental | G36: Amazonas | H36: 2013 | I36: 45 | J36: Municipalidades | K36: Instituto Nacional de Estadística e Informática (INEI) - Registro Nacional de Municipalidades (RENAMU) | L36: Instituto Nacional de Estadística e Informática (INEI) - Registro Nacional de Municipalidades (RENAMU) | M36: https://www.inei.gob.pe/media/MenuRecursivo/publicaciones_digitales/Est/Lib1186/index.html | P36: =IFERROR(IF(VLOOKUP(CONCATENATE(D36,F36,G36),ListaIndicadores!$AG$7:$AJ$1887,3,FALSE)="","",VLOOKUP(CONCATENATE(D36,F36,G36),ListaIndicadores!$AG$7:$AJ$1887,3,FALSE)),"") ->  | Q36: =VLOOKUP(CONCATENATE(D36,F36,G36),ListaIndicadores!$AG$7:$AJ$1887,4,FALSE) ->  | R36: Municipalidades con conexión por fibra óptica o transporte de alta velocidad (con cobertura internet)DepartamentalAmazonas2013 | S36: 45
A37: 8229 | B37: Economica | C37: EJE 2: INFRAESTRUCTURA LOGÍSTICA, DE TRANSPORTE Y DE COMUNICACIONES | D37: Municipalidades con conexión por fibra óptica o transporte de alta velocidad (con cobertura internet) | E37: AGE.8.2 | F37: Departamental | G37: Amazonas | H37: 2014 | I37: 53 | J37: Municipalidades | K37: Instituto Nacional de Estadística e Informática (INEI) - Registro Nacional de Municipalidades (RENAMU) | L37: Instituto Nacional de Estadística e Informática (INEI) - Registro Nacional de Municipalidades (RENAMU) | M37: https://www.inei.gob.pe/media/MenuRecursivo/publicaciones_digitales/Est/Lib1246/index.html | P37: =IFERROR(IF(VLOOKUP(CONCATENATE(D37,F37,G37),ListaIndicadores!$AG$7:$AJ$1887,3,FALSE)="","",VLOOKUP(CONCATENATE(D37,F37,G37),ListaIndicadores!$AG$7:$AJ$1887,3,FALSE)),"") ->  | Q37: =VLOOKUP(CONCATENATE(D37,F37,G37),ListaIndicadores!$AG$7:$AJ$1887,4,FALSE) ->  | R37: Municipalidades con conexión por fibra óptica o transporte de alta velocidad (con cobertura internet)DepartamentalAmazonas2014 | S37: 53
A38: 8230 | B38: Economica | C38: EJE 2: INFRAESTRUCTURA LOGÍSTICA, DE TRANSPORTE Y DE COMUNICACIONES | D38: Municipalidades con conexión por fibra óptica o transporte de alta velocidad (con cobertura internet) | E38: AGE.8.2 | F38: Departamental | G38: Amazonas | H38: 2015 | I38: 52 | J38: Municipalidades | K38: Instituto Nacional de Estadística e Informática (INEI) - Registro Nacional de Municipalidades (RENAMU) | L38: Instituto Nacional de Estadística e Informática (INEI) - Registro Nacional de Municipalidades (RENAMU) | M38: https://www.inei.gob.pe/media/MenuRecursivo/publicaciones_digitales/Est/Lib1362/index.html | P38: =IFERROR(IF(VLOOKUP(CONCATENATE(D38,F38,G38),ListaIndicadores!$AG$7:$AJ$1887,3,FALSE)="","",VLOOKUP(CONCATENATE(D38,F38,G38),ListaIndicadores!$AG$7:$AJ$1887,3,FALSE)),"") ->  | Q38: =VLOOKUP(CONCATENATE(D38,F38,G38),ListaIndicadores!$AG$7:$AJ$1887,4,FALSE) ->  | R38: Municipalidades con conexión por fibra óptica o transporte de alta velocidad (con cobertura internet)DepartamentalAmazonas2015 | S38: 52
A39: 8231 | B39: Economica | C39: EJE 2: INFRAESTRUCTURA LOGÍSTICA, DE TRANSPORTE Y DE COMUNICACIONES | D39: Municipalidades con conexión por fibra óptica o transporte de alta velocidad (con cobertura internet) | E39: AGE.8.2 | F39: Departamental | G39: Amazonas | H39: 2016 | I39: 57 | J39: Municipalidades | K39: Instituto Nacional de Estadística e Informática (INEI) - Registro Nacional de Municipalidades (RENAMU) | L39: Instituto Nacional de Estadística e Informática (INEI) - Registro Nacional de Municipalidades (RENAMU) | M39: https://www.inei.gob.pe/media/MenuRecursivo/publicaciones_digitales/Est/Lib1417/index.html | P39: =IFERROR(IF(VLOOKUP(CONCATENATE(D39,F39,G39),ListaIndicadores!$AG$7:$AJ$1887,3,FALSE)="","",VLOOKUP(CONCATENATE(D39,F39,G39),ListaIndicadores!$AG$7:$AJ$1887,3,FALSE)),"") ->  | Q39: =VLOOKUP(CONCATENATE(D39,F39,G39),ListaIndicadores!$AG$7:$AJ$1887,4,FALSE) ->  | R39: Municipalidades con conexión por fibra óptica o transporte de alta velocidad (con cobertura internet)DepartamentalAmazonas2016 | S39: 57
A40: 8232 | B40: Economica | C40: EJE 2: INFRAESTRUCTURA LOGÍSTICA, DE TRANSPORTE Y DE COMUNICACIONES | D40: Municipalidades con conexión por fibra óptica o transporte de alta velocidad (con cobertura internet) | E40: AGE.8.2 | F40: Departamental | G40: Amazonas | H40: 2017 | I40: 61 | J40: Municipalidades | K40: Instituto Nacional de Estadística e Informática (INEI) - Registro Nacional de Municipalidades (RENAMU) | L40: Instituto Nacional de Estadística e Informática (INEI) - Registro Nacional de Municipalidades (RENAMU) | M40: https://www.inei.gob.pe/media/MenuRecursivo/publicaciones_digitales/Est/Lib1474/index.html | P40: =IFERROR(IF(VLOOKUP(CONCATENATE(D40,F40,G40),ListaIndicadores!$AG$7:$AJ$1887,3,FALSE)="","",VLOOKUP(CONCATENATE(D40,F40,G40),ListaIndicadores!$AG$7:$AJ$1887,3,FALSE)),"") ->  | Q40: =VLOOKUP(CONCATENATE(D40,F40,G40),ListaIndicadores!$AG$7:$AJ$1887,4,FALSE) ->  | R40: Municipalidades con conexión por fibra óptica o transporte de alta velocidad (con cobertura internet)DepartamentalAmazonas2017 | S40: 61
A41: 8233 | B41: Economica | C41: EJE 2: INFRAESTRUCTURA LOGÍSTICA, DE TRANSPORTE Y DE COMUNICACIONES | D41: Municipalidades con conexión por fibra óptica o transporte de alta velocidad (con cobertura internet) | E41: AGE.8.2 | F41: Departamental | G41: Amazonas | H41: 2018 | I41: 64 | J41: Municipalidades | K41: Instituto Nacional de Estadística e Informática (INEI) - Registro Nacional de Municipalidades (RENAMU) | L41: Instituto Nacional de Estadística e Informática (INEI) - Registro Nacional de Municipalidades (RENAMU) | M41: https://www.inei.gob.pe/media/MenuRecursivo/publicaciones_digitales/Est/Lib1636/index.html | P41: =IFERROR(IF(VLOOKUP(CONCATENATE(D41,F41,G41),ListaIndicadores!$AG$7:$AJ$1887,3,FALSE)="","",VLOOKUP(CONCATENATE(D41,F41,G41),ListaIndicadores!$AG$7:$AJ$1887,3,FALSE)),"") ->  | Q41: =VLOOKUP(CONCATENATE(D41,F41,G41),ListaIndicadores!$AG$7:$AJ$1887,4,FALSE) ->  | R41: Municipalidades con conexión por fibra óptica o transporte de alta velocidad (con cobertura internet)DepartamentalAmazonas2018 | S41: 64
A42: 8452 | B42: Economica | C42: EJE 3: POLÍTICA FISCAL | D42: Gasto Social referido a las funciones de Trabajo, Saneamiento, Vivienda y Desarrollo urbano, Salud, Cultura y deporte, Educación, Protección social y Pensiones (Millones de soles) Devengado SIAF | E42: AGE.12.1 | F42: Cultura y Dep | G42: Amazonas | H42: 2014 | I42: 18461600 | J42: Soles | K42: Ministerio de Economía y Finanzas (MEF)- Seguimiento de la Ejecución Presupuestal (Consulta amigable) | L42: Portal de Transparencia Económica | M42: http://apps5.mineco.gob.pe/transparencia/Navegador/default.aspx | P42: =IFERROR(IF(VLOOKUP(CONCATENATE(D42,F42,G42),ListaIndicadores!$AG$7:$AJ$1887,3,FALSE)="","",VLOOKUP(CONCATENATE(D42,F42,G42),ListaIndicadores!$AG$7:$AJ$1887,3,FALSE)),"") ->  | Q42: =VLOOKUP(CONCATENATE(D42,F42,G42),ListaIndicadores!$AG$7:$AJ$1887,4,FALSE) ->  | R42: Gasto Social referido a las funciones de Trabajo, Saneamiento, Vivienda y Desarrollo urbano, Salud, Cultura y deporte, Educación, Protección social y Pensiones (Millones de soles) Devengado SIAFCultura y DepAmazonas2014 | S42: 18461600
A43: 8453 | B43: Economica | C43: EJE 3: POLÍTICA FISCAL | D43: Gasto Social referido a las funciones de Trabajo, Saneamiento, Vivienda y Desarrollo urbano, Salud, Cultura y deporte, Educación, Protección social y Pensiones (Millones de soles) Devengado SIAF | E43: AGE.12.1 | F43: Cultura y Dep | G43: Amazonas | H43: 2015 | I43: 9059039 | J43: Soles | K43: Ministerio de Economía y Finanzas (MEF)- Seguimiento de la Ejecución Presupuestal (Consulta amigable) | L43: Portal de Transparencia Económica | M43: http://apps5.mineco.gob.pe/transparencia/Navegador/default.aspx | P43: =IFERROR(IF(VLOOKUP(CONCATENATE(D43,F43,G43),ListaIndicadores!$AG$7:$AJ$1887,3,FALSE)="","",VLOOKUP(CONCATENATE(D43,F43,G43),ListaIndicadores!$AG$7:$AJ$1887,3,FALSE)),"") ->  | Q43: =VLOOKUP(CONCATENATE(D43,F43,G43),ListaIndicadores!$AG$7:$AJ$1887,4,FALSE) ->  | R43: Gasto Social referido a las funciones de Trabajo, Saneamiento, Vivienda y Desarrollo urbano, Salud, Cultura y deporte, Educación, Protección social y Pensiones (Millones de soles) Devengado SIAFCultura y DepAmazonas2015 | S43: 9059039
A44: 8454 | B44: Economica | C44: EJE 3: POLÍTICA FISCAL | D44: Gasto Social referido a las funciones de Trabajo, Saneamiento, Vivienda y Desarrollo urbano, Salud, Cultura y deporte, Educación, Protección social y Pensiones (Millones de soles) Devengado SIAF | E44: AGE.12.1 | F44: Cultura y Dep | G44: Amazonas | H44: 2016 | I44: 9840937 | J44: Soles | K44: Ministerio de Economía y Finanzas (MEF)- Seguimiento de la Ejecución Presupuestal (Consulta amigable) | L44: Portal de Transparencia Económica | M44: http://apps5.mineco.gob.pe/transparencia/Navegador/default.aspx | P44: =IFERROR(IF(VLOOKUP(CONCATENATE(D44,F44,G44),ListaIndicadores!$AG$7:$AJ$1887,3,FALSE)="","",VLOOKUP(CONCATENATE(D44,F44,G44),ListaIndicadores!$AG$7:$AJ$1887,3,FALSE)),"") ->  | Q44: =VLOOKUP(CONCATENATE(D44,F44,G44),ListaIndicadores!$AG$7:$AJ$1887,4,FALSE) ->  | R44: Gasto Social referido a las funciones de Trabajo, Saneamiento, Vivienda y Desarrollo urbano, Salud, Cultura y deporte, Educación, Protección social y Pensiones (Millones de soles) Devengado SIAFCultura y DepAmazonas2016 | S44: 9840937
A45: 8455 | B45: Economica | C45: EJE 3: POLÍTICA FISCAL | D45: Gasto Social referido a las funciones de Trabajo, Saneamiento, Vivienda y Desarrollo urbano, Salud, Cultura y deporte, Educación, Protección social y Pensiones (Millones de soles) Devengado SIAF | E45: AGE.12.1 | F45: Cultura y Dep | G45: Amazonas | H45: 2017 | I45: 10213569 | J45: Soles | K45: Ministerio de Economía y Finanzas (MEF)- Seguimiento de la Ejecución Presupuestal (Consulta amigable) | L45: Portal de Transparencia Económica | M45: http://apps5.mineco.gob.pe/transparencia/Navegador/default.aspx | P45: =IFERROR(IF(VLOOKUP(CONCATENATE(D45,F45,G45),ListaIndicadores!$AG$7:$AJ$1887,3,FALSE)="","",VLOOKUP(CONCATENATE(D45,F45,G45),ListaIndicadores!$AG$7:$AJ$1887,3,FALSE)),"") ->  | Q45: =VLOOKUP(CONCATENATE(D45,F45,G45),ListaIndicadores!$AG$7:$AJ$1887,4,FALSE) ->  | R45: Gasto Social referido a las funciones de Trabajo, Saneamiento, Vivienda y Desarrollo urbano, Salud, Cultura y deporte, Educación, Protección social y Pensiones (Millones de soles) Devengado SIAFCultura y DepAmazonas2017 | S45: 10213569
A46: 8456 | B46: Economica | C46: EJE 3: POLÍTICA FISCAL | D46: Gasto Social referido a las funciones de Trabajo, Saneamiento, Vivienda y Desarrollo urbano, Salud, Cultura y deporte, Educación, Protección social y Pensiones (Millones de soles) Devengado SIAF | E46: AGE.12.1 | F46: Cultura y Dep | G46: Amazonas | H46: 2018 | I46: 16969235 | J46: Soles | K46: Ministerio de Economía y Finanzas (MEF)- Seguimiento de la Ejecución Presupuestal (Consulta amigable) | L46: Portal de Transparencia Económica | M46: http://apps5.mineco.gob.pe/transparencia/Navegador/default.aspx | P46: =IFERROR(IF(VLOOKUP(CONCATENATE(D46,F46,G46),ListaIndicadores!$AG$7:$AJ$1887,3,FALSE)="","",VLOOKUP(CONCATENATE(D46,F46,G46),ListaIndicadores!$AG$7:$AJ$1887,3,FALSE)),"") ->  | Q46: =VLOOKUP(CONCATENATE(D46,F46,G46),ListaIndicadores!$AG$7:$AJ$1887,4,FALSE) ->  | R46: Gasto Social referido a las funciones de Trabajo, Saneamiento, Vivienda y Desarrollo urbano, Salud, Cultura y deporte, Educación, Protección social y Pensiones (Millones de soles) Devengado SIAFCultura y DepAmazonas2018 | S46: 16969235
A47: 8583 | B47: Economica | C47: EJE 3: POLÍTICA FISCAL | D47: Gasto Social referido a las funciones de Trabajo, Saneamiento, Vivienda y Desarrollo urbano, Salud, Cultura y deporte, Educación, Protección social y Pensiones (Millones de soles) Devengado SIAF | E47: AGE.12.1 | F47: Educación | G47: Amazonas | H47: 2014 | I47: 389906924 | J47: Soles | K47: Ministerio de Economía y Finanzas (MEF)- Seguimiento de la Ejecución Presupuestal (Consulta amigable) | L47: Portal de Transparencia Económica | M47: http://apps5.mineco.gob.pe/transparencia/Navegador/default.aspx | P47: =IFERROR(IF(VLOOKUP(CONCATENATE(D47,F47,G47),ListaIndicadores!$AG$7:$AJ$1887,3,FALSE)="","",VLOOKUP(CONCATENATE(D47,F47,G47),ListaIndicadores!$AG$7:$AJ$1887,3,FALSE)),"") ->  | Q47: =VLOOKUP(CONCATENATE(D47,F47,G47),ListaIndicadores!$AG$7:$AJ$1887,4,FALSE) ->  | R47: Gasto Social referido a las funciones de Trabajo, Saneamiento, Vivienda y Desarrollo urbano, Salud, Cultura y deporte, Educación, Protección social y Pensiones (Millones de soles) Devengado SIAFEducaciónAmazonas2014 | S47: 389906924
A48: 8584 | B48: Economica | C48: EJE 3: POLÍTICA FISCAL | D48: Gasto Social referido a las funciones de Trabajo, Saneamiento, Vivienda y Desarrollo urbano, Salud, Cultura y deporte, Educación, Protección social y Pensiones (Millones de soles) Devengado SIAF | E48: AGE.12.1 | F48: Educación | G48: Amazonas | H48: 2015 | I48: 540327104 | J48: Soles | K48: Ministerio de Economía y Finanzas (MEF)- Seguimiento de la Ejecución Presupuestal (Consulta amigable) | L48: Portal de Transparencia Económica | M48: http://apps5.mineco.gob.pe/transparencia/Navegador/default.aspx | P48: =IFERROR(IF(VLOOKUP(CONCATENATE(D48,F48,G48),ListaIndicadores!$AG$7:$AJ$1887,3,FALSE)="","",VLOOKUP(CONCATENATE(D48,F48,G48),ListaIndicadores!$AG$7:$AJ$1887,3,FALSE)),"") ->  | Q48: =VLOOKUP(CONCATENATE(D48,F48,G48),ListaIndicadores!$AG$7:$AJ$1887,4,FALSE) ->  | R48: Gasto Social referido a las funciones de Trabajo, Saneamiento, Vivienda y Desarrollo urbano, Salud, Cultura y deporte, Educación, Protección social y Pensiones (Millones de soles) Devengado SIAFEducaciónAmazonas2015 | S48: 540327104
A49: 8585 | B49: Economica | C49: EJE 3: POLÍTICA FISCAL | D49: Gasto Social referido a las funciones de Trabajo, Saneamiento, Vivienda y Desarrollo urbano, Salud, Cultura y deporte, Educación, Protección social y Pensiones (Millones de soles) Devengado SIAF | E49: AGE.12.1 | F49: Educación | G49: Amazonas | H49: 2016 | I49: 503666087 | J49: Soles | K49: Ministerio de Economía y Finanzas (MEF)- Seguimiento de la Ejecución Presupuestal (Consulta amigable) | L49: Portal de Transparencia Económica | M49: http://apps5.mineco.gob.pe/transparencia/Navegador/default.aspx | P49: =IFERROR(IF(VLOOKUP(CONCATENATE(D49,F49,G49),ListaIndicadores!$AG$7:$AJ$1887,3,FALSE)="","",VLOOKUP(CONCATENATE(D49,F49,G49),ListaIndicadores!$AG$7:$AJ$1887,3,FALSE)),"") ->  | Q49: =VLOOKUP(CONCATENATE(D49,F49,G49),ListaIndicadores!$AG$7:$AJ$1887,4,FALSE) ->  | R49: Gasto Social referido a las funciones de Trabajo, Saneamiento, Vivienda y Desarrollo urbano, Salud, Cultura y deporte, Educación, Protección social y Pensiones (Millones de soles) Devengado SIAFEducaciónAmazonas2016 | S49: 503666087
A50: 8586 | B50: Economica | C50: EJE 3: POLÍTICA FISCAL | D50: Gasto Social referido a las funciones de Trabajo, Saneamiento, Vivienda y Desarrollo urbano, Salud, Cultura y deporte, Educación, Protección social y Pensiones (Millones de soles) Devengado SIAF | E50: AGE.12.1 | F50: Educación | G50: Amazonas | H50: 2017 | I50: 570872511 | J50: Soles | K50: Ministerio de Economía y Finanzas (MEF)- Seguimiento de la Ejecución Presupuestal (Consulta amigable) | L50: Portal de Transparencia Económica | M50: http://apps5.mineco.gob.pe/transparencia/Navegador/default.aspx | P50: =IFERROR(IF(VLOOKUP(CONCATENATE(D50,F50,G50),ListaIndicadores!$AG$7:$AJ$1887,3,FALSE)="","",VLOOKUP(CONCATENATE(D50,F50,G50),ListaIndicadores!$AG$7:$AJ$1887,3,FALSE)),"") ->  | Q50: =VLOOKUP(CONCATENATE(D50,F50,G50),ListaIndicadores!$AG$7:$AJ$1887,4,FALSE) ->  | R50: Gasto Social referido a las funciones de Trabajo, Saneamiento, Vivienda y Desarrollo urbano, Salud, Cultura y deporte, Educación, Protección social y Pensiones (Millones de soles) Devengado SIAFEducaciónAmazonas2017 | S50: 570872511
A51: 8587 | B51: Economica | C51: EJE 3: POLÍTICA FISCAL | D51: Gasto Social referido a las funciones de Trabajo, Saneamiento, Vivienda y Desarrollo urbano, Salud, Cultura y deporte, Educación, Protección social y Pensiones (Millones de soles) Devengado SIAF | E51: AGE.12.1 | F51: Educación | G51: Amazonas | H51: 2018 | I51: 581322409 | J51: Soles | K51: Ministerio de Economía y Finanzas (MEF)- Seguimiento de la Ejecución Presupuestal (Consulta amigable) | L51: Portal de Transparencia Económica | M51: http://apps5.mineco.gob.pe/transparencia/Navegador/default.aspx | P51: =IFERROR(IF(VLOOKUP(CONCATENATE(D51,F51,G51),ListaIndicadores!$AG$7:$AJ$1887,3,FALSE)="","",VLOOKUP(CONCATENATE(D51,F51,G51),ListaIndicadores!$AG$7:$AJ$1887,3,FALSE)),"") ->  | Q51: =VLOOKUP(CONCATENATE(D51,F51,G51),ListaIndicadores!$AG$7:$AJ$1887,4,FALSE) ->  | R51: Gasto Social referido a las funciones de Trabajo, Saneamiento, Vivienda y Desarrollo urbano, Salud, Cultura y deporte, Educación, Protección social y Pensiones (Millones de soles) Devengado SIAFEducaciónAmazonas2018 | S51: 581322409
A52: 8726 | B52: Economica | C52: EJE 3: POLÍTICA FISCAL | D52: Gasto Social referido a las funciones de Trabajo, Saneamiento, Vivienda y Desarrollo urbano, Salud, Cultura y deporte, Educación, Protección social y Pensiones (Millones de soles) Devengado SIAF | E52: AGE.12.1 | F52: Prev. Social | G52: Amazonas | H52: 2014 | I52: 28275296 | J52: Soles | K52: Ministerio de Economía y Finanzas (MEF)- Seguimiento de la Ejecución Presupuestal (Consulta amigable) | L52: Portal de Transparencia Económica | M52: http://apps5.mineco.gob.pe/transparencia/Navegador/default.aspx | P52: =IFERROR(IF(VLOOKUP(CONCATENATE(D52,F52,G52),ListaIndicadores!$AG$7:$AJ$1887,3,FALSE)="","",VLOOKUP(CONCATENATE(D52,F52,G52),ListaIndicadores!$AG$7:$AJ$1887,3,FALSE)),"") ->  | Q52: =VLOOKUP(CONCATENATE(D52,F52,G52),ListaIndicadores!$AG$7:$AJ$1887,4,FALSE) ->  | R52: Gasto Social referido a las funciones de Trabajo, Saneamiento, Vivienda y Desarrollo urbano, Salud, Cultura y deporte, Educación, Protección social y Pensiones (Millones de soles) Devengado SIAFPrev. SocialAmazonas2014 | S52: 28275296
A53: 8727 | B53: Economica | C53: EJE 3: POLÍTICA FISCAL | D53: Gasto Social referido a las funciones de Trabajo, Saneamiento, Vivienda y Desarrollo urbano, Salud, Cultura y deporte, Educación, Protección social y Pensiones (Millones de soles) Devengado SIAF | E53: AGE.12.1 | F53: Prev. Social | G53: Amazonas | H53: 2015 | I53: 27947112 | J53: Soles | K53: Ministerio de Economía y Finanzas (MEF)- Seguimiento de la Ejecución Presupuestal (Consulta amigable) | L53: Portal de Transparencia Económica | M53: http://apps5.mineco.gob.pe/transparencia/Navegador/default.aspx | P53: =IFERROR(IF(VLOOKUP(CONCATENATE(D53,F53,G53),ListaIndicadores!$AG$7:$AJ$1887,3,FALSE)="","",VLOOKUP(CONCATENATE(D53,F53,G53),ListaIndicadores!$AG$7:$AJ$1887,3,FALSE)),"") ->  | Q53: =VLOOKUP(CONCATENATE(D53,F53,G53),ListaIndicadores!$AG$7:$AJ$1887,4,FALSE) ->  | R53: Gasto Social referido a las funciones de Trabajo, Saneamiento, Vivienda y Desarrollo urbano, Salud, Cultura y deporte, Educación, Protección social y Pensiones (Millones de soles) Devengado SIAFPrev. SocialAmazonas2015 | S53: 27947112
A54: 8728 | B54: Economica | C54: EJE 3: POLÍTICA FISCAL | D54: Gasto Social referido a las funciones de Trabajo, Saneamiento, Vivienda y Desarrollo urbano, Salud, Cultura y deporte, Educación, Protección social y Pensiones (Millones de soles) Devengado SIAF | E54: AGE.12.1 | F54: Prev. Social | G54: Amazonas | H54: 2016 | I54: 28672957 | J54: Soles | K54: Ministerio de Economía y Finanzas (MEF)- Seguimiento de la Ejecución Presupuestal (Consulta amigable) | L54: Portal de Transparencia Económica | M54: http://apps5.mineco.gob.pe/transparencia/Navegador/default.aspx | P54: =IFERROR(IF(VLOOKUP(CONCATENATE(D54,F54,G54),ListaIndicadores!$AG$7:$AJ$1887,3,FALSE)="","",VLOOKUP(CONCATENATE(D54,F54,G54),ListaIndicadores!$AG$7:$AJ$1887,3,FALSE)),"") ->  | Q54: =VLOOKUP(CONCATENATE(D54,F54,G54),ListaIndicadores!$AG$7:$AJ$1887,4,FALSE) ->  | R54: Gasto Social referido a las funciones de Trabajo, Saneamiento, Vivienda y Desarrollo urbano, Salud, Cultura y deporte, Educación, Protección social y Pensiones (Millones de soles) Devengado SIAFPrev. SocialAmazonas2016 | S54: 28672957
A55: 8729 | B55: Economica | C55: EJE 3: POLÍTICA FISCAL | D55: Gasto Social referido a las funciones de Trabajo, Saneamiento, Vivienda y Desarrollo urbano, Salud, Cultura y deporte, Educación, Protección social y Pensiones (Millones de soles) Devengado SIAF | E55: AGE.12.1 | F55: Prev. Social | G55: Amazonas | H55: 2017 | I55: 27727249 | J55: Soles | K55: Ministerio de Economía y Finanzas (MEF)- Seguimiento de la Ejecución Presupuestal (Consulta amigable) | L55: Portal de Transparencia Económica | M55: http://apps5.mineco.gob.pe/transparencia/Navegador/default.aspx | P55: =IFERROR(IF(VLOOKUP(CONCATENATE(D55,F55,G55),ListaIndicadores!$AG$7:$AJ$1887,3,FALSE)="","",VLOOKUP(CONCATENATE(D55,F55,G55),ListaIndicadores!$AG$7:$AJ$1887,3,FALSE)),"") ->  | Q55: =VLOOKUP(CONCATENATE(D55,F55,G55),ListaIndicadores!$AG$7:$AJ$1887,4,FALSE) ->  | R55: Gasto Social referido a las funciones de Trabajo, Saneamiento, Vivienda y Desarrollo urbano, Salud, Cultura y deporte, Educación, Protección social y Pensiones (Millones de soles) Devengado SIAFPrev. SocialAmazonas2017 | S55: 27727249
A56: 8730 | B56: Economica | C56: EJE 3: POLÍTICA FISCAL | D56: Gasto Social referido a las funciones de Trabajo, Saneamiento, Vivienda y Desarrollo urbano, Salud, Cultura y deporte, Educación, Protección social y Pensiones (Millones de soles) Devengado SIAF | E56: AGE.12.1 | F56: Prev. Social | G56: Amazonas | H56: 2018 | I56: 32454814 | J56: Soles | K56: Ministerio de Economía y Finanzas (MEF)- Seguimiento de la Ejecución Presupuestal (Consulta amigable) | L56: Portal de Transparencia Económica | M56: http://apps5.mineco.gob.pe/transparencia/Navegador/default.aspx | P56: =IFERROR(IF(VLOOKUP(CONCATENATE(D56,F56,G56),ListaIndicadores!$AG$7:$AJ$1887,3,FALSE)="","",VLOOKUP(CONCATENATE(D56,F56,G56),ListaIndicadores!$AG$7:$AJ$1887,3,FALSE)),"") ->  | Q56: =VLOOKUP(CONCATENATE(D56,F56,G56),ListaIndicadores!$AG$7:$AJ$1887,4,FALSE) ->  | R56: Gasto Social referido a las funciones de Trabajo, Saneamiento, Vivienda y Desarrollo urbano, Salud, Cultura y deporte, Educación, Protección social y Pensiones (Millones de soles) Devengado SIAFPrev. SocialAmazonas2018 | S56: 32454814
A57: 8851 | B57: Economica | C57: EJE 3: POLÍTICA FISCAL | D57: Gasto Social referido a las funciones de Trabajo, Saneamiento, Vivienda y Desarrollo urbano, Salud, Cultura y deporte, Educación, Protección social y Pensiones (Millones de soles) Devengado SIAF | E57: AGE.12.1 | F57: Prot. Social | G57: Amazonas | H57: 2014 | I57: 141339276 | J57: Soles | K57: Ministerio de Economía y Finanzas (MEF)- Seguimiento de la Ejecución Presupuestal (Consulta amigable) | L57: Portal de Transparencia Económica | M57: http://apps5.mineco.gob.pe/transparencia/Navegador/default.aspx | P57: =IFERROR(IF(VLOOKUP(CONCATENATE(D57,F57,G57),ListaIndicadores!$AG$7:$AJ$1887,3,FALSE)="","",VLOOKUP(CONCATENATE(D57,F57,G57),ListaIndicadores!$AG$7:$AJ$1887,3,FALSE)),"") ->  | Q57: =VLOOKUP(CONCATENATE(D57,F57,G57),ListaIndicadores!$AG$7:$AJ$1887,4,FALSE) ->  | R57: Gasto Social referido a las funciones de Trabajo, Saneamiento, Vivienda y Desarrollo urbano, Salud, Cultura y deporte, Educación, Protección social y Pensiones (Millones de soles) Devengado SIAFProt. SocialAmazonas2014 | S57: 141339276
A58: 8852 | B58: Economica | C58: EJE 3: POLÍTICA FISCAL | D58: Gasto Social referido a las funciones de Trabajo, Saneamiento, Vivienda y Desarrollo urbano, Salud, Cultura y deporte, Educación, Protección social y Pensiones (Millones de soles) Devengado SIAF | E58: AGE.12.1 | F58: Prot. Social | G58: Amazonas | H58: 2015 | I58: 147159404 | J58: Soles | K58: Ministerio de Economía y Finanzas (MEF)- Seguimiento de la Ejecución Presupuestal (Consulta amigable) | L58: Portal de Transparencia Económica | M58: http://apps5.mineco.gob.pe/transparencia/Navegador/default.aspx | P58: =IFERROR(IF(VLOOKUP(CONCATENATE(D58,F58,G58),ListaIndicadores!$AG$7:$AJ$1887,3,FALSE)="","",VLOOKUP(CONCATENATE(D58,F58,G58),ListaIndicadores!$AG$7:$AJ$1887,3,FALSE)),"") ->  | Q58: =VLOOKUP(CONCATENATE(D58,F58,G58),ListaIndicadores!$AG$7:$AJ$1887,4,FALSE) ->  | R58: Gasto Social referido a las funciones de Trabajo, Saneamiento, Vivienda y Desarrollo urbano, Salud, Cultura y deporte, Educación, Protección social y Pensiones (Millones de soles) Devengado SIAFProt. SocialAmazonas2015 | S58: 147159404
A59: 8853 | B59: Economica | C59: EJE 3: POLÍTICA FISCAL | D59: Gasto Social referido a las funciones de Trabajo, Saneamiento, Vivienda y Desarrollo urbano, Salud, Cultura y deporte, Educación, Protección social y Pensiones (Millones de soles) Devengado SIAF | E59: AGE.12.1 | F59: Prot. Social | G59: Amazonas | H59: 2016 | I59: 138804792 | J59: Soles | K59: Ministerio de Economía y Finanzas (MEF)- Seguimiento de la Ejecución Presupuestal (Consulta amigable) | L59: Portal de Transparencia Económica | M59: http://apps5.mineco.gob.pe/transparencia/Navegador/default.aspx | P59: =IFERROR(IF(VLOOKUP(CONCATENATE(D59,F59,G59),ListaIndicadores!$AG$7:$AJ$1887,3,FALSE)="","",VLOOKUP(CONCATENATE(D59,F59,G59),ListaIndicadores!$AG$7:$AJ$1887,3,FALSE)),"") ->  | Q59: =VLOOKUP(CONCATENATE(D59,F59,G59),ListaIndicadores!$AG$7:$AJ$1887,4,FALSE) ->  | R59: Gasto Social referido a las funciones de Trabajo, Saneamiento, Vivienda y Desarrollo urbano, Salud, Cultura y deporte, Educación, Protección social y Pensiones (Millones de soles) Devengado SIAFProt. SocialAmazonas2016 | S59: 138804792
A60: 8854 | B60: Economica | C60: EJE 3: POLÍTICA FISCAL | D60: Gasto Social referido a las funciones de Trabajo, Saneamiento, Vivienda y Desarrollo urbano, Salud, Cultura y deporte, Educación, Protección social y Pensiones (Millones de soles) Devengado SIAF | E60: AGE.12.1 | F60: Prot. Social | G60: Amazonas | H60: 2017 | I60: 181222954 | J60: Soles | K60: Ministerio de Economía y Finanzas (MEF)- Seguimiento de la Ejecución Presupuestal (Consulta amigable) | L60: Portal de Transparencia Económica | M60: http://apps5.mineco.gob.pe/transparencia/Navegador/default.aspx | P60: =IFERROR(IF(VLOOKUP(CONCATENATE(D60,F60,G60),ListaIndicadores!$AG$7:$AJ$1887,3,FALSE)="","",VLOOKUP(CONCATENATE(D60,F60,G60),ListaIndicadores!$AG$7:$AJ$1887,3,FALSE)),"") ->  | Q60: =VLOOKUP(CONCATENATE(D60,F60,G60),ListaIndicadores!$AG$7:$AJ$1887,4,FALSE) ->  | R60: Gasto Social referido a las funciones de Trabajo, Saneamiento, Vivienda y Desarrollo urbano, Salud, Cultura y deporte, Educación, Protección social y Pensiones (Millones de soles) Devengado SIAFProt. SocialAmazonas2017 | S60: 181222954
A61: 8855 | B61: Economica | C61: EJE 3: POLÍTICA FISCAL | D61: Gasto Social referido a las funciones de Trabajo, Saneamiento, Vivienda y Desarrollo urbano, Salud, Cultura y deporte, Educación, Protección social y Pensiones (Millones de soles) Devengado SIAF | E61: AGE.12.1 | F61: Prot. Social | G61: Amazonas | H61: 2018 | I61: 186116568 | J61: Soles | K61: Ministerio de Economía y Finanzas (MEF)- Seguimiento de la Ejecución Presupuestal (Consulta amigable) | L61: Portal de Transparencia Económica | M61: http://apps5.mineco.gob.pe/transparencia/Navegador/default.aspx | P61: =IFERROR(IF(VLOOKUP(CONCATENATE(D61,F61,G61),ListaIndicadores!$AG$7:$AJ$1887,3,FALSE)="","",VLOOKUP(CONCATENATE(D61,F61,G61),ListaIndicadores!$AG$7:$AJ$1887,3,FALSE)),"") ->  | Q61: =VLOOKUP(CONCATENATE(D61,F61,G61),ListaIndicadores!$AG$7:$AJ$1887,4,FALSE) ->  | R61: Gasto Social referido a las funciones de Trabajo, Saneamiento, Vivienda y Desarrollo urbano, Salud, Cultura y deporte, Educación, Protección social y Pensiones (Millones de soles) Devengado SIAFProt. SocialAmazonas2018 | S61: 186116568
A62: 8982 | B62: Economica | C62: EJE 3: POLÍTICA FISCAL | D62: Gasto Social referido a las funciones de Trabajo, Saneamiento, Vivienda y Desarrollo urbano, Salud, Cultura y deporte, Educación, Protección social y Pensiones (Millones de soles) Devengado SIAF | E62: AGE.12.1 | F62: Salud | G62: Amazonas | H62: 2014 | I62: 173135944 | J62: Soles | K62: Ministerio de Economía y Finanzas (MEF)- Seguimiento de la Ejecución Presupuestal (Consulta amigable) | L62: Portal de Transparencia Económica | M62: http://apps5.mineco.gob.pe/transparencia/Navegador/default.aspx | P62: =IFERROR(IF(VLOOKUP(CONCATENATE(D62,F62,G62),ListaIndicadores!$AG$7:$AJ$1887,3,FALSE)="","",VLOOKUP(CONCATENATE(D62,F62,G62),ListaIndicadores!$AG$7:$AJ$1887,3,FALSE)),"") ->  | Q62: =VLOOKUP(CONCATENATE(D62,F62,G62),ListaIndicadores!$AG$7:$AJ$1887,4,FALSE) ->  | R62: Gasto Social referido a las funciones de Trabajo, Saneamiento, Vivienda y Desarrollo urbano, Salud, Cultura y deporte, Educación, Protección social y Pensiones (Millones de soles) Devengado SIAFSaludAmazonas2014 | S62: 173135944
A63: 8983 | B63: Economica | C63: EJE 3: POLÍTICA FISCAL | D63: Gasto Social referido a las funciones de Trabajo, Saneamiento, Vivienda y Desarrollo urbano, Salud, Cultura y deporte, Educación, Protección social y Pensiones (Millones de soles) Devengado SIAF | E63: AGE.12.1 | F63: Salud | G63: Amazonas | H63: 2015 | I63: 226251480 | J63: Soles | K63: Ministerio de Economía y Finanzas (MEF)- Seguimiento de la Ejecución Presupuestal (Consulta amigable) | L63: Portal de Transparencia Económica | M63: http://apps5.mineco.gob.pe/transparencia/Navegador/default.aspx | P63: =IFERROR(IF(VLOOKUP(CONCATENATE(D63,F63,G63),ListaIndicadores!$AG$7:$AJ$1887,3,FALSE)="","",VLOOKUP(CONCATENATE(D63,F63,G63),ListaIndicadores!$AG$7:$AJ$1887,3,FALSE)),"") ->  | Q63: =VLOOKUP(CONCATENATE(D63,F63,G63),ListaIndicadores!$AG$7:$AJ$1887,4,FALSE) ->  | R63: Gasto Social referido a las funciones de Trabajo, Saneamiento, Vivienda y Desarrollo urbano, Salud, Cultura y deporte, Educación, Protección social y Pensiones (Millones de soles) Devengado SIAFSaludAmazonas2015 | S63: 226251480
A64: 8984 | B64: Economica | C64: EJE 3: POLÍTICA FISCAL | D64: Gasto Social referido a las funciones de Trabajo, Saneamiento, Vivienda y Desarrollo urbano, Salud, Cultura y deporte, Educación, Protección social y Pensiones (Millones de soles) Devengado SIAF | E64: AGE.12.1 | F64: Salud | G64: Amazonas | H64: 2016 | I64: 204161905 | J64: Soles | K64: Ministerio de Economía y Finanzas (MEF)- Seguimiento de la Ejecución Presupuestal (Consulta amigable) | L64: Portal de Transparencia Económica | M64: http://apps5.mineco.gob.pe/transparencia/Navegador/default.aspx | P64: =IFERROR(IF(VLOOKUP(CONCATENATE(D64,F64,G64),ListaIndicadores!$AG$7:$AJ$1887,3,FALSE)="","",VLOOKUP(CONCATENATE(D64,F64,G64),ListaIndicadores!$AG$7:$AJ$1887,3,FALSE)),"") ->  | Q64: =VLOOKUP(CONCATENATE(D64,F64,G64),ListaIndicadores!$AG$7:$AJ$1887,4,FALSE) ->  | R64: Gasto Social referido a las funciones de Trabajo, Saneamiento, Vivienda y Desarrollo urbano, Salud, Cultura y deporte, Educación, Protección social y Pensiones (Millones de soles) Devengado SIAFSaludAmazonas2016 | S64: 204161905
A65: 8985 | B65: Economica | C65: EJE 3: POLÍTICA FISCAL | D65: Gasto Social referido a las funciones de Trabajo, Saneamiento, Vivienda y Desarrollo urbano, Salud, Cultura y deporte, Educación, Protección social y Pensiones (Millones de soles) Devengado SIAF | E65: AGE.12.1 | F65: Salud | G65: Amazonas | H65: 2017 | I65: 502375785 | J65: Soles | K65: Ministerio de Economía y Finanzas (MEF)- Seguimiento de la Ejecución Presupuestal (Consulta amigable) | L65: Portal de Transparencia Económica | M65: http://apps5.mineco.gob.pe/transparencia/Navegador/default.aspx | P65: =IFERROR(IF(VLOOKUP(CONCATENATE(D65,F65,G65),ListaIndicadores!$AG$7:$AJ$1887,3,FALSE)="","",VLOOKUP(CONCATENATE(D65,F65,G65),ListaIndicadores!$AG$7:$AJ$1887,3,FALSE)),"") ->  | Q65: =VLOOKUP(CONCATENATE(D65,F65,G65),ListaIndicadores!$AG$7:$AJ$1887,4,FALSE) ->  | R65: Gasto Social referido a las funciones de Trabajo, Saneamiento, Vivienda y Desarrollo urbano, Salud, Cultura y deporte, Educación, Protección social y Pensiones (Millones de soles) Devengado SIAFSaludAmazonas2017 | S65: 502375785
A66: 8986 | B66: Economica | C66: EJE 3: POLÍTICA FISCAL | D66: Gasto Social referido a las funciones de Trabajo, Saneamiento, Vivienda y Desarrollo urbano, Salud, Cultura y deporte, Educación, Protección social y Pensiones (Millones de soles) Devengado SIAF | E66: AGE.12.1 | F66: Salud | G66: Amazonas | H66: 2018 | I66: 566354205 | J66: Soles | K66: Ministerio de Economía y Finanzas (MEF)- Seguimiento de la Ejecución Presupuestal (Consulta amigable) | L66: Portal de Transparencia Económica | M66: http://apps5.mineco.gob.pe/transparencia/Navegador/default.aspx | P66: =IFERROR(IF(VLOOKUP(CONCATENATE(D66,F66,G66),ListaIndicadores!$AG$7:$AJ$1887,3,FALSE)="","",VLOOKUP(CONCATENATE(D66,F66,G66),ListaIndicadores!$AG$7:$AJ$1887,3,FALSE)),"") ->  | Q66: =VLOOKUP(CONCATENATE(D66,F66,G66),ListaIndicadores!$AG$7:$AJ$1887,4,FALSE) ->  | R66: Gasto Social referido a las funciones de Trabajo, Saneamiento, Vivienda y Desarrollo urbano, Salud, Cultura y deporte, Educación, Protección social y Pensiones (Millones de soles) Devengado SIAFSaludAmazonas2018 | S66: 566354205
A67: 9113 | B67: Economica | C67: EJE 3: POLÍTICA FISCAL | D67: Gasto Social referido a las funciones de Trabajo, Saneamiento, Vivienda y Desarrollo urbano, Salud, Cultura y deporte, Educación, Protección social y Pensiones (Millones de soles) Devengado SIAF | E67: AGE.12.1 | F67: Saneamiento | G67: Amazonas | H67: 2012 | I67: 73070218 | J67: Soles | K67: Ministerio de Economía y Finanzas (MEF)- Seguimiento de la Ejecución Presupuestal (Consulta amigable) | L67: Portal de Transparencia Económica | M67: http://apps5.mineco.gob.pe/transparencia/Navegador/default.aspx | P67: =IFERROR(IF(VLOOKUP(CONCATENATE(D67,F67,G67),ListaIndicadores!$AG$7:$AJ$1887,3,FALSE)="","",VLOOKUP(CONCATENATE(D67,F67,G67),ListaIndicadores!$AG$7:$AJ$1887,3,FALSE)),"") ->  | Q67: =VLOOKUP(CONCATENATE(D67,F67,G67),ListaIndicadores!$AG$7:$AJ$1887,4,FALSE) ->  | R67: Gasto Social referido a las funciones de Trabajo, Saneamiento, Vivienda y Desarrollo urbano, Salud, Cultura y deporte, Educación, Protección social y Pensiones (Millones de soles) Devengado SIAFSaneamiento Amazonas2012 | S67: 73070218
A68: 9114 | B68: Economica | C68: EJE 3: POLÍTICA FISCAL | D68: Gasto Social referido a las funciones de Trabajo, Saneamiento, Vivienda y Desarrollo urbano, Salud, Cultura y deporte, Educación, Protección social y Pensiones (Millones de soles) Devengado SIAF | E68: AGE.12.1 | F68: Saneamiento | G68: Amazonas | H68: 2013 | I68: 82765310 | J68: Soles | K68: Ministerio de Economía y Finanzas (MEF)- Seguimiento de la Ejecución Presupuestal (Consulta amigable) | L68: Portal de Transparencia Económica | M68: http://apps5.mineco.gob.pe/transparencia/Navegador/default.aspx | P68: =IFERROR(IF(VLOOKUP(CONCATENATE(D68,F68,G68),ListaIndicadores!$AG$7:$AJ$1887,3,FALSE)="","",VLOOKUP(CONCATENATE(D68,F68,G68),ListaIndicadores!$AG$7:$AJ$1887,3,FALSE)),"") ->  | Q68: =VLOOKUP(CONCATENATE(D68,F68,G68),ListaIndicadores!$AG$7:$AJ$1887,4,FALSE) ->  | R68: Gasto Social referido a las funciones de Trabajo, Saneamiento, Vivienda y Desarrollo urbano, Salud, Cultura y deporte, Educación, Protección social y Pensiones (Millones de soles) Devengado SIAFSaneamiento Amazonas2013 | S68: 82765310
A69: 9115 | B69: Economica | C69: EJE 3: POLÍTICA FISCAL | D69: Gasto Social referido a las funciones de Trabajo, Saneamiento, Vivienda y Desarrollo urbano, Salud, Cultura y deporte, Educación, Protección social y Pensiones (Millones de soles) Devengado SIAF | E69: AGE.12.1 | F69: Saneamiento | G69: Amazonas | H69: 2014 | I69: 178625143 | J69: Soles | K69: Ministerio de Economía y Finanzas (MEF)- Seguimiento de la Ejecución Presupuestal (Consulta amigable) | L69: Portal de Transparencia Económica | M69: http://apps5.mineco.gob.pe/transparencia/Navegador/default.aspx | P69: =IFERROR(IF(VLOOKUP(CONCATENATE(D69,F69,G69),ListaIndicadores!$AG$7:$AJ$1887,3,FALSE)="","",VLOOKUP(CONCATENATE(D69,F69,G69),ListaIndicadores!$AG$7:$AJ$1887,3,FALSE)),"") ->  | Q69: =VLOOKUP(CONCATENATE(D69,F69,G69),ListaIndicadores!$AG$7:$AJ$1887,4,FALSE) ->  | R69: Gasto Social referido a las funciones de Trabajo, Saneamiento, Vivienda y Desarrollo urbano, Salud, Cultura y deporte, Educación, Protección social y Pensiones (Millones de soles) Devengado SIAFSaneamiento Amazonas2014 | S69: 178625143
A70: 9116 | B70: Economica | C70: EJE 3: POLÍTICA FISCAL | D70: Gasto Social referido a las funciones de Trabajo, Saneamiento, Vivienda y Desarrollo urbano, Salud, Cultura y deporte, Educación, Protección social y Pensiones (Millones de soles) Devengado SIAF | E70: AGE.12.1 | F70: Saneamiento | G70: Amazonas | H70: 2015 | I70: 135564070 | J70: Soles | K70: Ministerio de Economía y Finanzas (MEF)- Seguimiento de la Ejecución Presupuestal (Consulta amigable) | L70: Portal de Transparencia Económica | M70: http://apps5.mineco.gob.pe/transparencia/Navegador/default.aspx | P70: =IFERROR(IF(VLOOKUP(CONCATENATE(D70,F70,G70),ListaIndicadores!$AG$7:$AJ$1887,3,FALSE)="","",VLOOKUP(CONCATENATE(D70,F70,G70),ListaIndicadores!$AG$7:$AJ$1887,3,FALSE)),"") ->  | Q70: =VLOOKUP(CONCATENATE(D70,F70,G70),ListaIndicadores!$AG$7:$AJ$1887,4,FALSE) ->  | R70: Gasto Social referido a las funciones de Trabajo, Saneamiento, Vivienda y Desarrollo urbano, Salud, Cultura y deporte, Educación, Protección social y Pensiones (Millones de soles) Devengado SIAFSaneamiento Amazonas2015 | S70: 135564070
A71: 9117 | B71: Economica | C71: EJE 3: POLÍTICA FISCAL | D71: Gasto Social referido a las funciones de Trabajo, Saneamiento, Vivienda y Desarrollo urbano, Salud, Cultura y deporte, Educación, Protección social y Pensiones (Millones de soles) Devengado SIAF | E71: AGE.12.1 | F71: Saneamiento | G71: Amazonas | H71: 2016 | I71: 91129784 | J71: Soles | K71: Ministerio de Economía y Finanzas (MEF)- Seguimiento de la Ejecución Presupuestal (Consulta amigable) | L71: Portal de Transparencia Económica | M71: http://apps5.mineco.gob.pe/transparencia/Navegador/default.aspx | P71: =IFERROR(IF(VLOOKUP(CONCATENATE(D71,F71,G71),ListaIndicadores!$AG$7:$AJ$1887,3,FALSE)="","",VLOOKUP(CONCATENATE(D71,F71,G71),ListaIndicadores!$AG$7:$AJ$1887,3,FALSE)),"") ->  | Q71: =VLOOKUP(CONCATENATE(D71,F71,G71),ListaIndicadores!$AG$7:$AJ$1887,4,FALSE) ->  | R71: Gasto Social referido a las funciones de Trabajo, Saneamiento, Vivienda y Desarrollo urbano, Salud, Cultura y deporte, Educación, Protección social y Pensiones (Millones de soles) Devengado SIAFSaneamiento Amazonas2016 | S71: 91129784
A72: 9118 | B72: Economica | C72: EJE 3: POLÍTICA FISCAL | D72: Gasto Social referido a las funciones de Trabajo, Saneamiento, Vivienda y Desarrollo urbano, Salud, Cultura y deporte, Educación, Protección social y Pensiones (Millones de soles) Devengado SIAF | E72: AGE.12.1 | F72: Saneamiento | G72: Amazonas | H72: 2017 | I72: 276945729 | J72: Soles | K72: Ministerio de Economía y Finanzas (MEF)- Seguimiento de la Ejecución Presupuestal (Consulta amigable) | L72: Portal de Transparencia Económica | M72: http://apps5.mineco.gob.pe/transparencia/Navegador/default.aspx | P72: =IFERROR(IF(VLOOKUP(CONCATENATE(D72,F72,G72),ListaIndicadores!$AG$7:$AJ$1887,3,FALSE)="","",VLOOKUP(CONCATENATE(D72,F72,G72),ListaIndicadores!$AG$7:$AJ$1887,3,FALSE)),"") ->  | Q72: =VLOOKUP(CONCATENATE(D72,F72,G72),ListaIndicadores!$AG$7:$AJ$1887,4,FALSE) ->  | R72: Gasto Social referido a las funciones de Trabajo, Saneamiento, Vivienda y Desarrollo urbano, Salud, Cultura y deporte, Educación, Protección social y Pensiones (Millones de soles) Devengado SIAFSaneamiento Amazonas2017 | S72: 276945729
A73: 9119 | B73: Economica | C73: EJE 3: POLÍTICA FISCAL | D73: Gasto Social referido a las funciones de Trabajo, Saneamiento, Vivienda y Desarrollo urbano, Salud, Cultura y deporte, Educación, Protección social y Pensiones (Millones de soles) Devengado SIAF | E73: AGE.12.1 | F73: Saneamiento | G73: Amazonas | H73: 2018 | I73: 432456635 | J73: Soles | K73: Ministerio de Economía y Finanzas (MEF)- Seguimiento de la Ejecución Presupuestal (Consulta amigable) | L73: Portal de Transparencia Económica | M73: http://apps5.mineco.gob.pe/transparencia/Navegador/default.aspx | P73: =IFERROR(IF(VLOOKUP(CONCATENATE(D73,F73,G73),ListaIndicadores!$AG$7:$AJ$1887,3,FALSE)="","",VLOOKUP(CONCATENATE(D73,F73,G73),ListaIndicadores!$AG$7:$AJ$1887,3,FALSE)),"") ->  | Q73: =VLOOKUP(CONCATENATE(D73,F73,G73),ListaIndicadores!$AG$7:$AJ$1887,4,FALSE) ->  | R73: Gasto Social referido a las funciones de Trabajo, Saneamiento, Vivienda y Desarrollo urbano, Salud, Cultura y deporte, Educación, Protección social y Pensiones (Millones de soles) Devengado SIAFSaneamiento Amazonas2018 | S73: 432456635
A74: 9294 | B74: Economica | C74: EJE 3: POLÍTICA FISCAL | D74: Gasto Social referido a las funciones de Trabajo, Saneamiento, Vivienda y Desarrollo urbano, Salud, Cultura y deporte, Educación, Protección social y Pensiones (Millones de soles) Devengado SIAF | E74: AGE.12.1 | F74: Trabajo | G74: Amazonas | H74: 2014 | I74: 5842619 | J74: Soles | K74: Ministerio de Economía y Finanzas (MEF)- Seguimiento de la Ejecución Presupuestal (Consulta amigable) | L74: Portal de Transparencia Económica | M74: http://apps5.mineco.gob.pe/transparencia/Navegador/default.aspx | P74: =IFERROR(IF(VLOOKUP(CONCATENATE(D74,F74,G74),ListaIndicadores!$AG$7:$AJ$1887,3,FALSE)="","",VLOOKUP(CONCATENATE(D74,F74,G74),ListaIndicadores!$AG$7:$AJ$1887,3,FALSE)),"") ->  | Q74: =VLOOKUP(CONCATENATE(D74,F74,G74),ListaIndicadores!$AG$7:$AJ$1887,4,FALSE) ->  | R74: Gasto Social referido a las funciones de Trabajo, Saneamiento, Vivienda y Desarrollo urbano, Salud, Cultura y deporte, Educación, Protección social y Pensiones (Millones de soles) Devengado SIAFTrabajoAmazonas2014 | S74: 5842619
A75: 9295 | B75: Economica | C75: EJE 3: POLÍTICA FISCAL | D75: Gasto Social referido a las funciones de Trabajo, Saneamiento, Vivienda y Desarrollo urbano, Salud, Cultura y deporte, Educación, Protección social y Pensiones (Millones de soles) Devengado SIAF | E75: AGE.12.1 | F75: Trabajo | G75: Amazonas | H75: 2015 | I75: 9213438 | J75: Soles | K75: Ministerio de Economía y Finanzas (MEF)- Seguimiento de la Ejecución Presupuestal (Consulta amigable) | L75: Portal de Transparencia Económica | M75: http://apps5.mineco.gob.pe/transparencia/Navegador/default.aspx | P75: =IFERROR(IF(VLOOKUP(CONCATENATE(D75,F75,G75),ListaIndicadores!$AG$7:$AJ$1887,3,FALSE)="","",VLOOKUP(CONCATENATE(D75,F75,G75),ListaIndicadores!$AG$7:$AJ$1887,3,FALSE)),"") ->  | Q75: =VLOOKUP(CONCATENATE(D75,F75,G75),ListaIndicadores!$AG$7:$AJ$1887,4,FALSE) ->  | R75: Gasto Social referido a las funciones de Trabajo, Saneamiento, Vivienda y Desarrollo urbano, Salud, Cultura y deporte, Educación, Protección social y Pensiones (Millones de soles) Devengado SIAFTrabajoAmazonas2015 | S75: 9213438
A76: 9296 | B76: Economica | C76: EJE 3: POLÍTICA FISCAL | D76: Gasto Social referido a las funciones de Trabajo, Saneamiento, Vivienda y Desarrollo urbano, Salud, Cultura y deporte, Educación, Protección social y Pensiones (Millones de soles) Devengado SIAF | E76: AGE.12.1 | F76: Trabajo | G76: Amazonas | H76: 2016 | I76: 10887319 | J76: Soles | K76: Ministerio de Economía y Finanzas (MEF)- Seguimiento de la Ejecución Presupuestal (Consulta amigable) | L76: Portal de Transparencia Económica | M76: http://apps5.mineco.gob.pe/transparencia/Navegador/default.aspx | P76: =IFERROR(IF(VLOOKUP(CONCATENATE(D76,F76,G76),ListaIndicadores!$AG$7:$AJ$1887,3,FALSE)="","",VLOOKUP(CONCATENATE(D76,F76,G76),ListaIndicadores!$AG$7:$AJ$1887,3,FALSE)),"") ->  | Q76: =VLOOKUP(CONCATENATE(D76,F76,G76),ListaIndicadores!$AG$7:$AJ$1887,4,FALSE) ->  | R76: Gasto Social referido a las funciones de Trabajo, Saneamiento, Vivienda y Desarrollo urbano, Salud, Cultura y deporte, Educación, Protección social y Pensiones (Millones de soles) Devengado SIAFTrabajoAmazonas2016 | S76: 10887319
A77: 9297 | B77: Economica | C77: EJE 3: POLÍTICA FISCAL | D77: Gasto Social referido a las funciones de Trabajo, Saneamiento, Vivienda y Desarrollo urbano, Salud, Cultura y deporte, Educación, Protección social y Pensiones (Millones de soles) Devengado SIAF | E77: AGE.12.1 | F77: Trabajo | G77: Amazonas | H77: 2017 | I77: 3323112 | J77: Soles | K77: Ministerio de Economía y Finanzas (MEF)- Seguimiento de la Ejecución Presupuestal (Consulta amigable) | L77: Portal de Transparencia Económica | M77: http://apps5.mineco.gob.pe/transparencia/Navegador/default.aspx | P77: =IFERROR(IF(VLOOKUP(CONCATENATE(D77,F77,G77),ListaIndicadores!$AG$7:$AJ$1887,3,FALSE)="","",VLOOKUP(CONCATENATE(D77,F77,G77),ListaIndicadores!$AG$7:$AJ$1887,3,FALSE)),"") ->  | Q77: =VLOOKUP(CONCATENATE(D77,F77,G77),ListaIndicadores!$AG$7:$AJ$1887,4,FALSE) ->  | R77: Gasto Social referido a las funciones de Trabajo, Saneamiento, Vivienda y Desarrollo urbano, Salud, Cultura y deporte, Educación, Protección social y Pensiones (Millones de soles) Devengado SIAFTrabajoAmazonas2017 | S77: 3323112
A78: 9298 | B78: Economica | C78: EJE 3: POLÍTICA FISCAL | D78: Gasto Social referido a las funciones de Trabajo, Saneamiento, Vivienda y Desarrollo urbano, Salud, Cultura y deporte, Educación, Protección social y Pensiones (Millones de soles) Devengado SIAF | E78: AGE.12.1 | F78: Trabajo | G78: Amazonas | H78: 2018 | I78: 5197711 | J78: Soles | K78: Ministerio de Economía y Finanzas (MEF)- Seguimiento de la Ejecución Presupuestal (Consulta amigable) | L78: Portal de Transparencia Económica | M78: http://apps5.mineco.gob.pe/transparencia/Navegador/default.aspx | P78: =IFERROR(IF(VLOOKUP(CONCATENATE(D78,F78,G78),ListaIndicadores!$AG$7:$AJ$1887,3,FALSE)="","",VLOOKUP(CONCATENATE(D78,F78,G78),ListaIndicadores!$AG$7:$AJ$1887,3,FALSE)),"") ->  | Q78: =VLOOKUP(CONCATENATE(D78,F78,G78),ListaIndicadores!$AG$7:$AJ$1887,4,FALSE) ->  | R78: Gasto Social referido a las funciones de Trabajo, Saneamiento, Vivienda y Desarrollo urbano, Salud, Cultura y deporte, Educación, Protección social y Pensiones (Millones de soles) Devengado SIAFTrabajoAmazonas2018 | S78: 5197711
A79: 9425 | B79: Economica | C79: EJE 3: POLÍTICA FISCAL | D79: Gasto Social referido a las funciones de Trabajo, Saneamiento, Vivienda y Desarrollo urbano, Salud, Cultura y deporte, Educación, Protección social y Pensiones (Millones de soles) Devengado SIAF | E79: AGE.12.1 | F79: Vivienda y DU | G79: Amazonas | H79: 2014 | I79: 31257941 | J79: Soles | K79: Ministerio de Economía y Finanzas (MEF)- Seguimiento de la Ejecución Presupuestal (Consulta amigable) | L79: Portal de Transparencia Económica | M79: http://apps5.mineco.gob.pe/transparencia/Navegador/default.aspx | P79: =IFERROR(IF(VLOOKUP(CONCATENATE(D79,F79,G79),ListaIndicadores!$AG$7:$AJ$1887,3,FALSE)="","",VLOOKUP(CONCATENATE(D79,F79,G79),ListaIndicadores!$AG$7:$AJ$1887,3,FALSE)),"") ->  | Q79: =VLOOKUP(CONCATENATE(D79,F79,G79),ListaIndicadores!$AG$7:$AJ$1887,4,FALSE) ->  | R79: Gasto Social referido a las funciones de Trabajo, Saneamiento, Vivienda y Desarrollo urbano, Salud, Cultura y deporte, Educación, Protección social y Pensiones (Millones de soles) Devengado SIAFVivienda y DUAmazonas2014 | S79: 31257941
A80: 9426 | B80: Economica | C80: EJE 3: POLÍTICA FISCAL | D80: Gasto Social referido a las funciones de Trabajo, Saneamiento, Vivienda y Desarrollo urbano, Salud, Cultura y deporte, Educación, Protección social y Pensiones (Millones de soles) Devengado SIAF | E80: AGE.12.1 | F80: Vivienda y DU | G80: Amazonas | H80: 2015 | I80: 39317504 | J80: Soles | K80: Ministerio de Economía y Finanzas (MEF)- Seguimiento de la Ejecución Presupuestal (Consulta amigable) | L80: Portal de Transparencia Económica | M80: http://apps5.mineco.gob.pe/transparencia/Navegador/default.aspx | P80: =IFERROR(IF(VLOOKUP(CONCATENATE(D80,F80,G80),ListaIndicadores!$AG$7:$AJ$1887,3,FALSE)="","",VLOOKUP(CONCATENATE(D80,F80,G80),ListaIndicadores!$AG$7:$AJ$1887,3,FALSE)),"") ->  | Q80: =VLOOKUP(CONCATENATE(D80,F80,G80),ListaIndicadores!$AG$7:$AJ$1887,4,FALSE) ->  | R80: Gasto Social referido a las funciones de Trabajo, Saneamiento, Vivienda y Desarrollo urbano, Salud, Cultura y deporte, Educación, Protección social y Pensiones (Millones de soles) Devengado SIAFVivienda y DUAmazonas2015 | S80: 39317504
A81: 9427 | B81: Economica | C81: EJE 3: POLÍTICA FISCAL | D81: Gasto Social referido a las funciones de Trabajo, Saneamiento, Vivienda y Desarrollo urbano, Salud, Cultura y deporte, Educación, Protección social y Pensiones (Millones de soles) Devengado SIAF | E81: AGE.12.1 | F81: Vivienda y DU | G81: Amazonas | H81: 2016 | I81: 25852559 | J81: Soles | K81: Ministerio de Economía y Finanzas (MEF)- Seguimiento de la Ejecución Presupuestal (Consulta amigable) | L81: Portal de Transparencia Económica | M81: http://apps5.mineco.gob.pe/transparencia/Navegador/default.aspx | P81: =IFERROR(IF(VLOOKUP(CONCATENATE(D81,F81,G81),ListaIndicadores!$AG$7:$AJ$1887,3,FALSE)="","",VLOOKUP(CONCATENATE(D81,F81,G81),ListaIndicadores!$AG$7:$AJ$1887,3,FALSE)),"") ->  | Q81: =VLOOKUP(CONCATENATE(D81,F81,G81),ListaIndicadores!$AG$7:$AJ$1887,4,FALSE) ->  | R81: Gasto Social referido a las funciones de Trabajo, Saneamiento, Vivienda y Desarrollo urbano, Salud, Cultura y deporte, Educación, Protección social y Pensiones (Millones de soles) Devengado SIAFVivienda y DUAmazonas2016 | S81: 25852559
A82: 9428 | B82: Economica | C82: EJE 3: POLÍTICA FISCAL | D82: Gasto Social referido a las funciones de Trabajo, Saneamiento, Vivienda y Desarrollo urbano, Salud, Cultura y deporte, Educación, Protección social y Pensiones (Millones de soles) Devengado SIAF | E82: AGE.12.1 | F82: Vivienda y DU | G82: Amazonas | H82: 2017 | I82: 38848012 | J82: Soles | K82: Ministerio de Economía y Finanzas (MEF)- Seguimiento de la Ejecución Presupuestal (Consulta amigable) | L82: Portal de Transparencia Económica | M82: http://apps5.mineco.gob.pe/transparencia/Navegador/default.aspx | P82: =IFERROR(IF(VLOOKUP(CONCATENATE(D82,F82,G82),ListaIndicadores!$AG$7:$AJ$1887,3,FALSE)="","",VLOOKUP(CONCATENATE(D82,F82,G82),ListaIndicadores!$AG$7:$AJ$1887,3,FALSE)),"") ->  | Q82: =VLOOKUP(CONCATENATE(D82,F82,G82),ListaIndicadores!$AG$7:$AJ$1887,4,FALSE) ->  | R82: Gasto Social referido a las funciones de Trabajo, Saneamiento, Vivienda y Desarrollo urbano, Salud, Cultura y deporte, Educación, Protección social y Pensiones (Millones de soles) Devengado SIAFVivienda y DUAmazonas2017 | S82: 38848012
A83: 9429 | B83: Economica | C83: EJE 3: POLÍTICA FISCAL | D83: Gasto Social referido a las funciones de Trabajo, Saneamiento, Vivienda y Desarrollo urbano, Salud, Cultura y deporte, Educación, Protección social y Pensiones (Millones de soles) Devengado SIAF | E83: AGE.12.1 | F83: Vivienda y DU | G83: Amazonas | H83: 2018 | I83: 19362359 | J83: Soles | K83: Ministerio de Economía y Finanzas (MEF)- Seguimiento de la Ejecución Presupuestal (Consulta amigable) | L83: Portal de Transparencia Económica | M83: http://apps5.mineco.gob.pe/transparencia/Navegador/default.aspx | P83: =IFERROR(IF(VLOOKUP(CONCATENATE(D83,F83,G83),ListaIndicadores!$AG$7:$AJ$1887,3,FALSE)="","",VLOOKUP(CONCATENATE(D83,F83,G83),ListaIndicadores!$AG$7:$AJ$1887,3,FALSE)),"") ->  | Q83: =VLOOKUP(CONCATENATE(D83,F83,G83),ListaIndicadores!$AG$7:$AJ$1887,4,FALSE) ->  | R83: Gasto Social referido a las funciones de Trabajo, Saneamiento, Vivienda y Desarrollo urbano, Salud, Cultura y deporte, Educación, Protección social y Pensiones (Millones de soles) Devengado SIAFVivienda y DUAmazonas2018 | S83: 19362359
A84: 9556 | B84: Economica | C84: EJE 3: POLÍTICA FISCAL | D84: Monto ejecutado en programas presupuestales vinculados a servicios universales en salud y educación.(soles, Devengado Anual | E84: AGE.12.2 | F84: Cáncer | G84: Amazonas | H84: 2014 | I84: 1271024 | J84: Soles | K84: Ministerio de Economía y Finanzas (MEF)- Seguimiento de la Ejecución Presupuestal (Consulta amigable) | L84: Portal de Transparencia Económica | M84: http://apps5.mineco.gob.pe/transparencia/Navegador/default.aspx | P84: =IFERROR(IF(VLOOKUP(CONCATENATE(D84,F84,G84),ListaIndicadores!$AG$7:$AJ$1887,3,FALSE)="","",VLOOKUP(CONCATENATE(D84,F84,G84),ListaIndicadores!$AG$7:$AJ$1887,3,FALSE)),"") ->  | Q84: =VLOOKUP(CONCATENATE(D84,F84,G84),ListaIndicadores!$AG$7:$AJ$1887,4,FALSE) ->  | R84: Monto ejecutado en programas presupuestales vinculados a servicios universales en salud y educación.(soles, Devengado AnualCáncerAmazonas2014 | S84: 1271024
A85: 9557 | B85: Economica | C85: EJE 3: POLÍTICA FISCAL | D85: Monto ejecutado en programas presupuestales vinculados a servicios universales en salud y educación.(soles, Devengado Anual | E85: AGE.12.2 | F85: Cáncer | G85: Amazonas | H85: 2015 | I85: 2990715 | J85: Soles | K85: Ministerio de Economía y Finanzas (MEF)- Seguimiento de la Ejecución Presupuestal (Consulta amigable) | L85: Portal de Transparencia Económica | M85: http://apps5.mineco.gob.pe/transparencia/Navegador/default.aspx | P85: =IFERROR(IF(VLOOKUP(CONCATENATE(D85,F85,G85),ListaIndicadores!$AG$7:$AJ$1887,3,FALSE)="","",VLOOKUP(CONCATENATE(D85,F85,G85),ListaIndicadores!$AG$7:$AJ$1887,3,FALSE)),"") ->  | Q85: =VLOOKUP(CONCATENATE(D85,F85,G85),ListaIndicadores!$AG$7:$AJ$1887,4,FALSE) ->  | R85: Monto ejecutado en programas presupuestales vinculados a servicios universales en salud y educación.(soles, Devengado AnualCáncerAmazonas2015 | S85: 2990715
A86: 9558 | B86: Economica | C86: EJE 3: POLÍTICA FISCAL | D86: Monto ejecutado en programas presupuestales vinculados a servicios universales en salud y educación.(soles, Devengado Anual | E86: AGE.12.2 | F86: Cáncer | G86: Amazonas | H86: 2016 | I86: 1740443 | J86: Soles | K86: Ministerio de Economía y Finanzas (MEF)- Seguimiento de la Ejecución Presupuestal (Consulta amigable) | L86: Portal de Transparencia Económica | M86: http://apps5.mineco.gob.pe/transparencia/Navegador/default.aspx | P86: =IFERROR(IF(VLOOKUP(CONCATENATE(D86,F86,G86),ListaIndicadores!$AG$7:$AJ$1887,3,FALSE)="","",VLOOKUP(CONCATENATE(D86,F86,G86),ListaIndicadores!$AG$7:$AJ$1887,3,FALSE)),"") ->  | Q86: =VLOOKUP(CONCATENATE(D86,F86,G86),ListaIndicadores!$AG$7:$AJ$1887,4,FALSE) ->  | R86: Monto ejecutado en programas presupuestales vinculados a servicios universales en salud y educación.(soles, Devengado AnualCáncerAmazonas2016 | S86: 1740443
A87: 9559 | B87: Economica | C87: EJE 3: POLÍTICA FISCAL | D87: Monto ejecutado en programas presupuestales vinculados a servicios universales en salud y educación.(soles, Devengado Anual | E87: AGE.12.2 | F87: Cáncer | G87: Amazonas | H87: 2017 | I87: 2205719 | J87: Soles | K87: Ministerio de Economía y Finanzas (MEF)- Seguimiento de la Ejecución Presupuestal (Consulta amigable) | L87: Portal de Transparencia Económica | M87: http://apps5.mineco.gob.pe/transparencia/Navegador/default.aspx | P87: =IFERROR(IF(VLOOKUP(CONCATENATE(D87,F87,G87),ListaIndicadores!$AG$7:$AJ$1887,3,FALSE)="","",VLOOKUP(CONCATENATE(D87,F87,G87),ListaIndicadores!$AG$7:$AJ$1887,3,FALSE)),"") ->  | Q87: =VLOOKUP(CONCATENATE(D87,F87,G87),ListaIndicadores!$AG$7:$AJ$1887,4,FALSE) ->  | R87: Monto ejecutado en programas presupuestales vinculados a servicios universales en salud y educación.(soles, Devengado AnualCáncerAmazonas2017 | S87: 2205719
A88: 9560 | B88: Economica | C88: EJE 3: POLÍTICA FISCAL | D88: Monto ejecutado en programas presupuestales vinculados a servicios universales en salud y educación.(soles, Devengado Anual | E88: AGE.12.2 | F88: Cáncer | G88: Amazonas | H88: 2018 | I88: 1922861 | J88: Soles | K88: Ministerio de Economía y Finanzas (MEF)- Seguimiento de la Ejecución Presupuestal (Consulta amigable) | L88: Portal de Transparencia Económica | M88: http://apps5.mineco.gob.pe/transparencia/Navegador/default.aspx | P88: =IFERROR(IF(VLOOKUP(CONCATENATE(D88,F88,G88),ListaIndicadores!$AG$7:$AJ$1887,3,FALSE)="","",VLOOKUP(CONCATENATE(D88,F88,G88),ListaIndicadores!$AG$7:$AJ$1887,3,FALSE)),"") ->  | Q88: =VLOOKUP(CONCATENATE(D88,F88,G88),ListaIndicadores!$AG$7:$AJ$1887,4,FALSE) ->  | R88: Monto ejecutado en programas presupuestales vinculados a servicios universales en salud y educación.(soles, Devengado AnualCáncerAmazonas2018 | S88: 1922861
A89: 9687 | B89: Economica | C89: EJE 3: POLÍTICA FISCAL | D89: Monto ejecutado en programas presupuestales vinculados a servicios universales en salud y educación.(soles, Devengado Anual | E89: AGE.12.2 | F89: Inclusión | G89: Amazonas | H89: 2014 | I89: 1909088 | J89: Soles | K89: Ministerio de Economía y Finanzas (MEF)- Seguimiento de la Ejecución Presupuestal (Consulta amigable) | L89: Portal de Transparencia Económica | M89: http://apps5.mineco.gob.pe/transparencia/Navegador/default.aspx | P89: =IFERROR(IF(VLOOKUP(CONCATENATE(D89,F89,G89),ListaIndicadores!$AG$7:$AJ$1887,3,FALSE)="","",VLOOKUP(CONCATENATE(D89,F89,G89),ListaIndicadores!$AG$7:$AJ$1887,3,FALSE)),"") ->  | Q89: =VLOOKUP(CONCATENATE(D89,F89,G89),ListaIndicadores!$AG$7:$AJ$1887,4,FALSE) ->  | R89: Monto ejecutado en programas presupuestales vinculados a servicios universales en salud y educación.(soles, Devengado AnualInclusiónAmazonas2014 | S89: 1909088
A90: 9688 | B90: Economica | C90: EJE 3: POLÍTICA FISCAL | D90: Monto ejecutado en programas presupuestales vinculados a servicios universales en salud y educación.(soles, Devengado Anual | E90: AGE.12.2 | F90: Inclusión | G90: Amazonas | H90: 2015 | I90: 545845 | J90: Soles | K90: Ministerio de Economía y Finanzas (MEF)- Seguimiento de la Ejecución Presupuestal (Consulta amigable) | L90: Portal de Transparencia Económica | M90: http://apps5.mineco.gob.pe/transparencia/Navegador/default.aspx | P90: =IFERROR(IF(VLOOKUP(CONCATENATE(D90,F90,G90),ListaIndicadores!$AG$7:$AJ$1887,3,FALSE)="","",VLOOKUP(CONCATENATE(D90,F90,G90),ListaIndicadores!$AG$7:$AJ$1887,3,FALSE)),"") ->  | Q90: =VLOOKUP(CONCATENATE(D90,F90,G90),ListaIndicadores!$AG$7:$AJ$1887,4,FALSE) ->  | R90: Monto ejecutado en programas presupuestales vinculados a servicios universales en salud y educación.(soles, Devengado AnualInclusiónAmazonas2015 | S90: 545845
A91: 9689 | B91: Economica | C91: EJE 3: POLÍTICA FISCAL | D91: Monto ejecutado en programas presupuestales vinculados a servicios universales en salud y educación.(soles, Devengado Anual | E91: AGE.12.2 | F91: Inclusión | G91: Amazonas | H91: 2016 | I91: 917095 | J91: Soles | K91: Ministerio de Economía y Finanzas (MEF)- Seguimiento de la Ejecución Presupuestal (Consulta amigable) | L91: Portal de Transparencia Económica | M91: http://apps5.mineco.gob.pe/transparencia/Navegador/default.aspx | P91: =IFERROR(IF(VLOOKUP(CONCATENATE(D91,F91,G91),ListaIndicadores!$AG$7:$AJ$1887,3,FALSE)="","",VLOOKUP(CONCATENATE(D91,F91,G91),ListaIndicadores!$AG$7:$AJ$1887,3,FALSE)),"") ->  | Q91: =VLOOKUP(CONCATENATE(D91,F91,G91),ListaIndicadores!$AG$7:$AJ$1887,4,FALSE) ->  | R91: Monto ejecutado en programas presupuestales vinculados a servicios universales en salud y educación.(soles, Devengado AnualInclusiónAmazonas2016 | S91: 917095
A92: 9690 | B92: Economica | C92: EJE 3: POLÍTICA FISCAL | D92: Monto ejecutado en programas presupuestales vinculados a servicios universales en salud y educación.(soles, Devengado Anual | E92: AGE.12.2 | F92: Inclusión | G92: Amazonas | H92: 2017 | I92: 948211 | J92: Soles | K92: Ministerio de Economía y Finanzas (MEF)- Seguimiento de la Ejecución Presupuestal (Consulta amigable) | L92: Portal de Transparencia Económica | M92: http://apps5.mineco.gob.pe/transparencia/Navegador/default.aspx | P92: =IFERROR(IF(VLOOKUP(CONCATENATE(D92,F92,G92),ListaIndicadores!$AG$7:$AJ$1887,3,FALSE)="","",VLOOKUP(CONCATENATE(D92,F92,G92),ListaIndicadores!$AG$7:$AJ$1887,3,FALSE)),"") ->  | Q92: =VLOOKUP(CONCATENATE(D92,F92,G92),ListaIndicadores!$AG$7:$AJ$1887,4,FALSE) ->  | R92: Monto ejecutado en programas presupuestales vinculados a servicios universales en salud y educación.(soles, Devengado AnualInclusiónAmazonas2017 | S92: 948211
A93: 9691 | B93: Economica | C93: EJE 3: POLÍTICA FISCAL | D93: Monto ejecutado en programas presupuestales vinculados a servicios universales en salud y educación.(soles, Devengado Anual | E93: AGE.12.2 | F93: Inclusión | G93: Amazonas | H93: 2018 | I93: 1513034 | J93: Soles | K93: Ministerio de Economía y Finanzas (MEF)- Seguimiento de la Ejecución Presupuestal (Consulta amigable) | L93: Portal de Transparencia Económica | M93: http://apps5.mineco.gob.pe/transparencia/Navegador/default.aspx | P93: =IFERROR(IF(VLOOKUP(CONCATENATE(D93,F93,G93),ListaIndicadores!$AG$7:$AJ$1887,3,FALSE)="","",VLOOKUP(CONCATENATE(D93,F93,G93),ListaIndicadores!$AG$7:$AJ$1887,3,FALSE)),"") ->  | Q93: =VLOOKUP(CONCATENATE(D93,F93,G93),ListaIndicadores!$AG$7:$AJ$1887,4,FALSE) ->  | R93: Monto ejecutado en programas presupuestales vinculados a servicios universales en salud y educación.(soles, Devengado AnualInclusiónAmazonas2018 | S93: 1513034
A94: 9818 | B94: Economica | C94: EJE 3: POLÍTICA FISCAL | D94: Monto ejecutado en programas presupuestales vinculados a servicios universales en salud y educación.(soles, Devengado Anual | E94: AGE.12.2 | F94: PAN | G94: Amazonas | H94: 2014 | I94: 52894585 | J94: Soles | K94: Ministerio de Economía y Finanzas (MEF)- Seguimiento de la Ejecución Presupuestal (Consulta amigable) | L94: Portal de Transparencia Económica | M94: http://apps5.mineco.gob.pe/transparencia/Navegador/default.aspx | P94: =IFERROR(IF(VLOOKUP(CONCATENATE(D94,F94,G94),ListaIndicadores!$AG$7:$AJ$1887,3,FALSE)="","",VLOOKUP(CONCATENATE(D94,F94,G94),ListaIndicadores!$AG$7:$AJ$1887,3,FALSE)),"") ->  | Q94: =VLOOKUP(CONCATENATE(D94,F94,G94),ListaIndicadores!$AG$7:$AJ$1887,4,FALSE) ->  | R94: Monto ejecutado en programas presupuestales vinculados a servicios universales en salud y educación.(soles, Devengado AnualPANAmazonas2014 | S94: 52894585
A95: 9819 | B95: Economica | C95: EJE 3: POLÍTICA FISCAL | D95: Monto ejecutado en programas presupuestales vinculados a servicios universales en salud y educación.(soles, Devengado Anual | E95: AGE.12.2 | F95: PAN | G95: Amazonas | H95: 2015 | I95: 90645069 | J95: Soles | K95: Ministerio de Economía y Finanzas (MEF)- Seguimiento de la Ejecución Presupuestal (Consulta amigable) | L95: Portal de Transparencia Económica | M95: http://apps5.mineco.gob.pe/transparencia/Navegador/default.aspx | P95: =IFERROR(IF(VLOOKUP(CONCATENATE(D95,F95,G95),ListaIndicadores!$AG$7:$AJ$1887,3,FALSE)="","",VLOOKUP(CONCATENATE(D95,F95,G95),ListaIndicadores!$AG$7:$AJ$1887,3,FALSE)),"") ->  | Q95: =VLOOKUP(CONCATENATE(D95,F95,G95),ListaIndicadores!$AG$7:$AJ$1887,4,FALSE) ->  | R95: Monto ejecutado en programas presupuestales vinculados a servicios universales en salud y educación.(soles, Devengado AnualPANAmazonas2015 | S95: 90645069
A96: 9820 | B96: Economica | C96: EJE 3: POLÍTICA FISCAL | D96: Monto ejecutado en programas presupuestales vinculados a servicios universales en salud y educación.(soles, Devengado Anual | E96: AGE.12.2 | F96: PAN | G96: Amazonas | H96: 2016 | I96: 65009092 | J96: Soles | K96: Ministerio de Economía y Finanzas (MEF)- Seguimiento de la Ejecución Presupuestal (Consulta amigable) | L96: Portal de Transparencia Económica | M96: http://apps5.mineco.gob.pe/transparencia/Navegador/default.aspx | P96: =IFERROR(IF(VLOOKUP(CONCATENATE(D96,F96,G96),ListaIndicadores!$AG$7:$AJ$1887,3,FALSE)="","",VLOOKUP(CONCATENATE(D96,F96,G96),ListaIndicadores!$AG$7:$AJ$1887,3,FALSE)),"") ->  | Q96: =VLOOKUP(CONCATENATE(D96,F96,G96),ListaIndicadores!$AG$7:$AJ$1887,4,FALSE) ->  | R96: Monto ejecutado en programas presupuestales vinculados a servicios universales en salud y educación.(soles, Devengado AnualPANAmazonas2016 | S96: 65009092
A97: 9821 | B97: Economica | C97: EJE 3: POLÍTICA FISCAL | D97: Monto ejecutado en programas presupuestales vinculados a servicios universales en salud y educación.(soles, Devengado Anual | E97: AGE.12.2 | F97: PAN | G97: Amazonas | H97: 2017 | I97: 62880167 | J97: Soles | K97: Ministerio de Economía y Finanzas (MEF)- Seguimiento de la Ejecución Presupuestal (Consulta amigable) | L97: Portal de Transparencia Económica | M97: http://apps5.mineco.gob.pe/transparencia/Navegador/default.aspx | P97: =IFERROR(IF(VLOOKUP(CONCATENATE(D97,F97,G97),ListaIndicadores!$AG$7:$AJ$1887,3,FALSE)="","",VLOOKUP(CONCATENATE(D97,F97,G97),ListaIndicadores!$AG$7:$AJ$1887,3,FALSE)),"") ->  | Q97: =VLOOKUP(CONCATENATE(D97,F97,G97),ListaIndicadores!$AG$7:$AJ$1887,4,FALSE) ->  | R97: Monto ejecutado en programas presupuestales vinculados a servicios universales en salud y educación.(soles, Devengado AnualPANAmazonas2017 | S97: 62880167
A98: 9822 | B98: Economica | C98: EJE 3: POLÍTICA FISCAL | D98: Monto ejecutado en programas presupuestales vinculados a servicios universales en salud y educación.(soles, Devengado Anual | E98: AGE.12.2 | F98: PAN | G98: Amazonas | H98: 2018 | I98: 84194301 | J98: Soles | K98: Ministerio de Economía y Finanzas (MEF)- Seguimiento de la Ejecución Presupuestal (Consulta amigable) | L98: Portal de Transparencia Económica | M98: http://apps5.mineco.gob.pe/transparencia/Navegador/default.aspx | P98: =IFERROR(IF(VLOOKUP(CONCATENATE(D98,F98,G98),ListaIndicadores!$AG$7:$AJ$1887,3,FALSE)="","",VLOOKUP(CONCATENATE(D98,F98,G98),ListaIndicadores!$AG$7:$AJ$1887,3,FALSE)),"") ->  | Q98: =VLOOKUP(CONCATENATE(D98,F98,G98),ListaIndicadores!$AG$7:$AJ$1887,4,FALSE) ->  | R98: Monto ejecutado en programas presupuestales vinculados a servicios universales en salud y educación.(soles, Devengado AnualPANAmazonas2018 | S98: 84194301
A99: 9949 | B99: Economica | C99: EJE 3: POLÍTICA FISCAL | D99: Monto ejecutado en programas presupuestales vinculados a servicios universales en salud y educación.(soles, Devengado Anual | E99: AGE.12.2 | F99: PELA B.Regular | G99: Amazonas | H99: 2014 | I99: 257197368 | J99: Soles | K99: Ministerio de Economía y Finanzas (MEF)- Seguimiento de la Ejecución Presupuestal (Consulta amigable) | L99: Portal de Transparencia Económica | M99: http://apps5.mineco.gob.pe/transparencia/Navegador/default.aspx | P99: =IFERROR(IF(VLOOKUP(CONCATENATE(D99,F99,G99),ListaIndicadores!$AG$7:$AJ$1887,3,FALSE)="","",VLOOKUP(CONCATENATE(D99,F99,G99),ListaIndicadores!$AG$7:$AJ$1887,3,FALSE)),"") ->  | Q99: =VLOOKUP(CONCATENATE(D99,F99,G99),ListaIndicadores!$AG$7:$AJ$1887,4,FALSE) ->  | R99: Monto ejecutado en programas presupuestales vinculados a servicios universales en salud y educación.(soles, Devengado AnualPELA B.RegularAmazonas2014 | S99: 257197368
A100: 9950 | B100: Economica | C100: EJE 3: POLÍTICA FISCAL | D100: Monto ejecutado en programas presupuestales vinculados a servicios universales en salud y educación.(soles, Devengado Anual | E100: AGE.12.2 | F100: PELA B.Regular | G100: Amazonas | H100: 2015 | I100: 383719046 | J100: Soles | K100: Ministerio de Economía y Finanzas (MEF)- Seguimiento de la Ejecución Presupuestal (Consulta amigable) | L100: Portal de Transparencia Económica | M100: http://apps5.mineco.gob.pe/transparencia/Navegador/default.aspx | P100: =IFERROR(IF(VLOOKUP(CONCATENATE(D100,F100,G100),ListaIndicadores!$AG$7:$AJ$1887,3,FALSE)="","",VLOOKUP(CONCATENATE(D100,F100,G100),ListaIndicadores!$AG$7:$AJ$1887,3,FALSE)),"") ->  | Q100: =VLOOKUP(CONCATENATE(D100,F100,G100),ListaIndicadores!$AG$7:$AJ$1887,4,FALSE) ->  | R100: Monto ejecutado en programas presupuestales vinculados a servicios universales en salud y educación.(soles, Devengado AnualPELA B.RegularAmazonas2015 | S100: 383719046
A101: 9951 | B101: Economica | C101: EJE 3: POLÍTICA FISCAL | D101: Monto ejecutado en programas presupuestales vinculados a servicios universales en salud y educación.(soles, Devengado Anual | E101: AGE.12.2 | F101: PELA B.Regular | G101: Amazonas | H101: 2016 | I101: 361519053 | J101: Soles | K101: Ministerio de Economía y Finanzas (MEF)- Seguimiento de la Ejecución Presupuestal (Consulta amigable) | L101: Portal de Transparencia Económica | M101: http://apps5.mineco.gob.pe/transparencia/Navegador/default.aspx | P101: =IFERROR(IF(VLOOKUP(CONCATENATE(D101,F101,G101),ListaIndicadores!$AG$7:$AJ$1887,3,FALSE)="","",VLOOKUP(CONCATENATE(D101,F101,G101),ListaIndicadores!$AG$7:$AJ$1887,3,FALSE)),"") ->  | Q101: =VLOOKUP(CONCATENATE(D101,F101,G101),ListaIndicadores!$AG$7:$AJ$1887,4,FALSE) ->  | R101: Monto ejecutado en programas presupuestales vinculados a servicios universales en salud y educación.(soles, Devengado AnualPELA B.RegularAmazonas2016 | S101: 361519053
A102: 9952 | B102: Economica | C102: EJE 3: POLÍTICA FISCAL | D102: Monto ejecutado en programas presupuestales vinculados a servicios universales en salud y educación.(soles, Devengado Anual | E102: AGE.12.2 | F102: PELA B.Regular | G102: Amazonas | H102: 2017 | I102: 419702469 | J102: Soles | K102: Ministerio de Economía y Finanzas (MEF)- Seguimiento de la Ejecución Presupuestal (Consulta amigable) | L102: Portal de Transparencia Económica | M102: http://apps5.mineco.gob.pe/transparencia/Navegador/default.aspx | P102: =IFERROR(IF(VLOOKUP(CONCATENATE(D102,F102,G102),ListaIndicadores!$AG$7:$AJ$1887,3,FALSE)="","",VLOOKUP(CONCATENATE(D102,F102,G102),ListaIndicadores!$AG$7:$AJ$1887,3,FALSE)),"") ->  | Q102: =VLOOKUP(CONCATENATE(D102,F102,G102),ListaIndicadores!$AG$7:$AJ$1887,4,FALSE) ->  | R102: Monto ejecutado en programas presupuestales vinculados a servicios universales en salud y educación.(soles, Devengado AnualPELA B.RegularAmazonas2017 | S102: 419702469
A103: 9953 | B103: Economica | C103: EJE 3: POLÍTICA FISCAL | D103: Monto ejecutado en programas presupuestales vinculados a servicios universales en salud y educación.(soles, Devengado Anual | E103: AGE.12.2 | F103: PELA B.Regular | G103: Amazonas | H103: 2018 | I103: 455063131 | J103: Soles | K103: Ministerio de Economía y Finanzas (MEF)- Seguimiento de la Ejecución Presupuestal (Consulta amigable) | L103: Portal de Transparencia Económica | M103: http://apps5.mineco.gob.pe/transparencia/Navegador/default.aspx | P103: =IFERROR(IF(VLOOKUP(CONCATENATE(D103,F103,G103),ListaIndicadores!$AG$7:$AJ$1887,3,FALSE)="","",VLOOKUP(CONCATENATE(D103,F103,G103),ListaIndicadores!$AG$7:$AJ$1887,3,FALSE)),"") ->  | Q103: =VLOOKUP(CONCATENATE(D103,F103,G103),ListaIndicadores!$AG$7:$AJ$1887,4,FALSE) ->  | R103: Monto ejecutado en programas presupuestales vinculados a servicios universales en salud y educación.(soles, Devengado AnualPELA B.RegularAmazonas2018 | S103: 455063131
A104: 10080 | B104: Economica | C104: EJE 3: POLÍTICA FISCAL | D104: Monto ejecutado en programas presupuestales vinculados a servicios universales en salud y educación.(soles, Devengado Anual | E104: AGE.12.2 | F104: SMN | G104: Amazonas | H104: 2014 | I104: 43401907 | J104: Soles | K104: Ministerio de Economía y Finanzas (MEF)- Seguimiento de la Ejecución Presupuestal (Consulta amigable) | L104: Portal de Transparencia Económica | M104: http://apps5.mineco.gob.pe/transparencia/Navegador/default.aspx | P104: =IFERROR(IF(VLOOKUP(CONCATENATE(D104,F104,G104),ListaIndicadores!$AG$7:$AJ$1887,3,FALSE)="","",VLOOKUP(CONCATENATE(D104,F104,G104),ListaIndicadores!$AG$7:$AJ$1887,3,FALSE)),"") ->  | Q104: =VLOOKUP(CONCATENATE(D104,F104,G104),ListaIndicadores!$AG$7:$AJ$1887,4,FALSE) ->  | R104: Monto ejecutado en programas presupuestales vinculados a servicios universales en salud y educación.(soles, Devengado AnualSMNAmazonas2014 | S104: 43401907
A105: 10081 | B105: Economica | C105: EJE 3: POLÍTICA FISCAL | D105: Monto ejecutado en programas presupuestales vinculados a servicios universales en salud y educación.(soles, Devengado Anual | E105: AGE.12.2 | F105: SMN | G105: Amazonas | H105: 2015 | I105: 54513476 | J105: Soles | K105: Ministerio de Economía y Finanzas (MEF)- Seguimiento de la Ejecución Presupuestal (Consulta amigable) | L105: Portal de Transparencia Económica | M105: http://apps5.mineco.gob.pe/transparencia/Navegador/default.aspx | P105: =IFERROR(IF(VLOOKUP(CONCATENATE(D105,F105,G105),ListaIndicadores!$AG$7:$AJ$1887,3,FALSE)="","",VLOOKUP(CONCATENATE(D105,F105,G105),ListaIndicadores!$AG$7:$AJ$1887,3,FALSE)),"") ->  | Q105: =VLOOKUP(CONCATENATE(D105,F105,G105),ListaIndicadores!$AG$7:$AJ$1887,4,FALSE) ->  | R105: Monto ejecutado en programas presupuestales vinculados a servicios universales en salud y educación.(soles, Devengado AnualSMNAmazonas2015 | S105: 54513476
A106: 10082 | B106: Economica | C106: EJE 3: POLÍTICA FISCAL | D106: Monto ejecutado en programas presupuestales vinculados a servicios universales en salud y educación.(soles, Devengado Anual | E106: AGE.12.2 | F106: SMN | G106: Amazonas | H106: 2016 | I106: 41725453 | J106: Soles | K106: Ministerio de Economía y Finanzas (MEF)- Seguimiento de la Ejecución Presupuestal (Consulta amigable) | L106: Portal de Transparencia Económica | M106: http://apps5.mineco.gob.pe/transparencia/Navegador/default.aspx | P106: =IFERROR(IF(VLOOKUP(CONCATENATE(D106,F106,G106),ListaIndicadores!$AG$7:$AJ$1887,3,FALSE)="","",VLOOKUP(CONCATENATE(D106,F106,G106),ListaIndicadores!$AG$7:$AJ$1887,3,FALSE)),"") ->  | Q106: =VLOOKUP(CONCATENATE(D106,F106,G106),ListaIndicadores!$AG$7:$AJ$1887,4,FALSE) ->  | R106: Monto ejecutado en programas presupuestales vinculados a servicios universales en salud y educación.(soles, Devengado AnualSMNAmazonas2016 | S106: 41725453
A107: 10083 | B107: Economica | C107: EJE 3: POLÍTICA FISCAL | D107: Monto ejecutado en programas presupuestales vinculados a servicios universales en salud y educación.(soles, Devengado Anual | E107: AGE.12.2 | F107: SMN | G107: Amazonas | H107: 2017 | I107: 31823569 | J107: Soles | K107: Ministerio de Economía y Finanzas (MEF)- Seguimiento de la Ejecución Presupuestal (Consulta amigable) | L107: Portal de Transparencia Económica | M107: http://apps5.mineco.gob.pe/transparencia/Navegador/default.aspx | P107: =IFERROR(IF(VLOOKUP(CONCATENATE(D107,F107,G107),ListaIndicadores!$AG$7:$AJ$1887,3,FALSE)="","",VLOOKUP(CONCATENATE(D107,F107,G107),ListaIndicadores!$AG$7:$AJ$1887,3,FALSE)),"") ->  | Q107: =VLOOKUP(CONCATENATE(D107,F107,G107),ListaIndicadores!$AG$7:$AJ$1887,4,FALSE) ->  | R107: Monto ejecutado en programas presupuestales vinculados a servicios universales en salud y educación.(soles, Devengado AnualSMNAmazonas2017 | S107: 31823569
A108: 10084 | B108: Economica | C108: EJE 3: POLÍTICA FISCAL | D108: Monto ejecutado en programas presupuestales vinculados a servicios universales en salud y educación.(soles, Devengado Anual | E108: AGE.12.2 | F108: SMN | G108: Amazonas | H108: 2018 | I108: 38377747 | J108: Soles | K108: Ministerio de Economía y Finanzas (MEF)- Seguimiento de la Ejecución Presupuestal (Consulta amigable) | L108: Portal de Transparencia Económica | M108: http://apps5.mineco.gob.pe/transparencia/Navegador/default.aspx | P108: =IFERROR(IF(VLOOKUP(CONCATENATE(D108,F108,G108),ListaIndicadores!$AG$7:$AJ$1887,3,FALSE)="","",VLOOKUP(CONCATENATE(D108,F108,G108),ListaIndicadores!$AG$7:$AJ$1887,3,FALSE)),"") ->  | Q108: =VLOOKUP(CONCATENATE(D108,F108,G108),ListaIndicadores!$AG$7:$AJ$1887,4,FALSE) ->  | R108: Monto ejecutado en programas presupuestales vinculados a servicios universales en salud y educación.(soles, Devengado AnualSMNAmazonas2018 | S108: 38377747
A109: 10211 | B109: Economica | C109: EJE 3: POLÍTICA FISCAL | D109: Monto ejecutado en programas presupuestales vinculados a servicios universales en salud y educación.(soles, Devengado Anual | E109: AGE.12.2 | F109: TBC-VIH Sida | G109: Amazonas | H109: 2014 | I109: 4315499 | J109: Soles | K109: Ministerio de Economía y Finanzas (MEF)- Seguimiento de la Ejecución Presupuestal (Consulta amigable) | L109: Portal de Transparencia Económica | M109: http://apps5.mineco.gob.pe/transparencia/Navegador/default.aspx | P109: =IFERROR(IF(VLOOKUP(CONCATENATE(D109,F109,G109),ListaIndicadores!$AG$7:$AJ$1887,3,FALSE)="","",VLOOKUP(CONCATENATE(D109,F109,G109),ListaIndicadores!$AG$7:$AJ$1887,3,FALSE)),"") ->  | Q109: =VLOOKUP(CONCATENATE(D109,F109,G109),ListaIndicadores!$AG$7:$AJ$1887,4,FALSE) ->  | R109: Monto ejecutado en programas presupuestales vinculados a servicios universales en salud y educación.(soles, Devengado AnualTBC-VIH SidaAmazonas2014 | S109: 4315499
A110: 10212 | B110: Economica | C110: EJE 3: POLÍTICA FISCAL | D110: Monto ejecutado en programas presupuestales vinculados a servicios universales en salud y educación.(soles, Devengado Anual | E110: AGE.12.2 | F110: TBC-VIH Sida | G110: Amazonas | H110: 2015 | I110: 4592325 | J110: Soles | K110: Ministerio de Economía y Finanzas (MEF)- Seguimiento de la Ejecución Presupuestal (Consulta amigable) | L110: Portal de Transparencia Económica | M110: http://apps5.mineco.gob.pe/transparencia/Navegador/default.aspx | P110: =IFERROR(IF(VLOOKUP(CONCATENATE(D110,F110,G110),ListaIndicadores!$AG$7:$AJ$1887,3,FALSE)="","",VLOOKUP(CONCATENATE(D110,F110,G110),ListaIndicadores!$AG$7:$AJ$1887,3,FALSE)),"") ->  | Q110: =VLOOKUP(CONCATENATE(D110,F110,G110),ListaIndicadores!$AG$7:$AJ$1887,4,FALSE) ->  | R110: Monto ejecutado en programas presupuestales vinculados a servicios universales en salud y educación.(soles, Devengado AnualTBC-VIH SidaAmazonas2015 | S110: 4592325
A111: 10213 | B111: Economica | C111: EJE 3: POLÍTICA FISCAL | D111: Monto ejecutado en programas presupuestales vinculados a servicios universales en salud y educación.(soles, Devengado Anual | E111: AGE.12.2 | F111: TBC-VIH Sida | G111: Amazonas | H111: 2016 | I111: 5725822 | J111: Soles | K111: Ministerio de Economía y Finanzas (MEF)- Seguimiento de la Ejecución Presupuestal (Consulta amigable) | L111: Portal de Transparencia Económica | M111: http://apps5.mineco.gob.pe/transparencia/Navegador/default.aspx | P111: =IFERROR(IF(VLOOKUP(CONCATENATE(D111,F111,G111),ListaIndicadores!$AG$7:$AJ$1887,3,FALSE)="","",VLOOKUP(CONCATENATE(D111,F111,G111),ListaIndicadores!$AG$7:$AJ$1887,3,FALSE)),"") ->  | Q111: =VLOOKUP(CONCATENATE(D111,F111,G111),ListaIndicadores!$AG$7:$AJ$1887,4,FALSE) ->  | R111: Monto ejecutado en programas presupuestales vinculados a servicios universales en salud y educación.(soles, Devengado AnualTBC-VIH SidaAmazonas2016 | S111: 5725822
A112: 10214 | B112: Economica | C112: EJE 3: POLÍTICA FISCAL | D112: Monto ejecutado en programas presupuestales vinculados a servicios universales en salud y educación.(soles, Devengado Anual | E112: AGE.12.2 | F112: TBC-VIH Sida | G112: Amazonas | H112: 2017 | I112: 5842915 | J112: Soles | K112: Ministerio de Economía y Finanzas (MEF)- Seguimiento de la Ejecución Presupuestal (Consulta amigable) | L112: Portal de Transparencia Económica | M112: http://apps5.mineco.gob.pe/transparencia/Navegador/default.aspx | P112: =IFERROR(IF(VLOOKUP(CONCATENATE(D112,F112,G112),ListaIndicadores!$AG$7:$AJ$1887,3,FALSE)="","",VLOOKUP(CONCATENATE(D112,F112,G112),ListaIndicadores!$AG$7:$AJ$1887,3,FALSE)),"") ->  | Q112: =VLOOKUP(CONCATENATE(D112,F112,G112),ListaIndicadores!$AG$7:$AJ$1887,4,FALSE) ->  | R112: Monto ejecutado en programas presupuestales vinculados a servicios universales en salud y educación.(soles, Devengado AnualTBC-VIH SidaAmazonas2017 | S112: 5842915
A113: 10215 | B113: Economica | C113: EJE 3: POLÍTICA FISCAL | D113: Monto ejecutado en programas presupuestales vinculados a servicios universales en salud y educación.(soles, Devengado Anual | E113: AGE.12.2 | F113: TBC-VIH Sida | G113: Amazonas | H113: 2018 | I113: 6970263 | J113: Soles | K113: Ministerio de Economía y Finanzas (MEF)- Seguimiento de la Ejecución Presupuestal (Consulta amigable) | L113: Portal de Transparencia Económica | M113: http://apps5.mineco.gob.pe/transparencia/Navegador/default.aspx | P113: =IFERROR(IF(VLOOKUP(CONCATENATE(D113,F113,G113),ListaIndicadores!$AG$7:$AJ$1887,3,FALSE)="","",VLOOKUP(CONCATENATE(D113,F113,G113),ListaIndicadores!$AG$7:$AJ$1887,3,FALSE)),"") ->  | Q113: =VLOOKUP(CONCATENATE(D113,F113,G113),ListaIndicadores!$AG$7:$AJ$1887,4,FALSE) ->  | R113: Monto ejecutado en programas presupuestales vinculados a servicios universales en salud y educación.(soles, Devengado AnualTBC-VIH SidaAmazonas2018 | S113: 6970263
A114: 10342 | B114: Economica | C114: EJE 3: POLÍTICA FISCAL | D114: Monto ejecutado en programas presupuestales vinculados a servicios universales en salud y educación.(soles, Devengado Anual | E114: AGE.12.3 | F114: Acceso y uso adecuado de los servicios publicos de telecomunicaciones e informacion asociados | G114: Amazonas | H114: 2014 | I114: 1964138 | J114: Soles | K114: Ministerio de Economía y Finanzas (MEF)- Seguimiento de la Ejecución Presupuestal (Consulta amigable) | L114: Portal de Transparencia Económica | M114: http://apps5.mineco.gob.pe/transparencia/Navegador/default.aspx | P114: =IFERROR(IF(VLOOKUP(CONCATENATE(D114,F114,G114),ListaIndicadores!$AG$7:$AJ$1887,3,FALSE)="","",VLOOKUP(CONCATENATE(D114,F114,G114),ListaIndicadores!$AG$7:$AJ$1887,3,FALSE)),"") ->  | Q114: =VLOOKUP(CONCATENATE(D114,F114,G114),ListaIndicadores!$AG$7:$AJ$1887,4,FALSE) ->  | R114: Monto ejecutado en programas presupuestales vinculados a servicios universales en salud y educación.(soles, Devengado AnualAcceso y uso adecuado de los servicios publicos de telecomunicaciones e informacion asociadosAmazonas2014 | S114: 1964138
A115: 10343 | B115: Economica | C115: EJE 3: POLÍTICA FISCAL | D115: Monto ejecutado en programas presupuestales vinculados a servicios universales en salud y educación.(soles, Devengado Anual | E115: AGE.12.3 | F115: Acceso y uso adecuado de los servicios publicos de telecomunicaciones e informacion asociados | G115: Amazonas | H115: 2015 | I115: 1022652 | J115: Soles | K115: Ministerio de Economía y Finanzas (MEF)- Seguimiento de la Ejecución Presupuestal (Consulta amigable) | L115: Portal de Transparencia Económica | M115: http://apps5.mineco.gob.pe/transparencia/Navegador/default.aspx | P115: =IFERROR(IF(VLOOKUP(CONCATENATE(D115,F115,G115),ListaIndicadores!$AG$7:$AJ$1887,3,FALSE)="","",VLOOKUP(CONCATENATE(D115,F115,G115),ListaIndicadores!$AG$7:$AJ$1887,3,FALSE)),"") ->  | Q115: =VLOOKUP(CONCATENATE(D115,F115,G115),ListaIndicadores!$AG$7:$AJ$1887,4,FALSE) ->  | R115: Monto ejecutado en programas presupuestales vinculados a servicios universales en salud y educación.(soles, Devengado AnualAcceso y uso adecuado de los servicios publicos de telecomunicaciones e informacion asociadosAmazonas2015 | S115: 1022652
A116: 10344 | B116: Economica | C116: EJE 3: POLÍTICA FISCAL | D116: Monto ejecutado en programas presupuestales vinculados a servicios universales en salud y educación.(soles, Devengado Anual | E116: AGE.12.3 | F116: Acceso y uso adecuado de los servicios publicos de telecomunicaciones e informacion asociados | G116: Amazonas | H116: 2016 | I116: 516600 | J116: Soles | K116: Ministerio de Economía y Finanzas (MEF)- Seguimiento de la Ejecución Presupuestal (Consulta amigable) | L116: Portal de Transparencia Económica | M116: http://apps5.mineco.gob.pe/transparencia/Navegador/default.aspx | P116: =IFERROR(IF(VLOOKUP(CONCATENATE(D116,F116,G116),ListaIndicadores!$AG$7:$AJ$1887,3,FALSE)="","",VLOOKUP(CONCATENATE(D116,F116,G116),ListaIndicadores!$AG$7:$AJ$1887,3,FALSE)),"") ->  | Q116: =VLOOKUP(CONCATENATE(D116,F116,G116),ListaIndicadores!$AG$7:$AJ$1887,4,FALSE) ->  | R116: Monto ejecutado en programas presupuestales vinculados a servicios universales en salud y educación.(soles, Devengado AnualAcceso y uso adecuado de los servicios publicos de telecomunicaciones e informacion asociadosAmazonas2016 | S116: 516600
A117: 10345 | B117: Economica | C117: EJE 3: POLÍTICA FISCAL | D117: Monto ejecutado en programas presupuestales vinculados a servicios universales en salud y educación.(soles, Devengado Anual | E117: AGE.12.3 | F117: Acceso y uso adecuado de los servicios publicos de telecomunicaciones e informacion asociados | G117: Amazonas | H117: 2017 | I117: Sin datos | J117: Soles | K117: Ministerio de Economía y Finanzas (MEF)- Seguimiento de la Ejecución Presupuestal (Consulta amigable) | L117: Portal de Transparencia Económica | M117: http://apps5.mineco.gob.pe/transparencia/Navegador/default.aspx | P117: =IFERROR(IF(VLOOKUP(CONCATENATE(D117,F117,G117),ListaIndicadores!$AG$7:$AJ$1887,3,FALSE)="","",VLOOKUP(CONCATENATE(D117,F117,G117),ListaIndicadores!$AG$7:$AJ$1887,3,FALSE)),"") ->  | Q117: =VLOOKUP(CONCATENATE(D117,F117,G117),ListaIndicadores!$AG$7:$AJ$1887,4,FALSE) ->  | R117: Monto ejecutado en programas presupuestales vinculados a servicios universales en salud y educación.(soles, Devengado AnualAcceso y uso adecuado de los servicios publicos de telecomunicaciones e informacion asociadosAmazonas2017 | S117: Sin datos
A118: 10346 | B118: Economica | C118: EJE 3: POLÍTICA FISCAL | D118: Monto ejecutado en programas presupuestales vinculados a servicios universales en salud y educación.(soles, Devengado Anual | E118: AGE.12.3 | F118: Acceso y uso adecuado de los servicios publicos de telecomunicaciones e informacion asociados | G118: Amazonas | H118: 2018 | I118: 35355715 | J118: Soles | K118: Ministerio de Economía y Finanzas (MEF)- Seguimiento de la Ejecución Presupuestal (Consulta amigable) | L118: Portal de Transparencia Económica | M118: http://apps5.mineco.gob.pe/transparencia/Navegador/default.aspx | P118: =IFERROR(IF(VLOOKUP(CONCATENATE(D118,F118,G118),ListaIndicadores!$AG$7:$AJ$1887,3,FALSE)="","",VLOOKUP(CONCATENATE(D118,F118,G118),ListaIndicadores!$AG$7:$AJ$1887,3,FALSE)),"") ->  | Q118: =VLOOKUP(CONCATENATE(D118,F118,G118),ListaIndicadores!$AG$7:$AJ$1887,4,FALSE) ->  | R118: Monto ejecutado en programas presupuestales vinculados a servicios universales en salud y educación.(soles, Devengado AnualAcceso y uso adecuado de los servicios publicos de telecomunicaciones e informacion asociadosAmazonas2018 | S118: 35355715
A119: 10467 | B119: Economica | C119: EJE 3: POLÍTICA FISCAL | D119: Monto ejecutado en programas presupuestales vinculados a servicios universales en salud y educación.(soles, Devengado Anual | E119: AGE.12.3 | F119: Electrificación Rural | G119: Amazonas | H119: 2014 | I119: 19072884 | J119: Soles | K119: Ministerio de Economía y Finanzas (MEF)- Seguimiento de la Ejecución Presupuestal (Consulta amigable) | L119: Portal de Transparencia Económica | M119: http://apps5.mineco.gob.pe/transparencia/Navegador/default.aspx | P119: =IFERROR(IF(VLOOKUP(CONCATENATE(D119,F119,G119),ListaIndicadores!$AG$7:$AJ$1887,3,FALSE)="","",VLOOKUP(CONCATENATE(D119,F119,G119),ListaIndicadores!$AG$7:$AJ$1887,3,FALSE)),"") ->  | Q119: =VLOOKUP(CONCATENATE(D119,F119,G119),ListaIndicadores!$AG$7:$AJ$1887,4,FALSE) ->  | R119: Monto ejecutado en programas presupuestales vinculados a servicios universales en salud y educación.(soles, Devengado AnualElectrificación RuralAmazonas2014 | S119: 19072884
A120: 10468 | B120: Economica | C120: EJE 3: POLÍTICA FISCAL | D120: Monto ejecutado en programas presupuestales vinculados a servicios universales en salud y educación.(soles, Devengado Anual | E120: AGE.12.3 | F120: Electrificación Rural | G120: Amazonas | H120: 2015 | I120: 13356954 | J120: Soles | K120: Ministerio de Economía y Finanzas (MEF)- Seguimiento de la Ejecución Presupuestal (Consulta amigable) | L120: Portal de Transparencia Económica | M120: http://apps5.mineco.gob.pe/transparencia/Navegador/default.aspx | P120: =IFERROR(IF(VLOOKUP(CONCATENATE(D120,F120,G120),ListaIndicadores!$AG$7:$AJ$1887,3,FALSE)="","",VLOOKUP(CONCATENATE(D120,F120,G120),ListaIndicadores!$AG$7:$AJ$1887,3,FALSE)),"") ->  | Q120: =VLOOKUP(CONCATENATE(D120,F120,G120),ListaIndicadores!$AG$7:$AJ$1887,4,FALSE) ->  | R120: Monto ejecutado en programas presupuestales vinculados a servicios universales en salud y educación.(soles, Devengado AnualElectrificación RuralAmazonas2015 | S120: 13356954
A121: 10469 | B121: Economica | C121: EJE 3: POLÍTICA FISCAL | D121: Monto ejecutado en programas presupuestales vinculados a servicios universales en salud y educación.(soles, Devengado Anual | E121: AGE.12.3 | F121: Electrificación Rural | G121: Amazonas | H121: 2016 | I121: 7742900 | J121: Soles | K121: Ministerio de Economía y Finanzas (MEF)- Seguimiento de la Ejecución Presupuestal (Consulta amigable) | L121: Portal de Transparencia Económica | M121: http://apps5.mineco.gob.pe/transparencia/Navegador/default.aspx | P121: =IFERROR(IF(VLOOKUP(CONCATENATE(D121,F121,G121),ListaIndicadores!$AG$7:$AJ$1887,3,FALSE)="","",VLOOKUP(CONCATENATE(D121,F121,G121),ListaIndicadores!$AG$7:$AJ$1887,3,FALSE)),"") ->  | Q121: =VLOOKUP(CONCATENATE(D121,F121,G121),ListaIndicadores!$AG$7:$AJ$1887,4,FALSE) ->  | R121: Monto ejecutado en programas presupuestales vinculados a servicios universales en salud y educación.(soles, Devengado AnualElectrificación RuralAmazonas2016 | S121: 7742900
A122: 10470 | B122: Economica | C122: EJE 3: POLÍTICA FISCAL | D122: Monto ejecutado en programas presupuestales vinculados a servicios universales en salud y educación.(soles, Devengado Anual | E122: AGE.12.3 | F122: Electrificación Rural | G122: Amazonas | H122: 2017 | I122: 5590857 | J122: Soles | K122: Ministerio de Economía y Finanzas (MEF)- Seguimiento de la Ejecución Presupuestal (Consulta amigable) | L122: Portal de Transparencia Económica | M122: http://apps5.mineco.gob.pe/transparencia/Navegador/default.aspx | P122: =IFERROR(IF(VLOOKUP(CONCATENATE(D122,F122,G122),ListaIndicadores!$AG$7:$AJ$1887,3,FALSE)="","",VLOOKUP(CONCATENATE(D122,F122,G122),ListaIndicadores!$AG$7:$AJ$1887,3,FALSE)),"") ->  | Q122: =VLOOKUP(CONCATENATE(D122,F122,G122),ListaIndicadores!$AG$7:$AJ$1887,4,FALSE) ->  | R122: Monto ejecutado en programas presupuestales vinculados a servicios universales en salud y educación.(soles, Devengado AnualElectrificación RuralAmazonas2017 | S122: 5590857
A123: 10471 | B123: Economica | C123: EJE 3: POLÍTICA FISCAL | D123: Monto ejecutado en programas presupuestales vinculados a servicios universales en salud y educación.(soles, Devengado Anual | E123: AGE.12.3 | F123: Electrificación Rural | G123: Amazonas | H123: 2018 | I123: 8355623 | J123: Soles | K123: Ministerio de Economía y Finanzas (MEF)- Seguimiento de la Ejecución Presupuestal (Consulta amigable) | L123: Portal de Transparencia Económica | M123: http://apps5.mineco.gob.pe/transparencia/Navegador/default.aspx | P123: =IFERROR(IF(VLOOKUP(CONCATENATE(D123,F123,G123),ListaIndicadores!$AG$7:$AJ$1887,3,FALSE)="","",VLOOKUP(CONCATENATE(D123,F123,G123),ListaIndicadores!$AG$7:$AJ$1887,3,FALSE)),"") ->  | Q123: =VLOOKUP(CONCATENATE(D123,F123,G123),ListaIndicadores!$AG$7:$AJ$1887,4,FALSE) ->  | R123: Monto ejecutado en programas presupuestales vinculados a servicios universales en salud y educación.(soles, Devengado AnualElectrificación RuralAmazonas2018 | S123: 8355623
